Workbook

Sheet Information
A1: =Main!A1 -> ERA, DBNGP Tariff Model, Final Decision, April 2021
A2: =MID(CELL("filename",A1),FIND("]",CELL("filename",A1))+1,256) -> \[DBNGP-DBP-AA5-D227177-20210401-Public.XLSM]Information
A3: Prior to using this model
B4: The Excel VBA macro must be enabled prior to opening this model to allow the use of macro to perform computation.
A6: Annual update of Trailing Average DRP for Tariff Variation
B7: For each year prior to the variation year (of tariff variation) there will be an annual update of the Trailing Average Debt Risk Premium (DRP).
B8: Annual update of Trailing Average DRP is updated by entering the annual DRP at Input sheet Cells(AE11:AH11).
B9: ="The actual September CPI must also be updated at Input Sheet Row "&ROW(Inputs!A17)&"." -> The actual September CPI must also be updated at Input Sheet Row 17.
B10: After entering the annual updates, click on the [Calculate] button .
B11: The X-Factor (price change) and the revised tariffs at 31-December-2019 $ for the variation year will be computed.
B12: This model will also apply the tariff variation mechanism
B13: The Reference Tariff will be presented in the Main sheet.
A15: Worksheets
B17: Worksheet | C17: Description
B18: Main | C18: Summary of outputs
B19: WACC | C19: Contains the relevant parameters related to computing the WACC
B20: Inputs | C20: Contains general inputs of assumptions, capital expenditures, redundant and disposed assets, operating expenditures, approved depreciations
B21: Load | C21: Contains inputs of pipeline distances and capacity and throughput gas volumes
B22: CoS_Tariff_Revenue | C22: Computations of total revenue building block (cost of service), inflationary gain, tariff, tariff revenue and Credit Foncier Check
B23: Tax_CoRE | C23: Contains calculation of tax, imputation credit and cost of raising equity
B24: RebateableServices | C24: This sheet computes the Rebateable Forecast Total System F/H Equivalent Tariff [$ /GJ/day] which will be used for adjustment for producing the reference tariff.
B25: ProposedApproach | C25: The proposed approach deducts under-depreciation calculated in the ‘Under-depreciated’ worksheet from the depreciation in the ‘PrincipledApproach’ worksheet (only for the relevant capex years in question). This gives relevant depreciation for AA6.
B26: PrincipledApproach | C26: AA5 approved depreciation will reduce approved actual capex across AA5 to roll forward to 2026 open. The depreciation algorithms in the ‘PrincipledApproach’ automatically write-off outstanding assets balances with zero life at AA6 open. This amount is added to the first year of the depreciation building block.
B27: UnderDepreciated | C27: The opening algorithms will return zero values for out-of-service/written-off assets to ensure these amounts are excluded from ‘under-depreciation’ amounts being calculated in this sheet. It then calculates the difference between the opening RAB for AA6 (based on AA5 close) and opening RAB in the ‘EconomicDep’ worksheet. The ‘EconomicDep’ worksheet rolls forward the asset base as if all new categories and revised asset lives were applied from 2005. This difference represents outstanding depreciation on assets still in service that needs to be depreciated out (in theory putting postponement aside) over the remaining life.
B28: EconomicDep | C28: This will roll forward the RAB and calculate depreciation for AA6 as if the new categories and correct lives were applied from the start. This only exists as a reference point to establish under-depreciation on assets still in service which is postponed over the access arrangement.
B29: Asset_NoReclass | C29: Contains asset without asset reclassification. Assets classes from 2005 to 2015 would be the same as the previous access arrangements with its asset lives approved in AA4.
B30: RegDepPipeline | C30: Contains Pipeline assets for Capex of 2005 to 2015 and AA4 being reallocated to new asset categories based on the Asset_Splits information
B31: RegDepCompression | C31: Contains Compression assets for Capex of 2005 to 2015 and AA4 being reallocated to new asset categories based on the Asset_Splits information
B32: RegDepMetering | C32: Contains Metering assets for Capex of 2005 to 2015 and AA4 being reallocated to new asset categories based on the Asset_Splits information
B33: RegDepOther | C33: Contains Other Depreciable assets for Capex of 2005 to 2015 and AA4 being reallocated to new asset categories based on the Asset_Splits information
B34: Asset_Splits | C34: This sheet provides information on the percentage of allocation from an existing asset class to the new asset classes. It is used to reallocate the capex and redundant & disposed assets. In cases where the closing value become less than zero after the reallocation, the split for the redundant asset is set to zero.
B35: Tax_Asset | C35: Contains regulatory and non-regulatory shippers' asset base. Includes initial capital base and capital expenditure account. Objective is to compute Tax Depreciation of regulatory assets. Computations are in nominal $m
B36: SolverSheet | C36: Contains inputs, target outputs and settings for Solver to compute the X-Factor and tariffs after the annual update of Trailing Average DRP and Cost Pass Through event is completed.
B37: Tariff_Variation | C37: The forecast tariffs are recalculated to produce the Reference Tariffs based on the proxy CPI (actual September CPIs)

Sheet Main
A1: ERA, DBNGP Tariff Model, Final Decision, April 2021
A2: Main Summary
A3: Ref | B3: =COLUMN() -> 2 | C3: =COLUMN() -> 3 | D3: =COLUMN() -> 4 | E3: =COLUMN() -> 5 | F3: =COLUMN() -> 6 | G3: =COLUMN() -> 7 | H3: =COLUMN() -> 8
A4: WACC
A5: =ROW() -> 5 | C5: Post-tax WACC | D5: =Inputs!AD6 -> 2021 | E5: =Inputs!AE6 -> 2022 | F5: =Inputs!AF6 -> 2023 | G5: =Inputs!AG6 -> 2024 | H5: =Inputs!AH6 -> 2025 | Y5: Instruction for Annual Update of DRP:
A6: =ROW() -> 6 | C6: ="Real at "&Inputs!$E$28 -> Real at 31/12/2019 | D6: =WACC!T$37 -> 0.02365694513 | E6: =WACC!U$37 -> 0.02365694513 | F6: =WACC!V$37 -> 0.02365694513 | G6: =WACC!W$37 -> 0.02365694513 | H6: =WACC!X$37 -> 0.02365694513 | Y6: (1) Excel VBA Macro must be enabled
A7: =ROW() -> 7 | C7: Nominal (Vanilla) | D7: =WACC!T$36 -> 0.035429 | E7: =WACC!U$36 -> 0.035429 | F7: =WACC!V$36 -> 0.035429 | G7: =WACC!W$36 -> 0.035429 | H7: =WACC!X$36 -> 0.035429
A8: =ROW() -> 8 | Y8: (2) Update the current year Trailing Average DRP in the Input sheet
A9: Closing Regulated Asset Base | Y9: (3) Click the "Calculate" button to recalculate the model
A10: =ROW() -> 10 | Y10: Solver is used to calculate X-Factor (price change) and Cost of Raising Equity so that Delta=0
A11: =ROW() -> 11 | D11: December 2020 | E11: December 2025 | Y11: ="(4) The output will be a new X-Faxtor to compute new tariffs starting 1 January of the following" -> (4) The output will be a new X-Faxtor to compute new tariffs starting 1 January of the following
A12: =ROW() -> 12 | D12: =Inputs!$E$28&" [m$]" -> 31/12/2019 [m$] | E12: =Inputs!$E$28&" [m$]" -> 31/12/2019 [m$] | Y12: =" year in Real $ at "&Inputs!$E$28 -> year in Real $ at 31/12/2019
A13: =ROW() -> 13 | C13: Closing Asset Value of DBNGP including BEP Assets | D13: =ProposedApproach!AC33 -> 3331.497475 | E13: =ProposedApproach!AH33 -> 2848.085362
A14: =ROW() -> 14 | C14: Closing Asset Value of DBNGP Assets | D14: =ProposedApproach!AC47 -> 3312.433586 | E14: =ProposedApproach!AH47 -> 2831.290984 | AA14: Recalculate for years: | AB14: =Recalc_From_Year&" to 2025" -> 2021 to 2025
A15: =ROW() -> 15 | AB15: ="X-Factor_"&Inputs!AD6 -> X-Factor_2021 | AC15: ="X-Factor_"&Inputs!AE6 -> X-Factor_2022 | AD15: ="X-Factor_"&Inputs!AF6 -> X-Factor_2023 | AE15: ="X-Factor_"&Inputs!AG6 -> X-Factor_2024 | AF15: ="X-Factor_"&Inputs!AH6 -> X-Factor_2025
A16: Revenue Building Block | O16: Revenue Building Block | AA16: X-Factor (price change) = | AB16: =SolverSheet!I13 -> -0.0006092703266 | AC16: =SolverSheet!J13 -> 0 | AD16: =SolverSheet!K13 -> 0 | AE16: =SolverSheet!L13 -> 0 | AF16: =SolverSheet!M13 -> 0
A17: =ROW() -> 17 | E17: AA5 | AA17: Delta = | AB17: =SolverSheet!F16 -> 6.459686119e-10
A18: =ROW() -> 18 | D18: ="Real " -> Real | E18: Nominal | F18: Real [%] | G18: Nominal [%] | P18: ="Real at "&Inputs!$E$28&" [m$]" -> Real at 31/12/2019 [m$] | Q18: Nominal [m$] | Y18: (5) The Reference Tariff will also be presented after the actual September CPI is updated
A19: =ROW() -> 19 | B19: ="PV of Total Revenue (CoS) [m$ "&Inputs!$E$28&"]" -> PV of Total Revenue (CoS) [m$ 31/12/2019] | O19: ="Total Revenue (CoS)" -> Total Revenue (CoS)
A20: =ROW() -> 20 | C20: Opex | D20: =SUM(CoS_Tariff_Revenue!$F$76:$F$77) -> 389.5853013 | E20: =SUM(CoS_Tariff_Revenue!$F$41:$F$42) -> 389.5853013 | F20: =D20/D$26 -> 0.2887628485 | G20: 0.2887628485 | O20: Opex | P20: =SUM(CoS_Tariff_Revenue!$AH$76:$AL$77) -> 426.6242923 | Q20: =SUM(CoS_Tariff_Revenue!$AH$41:$AL$42) -> 446.1756523
A21: =ROW() -> 21 | C21: Depreciation | D21: =CoS_Tariff_Revenue!$F$78 -> 588.1341157 | E21: =CoS_Tariff_Revenue!$F$43 -> 588.1341157 | F21: 0.4359283626 | G21: 0.4359283626 | O21: Depreciation | P21: =SUM(CoS_Tariff_Revenue!$AH$78:$AL$78) -> 642.571729 | Q21: =SUM(CoS_Tariff_Revenue!$AH$43:$AL$43) -> 671.289736 | Y21: Notes on colour codes
A22: =ROW() -> 22 | C22: Inflationary Gains on RAB | E22: =CoS_Tariff_Revenue!$F$44 -> -162.1546008 | F22: 0 | G22: -0.1201899154 | O22: Inflationary Gains on RAB | Q22: =SUM(CoS_Tariff_Revenue!$AH$44:$AL$44) -> -185.9149986
A23: =ROW() -> 23 | C23: Return on Asset | D23: =CoS_Tariff_Revenue!$F$79 -> 337.4084732 | E23: =CoS_Tariff_Revenue!$F$45 -> 499.5630739 | F23: 0.2500890857 | G23: 0.3702790011 | O23: Return on Asset | P23: =SUM(CoS_Tariff_Revenue!$AH$79:$AL$79) -> 369.7613021 | Q23: =SUM(CoS_Tariff_Revenue!$AH$45:$AL$45) -> 572.7636943 | Y23: Number | Z23: ===> | AA23: Data entries
A24: =ROW() -> 24 | C24: Tax | D24: =CoS_Tariff_Revenue!$F$80 -> 68.05048307 | E24: =CoS_Tariff_Revenue!$F$46 -> 68.05048307 | F24: 0.05043940637 | G24: 0.05043940637 | O24: Tax | P24: =SUM(CoS_Tariff_Revenue!$AH$80:$AL$80) -> 73.49064182 | Q24: =SUM(CoS_Tariff_Revenue!$AH$46:$AL$46) -> 76.34138144 | Y24: Number | Z24: ===> | AA24: Number or texts that are linked to other sheet
A25: =ROW() -> 25 | C25: Imputation Credits | D25: =CoS_Tariff_Revenue!$F$81 -> -34.02524153 | E25: =CoS_Tariff_Revenue!$F$47 -> -34.02524153 | F25: -0.02521970319 | G25: -0.02521970319 | O25: Imputation Credits | P25: =SUM(CoS_Tariff_Revenue!$AH$81:$AL$81) -> -36.74532091 | Q25: =SUM(CoS_Tariff_Revenue!$AH$47:$AL$47) -> -38.17069072 | Y25: Number | Z25: ===> | AA25: Contains formula that is not consistent with the others in the same row
A26: =ROW() -> 26 | C26: Cost of Service | D26: =SUM(D20:D25) -> 1349.153132 | E26: =SUM(E20:E25) -> 1349.153132 | F26: 1 | G26: 1 | O26: Cost of Service | P26: =SUM(P20:P25) -> 1475.702644 | Q26: =SUM(Q20:Q25) -> 1542.484775 | Y26: -Number | Z26: ===> | AA26: Excel formatting for negative number
A27: =ROW() -> 27 | C27: less non-reference cost of service | D27: =CoS_Tariff_Revenue!F84 -> -13.49153132 | E27: =CoS_Tariff_Revenue!F50 -> -13.49153132 | O27: less non-reference cost of service | P27: =SUM(CoS_Tariff_Revenue!$AH$84:$AL$84) -> -14.75702644 | Q27: =SUM(CoS_Tariff_Revenue!$AH$50:$AL$50) -> -15.42484775
A28: =ROW() -> 28 | C28: add back SUG | D28: =CoS_Tariff_Revenue!F85 -> 0.7805605861 | E28: =CoS_Tariff_Revenue!F51 -> 0.7805605861 | O28: add back SUG | P28: =SUM(CoS_Tariff_Revenue!$AH$85:$AL$85) -> 0.8518602747 | Q28: =SUM(CoS_Tariff_Revenue!$AH$51:$AL$51) -> 0.8894009308
A29: =ROW() -> 29 | C29: Total Unsmooth Revenue | D29: =SUM(D26:D28) -> 1336.442161 | E29: =SUM(E26:E28) -> 1336.442161 | O29: Total Unsmooth Revenue | P29: =SUM(P26:P28) -> 1461.797478 | Q29: =SUM(Q26:Q28) -> 1527.949328
A30: =ROW() -> 30 | C30: Total Tariff Revenue | D30: =CoS_Tariff_Revenue!$F$87 -> 1336.442161 | E30: =CoS_Tariff_Revenue!$F$53 -> 1336.442161 | O30: Total Tariff Revenue | P30: =SUM(CoS_Tariff_Revenue!$AH$87:$AL$87) -> 1463.871509 | Q30: =SUM(CoS_Tariff_Revenue!$AH$53:$AL$53) -> 1531.148372
A31: =ROW() -> 31 | C31: Check: | D31: =IF(ROUND(D29-D30,5)=0,"OK","Wrong") -> OK | E31: =IF(ROUND(E29-E30,5)=0,"OK","Wrong") -> OK | O31: Difference (Unsmooth Revenue-Tariff Revenue) | P31: =P26-P30 -> 11.83113522 | Q31: =Q26-Q30 -> 11.3364032
A32: =ROW() -> 32
A33: =ROW() -> 33
A34: Check on Building Block
A35: =ROW() -> 35
A36: =ROW() -> 36 | B36: ="PV of Regulatory Revenue [m$ "&Inputs!$E$28&"]" -> PV of Regulatory Revenue [m$ 31/12/2019]
A37: =ROW() -> 37 | C37: Asset Opening Value | D37: =-CoS_Tariff_Revenue!$F$113 -> 3254.505809
A38: =ROW() -> 38 | C38: Asset Residual Value | D38: =-CoS_Tariff_Revenue!$F$115 -> -2475.291656
A39: =ROW() -> 39 | C39: Opex | D39: =-CoS_Tariff_Revenue!$F$109 -> 389.5853013
A40: =ROW() -> 40 | C40: Capex | D40: =-CoS_Tariff_Revenue!$F$114 -> 146.3284355
A41: =ROW() -> 41 | C41: Tax | D41: =-CoS_Tariff_Revenue!$F$110 -> 68.05048307
A42: =ROW() -> 42 | C42: Imputation Credits | D42: =-CoS_Tariff_Revenue!$F$111 -> -34.02524153
A43: =ROW() -> 43 | C43: Cost of Service | D43: =SUM(D37:D42) -> 1349.153132
A44: =ROW() -> 44 | C44: Check: | D44: =IF(ROUND(E26-D43,8)=0,"OK","Wrong") -> OK
A45: =ROW() -> 45
A46: PV of Forecast Revenue | O46: Total of Forecast Revenue
A47: =ROW() -> 47 | P47: ="Real at "&Inputs!$E$28&" [m$]" -> Real at 31/12/2019 [m$] | Q47: Nominal [m$]
A48: =ROW() -> 48 | B48: ="PV of Forecast Revenue [m$ "&Inputs!$E$28&"]" -> PV of Forecast Revenue [m$ 31/12/2019] | O48: Total of Forecast Revenue
A49: =ROW() -> 49 | C49: Capacity Reservation | D49: =CoS_Tariff_Revenue!$F237 -> 1259.67298 | O49: Capacity Reservation | P49: =SUM(CoS_Tariff_Revenue!$AH$237:$AL$237) -> 1380.036881 | Q49: =SUM(CoS_Tariff_Revenue!$AH$207:$AL$207) -> 1443.588894
A50: =ROW() -> 50 | C50: Commodity | D50: =CoS_Tariff_Revenue!$F238 -> 76.76918069 | O50: Commodity | P50: =SUM(CoS_Tariff_Revenue!$AH$238:$AL$238) -> 83.8346275 | Q50: =SUM(CoS_Tariff_Revenue!$AH$208:$AL$208) -> 87.55947724
A51: =ROW() -> 51 | C51: Regulated Revenue | D51: =CoS_Tariff_Revenue!$F239 -> 1336.442161 | O51: Regulated Revenue | P51: =SUM(CoS_Tariff_Revenue!$AH$239:$AL$239) -> 1463.871509 | Q51: =SUM(CoS_Tariff_Revenue!$AH$209:$AL$209) -> 1531.148372
A52: =ROW() -> 52 | C52: Check: | D52: =IF(ROUND(D29-D51,5)=0,"OK","Wrong") -> OK
A53: =ROW() -> 53
A54: =ROW() -> 54
A55: Forecast Reference Tariff | D55: =CoS_Tariff_Revenue!AH$6 -> 2021 | E55: =CoS_Tariff_Revenue!AI$6 -> 2022 | F55: =CoS_Tariff_Revenue!AJ$6 -> 2023 | G55: =CoS_Tariff_Revenue!AK$6 -> 2024 | H55: =CoS_Tariff_Revenue!AL$6 -> 2025
D56: Jul-Dec | E56: Jan-Dec | F56: Jan-Dec | G56: Jan-Dec | H56: Jan-Dec
A57: =ROW() -> 57 | B57: Full Haul T1 Service (T1 Service)
A58: =ROW() -> 58 | B58: ="Tariff [$/GJ/day "&Inputs!$E$28&"]" -> Tariff [$/GJ/day 31/12/2019]
A59: =ROW() -> 59 | C59: Capacity Reservation Tariff | D59: =CoS_Tariff_Revenue!AG$260 -> 1.259781231 | E59: =CoS_Tariff_Revenue!AI$260 -> 1.259781231 | F59: =CoS_Tariff_Revenue!AJ$260 -> 1.259781231 | G59: =CoS_Tariff_Revenue!AK$260 -> 1.259781231 | H59: =CoS_Tariff_Revenue!AL$260 -> 1.259781231
A60: =ROW() -> 60 | C60: Commodity Tariff | D60: =CoS_Tariff_Revenue!AG$261 -> 0.07814261079 | E60: =CoS_Tariff_Revenue!AI$261 -> 0.07814261079 | F60: =CoS_Tariff_Revenue!AJ$261 -> 0.07814261079 | G60: =CoS_Tariff_Revenue!AK$261 -> 0.07814261079 | H60: =CoS_Tariff_Revenue!AL$261 -> 0.07814261079
A61: =ROW() -> 61 | C61: Total Tariff | D61: =CoS_Tariff_Revenue!AG$262 -> 1.337923842 | E61: =CoS_Tariff_Revenue!AI$262 -> 1.337923842 | F61: =CoS_Tariff_Revenue!AJ$262 -> 1.337923842 | G61: =CoS_Tariff_Revenue!AK$262 -> 1.337923842 | H61: =CoS_Tariff_Revenue!AL$262 -> 1.337923842
A62: =ROW() -> 62 | B62: Part Haul T1 Service (P1 Service)
A63: =ROW() -> 63 | B63: ="Tariff [$/GJ/day/km "&Inputs!$E$28&"]" -> Tariff [$/GJ/day/km 31/12/2019]
A64: =ROW() -> 64 | C64: Capacity Reservation Tariff | D64: =CoS_Tariff_Revenue!AG$270 -> 0.0009004869412 | E64: =CoS_Tariff_Revenue!AI$270 -> 0.0009004869412 | F64: =CoS_Tariff_Revenue!AJ$270 -> 0.0009004869412 | G64: =CoS_Tariff_Revenue!AK$270 -> 0.0009004869412 | H64: =CoS_Tariff_Revenue!AL$270 -> 0.0009004869412
A65: =ROW() -> 65 | C65: Commodity Tariff | D65: =CoS_Tariff_Revenue!AG$271 -> 5.585604774e-05 | E65: =CoS_Tariff_Revenue!AI$271 -> 5.585604774e-05 | F65: =CoS_Tariff_Revenue!AJ$271 -> 5.585604774e-05 | G65: =CoS_Tariff_Revenue!AK$271 -> 5.585604774e-05 | H65: =CoS_Tariff_Revenue!AL$271 -> 5.585604774e-05
A66: =ROW() -> 66 | C66: Total Tariff | D66: =CoS_Tariff_Revenue!AG$272 -> 0.000956342989 | E66: =CoS_Tariff_Revenue!AI$272 -> 0.000956342989 | F66: =CoS_Tariff_Revenue!AJ$272 -> 0.000956342989 | G66: =CoS_Tariff_Revenue!AK$272 -> 0.000956342989 | H66: =CoS_Tariff_Revenue!AL$272 -> 0.000956342989
A67: =ROW() -> 67 | B67: Back Haul T1 Service (B1 Service)
A68: =ROW() -> 68 | B68: ="Tariff [$/GJ/day/km "&Inputs!$E$28&"]" -> Tariff [$/GJ/day/km 31/12/2019]
A69: =ROW() -> 69 | C69: Capacity Reservation Tariff | D69: =CoS_Tariff_Revenue!AG$280 -> 0.0009004869412 | E69: =CoS_Tariff_Revenue!AI$280 -> 0.0009004869412 | F69: =CoS_Tariff_Revenue!AJ$280 -> 0.0009004869412 | G69: =CoS_Tariff_Revenue!AK$280 -> 0.0009004869412 | H69: =CoS_Tariff_Revenue!AL$280 -> 0.0009004869412
A70: =ROW() -> 70 | C70: Commodity Tariff | D70: =CoS_Tariff_Revenue!AG$281 -> 5.585604774e-05 | E70: =CoS_Tariff_Revenue!AI$281 -> 5.585604774e-05 | F70: =CoS_Tariff_Revenue!AJ$281 -> 5.585604774e-05 | G70: =CoS_Tariff_Revenue!AK$281 -> 5.585604774e-05 | H70: =CoS_Tariff_Revenue!AL$281 -> 5.585604774e-05
A71: =ROW() -> 71 | C71: Total Tariff | D71: =CoS_Tariff_Revenue!AG$282 -> 0.000956342989 | E71: =CoS_Tariff_Revenue!AI$282 -> 0.000956342989 | F71: =CoS_Tariff_Revenue!AJ$282 -> 0.000956342989 | G71: =CoS_Tariff_Revenue!AK$282 -> 0.000956342989 | H71: =CoS_Tariff_Revenue!AL$282 -> 0.000956342989
A72: =ROW() -> 72
A73: Reference Tariff | D73: =IF(Tariff_Variation!F$58="","",Tariff_Variation!F$58) ->  | E73: =IF(Tariff_Variation!G$58="","",Tariff_Variation!G$58) ->  | F73: =IF(Tariff_Variation!H$58="","",Tariff_Variation!H$58) ->  | G73: =IF(Tariff_Variation!I$58="","",Tariff_Variation!I$58) ->  | H73: =IF(Tariff_Variation!J$58="","",Tariff_Variation!J$58) -> 
D74: =IF(Tariff_Variation!F$59="","",Tariff_Variation!F$59) ->  | E74: =IF(Tariff_Variation!G$59="","",Tariff_Variation!G$59) ->  | F74: =IF(Tariff_Variation!H$59="","",Tariff_Variation!H$59) ->  | G74: =IF(Tariff_Variation!I$59="","",Tariff_Variation!I$59) ->  | H74: =IF(Tariff_Variation!J$59="","",Tariff_Variation!J$59) -> 
A75: =ROW() -> 75 | B75: Full Haul T1 Service (T1 Service)
A76: =ROW() -> 76 | B76: Tariff [$/GJ/day]
A77: =ROW() -> 77 | C77: Capacity Reservation Tariff | D77: =CoS_Tariff_Revenue!AG256 -> 1.288922805 | E77: =IF(Tariff_Variation!G$62="","",Tariff_Variation!G$62) ->  | F77: =IF(Tariff_Variation!H$62="","",Tariff_Variation!H$62) ->  | G77: =IF(Tariff_Variation!I$62="","",Tariff_Variation!I$62) ->  | H77: =IF(Tariff_Variation!J$62="","",Tariff_Variation!J$62) -> 
A78: =ROW() -> 78 | C78: Commodity Tariff | D78: =CoS_Tariff_Revenue!AG257 -> 0.0799502252 | E78: =IF(Tariff_Variation!G$63="","",Tariff_Variation!G$63) ->  | F78: =IF(Tariff_Variation!H$63="","",Tariff_Variation!H$63) ->  | G78: =IF(Tariff_Variation!I$63="","",Tariff_Variation!I$63) ->  | H78: =IF(Tariff_Variation!J$63="","",Tariff_Variation!J$63) -> 
A79: =ROW() -> 79 | C79: Total Tariff | D79: =CoS_Tariff_Revenue!AG258 -> 1.36887303 | E79: =IF(Tariff_Variation!G$64="","",Tariff_Variation!G$64) ->  | F79: =IF(Tariff_Variation!H$64="","",Tariff_Variation!H$64) ->  | G79: =IF(Tariff_Variation!I$64="","",Tariff_Variation!I$64) ->  | H79: =IF(Tariff_Variation!J$64="","",Tariff_Variation!J$64) -> 
A80: =ROW() -> 80 | B80: Part Haul T1 Service (P1 Service)
A81: =ROW() -> 81 | B81: Tariff [$/GJ/day/km
A82: =ROW() -> 82 | C82: Capacity Reservation Tariff | D82: =CoS_Tariff_Revenue!AG266 -> 0.0009213172303 | E82: =IF(Tariff_Variation!G$68="","",Tariff_Variation!G$68) ->  | F82: =IF(Tariff_Variation!H$68="","",Tariff_Variation!H$68) ->  | G82: =IF(Tariff_Variation!I$68="","",Tariff_Variation!I$68) ->  | H82: =IF(Tariff_Variation!J$68="","",Tariff_Variation!J$68) -> 
A83: =ROW() -> 83 | C83: Commodity Tariff | D83: =CoS_Tariff_Revenue!AG267 -> 5.71481238e-05 | E83: =IF(Tariff_Variation!G$69="","",Tariff_Variation!G$69) ->  | F83: =IF(Tariff_Variation!H$69="","",Tariff_Variation!H$69) ->  | G83: =IF(Tariff_Variation!I$69="","",Tariff_Variation!I$69) ->  | H83: =IF(Tariff_Variation!J$69="","",Tariff_Variation!J$69) -> 
A84: =ROW() -> 84 | C84: Total Tariff | D84: =CoS_Tariff_Revenue!AG268 -> 0.0009784653541 | E84: =IF(Tariff_Variation!G$70="","",Tariff_Variation!G$70) ->  | F84: =IF(Tariff_Variation!H$70="","",Tariff_Variation!H$70) ->  | G84: =IF(Tariff_Variation!I$70="","",Tariff_Variation!I$70) ->  | H84: =IF(Tariff_Variation!J$70="","",Tariff_Variation!J$70) -> 
A85: =ROW() -> 85 | B85: Back Haul T1 Service (B1 Service)
A86: =ROW() -> 86 | B86: Tariff [$/GJ/day/km
A87: =ROW() -> 87 | C87: Capacity Reservation Tariff | D87: =CoS_Tariff_Revenue!AG276 -> 0.0009213172303 | E87: =IF(Tariff_Variation!G$74="","",Tariff_Variation!G$74) ->  | F87: =IF(Tariff_Variation!H$74="","",Tariff_Variation!H$74) ->  | G87: =IF(Tariff_Variation!I$74="","",Tariff_Variation!I$74) ->  | H87: =IF(Tariff_Variation!J$74="","",Tariff_Variation!J$74) -> 
A88: =ROW() -> 88 | C88: Commodity Tariff | D88: =CoS_Tariff_Revenue!AG277 -> 5.71481238e-05 | E88: =IF(Tariff_Variation!G$75="","",Tariff_Variation!G$75) ->  | F88: =IF(Tariff_Variation!H$75="","",Tariff_Variation!H$75) ->  | G88: =IF(Tariff_Variation!I$75="","",Tariff_Variation!I$75) ->  | H88: =IF(Tariff_Variation!J$75="","",Tariff_Variation!J$75) -> 
A89: =ROW() -> 89 | C89: Total Tariff | D89: =CoS_Tariff_Revenue!AG278 -> 0.0009784653541 | E89: =IF(Tariff_Variation!G$76="","",Tariff_Variation!G$76) ->  | F89: =IF(Tariff_Variation!H$76="","",Tariff_Variation!H$76) ->  | G89: =IF(Tariff_Variation!I$76="","",Tariff_Variation!I$76) ->  | H89: =IF(Tariff_Variation!J$76="","",Tariff_Variation!J$76) -> 

Sheet WACC
A1: =Main!A1 -> ERA, DBNGP Tariff Model, Final Decision, April 2021
A2: =MID(CELL("filename",A1),FIND("]",CELL("filename",A1))+1,256) -> \[DBNGP-DBP-AA5-D227177-20210401-Public.XLSM]WACC
A3: Ref | B3: =COLUMN() -> 2 | C3: =COLUMN() -> 3 | D3: =COLUMN() -> 4 | E3: =COLUMN() -> 5 | F3: =COLUMN() -> 6 | G3: =COLUMN() -> 7 | H3: =COLUMN() -> 8 | I3: =COLUMN() -> 9 | J3: =COLUMN() -> 10 | K3: =COLUMN() -> 11 | L3: =COLUMN() -> 12 | M3: =COLUMN() -> 13 | O3: =COLUMN() -> 15 | P3: =COLUMN() -> 16 | Q3: =COLUMN() -> 17 | R3: =COLUMN() -> 18 | S3: =COLUMN() -> 19 | T3: =COLUMN() -> 20 | U3: =COLUMN() -> 21 | V3: =COLUMN() -> 22 | W3: =COLUMN() -> 23 | X3: =COLUMN() -> 24
A4: =ROW() -> 4 | C4: Determination of the Weighted Average Cost of Capital (WACC) | E4: DBNGP | G4: ERA | I4: DBNGP | K4: ERA | M4: ERA | O4: ERA | P4: ERA | Q4: ERA | R4: ERA | S4: ERA | T4: ERA | U4: ERA | V4: ERA | W4: ERA | X4: ERA
A5: =ROW() -> 5 | E5: AA3 | G5: DD3 | I5: Post DD3 | K5: FD3 | M5: Selected | O5: FD4 2016 | P5: FD4 2017 | Q5: FD4 2018 | R5: FD4 2019 | S5: FD4 2020 | T5: FD5 2021 | U5: FD5 2022 | V5: FD5 2023 | W5: FD5 2024 | X5: FD5 2025
A6: =ROW() -> 6 | E6: 2010-03-01 | G6: 2011-02-28 | I6: 2011-04-18 | K6: 31/09/2011 | M6: =K6 -> 31/09/2011 | O6: 2016-06-10 | T6: 2020-11-27
C8: Return on Debt
A9: =ROW() -> 9 | C9: Debt: Nominal Risk Free Rate (DRfn) | G9: 0.0546 | K9: 0.038 | M9: =K9 -> 0.038 | O9: 0.018 | P9: =O9 -> 0.018 | Q9: =P9 -> 0.018 | R9: 0.018 | S9: 0.018
A10: =ROW() -> 10 | C10: Debt: Real Risk Free Rate (DRfr) | G10: =((1+G9)/(G27+1))-1 -> 0.02737457379 | K10: =((1+K9)/(K27+1))-1 -> 0.0102189781 | M10: =K10 -> 0.0102189781 | O10: =((1+O9)/(O27+1))-1 -> 0.003647835946 | P10: =((1+P9)/(P27+1))-1 -> 0.003647835946 | Q10: =((1+Q9)/(Q27+1))-1 -> 0.003647835946 | R10: =((1+R9)/(R27+1))-1 -> 0.003647835946 | S10: =((1+S9)/(S27+1))-1 -> 0.003647835946
A11: =ROW() -> 11 | C11: Cost of Debt; 5 year Interest Rate Swap Spread | O11: 0.021 | P11: =O11 -> 0.021 | Q11: =P11 -> 0.021 | R11: =Q11 -> 0.021 | S11: =R11 -> 0.021 | T11: 0.00295 | U11: =T11 -> 0.00295 | V11: =U11 -> 0.00295 | W11: =V11 -> 0.00295 | X11: =W11 -> 0.00295
A12: =ROW() -> 12 | C12: Cost of Debt; Debt Risk Premium (Drp) | G12: 0.03124 | K12: 0.03143 | M12: =K12 -> 0.03143 | O12: 0.02716 | P12: =IF(P40="",O12,P40) -> 0.0283 | Q12: =IF(Q40="",P12,Q40) -> 0.0263 | R12: =IF(R40="",Q12,R40) -> 0.02339 | S12: =IF(S40="",R12,S40) -> 0.02326 | T12: =T40 -> 0.02259 | U12: =IF(U40="",T12,U40) -> 0.02259 | V12: =IF(V40="",U12,V40) -> 0.02259 | W12: =IF(W40="",V12,W40) -> 0.02259 | X12: =IF(X40="",W12,X40) -> 0.02259
A13: =ROW() -> 13 | C13: Cost of Debt; Debt Issuing Cost (Disc) + Hedging Cost | G13: 0.00125 | K13: 0.00125 | M13: =K13 -> 0.00125 | O13: =0.125%+0.114% -> 0.00239 | P13: =O13 -> 0.00239 | Q13: =P13 -> 0.00239 | R13: 0.00239 | S13: 0.00239 | T13: 0.00214 | U13: =T13 -> 0.00214 | V13: =U13 -> 0.00214 | W13: =V13 -> 0.00214 | X13: =W13 -> 0.00214
A14: =ROW() -> 14 | C14: Cost of Debt; Risk Margin (DRm) | G14: =SUM(G12:G13) -> 0.03249 | K14: =SUM(K12:K13) -> 0.03268 | M14: =K14 -> 0.03268 | O14: =O11+O12+O13-O9 -> 0.03255 | P14: =P11+P12+P13-P9 -> 0.03369 | Q14: 0.03169 | R14: 0.02878 | S14: 0.02865 | T14: =T11+T12+T13 -> 0.02768 | U14: =U11+U12+U13 -> 0.02768 | V14: 0.02768 | W14: 0.02768 | X14: 0.02768
A15: =ROW() -> 15 | C15: Nominal Cost of Debt (DPn) | E15: 0.0973 | G15: =G9+G14 -> 0.08709 | I15: 0.0952 | K15: =K9+K14 -> 0.07068 | M15: =K15 -> 0.07068 | O15: =O9+O14 -> 0.05055 | P15: =P9+P14 -> 0.05169 | Q15: =Q9+Q14 -> 0.04969 | R15: =R9+R14 -> 0.04678 | S15: =S9+S14 -> 0.04665 | T15: =T14 -> 0.02768 | U15: =U14 -> 0.02768 | V15: 0.02768 | W15: 0.02768 | X15: 0.02768
C17: Return on Equity
A18: =ROW() -> 18 | C18: Equity: Nominal Risk Free Rate (ERfn) | T18: 0.0029 | U18: =T18 -> 0.0029 | V18: 0.0029 | W18: 0.0029 | X18: 0.0029
A19: =ROW() -> 19 | C19: Australian Market Risk Premium (Rp) | G19: 0.06 | K19: 0.06 | M19: =K19 -> 0.06 | O19: 0.074 | P19: =O19 -> 0.074 | Q19: =P19 -> 0.074 | R19: =Q19 -> 0.074 | S19: =R19 -> 0.074 | T19: 0.06 | U19: 0.06 | V19: 0.06 | W19: 0.06 | X19: 0.06
A20: =ROW() -> 20 | C20: Equity Beta (Be) | G20: 0.8 | K20: 0.8 | M20: =K20 -> 0.8 | O20: 0.7 | P20: =O20 -> 0.7 | Q20: =P20 -> 0.7 | R20: 0.7 | S20: 0.7 | T20: 0.7 | U20: 0.7 | V20: 0.7 | W20: 0.7 | X20: 0.7
A21: =ROW() -> 21 | C21: Nominal Pre Tax Cost of Equity (EPn) | E21: 0.135 | G21: =G22/(1-G28*(1-G29)) -> 0.1194412107 | I21: 0.125 | K21: =K22/(1-K28*(1-K29)) -> 0.1109677419 | M21: =K21 -> 0.1109677419 | O21: =O22/(1-O28*(1-O29)) -> 0.08512195122 | P21: 0.08512195122 | Q21: 0.08512195122 | R21: 0.08512195122 | S21: 0.08512195122 | T21: 0.05282352941 | U21: 0.05282352941 | V21: 0.05282352941 | W21: 0.05282352941 | X21: 0.05282352941
A22: =ROW() -> 22 | C22: Nominal After Tax Cost of Equity (EAn) | G22: =G9+G19*G20 -> 0.1026 | K22: =K9+K19*K20 -> 0.086 | M22: =K22 -> 0.086 | O22: =O9+O19*O20 -> 0.0698 | P22: =P9+P19*P20 -> 0.0698 | Q22: =Q9+Q19*Q20 -> 0.0698 | R22: =R9+R19*R20 -> 0.0698 | S22: =S9+S19*S20 -> 0.0698 | T22: =T18+T19*T20 -> 0.0449 | U22: =U18+U19*U20 -> 0.0449 | V22: 0.0449 | W22: 0.0449 | X22: 0.0449
C24: Other Parameter
A25: =ROW() -> 25 | C25: Debt Proportion (D) | E25: 0.6 | G25: 0.6 | I25: 0.6 | K25: 0.6 | M25: 0.6 | O25: 0.6 | P25: =O25 -> 0.6 | Q25: 0.6 | R25: 0.6 | S25: 0.6 | T25: 0.55 | U25: =T25 -> 0.55 | V25: =U25 -> 0.55 | W25: =V25 -> 0.55 | X25: =W25 -> 0.55
A26: =ROW() -> 26 | C26: Equity Proportion (E) | E26: 0.4 | G26: =1-G25 -> 0.4 | I26: 0.4 | K26: =1-K25 -> 0.4 | M26: 0.4 | O26: =1-O25 -> 0.4 | P26: =1-P25 -> 0.4 | Q26: 0.4 | R26: 0.4 | S26: 0.4 | T26: =1-T25 -> 0.45 | U26: =1-U25 -> 0.45 | V26: 0.45 | W26: 0.45 | X26: 0.45
A27: =ROW() -> 27 | C27: Inflation Rate for WACC (I) | E27: 0.0252 | G27: 0.0265 | I27: 0.0257 | K27: 0.0275 | M27: =K27 -> 0.0275 | O27: 0.0143 | P27: =O27 -> 0.0143 | Q27: =P27 -> 0.0143 | R27: 0.0143 | S27: 0.0143 | T27: 0.0115 | U27: =T27 -> 0.0115 | V27: =U27 -> 0.0115 | W27: =V27 -> 0.0115 | X27: =W27 -> 0.0115
A28: =ROW() -> 28 | C28: Corporate Tax Rate (T) | E28: 0.3 | G28: 0.3 | I28: 0.3 | K28: 0.3 | M28: 0.3 | O28: 0.3 | P28: =O28 -> 0.3 | Q28: 0.3 | R28: 0.3 | S28: 0.3 | T28: 0.3 | U28: =T28 -> 0.3 | V28: =U28 -> 0.3 | W28: =V28 -> 0.3 | X28: =W28 -> 0.3
A29: =ROW() -> 29 | C29: Franking Credit (g) | E29: 0 | G29: 0.53 | I29: 0 | K29: 0.25 | M29: 0.25 | O29: 0.4 | P29: 0.4 | Q29: 0.4 | R29: 0.4 | S29: 0.4 | T29: 0.5 | U29: 0.5 | V29: 0.5 | W29: 0.5 | X29: 0.5
A30: =ROW() -> 30 | C30: Imputation Adj (G) | E30: =(1-E28)/(1-E28*(1-E29)) -> 1 | G30: =(1-G28)/(1-G28*(1-G29)) -> 0.8149010477 | K30: =(1-K28)/(1-K28*(1-K29)) -> 0.9032258065 | M30: 0.9032258065 | O30: =(1-O28)/(1-O28*(1-O29)) -> 0.8536585366 | P30: =(1-P28)/(1-P28*(1-P29)) -> 0.8536585366 | Q30: 0.8536585366 | R30: 0.8536585366 | S30: 0.8536585366 | T30: =(1-T28)/(1-T28*(1-T29)) -> 0.8235294118 | U30: =(1-U28)/(1-U28*(1-U29)) -> 0.8235294118 | V30: 0.8235294118 | W30: 0.8235294118 | X30: 0.8235294118
A32: =ROW() -> 32 | C32: WACC; Pre-tax Officer (Market Practise or Forward Transformation)
A33: =ROW() -> 33 | C33: Nominal Pre Tax WACC (WPn) | E33: =E21*(1/(1-E28*(1-E29))*E26)+E15*E25 -> 0.1355228571 | G33: =G21*G26+G15*G25 -> 0.1000304843 | I33: =I21*(1/(1-I28*(1-I29))*I26)+I15*I25 -> 0.1285485714 | K33: =K21*K26+K15*K25 -> 0.08679509677 | M33: 0.08679509677 | O33: =O21*O26+O15*O25 -> 0.06437878049 | P33: 0.06506278049 | Q33: 0.06386278049 | R33: 0.06211678049 | S33: 0.06203878049 | T33: 0.03899458824 | U33: 0.03899458824 | V33: 0.03899458824 | W33: 0.03899458824 | X33: 0.03899458824
A34: =ROW() -> 34 | C34: Real Pre Tax WACC (WPr) | E34: =(1+E33)/(1+E27)- 1 -> 0.1076110585 | G34: =(1+G33)/(1+G27)-1 -> 0.07163223018 | I34: =(1+I33)/(1+I27)- 1 -> 0.1002715915 | K34: =(1+K33)/(1+K27)-1 -> 0.05770812338 | M34: 0.05770812338 | O34: =(1+O33)/(1+O27)-1 -> 0.04937275016 | P34: 0.05004710686 | Q34: 0.04886402493 | R34: 0.04714264073 | S34: 0.0470657404 | T34: 0.02718199529 | U34: 0.02718199529 | V34: 0.02718199529 | W34: 0.02718199529 | X34: 0.02718199529
A35: =ROW() -> 35 | C35: WACC: Vanilla
A36: =ROW() -> 36 | C36: Nominal After Tax WACC (WVAn) | G36: =G25*G15+G26*G22 -> 0.093294 | K36: =K25*K15+K26*K22 -> 0.076808 | M36: 0.076808 | O36: =O25*O15+O26*O22 -> 0.05825 | P36: 0.058934 | Q36: 0.057734 | R36: 0.055988 | S36: 0.05591 | T36: 0.035429 | U36: 0.035429 | V36: 0.035429 | W36: 0.035429 | X36: 0.035429
A37: =ROW() -> 37 | C37: Real After Tax WACC (WVAr) | G37: =(1+G36)/(1+G27)-1 -> 0.06506965416 | K37: =(1+K36)/(1+K27)-1 -> 0.04798832117 | M37: 0.04798832117 | O37: =(1+O36)/(1+O27)-1 -> 0.04333037563 | P37: 0.04400473233 | Q37: 0.0428216504 | R37: 0.04110026619 | S37: 0.04102336587 | T37: 0.02365694513 | U37: 0.02365694513 | V37: 0.02365694513 | W37: 0.02365694513 | X37: 0.02365694513
A38: =ROW() -> 38
A39: =ROW() -> 39 | C39: Cost of Debt; Debt Risk Premium (Drp)
A40: =ROW() -> 40 | C40: Trailing Average DRP | O40: =O44 -> 0.02716 | P40: =P44 -> 0.0283 | Q40: 0.0263 | R40: 0.02339 | S40: 0.02326 | T40: =T44 -> 0.02259 | U40: =IF(Inputs!AE12="","",Inputs!AE12) ->  | V40: =IF(Inputs!AF12="","",Inputs!AF12) ->  | W40: =IF(Inputs!AG12="","",Inputs!AG12) ->  | X40: =IF(Inputs!AH12="","",Inputs!AH12) -> 
A41: =ROW() -> 41 | C41: Modelled DRP | O41: =IF(O40="",N41,O40) -> 0.02716 | P41: =IF(P40="",O41,P40) -> 0.0283 | Q41: 0.0263 | R41: 0.02339 | S41: 0.02326 | T41: =IF(T40="",S41,T40) -> 0.02259 | U41: 0.02259 | V41: =IF(V40="",U41,V40) -> 0.02259 | W41: =IF(W40="",V41,W40) -> 0.02259 | X41: =IF(X40="",W41,X40) -> 0.02259
A42: =ROW() -> 42
A43: =ROW() -> 43 | C43: Annual Update of Debt Risk Premium | O43: 2016 | P43: =O43+1 -> 2017 | Q43: =P43+1 -> 2018 | R43: 2019 | S43: 2020 | T43: 2021 | U43: =T43+1 -> 2022 | V43: =U43+1 -> 2023 | W43: 2024 | X43: 2025
A44: =ROW() -> 44 | C44: Trailing Average DRP | O44: =ROUND(AVERAGE(O47:O66),5) -> 0.02716 | P44: =ROUND(AVERAGE(P47:P66),5) -> 0.0283 | Q44: 0.0263 | R44: 0.02339 | S44: 0.02326 | T44: =IF(T51="","",ROUND(AVERAGE(T51:T60),5)) -> 0.02259 | U44: =IF(U50="","",ROUND(AVERAGE(U50:U59),5)) ->  | V44: =IF(V49="","",ROUND(AVERAGE(V49:V58),5)) ->  | W44: =IF(W48="","",ROUND(AVERAGE(W48:W57),5)) ->  | X44: =IF(X47="","",ROUND(AVERAGE(X47:X56),5)) ->  | Y44: This number is automatically populated when the annual DRP at Inputs sheet, Row 11 is updated
A45: =ROW() -> 45
A46: =ROW() -> 46 | C46: Annual Debt Risk Premium, Year | O46: 2016 | P46: =O46+1 -> 2017 | Q46: =P46+1 -> 2018 | R46: 2019 | S46: 2020 | T46: 2021 | U46: =T46+1 -> 2022 | V46: =U46+1 -> 2023 | W46: 2024 | X46: 2025
A47: =ROW() -> 47 | C47: =C48+1 -> 2025 | X47: =IF(Inputs!AH$11="","",Inputs!AH$11) -> 
A48: =ROW() -> 48 | C48: 2024 | W48: =IF(Inputs!AG$11="","",Inputs!AG$11) ->  | X48: =W48 -> 
A49: =ROW() -> 49 | C49: 2023 | V49: =IF(Inputs!AF$11="","",Inputs!AF$11) ->  | W49: =V49 -> 
A50: =ROW() -> 50 | C50: 2022 | U50: =IF(Inputs!AE$11="","",Inputs!AE$11) ->  | V50: =U50 ->  | W50: =V50 ->  | X50: =W50 -> 
A51: =ROW() -> 51 | C51: 2021 | T51: 0.01712 | U51: =T51 -> 0.01712 | V51: =U51 -> 0.01712 | W51: =V51 -> 0.01712 | X51: =W51 -> 0.01712
A52: =ROW() -> 52 | C52: =C53+1 -> 2020 | S52: 0.01995 | T52: =S52 -> 0.01995 | U52: =T52 -> 0.01995 | V52: 0.01995 | W52: 0.01995 | X52: 0.01995
A53: =ROW() -> 53 | C53: 2019 | R53: 0.01712 | S53: =R53 -> 0.01712 | T53: 0.01712 | U53: =T53 -> 0.01712 | V53: 0.01712 | W53: 0.01712 | X53: 0.01712
A54: =ROW() -> 54 | C54: 2018 | Q54: 0.01756 | R54: =Q54 -> 0.01756 | S54: 0.01756 | T54: 0.01756 | U54: 0.01756 | V54: 0.01756 | W54: 0.01756 | X54: 0.01756
A55: =ROW() -> 55 | C55: 2017 | P55: 0.02274 | Q55: 0.02274 | R55: 0.02274 | S55: 0.02274 | T55: 0.02274 | U55: 0.02274 | V55: 0.02274 | W55: 0.02274 | X55: 0.02274
A56: =ROW() -> 56 | C56: 2016 | O56: 0.02612 | P56: =O56 -> 0.02612 | Q56: 0.02612 | R56: 0.02612 | S56: 0.02612 | T56: 0.02612 | U56: =T56 -> 0.02612 | V56: =U56 -> 0.02612 | W56: =V56 -> 0.02612 | X56: =W56 -> 0.02612
A57: =ROW() -> 57 | C57: 2015 | O57: 0.0207 | P57: =O57 -> 0.0207 | Q57: 0.0207 | R57: 0.0207 | S57: 0.0207 | T57: 0.0207 | U57: =T57 -> 0.0207 | V57: 0.0207 | W57: 0.0207
A58: =ROW() -> 58 | C58: 2014 | O58: 0.02251 | P58: =O58 -> 0.02251 | Q58: 0.02251 | R58: 0.02251 | S58: 0.02251 | T58: 0.02251 | U58: =T58 -> 0.02251 | V58: 0.02251
A59: =ROW() -> 59 | C59: 2013 | O59: 0.03043 | P59: 0.03043 | Q59: 0.03043 | R59: 0.03043 | S59: 0.03043 | T59: 0.03043 | U59: 0.03043
A60: =ROW() -> 60 | C60: 2012 | O60: 0.03168 | P60: 0.03168 | Q60: 0.03168 | R60: 0.03168 | S60: 0.03168 | T60: 0.03168
A61: =ROW() -> 61 | C61: 2011 | O61: 0.02379 | P61: 0.02379 | Q61: 0.02379 | R61: 0.02379 | S61: 0.02379
A62: =ROW() -> 62 | C62: 2010 | O62: 0.02125 | P62: =O62 -> 0.02125 | Q62: =P62 -> 0.02125 | R62: =Q62 -> 0.02125
A63: =ROW() -> 63 | C63: 2009 | O63: 0.04624 | P63: 0.04624 | Q63: 0.04624
A64: =ROW() -> 64 | C64: =C65+1 -> 2008 | O64: 0.03756 | P64: 0.03756
A65: =ROW() -> 65 | C65: 2007 | O65: 0.0113

Sheet Inputs
A1: =Main!A1 -> ERA, DBNGP Tariff Model, Final Decision, April 2021
A2: =MID(CELL("filename",A1),FIND("]",CELL("filename",A1))+1,256) -> \[DBNGP-DBP-AA5-D227177-20210401-Public.XLSM]Inputs
A3: Ref. | B3: =COLUMN() -> 2 | C3: =COLUMN() -> 3 | D3: =COLUMN() -> 4 | E3: =COLUMN() -> 5 | F3: =COLUMN() -> 6 | G3: =COLUMN() -> 7 | H3: =COLUMN() -> 8 | I3: =COLUMN() -> 9 | J3: =COLUMN() -> 10 | K3: =COLUMN() -> 11 | L3: =COLUMN() -> 12 | M3: =COLUMN() -> 13 | N3: =COLUMN() -> 14 | O3: =COLUMN() -> 15 | P3: =COLUMN() -> 16 | Q3: =COLUMN() -> 17 | R3: =COLUMN() -> 18 | S3: =COLUMN() -> 19 | T3: =COLUMN() -> 20 | U3: =COLUMN() -> 21 | V3: =COLUMN() -> 22 | W3: =COLUMN() -> 23 | X3: =COLUMN() -> 24 | Y3: =COLUMN() -> 25 | Z3: =COLUMN() -> 26 | AA3: =COLUMN() -> 27 | AB3: =COLUMN() -> 28 | AC3: =COLUMN() -> 29 | AD3: =COLUMN() -> 30 | AE3: =COLUMN() -> 31 | AF3: =COLUMN() -> 32 | AG3: =COLUMN() -> 33 | AH3: =COLUMN() -> 34
A5: Regulatory Period | H5: AA1 | I5: AA1 | J5: AA1 | K5: AA1 | L5: AA1 | M5: AA1 | N5: AA2 | O5: AA2 | P5: AA2 | Q5: AA2 | R5: AA2 | S5: AA2 | T5: AA3 | U5: AA3 | V5: AA3 | W5: AA3 | X5: AA3 | Y5: AA4 | Z5: AA4 | AA5: AA4 | AB5: AA4 | AC5: AA4 | AD5: AA5 | AE5: AA5 | AF5: AA5 | AG5: AA5 | AH5: AA5
A6: Year ending (31-December) | F6: =G6-1 -> 1997 | G6: =H6-1 -> 1998 | H6: 1999 | I6: =H6+1 -> 2000 | J6: 2001 | K6: 2002 | L6: 2003 | M6: 2004 | N6: 2005 | O6: 2006 | P6: 2007 | Q6: 2008 | R6: 2009 | S6: 2010 | T6: 2011 | U6: 2012 | V6: 2013 | W6: 2014 | X6: 2015 | Y6: 2016 | Z6: 2017 | AA6: 2018 | AB6: 2019 | AC6: 2020 | AD6: 2021 | AE6: 2022 | AF6: 2023 | AG6: 2024 | AH6: 2025
A7: Days | F7: =IF(INT(F6/4)=F6/4,366,365) -> 365 | G7: 365 | H7: 365 | I7: 366 | J7: 365 | K7: 365 | L7: 365 | M7: 366 | N7: 365 | O7: 365 | P7: 365 | Q7: 366 | R7: 365 | S7: 365 | T7: 365 | U7: 366 | V7: 365 | W7: 365 | X7: 365 | Y7: 366 | Z7: 365 | AA7: 365 | AB7: 365 | AC7: 366 | AD7: 365 | AE7: 365 | AF7: 365 | AG7: 366 | AH7: 365
A8: Project Year | F8: 0 | G8: 0 | H8: 0 | I8: =H8+1 -> 1 | J8: 2 | K8: 3 | L8: 4 | M8: 5 | N8: 6 | O8: 7 | P8: 8 | Q8: 9 | R8: 10 | S8: 11 | T8: 12 | U8: 13 | V8: 14 | W8: 15 | X8: 16 | Y8: 17 | Z8: 18 | AA8: 19 | AB8: 20 | AC8: 21 | AD8: 22 | AE8: 23 | AF8: 24 | AG8: 25 | AH8: 26
A9: General Inputs
A10: =ROW() -> 10 | B10: Tariff Recalculation | D10: =IF(ISNUMBER($AH$11),$AH$6,IF(ISNUMBER($AG$11),$AG$6,IF(ISNUMBER($AF$11),$AF$6,IF(ISNUMBER(AE$11),$AE$6,$AD$6)))) -> 2021 | E10: =$AH$6 -> 2025
A11: =ROW() -> 11 | B11: Annual Debt Risk Premium (Annual Update)
A12: =ROW() -> 12 | B12: Trailing Average DRP (10 year ave, modelled) | AD12: =WACC!T12 -> 0.02259 | AE12: =IF(WACC!U44="","",WACC!U44) ->  | AF12: =IF(WACC!V44="","",WACC!V44) ->  | AG12: =IF(WACC!W44="","",WACC!W44) ->  | AH12: =IF(WACC!X44="","",WACC!X44) -> 
A13: =ROW() -> 13 | B13: X-Factor | AD13: =X_Factor_2021 -> -0.0006092703266 | AE13: =X_Factor_2022 -> 0 | AF13: =X_Factor_2023 -> 0 | AG13: =X_Factor_2024 -> 0 | AH13: =X_Factor_2025 -> 0
A14: =ROW() -> 14
A15: CPI and Inflations
A16: =ROW() -> 16 | B16: CPI and Inflation
A17: =ROW() -> 17 | C17: September CPI | W17: 106.4 | X17: 108 | Y17: 109.4 | Z17: 111.4 | AA17: 113.5 | AB17: 115.4 | AC17: 116.2
A18: =ROW() -> 18
A19: =ROW() -> 19 | C19: December CPI (pre Sep 2012 rebase) | F19: 117.6 | G19: 120.2 | H19: 124.1 | I19: 131.3 | J19: 135.4 | K19: 139.5 | L19: 142.8 | M19: 146.5 | N19: 150.6 | O19: 155.5 | P19: 160.1 | Q19: 166 | R19: 169.5 | S19: 174 | T19: 179.4
A20: =ROW() -> 20 | C20: December CPI | F20: =G20/(G21+1) -> 65.42073579 | G20: 66.8671126 | H20: 69.03667781 | I20: 73.04202899 | J20: 75.32285396 | K20: 77.60367893 | L20: 79.43946488 | M20: 81.49777035 | N20: 83.77859532 | O20: 86.50445931 | P20: 89.06343367 | Q20: 92.34559643 | R20: 94.29264214 | S20: 96.79598662 | T20: 99.8 | U20: 102 | V20: 104.8 | W20: 106.6 | X20: =108.4*1+109.5315*0 -> 108.4 | Y20: 110 | Z20: 112.1 | AA20: 114.1 | AB20: 116.2 | AC20: =AB20*(1+AC21) -> 117.5363 | AD20: 118.8879675 | AE20: 120.2551791 | AF20: 121.6381136 | AG20: 123.0369519 | AH20: 124.4518769
A21: =ROW() -> 21 | C21: December Inflation | G21: =G19/F19-1 -> 0.02210884354 | H21: 0.03244592346 | I21: 0.05801772764 | J21: 0.03122619954 | K21: 0.03028064993 | L21: 0.02365591398 | M21: 0.02591036415 | N21: 0.02798634812 | O21: 0.03253652058 | P21: 0.02958199357 | Q21: 0.03685196752 | R21: 0.02108433735 | S21: 0.02654867257 | T21: 0.03103448276 | U21: =U20/T20-1 -> 0.02204408818 | V21: 0.02745098039 | W21: 0.01717557252 | X21: 0.01688555347 | Y21: 0.0147601476 | Z21: 0.01909090909 | AA21: 0.0178412132 | AB21: 0.01840490798 | AC21: =AD21 -> 0.0115 | AD21: =WACC!T$27 -> 0.0115 | AE21: =WACC!U$27 -> 0.0115 | AF21: =WACC!V$27 -> 0.0115 | AG21: =WACC!W$27 -> 0.0115 | AH21: =WACC!X$27 -> 0.0115
A22: =ROW() -> 22 | C22: Inflation Factors | F22: =F20/$E$26 -> 0.5630011686 | G22: 0.5754484733 | H22: 0.5941194304 | I22: 0.6285888897 | J22: 0.6482173318 | K22: 0.6678457739 | L22: 0.6836442761 | M22: 0.7013577482 | N22: 0.7209861903 | O22: 0.7444445724 | P22: 0.7664667269 | Q22: 0.7947125338 | R22: 0.811468521 | S22: 0.8330119331 | T22: 0.8588640275 | U22: 0.8777969019 | V22: 0.9018932874 | W22: 0.917383821 | X22: 0.9328743546 | Y22: 0.9466437177 | Z22: 0.9647160069 | AA22: 0.9819277108 | AB22: 1 | AC22: 1.0115 | AD22: 1.02313225 | AE22: 1.034898271 | AF22: 1.046799601 | AG22: 1.058837796 | AH22: 1.071014431
A23: Financial Parameters
A24: =ROW() -> 24 | B24: Modelled Inflation
A25: =ROW() -> 25 | C25: Selected CPI period | D25: Base period: | E25: 2019-12-31 | F25: 1997-12-31 | G25: 1998-12-31 | H25: 1999-12-31 | I25: 2000-12-31 | J25: 2001-12-31 | K25: 2002-12-31 | L25: 2003-12-31 | M25: 2004-12-31 | N25: 2005-12-31 | O25: 2006-12-31 | P25: 2007-12-31 | Q25: 2008-12-31 | R25: 2009-12-31 | S25: 2010-12-31 | T25: 2011-12-31 | U25: 2012-12-31 | V25: 2013-12-31 | W25: 2014-12-31 | X25: 2015-12-31 | Y25: 2016-12-31 | Z25: 2017-12-31 | AA25: 2018-12-31 | AB25: 2019-12-31 | AC25: 2020-12-31 | AD25: 2021-12-31 | AE25: 2022-12-31 | AF25: 2023-12-31 | AG25: 2024-12-31 | AH25: 2025-12-31
A26: =ROW() -> 26 | C26: December CPI (modelled) | D26: Base CPI: | E26: =HLOOKUP($E$25,$H$25:$AC$26,2,FALSE) -> 116.2 | F26: =G26/(G27+1) -> 69.03667781 | G26: 69.03667781 | H26: 69.03667781 | I26: 73.04202899 | J26: 75.32285396 | K26: 77.60367893 | L26: 79.43946488 | M26: 81.49777035 | N26: 83.77859532 | O26: 86.50445931 | P26: 89.06343367 | Q26: 92.34559643 | R26: 94.29264214 | S26: 96.79598662 | T26: =T20 -> 99.8 | U26: 102 | V26: 104.8 | W26: 106.6 | X26: 108.4 | Y26: 110 | Z26: 112.1 | AA26: 114.1 | AB26: 116.2 | AC26: 117.5363 | AD26: 118.8879675 | AE26: 120.2551791 | AF26: 121.6381136 | AG26: 123.0369519 | AH26: 124.4518769
A27: =ROW() -> 27 | C27: December Inflation | I27: =I21 -> 0.05801772764 | J27: 0.03122619954 | K27: 0.03028064993 | L27: 0.02365591398 | M27: 0.02591036415 | N27: 0.02798634812 | O27: 0.03253652058 | P27: 0.02958199357 | Q27: 0.03685196752 | R27: 0.02108433735 | S27: 0.02654867257 | T27: =T21 -> 0.03103448276 | U27: 0.02204408818 | V27: 0.02745098039 | W27: 0.01717557252 | X27: 0.01688555347 | Y27: 0.0147601476 | Z27: 0.01909090909 | AA27: 0.0178412132 | AB27: 0.01840490798 | AC27: 0.0115 | AD27: 0.0115 | AE27: 0.0115 | AF27: 0.0115 | AG27: 0.0115 | AH27: 0.0115
A28: =ROW() -> 28 | C28: ="Inflation Factor (convert " &$E$28& " $ to nominal $)" -> Inflation Factor (convert 31/12/2019 $ to nominal $) | D28: Real $ at | E28: =TEXT($E$25,"dd/mm/yyyy") -> 31/12/2019 | F28: =F$26/$E$26 -> 0.5941194304 | G28: 0.5941194304 | H28: 0.5941194304 | I28: 0.6285888897 | J28: 0.6482173318 | K28: 0.6678457739 | L28: 0.6836442761 | M28: 0.7013577482 | N28: 0.7209861903 | O28: 0.7444445724 | P28: 0.7664667269 | Q28: 0.7947125338 | R28: 0.811468521 | S28: 0.8330119331 | T28: 0.8588640275 | U28: 0.8777969019 | V28: 0.9018932874 | W28: 0.917383821 | X28: 0.9328743546 | Y28: 0.9466437177 | Z28: 0.9647160069 | AA28: 0.9819277108 | AB28: 1 | AC28: 1.0115 | AD28: 1.02313225 | AE28: 1.034898271 | AF28: 1.046799601 | AG28: 1.058837796 | AH28: 1.071014431
A29: =ROW() -> 29 | C29: ="Inflation Factor (convert nominal to real "&$E$28&" $)" -> Inflation Factor (convert nominal to real 31/12/2019 $) | F29: =1/F28 -> 1.683163264 | G29: 1.683163264 | H29: 1.683163264 | I29: 1.590864898 | J29: 1.542692475 | K29: 1.497351693 | L29: 1.462749027 | M29: 1.425805878 | N29: 1.386989118 | O29: 1.343283351 | P29: 1.304688077 | Q29: 1.258316633 | R29: 1.232333694 | S29: 1.200462995 | T29: 1.164328657 | U29: 1.139215686 | V29: 1.108778626 | W29: 1.090056285 | X29: 1.07195572 | Y29: 1.056363636 | Z29: 1.036574487 | AA29: 1.018404908 | AB29: 1 | AC29: 0.9886307464 | AD29: 0.9773907528 | AE29: 0.9662785494 | AF29: 0.9552926836 | AG29: 0.9444317188 | AH29: 0.9336942351
A30: =ROW() -> 30 | B30: Real Pre-tax WACC
A31: =ROW() -> 31 | C31: WACC | I31: 0.074 | J31: =I31 -> 0.074 | K31: =J31 -> 0.074 | L31: =K31 -> 0.074 | M31: =L31 -> 0.074 | N31: 0.07237578324 | O31: =N31 -> 0.07237578324 | P31: =O31 -> 0.07237578324 | Q31: =P31 -> 0.07237578324 | R31: =Q31 -> 0.07237578324 | S31: =R31 -> 0.07237578324 | T31: =WACC!$M$34 -> 0.05770812338 | U31: =WACC!$M$34 -> 0.05770812338 | V31: =WACC!$M$34 -> 0.05770812338 | W31: =WACC!$M$34 -> 0.05770812338 | X31: =WACC!$M$34 -> 0.05770812338
A32: =ROW() -> 32 | C32: Discounting Factor | I32: =J32/(1+J31) -> 0.4941978894 | J32: 0.5307685333 | K32: 0.5700454047 | L32: 0.6122287647 | M32: 0.6575336933 | N32: 0.7051232093 | O32: 0.7561570539 | P32: 0.8108845129 | Q32: 0.8695729146 | R32: 0.9325089354 | S32: 1 | T32: =S32*(1+T31) -> 1.057708123 | U32: =T32*(1+U31) -> 1.118746474 | V32: =U32*(1+V31) -> 1.183307234 | W32: =V32*(1+W31) -> 1.251593674 | X32: =W32*(1+X31) -> 1.323820796
A33: =ROW() -> 33 | B33: Real Post Tax WACC
A34: =ROW() -> 34 | C34: WACC | AC34: =AD34 -> 0.02365694513 | AD34: =WACC!T$37 -> 0.02365694513 | AE34: =WACC!U$37 -> 0.02365694513 | AF34: =WACC!V$37 -> 0.02365694513 | AG34: =WACC!W$37 -> 0.02365694513 | AH34: =WACC!X$37 -> 0.02365694513
A35: =ROW() -> 35 | C35: Discounting Factor | AB35: 1 | AC35: =AB35/(1+AC34) -> 0.9768897723 | AD35: 0.9543136271 | AE35: 0.9322592219 | AF35: 0.910714499 | AG35: 0.8896676795 | AH35: 0.8691072568
A36: =ROW() -> 36 | B36: Nominal Post Tax WACC
A37: =ROW() -> 37 | C37: WACC | AC37: =AD37 -> 0.035429 | AD37: =WACC!T$36 -> 0.035429 | AE37: =WACC!U$36 -> 0.035429 | AF37: =WACC!V$36 -> 0.035429 | AG37: =WACC!W$36 -> 0.035429 | AH37: =WACC!X$36 -> 0.035429
A38: =ROW() -> 38 | C38: Discounting Factor | AB38: 1 | AC38: =AB38/(1+AC37) -> 0.9657832647 | AD38: 0.9327373144 | AE38: 0.9008220886 | AF38: 0.8699988977 | AG38: 0.8402303757 | AH38: 0.8114804354
A39: =ROW() -> 39
A40: Asset Life and Tax Asset Life
A41: =ROW() -> 41 | B41: Opening Capital Base (OCB) | D41: Economic Asset Life (years) | E41: Tax Asset Life (years) for assets prior to 2001
A42: =ROW() -> 42 | C42: Pipeline | D42: 54.5 | E42: 7.692307692
A43: =ROW() -> 43 | C43: Compression | D43: 19.60073141 | E43: 7.692307692
A44: =ROW() -> 44 | C44: Metering | D44: 38.50225195 | E44: 7.692307692
A45: =ROW() -> 45 | C45: Other Depreciable | D45: 16.85 | E45: 7.692307692
A46: =ROW() -> 46 | C46: Computers and Motor Vehicles
A47: =ROW() -> 47 | C47: Cathodic/Corrosion Protection
A48: =ROW() -> 48 | C48: SCADA, ECI and Comms
A49: =ROW() -> 49 | C49: Building
A50: =ROW() -> 50 | C50: Non-Depreciable
A51: =ROW() -> 51 | C51: Cost of Raising Equity
A52: =ROW() -> 52 | C52: BEP Lease
A53: =ROW() -> 53 | C53: Average | E53: 7.692307692
A54: =ROW() -> 54
A55: =ROW() -> 55 | B55: Assets acquired from 1-Jan-2001 to 2019 | D55: ERA AA4 Approved Economic Asset Life | E55: Tax Asset Life | F55: Economic Asset Life (Capex 2000-2004) | G55: Economic Asset Life (Capex 2005-2020) | H55: Economic Asset Life (Reclassed 2000-2004) | I55: Economic Asset Life (Reclassed 2005-2020) | J55: Shippers Economic Asset Life
A56: =ROW() -> 56 | C56: Pipeline | D56: 70 | E56: 20 | F56: 70 | G56: =F56 -> 70 | H56: =F56 -> 70 | I56: =G56 -> 70 | J56: 70
A57: =ROW() -> 57 | C57: Compression | D57: 30 | E57: 20 | F57: 30 | G57: =F57 -> 30 | H57: =F57 -> 30 | I57: =G57 -> 30 | J57: 30
A58: =ROW() -> 58 | C58: Metering | D58: 50 | E58: 15 | F58: 50 | G58: =F58 -> 50 | H58: 30 | I58: =H58 -> 30 | J58: 30
A59: =ROW() -> 59 | C59: Other Depreciable | D59: 30 | E59: 20 | F59: 30 | G59: 10 | H59: =F59 -> 30 | I59: =G59 -> 10 | J59: 10
A60: =ROW() -> 60 | C60: Computers and Motor Vehicles | E60: =E73 -> 5 | G60: =D73 -> 5 | I60: =G60 -> 5
A61: =ROW() -> 61 | C61: Cathodic/Corrosion Protection | E61: =E74 -> 15 | G61: =D74 -> 15 | I61: =G61 -> 15
A62: =ROW() -> 62 | C62: SCADA, ECI and Comms | E62: 10 | G62: 10 | I62: =G62 -> 10
A63: =ROW() -> 63 | C63: Building | D63: =D59 -> 30 | E63: =E59 -> 20 | F63: =F59 -> 30 | G63: =F63 -> 30 | H63: =F63 -> 30 | I63: =G63 -> 30 | J63: =F63 -> 30
A64: =ROW() -> 64 | C64: Non-Depreciable
A65: =ROW() -> 65 | C65: Cost of Raising Equity | D65: 62.59899528 | E65: 5 | F65: =$D65 -> 62.59899528 | G65: =$D65 -> 62.59899528 | H65: =F65 -> 62.59899528 | I65: =G65 -> 62.59899528
A66: =ROW() -> 66 | C66: BEP Lease | D66: 57 | E66: 20 | F66: =$D66 -> 57 | G66: =$D66 -> 57 | H66: =F66 -> 57 | I66: =G66 -> 57
A67: =ROW() -> 67
A68: =ROW() -> 68 | B68: Assets acquired from 1-Jan-2020 onwards | D68: Economic Asset Life | E68: Tax Asset Life
A69: =ROW() -> 69 | C69: Pipeline | D69: 42 | E69: 20
A70: =ROW() -> 70 | C70: Compression | D70: 30 | E70: 20
A71: =ROW() -> 71 | C71: Metering | D71: 30 | E71: 15
A72: =ROW() -> 72 | C72: Other Depreciable | D72: 10 | E72: 10
A73: =ROW() -> 73 | C73: Computers and Motor Vehicles | D73: 5 | E73: 5
A74: =ROW() -> 74 | C74: Cathodic/Corrosion Protection | D74: 15 | E74: 15
A75: =ROW() -> 75 | C75: SCADA, ECI and Comms | D75: 10 | E75: 10
A76: =ROW() -> 76 | C76: Building | D76: 50 | E76: 40
A77: =ROW() -> 77 | C77: Non-Depreciable
A78: =ROW() -> 78 | C78: Cost of Raising Equity | D78: =SUMPRODUCT($D$69:$D$76,ProposedApproach!$AD$56:$AD$63)/SUM(ProposedApproach!$AD$56:$AD$63) -> 38.18405677 | E78: 5
A79: =ROW() -> 79 | C79: BEP Lease | E79: 20
A80: =ROW() -> 80
A81: =ROW() -> 81 | C81: Pipeline economic end date (year) | D81: 2063
A82: =ROW() -> 82
A83: =ROW() -> 83
A84: Approved Asset Values
A85: =ROW() -> 85
A110: =ROW() -> 110 | B110: Approved Asset Depreciation | I110: AA1 [m$ 31/12/2004] | N110: AA2 [m$ 31/12/2004] | T110: AA3 [m$ 31/12/2010] | Y110: AA4 [m$ 31/12/2015]
A111: =ROW() -> 111 | C111: Pipeline | I111: 27.36044298 | J111: 27.36769462 | K111: 27.37241662 | L111: 27.37508118 | M111: 27.38111859 | N111: 27.39286391 | O111: 27.45714465 | P111: 27.53919085 | Q111: 31.17101727 | R111: 35.0846799 | S111: 36.27857625 | T111: 51.02396609 | U111: 51.32938537 | V111: 51.38438537 | W111: 51.44374251 | X111: 51.45109965 | Y111: 58.22280694 | Z111: 58.27532839 | AA111: 58.31090964 | AB111: 58.3343277 | AC111: 58.41114566
A112: =ROW() -> 112 | C112: Compression | I112: 13.34090349 | J112: 13.37867948 | K112: 13.54985192 | L112: 13.72495936 | M112: 13.79696984 | N112: 12.54002538 | O112: 12.60559336 | P112: 14.89842708 | Q112: 18.80868067 | R112: 20.15568906 | S112: 20.16936446 | T112: 28.89687446 | U112: 30.09022971 | V112: 30.30905305 | W112: 30.37745305 | X112: 30.47051971 | Y112: 34.11317936 | Z112: 34.63363566 | AA112: 35.14508475 | AB112: 29.10932637 | AC112: 19.7779653
A113: =ROW() -> 113 | C113: Metering | I113: 0.5390160353 | J113: 0.5390160353 | K113: 0.5401965349 | L113: 0.5413770345 | M113: 0.5425575341 | N113: 0.5957306903 | O113: 0.6182928278 | P113: 0.6429066893 | Q113: 0.6459834996 | R113: 0.6459834996 | S113: 0.6459834996 | T113: 0.8078240677 | U113: 0.8188130383 | V113: 0.8285190383 | W113: 0.8816190383 | X113: 0.9347190383 | Y113: -0.2480729442 | Z113: 1.128477874 | AA113: 1.182157721 | AB113: 1.199164501 | AC113: 1.212144087
A114: =ROW() -> 114 | C114: Other Depreciable | I114: 3.338903877 | J114: 3.538093509 | K114: 3.736220692 | L114: 3.961302615 | M114: 4.147034552 | N114: 3.665652482 | O114: 3.799316054 | P114: 3.905292402 | Q114: 3.958281912 | R114: 4.140843923 | S114: 4.357940926 | T114: 7.061071921 | U114: 9.683287685 | V114: 9.766287685 | W114: 9.829621018 | X114: 9.979621018 | Y114: 5.884382829 | Z114: 6.35644569 | AA114: 6.444676422 | AB114: 6.531253531 | AC114: 6.589939801
A115: =ROW() -> 115 | C115: Computers and Motor Vehicles
A116: =ROW() -> 116 | C116: Cathodic/Corrosion Protection
A117: =ROW() -> 117 | C117: SCADA , ECI And Comms
A118: =ROW() -> 118 | C118: Building
A119: =ROW() -> 119 | C119: Non-Depreciable | I119: 0 | J119: 0 | K119: 0 | L119: 0 | M119: 0 | N119: 0 | O119: 0 | P119: 0 | Q119: 0 | R119: 0 | S119: 0 | T119: 0 | U119: 0 | V119: 0 | W119: 0 | X119: 0 | Y119: -0.06213890957 | Z119: 0 | AA119: 0 | AB119: 0 | AC119: 0
A120: =ROW() -> 120 | C120: Cost of Raising Equity
A121: =ROW() -> 121 | C121: Total | I121: =SUM(I111:I119) -> 44.57926639 | J121: 44.82348365 | K121: 45.19868577 | L121: 45.60272019 | M121: 45.86768051 | N121: 44.19427246 | O121: 44.48034689 | P121: 46.98581702 | Q121: 54.58396334 | R121: 60.02719638 | S121: 61.45186514 | T121: 87.78973655 | U121: 91.9217158 | V121: 92.28824514 | W121: 92.53243561 | X121: 92.83595942 | Y121: 97.91015727 | Z121: 100.3938876 | AA121: 101.0828285 | AB121: 95.1740721 | AC121: 85.99119485
A122: =ROW() -> 122 | B122: Approved Asset Depreciation (modelled) | I122: ="AA1 [m$ "&$E$28&"]" -> AA1 [m$ 31/12/2019] | N122: ="AA2 [m$ "&$E$28&"]" -> AA2 [m$ 31/12/2019] | T122: ="AA1 [m$ "&$E$28&"]" -> AA1 [m$ 31/12/2019] | Y122: ="AA1 [m$ "&$E$28&"]" -> AA1 [m$ 31/12/2019]
A123: =ROW() -> 123 | C123: Pipeline | I123: =I111/$M$28 -> 39.01068043 | J123: 39.02101986 | K123: 39.02775251 | L123: 39.03155165 | M123: 39.04015983 | N123: 39.05690637 | O123: 39.14855823 | P123: 39.26554019 | Q123: 44.44381964 | R123: 50.02394283 | S123: 51.72620727 | T123: =T111/$S$28 -> 61.25238315 | U123: 61.61902769 | V123: 61.68505315 | W123: 61.7563092 | X123: 61.76514118 | Y123: =Y111/$X$28 -> 62.41227091 | Z123: 62.46857158 | AA123: 62.5067131 | AB123: 62.53181623 | AC123: 62.61416168
A124: =ROW() -> 124 | C124: Compression | I124: =I112/$M$28 -> 19.02153862 | J124: 19.07539984 | K124: 19.31945852 | L124: 19.56912773 | M124: 19.67180069 | N124: 17.87964189 | O124: 17.97312911 | P124: 21.2422649 | Q124: 26.81752745 | R124: 28.73809993 | S124: 28.7575984 | T124: 34.68962846 | U124: 36.12220728 | V124: 36.38489659 | W124: 36.46700826 | X124: 36.57873135 | Y124: 36.56781772 | Z124: 37.12572383 | AA124: 37.67397462 | AB124: 31.20390889 | AC124: 21.20110303
A125: =ROW() -> 125 | C125: Metering | I125: =I113/$M$28 -> 0.7685322314 | J125: 0.7685322314 | K125: 0.7702153947 | L125: 0.771898558 | M125: 0.7735817212 | N125: 0.8493963198 | O125: 0.8815655482 | P125: 0.9166601366 | Q125: 0.9210470707 | R125: 0.9210470707 | S125: 0.9210470707 | T125: 0.9697628997 | U125: 0.9829547523 | V125: 0.9946064461 | W125: 1.058351031 | X125: 1.122095616 | Y125: -0.2659232114 | Z125: 1.209678312 | AA125: 1.26722073 | AB125: 1.285451246 | AC125: 1.299364787
A126: =ROW() -> 126 | C126: Other Depreciable | I126: =I114/$M$28 -> 4.760628774 | J126: 5.044634523 | K126: 5.327125424 | L126: 5.648048553 | M126: 5.91286624 | N126: 5.226508855 | O126: 5.417087163 | P126: 5.568188863 | Q126: 5.643741617 | R126: 5.904039605 | S126: 6.213577788 | T126: 8.476555546 | U126: 11.62442854 | V126: 11.72406696 | W126: 11.80009629 | X126: 11.98016574 | Y126: 6.30779783 | Z126: 6.813828314 | AA126: 6.908407752 | AB126: 7.001214579 | AC126: 7.064123661
A127: =ROW() -> 127 | C127: Computers and Motor Vehicles | I127: =I115/$M$28 -> 0 | J127: 0 | K127: 0 | L127: 0 | M127: 0 | N127: 0 | O127: 0 | P127: 0 | Q127: 0 | R127: 0 | S127: 0 | T127: 0 | U127: 0 | V127: 0 | W127: 0 | X127: 0 | Y127: 0 | Z127: 0 | AA127: 0 | AB127: 0 | AC127: 0
A128: =ROW() -> 128 | C128: Cathodic/Corrosion Protection | I128: =I116/$M$28 -> 0 | J128: 0 | K128: 0 | L128: 0 | M128: 0 | N128: 0 | O128: 0 | P128: 0 | Q128: 0 | R128: 0 | S128: 0 | T128: 0 | U128: 0 | V128: 0 | W128: 0 | X128: 0 | Y128: 0 | Z128: 0 | AA128: 0 | AB128: 0 | AC128: 0
A129: =ROW() -> 129 | C129: SCADA , ECI And Comms | I129: =I117/$M$28 -> 0 | J129: 0 | K129: 0 | L129: 0 | M129: 0 | N129: 0 | O129: 0 | P129: 0 | Q129: 0 | R129: 0 | S129: 0 | T129: 0 | U129: 0 | V129: 0 | W129: 0 | X129: 0 | Y129: 0 | Z129: 0 | AA129: 0 | AB129: 0 | AC129: 0
A130: =ROW() -> 130 | C130: Building | I130: 0 | J130: 0 | K130: 0 | L130: 0 | M130: 0 | N130: 0 | O130: 0 | P130: 0 | Q130: 0 | R130: 0 | S130: 0 | T130: 0 | U130: 0 | V130: 0 | W130: 0 | X130: 0 | Y130: 0 | Z130: 0 | AA130: 0 | AB130: 0 | AC130: 0
A131: =ROW() -> 131 | C131: Non-Depreciable | I131: =I119/$M$28 -> 0 | J131: 0 | K131: 0 | L131: 0 | M131: 0 | N131: 0 | O131: 0 | P131: 0 | Q131: 0 | R131: 0 | S131: 0 | T131: =T119/$S$28 -> 0 | U131: =U119/$S$28 -> 0 | V131: =V119/$S$28 -> 0 | W131: =W119/$S$28 -> 0 | X131: =X119/$S$28 -> 0 | Y131: =Y119/$X$28 -> -0.06661015952 | Z131: =Z119/$X$28 -> 0 | AA131: =AA119/$X$28 -> 0 | AB131: =AB119/$X$28 -> 0 | AC131: =AC119/$X$28 -> 0
A132: =ROW() -> 132 | C132: Cost of Raising Equity
A133: =ROW() -> 133 | C133: Total | I133: =SUM(I123:I131) -> 63.56138005 | J133: 63.90958646 | K133: 64.44455185 | L133: 65.0206265 | M133: 65.39840848 | N133: 63.01245344 | O133: 63.42034004 | P133: 66.99265409 | Q133: 77.82613578 | R133: 85.58712944 | S133: 87.61843053 | T133: 105.3883301 | U133: 110.3486183 | V133: 110.7886232 | W133: 111.0817648 | X133: 111.4461339 | Y133: 104.9553531 | Z133: 107.617802 | AA133: 108.3563162 | AB133: 102.0223909 | AC133: 92.17875315
A134: =ROW() -> 134
A135: Approved DBNGP OCB Values
A136: =ROW() -> 136 | F136: OCB [m$ 31/12/1999]
A137: =ROW() -> 137 | B137: OCB (AA1 & AA2 Approved Model) | E137: Tax Asset Life (years) | F137: Economic Asset Life (years) | G137: CV | H137: ="m$ " &$E$28 -> m$ 31/12/2019 | I137: m$ 31/12/204 | J137: ="m$ " &$E$28 -> m$ 31/12/2019
A138: =ROW() -> 138 | C138: Pipeline | E138: =E42 -> 7.692307692 | F138: =D42 -> 54.5 | G138: 1263.146676 | H138: =G138/$H$28 -> 2126.082083 | I138: 1491.144143 | J138: =I138/$M$28 -> 2126.082083
A139: =ROW() -> 139 | C139: Compression | E139: =E43 -> 7.692307692 | F139: =D43 -> 19.60073141 | G139: 211.6036808 | H139: =G139/$H$28 -> 356.1635421 | I139: 249.7980599 | J139: =I139/$M$28 -> 356.1635421
A140: =ROW() -> 140 | C140: Metering | E140: =E44 -> 7.692307692 | F140: =D44 -> 38.50225195 | G140: 17.35315585 | H140: =G140/$H$28 -> 29.20819445 | I140: 20.48539349 | J140: =I140/$M$28 -> 29.20819445
A141: =ROW() -> 141 | C141: Other Depreciable | E141: =E45 -> 7.692307692 | F141: =D45 -> 16.85 | G141: 47.65823764 | H141: =G141/$H$28 -> 80.21659485 | I141: 56.26053033 | J141: =I141/$M$28 -> 80.21659485
A142: =ROW() -> 142 | C142: Computers and Motor Vehicles
A143: =ROW() -> 143 | C143: Cathodic/Corrosion Protection
A144: =ROW() -> 144 | C144: SCADA , ECI And Comms
A145: =ROW() -> 145 | C145: Building
A146: =ROW() -> 146 | C146: Non-Depreciable | G146: 10.23824934 | H146: =G146/$H$28 -> 17.23264518 | I146: 12.08624922 | J146: =I146/$M$28 -> 17.23264518
A147: =ROW() -> 147 | C147: Cost of Raising Equity
A148: =ROW() -> 148 | C148: Total | G148: =SUM(G138:G146) -> 1550 | H148: =SUM(H138:H146) -> 2608.90306 | I148: =SUM(I138:I146) -> 1829.774376 | J148: =SUM(J138:J146) -> 2608.90306
A197: =ROW() -> 197 | B197: Approved OCB Depreciation (AA2 Approved Model) | I197: AA1 [m$ 31/12/2004] | N197: AA2 [m$ 31/12/2004] | T197: AA3 [m$ 31/12/2010] | Y197: AA4 [m$ 31/12/2015]
A198: =ROW() -> 198 | C198: Pipeline | I198: 27.36044298 | J198: 27.36044298 | K198: 27.36044298 | L198: 27.36044298 | M198: 27.36044298 | N198: 27.36044298 | O198: 27.36044298 | P198: 27.36044298 | Q198: 27.36044298 | R198: 27.36044298 | S198: 27.36044298 | T198: 32.49636231 | U198: 32.49636231 | V198: 32.49636231 | W198: 32.49636231 | X198: 32.49636231 | Y198: 36.39206333 | Z198: 36.39206333 | AA198: 36.39206333 | AB198: 36.39206333 | AC198: 36.39206333
A199: =ROW() -> 199 | C199: Compression | I199: 13.34090349 | J199: 13.34090349 | K199: 13.34090349 | L199: 13.34090349 | M199: 13.34090349 | N199: 12.54002538 | O199: 12.54002538 | P199: 12.54002538 | Q199: 12.54002538 | R199: 12.54002538 | S199: 12.54002538 | T199: 14.37484303 | U199: 14.37484303 | V199: 14.37484303 | W199: 14.37484303 | X199: 14.37484303 | Y199: 16.09782344 | Z199: 16.09782344 | AA199: 16.09782344 | AB199: 9.670468192 | AC199: 0
A200: =ROW() -> 200 | C200: Metering | I200: 0.5390160353 | J200: 0.5390160353 | K200: 0.5390160353 | L200: 0.5390160353 | M200: 0.5390160353 | N200: 0.5310184325 | O200: 0.5310184325 | P200: 0.5310184325 | Q200: 0.5310184325 | R200: 0.5310184325 | S200: 0.5310184325 | T200: 0.6306976604 | U200: 0.6306976604 | V200: 0.6306976604 | W200: 0.6306976604 | X200: 0.6306976604 | Y200: 0.705151787 | Z200: 0.705151787 | AA200: 0.705151787 | AB200: 0.705151787 | AC200: 0.705151787
A201: =ROW() -> 201 | C201: Other Depreciable | I201: 3.338903877 | J201: 3.338903877 | K201: 3.338903877 | L201: 3.338903877 | M201: 3.338903877 | N201: 3.338903877 | O201: 3.338903877 | P201: 3.338903877 | Q201: 3.338903877 | R201: 3.338903877 | S201: 3.338903877 | T201: 3.925125351 | U201: 3.925125351 | V201: 3.925125351 | W201: 3.925125351 | X201: 3.925125351 | Y201: 1.7891863 | Z201: 0 | AA201: 0 | AB201: 0 | AC201: 0
A202: =ROW() -> 202 | C202: Computers and Motor Vehicles | Y202: 0
A203: =ROW() -> 203 | C203: Cathodic/Corrosion Protection
A204: =ROW() -> 204 | C204: SCADA , ECI And Comms
A205: =ROW() -> 205 | C205: Building
A206: =ROW() -> 206 | C206: Non-Depreciable | I206: 0 | J206: 0 | K206: 0 | L206: 0 | M206: 0 | N206: 0 | O206: 0 | P206: 0 | Q206: 0 | R206: 0 | S206: 0 | T206: 0 | U206: 0 | V206: 0 | W206: 0 | X206: 0 | Y206: 0 | Z206: 0 | AA206: 0 | AB206: 0 | AC206: 0
A207: =ROW() -> 207 | C207: Cost of Raising Equity
A208: =ROW() -> 208 | C208: Total | I208: =SUM(I198:I206) -> 44.57926639 | J208: 44.57926639 | K208: 44.57926639 | L208: 44.57926639 | M208: 44.57926639 | N208: 43.77039067 | O208: 43.77039067 | P208: 43.77039067 | Q208: 43.77039067 | R208: 43.77039067 | S208: 43.77039067 | T208: 51.42702835 | U208: 51.42702835 | V208: 51.42702835 | W208: 51.42702835 | X208: 51.42702835 | Y208: 54.98422486 | Z208: 53.19503856 | AA208: 53.19503856 | AB208: 46.76768331 | AC208: 37.09721511
A209: =ROW() -> 209 | B209: Approved OCB Depreciation(modelled) | I209: ="AA1 [m$ "&$E$28&"]" -> AA1 [m$ 31/12/2019] | N209: ="AA2 [m$ "&$E$28&"]" -> AA2 [m$ 31/12/2019] | T209: ="AA1 [m$ "&$E$28&"]" -> AA1 [m$ 31/12/2019] | Y209: ="AA1 [m$ "&$E$28&"]" -> AA1 [m$ 31/12/2019]
A210: =ROW() -> 210 | C210: Pipeline | I210: =I198/$M$28 -> 39.01068043 | J210: 39.01068043 | K210: 39.01068043 | L210: 39.01068043 | M210: 39.01068043 | N210: 39.01068043 | O210: 39.01068043 | P210: 39.01068043 | Q210: 39.01068043 | R210: 39.01068043 | S210: 39.01068043 | T210: =T198/$S$28 -> 39.01068043 | U210: 39.01068043 | V210: 39.01068043 | W210: 39.01068043 | X210: 39.01068043 | Y210: =Y198/$X$28 -> 39.01068043 | Z210: 39.01068043 | AA210: 39.01068043 | AB210: 39.01068043 | AC210: 39.01068043
A211: =ROW() -> 211 | C211: Compression | I211: =I199/$M$28 -> 19.02153862 | J211: 19.02153862 | K211: 19.02153862 | L211: 19.02153862 | M211: 19.02153862 | N211: 17.87964189 | O211: 17.87964189 | P211: 17.87964189 | Q211: 17.87964189 | R211: 17.87964189 | S211: 17.87964189 | T211: 17.25646712 | U211: 17.25646712 | V211: 17.25646712 | W211: 17.25646712 | X211: 17.25646712 | Y211: 17.25615391 | Z211: 17.25615391 | AA211: 17.25615391 | AB211: 10.36631369 | AC211: 0
A212: =ROW() -> 212 | C212: Metering | I212: =I200/$M$28 -> 0.7685322314 | J212: 0.7685322314 | K212: 0.7685322314 | L212: 0.7685322314 | M212: 0.7685322314 | N212: 0.7571292023 | O212: 0.7571292023 | P212: 0.7571292023 | Q212: 0.7571292023 | R212: 0.7571292023 | S212: 0.7571292023 | T212: 0.7571292023 | U212: 0.7571292023 | V212: 0.7571292023 | W212: 0.7571292023 | X212: 0.7571292023 | Y212: 0.7558914913 | Z212: 0.7558914913 | AA212: 0.7558914913 | AB212: 0.7558914913 | AC212: 0.7558914913
A213: =ROW() -> 213 | C213: Other Depreciable | I213: =I201/$M$28 -> 4.760628774 | J213: 4.760628774 | K213: 4.760628774 | L213: 4.760628774 | M213: 4.760628774 | N213: 4.760628774 | O213: 4.760628774 | P213: 4.760628774 | Q213: 4.760628774 | R213: 4.760628774 | S213: 4.760628774 | T213: 4.711967734 | U213: 4.711967734 | V213: 4.711967734 | W213: 4.711967734 | X213: 4.711967734 | Y213: 1.917928488 | Z213: 0 | AA213: 0 | AB213: 0 | AC213: 0
A214: =ROW() -> 214 | C214: Computers and Motor Vehicles | I214: =I202/$M$28 -> 0 | J214: 0 | K214: 0 | L214: 0 | M214: 0 | N214: 0 | O214: 0 | P214: 0 | Q214: 0 | R214: 0 | S214: 0 | T214: 0 | U214: 0 | V214: 0 | W214: 0 | X214: 0 | Y214: 0 | Z214: 0 | AA214: 0 | AB214: 0 | AC214: 0
A215: =ROW() -> 215 | C215: Cathodic/Corrosion Protection | I215: =I203/$M$28 -> 0 | J215: 0 | K215: 0 | L215: 0 | M215: 0 | N215: 0 | O215: 0 | P215: 0 | Q215: 0 | R215: 0 | S215: 0 | T215: 0 | U215: 0 | V215: 0 | W215: 0 | X215: 0 | Y215: 0 | Z215: 0 | AA215: 0 | AB215: 0 | AC215: 0
A216: =ROW() -> 216 | C216: SCADA , ECI And Comms | I216: =I204/$M$28 -> 0 | J216: 0 | K216: 0 | L216: 0 | M216: 0 | N216: 0 | O216: 0 | P216: 0 | Q216: 0 | R216: 0 | S216: 0 | T216: 0 | U216: 0 | V216: 0 | W216: 0 | X216: 0 | Y216: 0 | Z216: 0 | AA216: 0 | AB216: 0 | AC216: 0
A217: =ROW() -> 217 | C217: Building | I217: 0 | J217: 0 | K217: 0 | L217: 0 | M217: 0 | N217: 0 | O217: 0 | P217: 0 | Q217: 0 | R217: 0 | S217: 0 | T217: 0 | U217: 0 | V217: 0 | W217: 0 | X217: 0 | Y217: 0 | Z217: 0 | AA217: 0 | AB217: 0 | AC217: 0
A218: =ROW() -> 218 | C218: Non-Depreciable | I218: =I206/$M$28 -> 0 | J218: 0 | K218: 0 | L218: 0 | M218: 0 | N218: 0 | O218: 0 | P218: 0 | Q218: 0 | R218: 0 | S218: 0 | T218: =T206/$S$28 -> 0 | U218: =U206/$S$28 -> 0 | V218: =V206/$S$28 -> 0 | W218: =W206/$S$28 -> 0 | X218: =X206/$S$28 -> 0 | Y218: =Y206/$X$28 -> 0 | Z218: =Z206/$X$28 -> 0 | AA218: =AA206/$X$28 -> 0 | AB218: =AB206/$X$28 -> 0 | AC218: =AC206/$X$28 -> 0
A219: =ROW() -> 219 | C219: Cost of Raising Equity
A220: =ROW() -> 220 | C220: Total | I220: =SUM(I210:I218) -> 63.56138005 | J220: 63.56138005 | K220: 63.56138005 | L220: 63.56138005 | M220: 63.56138005 | N220: 62.4080803 | O220: 62.4080803 | P220: 62.4080803 | Q220: 62.4080803 | R220: 62.4080803 | S220: 62.4080803 | T220: 61.73624448 | U220: 61.73624448 | V220: 61.73624448 | W220: 61.73624448 | X220: 61.73624448 | Y220: 58.94065432 | Z220: 57.02272583 | AA220: 57.02272583 | AB220: 50.13288561 | AC220: 39.76657192
A221: =ROW() -> 221
A222: Redundant & Disposed OCB Assets
A223: =ROW() -> 223 | B223: Redundant & Disposed Asset | I223: AA1 [m$ n$ 31/12/2004] | N223: AA2 [m$ OD] | T223: AA3 [m$ OD] | Y223: AA4 [m$ OD] | AD223: AA5 [m$ OD]
A224: =ROW() -> 224 | C224: Pipeline | I224: 0 | J224: 0 | K224: 0 | L224: 0 | M224: 0 | N224: 0 | O224: 0 | P224: 0 | Q224: 0 | R224: 0 | S224: 0 | T224: 0 | U224: 0 | V224: 0 | W224: 0 | X224: 0 | Y224: 0 | Z224: 0 | AA224: 0 | AB224: 0 | AC224: 0 | AD224: 0 | AE224: 0 | AF224: 0 | AG224: 0 | AH224: 0
A225: =ROW() -> 225 | C225: Compression | I225: 0 | J225: 0 | K225: 0 | L225: 0 | M225: 0 | N225: 3.508846649 | O225: 0 | P225: 0 | Q225: 0 | R225: 0 | S225: 0 | T225: 0.0009685958129 | U225: 0 | V225: 0 | W225: 0 | X225: 0 | Y225: 0 | Z225: 0 | AA225: 0 | AB225: 0 | AC225: 0 | AD225: 0 | AE225: 0 | AF225: 0 | AG225: 0 | AH225: 0
A226: =ROW() -> 226 | C226: Metering | I226: 0 | J226: 0 | K226: 0 | L226: 0 | M226: 0 | N226: 0 | O226: 0 | P226: 0 | Q226: 0 | R226: 0 | S226: 0 | T226: 0 | U226: 0 | V226: 0 | W226: 0.02555031945 | X226: 0 | Y226: 0 | Z226: 0 | AA226: 0 | AB226: 0 | AC226: 0 | AD226: 0 | AE226: 0 | AF226: 0 | AG226: 0 | AH226: 0
A227: =ROW() -> 227 | C227: Other Depreciable | I227: 0 | J227: 0 | K227: 0 | L227: 0 | M227: 0 | N227: 3.572792706 | O227: 0 | P227: 0.03405415633 | Q227: 0.02690329251 | R227: 0.08554448117 | S227: 0.01039483546 | T227: 1.734900273 | U227: 0.02510343003 | V227: 0.03485976249 | W227: 0 | X227: 0 | Y227: 0 | Z227: 0 | AA227: 0 | AB227: 0 | AC227: 0 | AD227: 0 | AE227: 0 | AF227: 0 | AG227: 0 | AH227: 0
A228: =ROW() -> 228 | C228: Computers and Motor Vehicles
A229: =ROW() -> 229 | C229: Cathodic/Corrosion Protection
A230: =ROW() -> 230 | C230: SCADA , ECI And Comms
A231: =ROW() -> 231 | C231: Building
A232: =ROW() -> 232 | C232: Non-Depreciable | I232: 0 | J232: 0 | K232: 0 | L232: 0 | M232: 0 | N232: 1.932514863 | O232: 0 | P232: 0 | Q232: 0 | R232: 0 | S232: 0 | T232: 0 | U232: 0 | V232: 0 | W232: 0 | X232: 0 | Y232: 0 | Z232: 0 | AA232: 0 | AB232: 0 | AC232: 0 | AD232: 0 | AE232: 0 | AF232: 0 | AG232: 0 | AH232: 0
A233: =ROW() -> 233 | C233: Cost of Raising Equity | Y233: 0 | Z233: 0 | AA233: 0 | AB233: 0 | AC233: 0 | AD233: 0 | AE233: 0 | AF233: 0 | AG233: 0 | AH233: 0
A234: =ROW() -> 234 | C234: Total | I234: =SUM(I224:I233) -> 0 | J234: 0 | K234: 0 | L234: 0 | M234: 0 | N234: 9.014154218 | O234: 0 | P234: 0.03405415633 | Q234: 0.02690329251 | R234: 0.08554448117 | S234: 0.01039483546 | T234: 1.735868869 | U234: 0.02510343003 | V234: 0.03485976249 | W234: 0.02555031945 | X234: 0 | Y234: 0 | Z234: 0 | AA234: 0 | AB234: 0 | AC234: 0 | AD234: 0 | AE234: 0 | AF234: 0 | AG234: 0 | AH234: 0
A271: =ROW() -> 271 | B271: Modelled Redundant & Disposed Asset (modelled) | I271: ="AA1 [m$ "&$E$28&"]" -> AA1 [m$ 31/12/2019] | N271: ="AA2 [m$ "&$E$28&"]" -> AA2 [m$ 31/12/2019] | T271: ="AA3 [m$ "&$E$28&"]" -> AA3 [m$ 31/12/2019] | Y271: ="AA4 [m$ "&$E$28&"]" -> AA4 [m$ 31/12/2019] | AD271: ="AA5 [m$ "&$E$28&"]" -> AA5 [m$ 31/12/2019]
A272: =ROW() -> 272 | C272: Pipeline | I272: =I224/$M$28 -> 0 | J272: 0 | K272: 0 | L272: 0 | M272: 0 | N272: 0 | O272: 0 | P272: 0 | Q272: 0 | R272: 0 | S272: 0 | T272: =T224/T$28 -> 0 | U272: 0 | V272: 0 | W272: 0 | X272: 0 | Y272: 0 | Z272: 0 | AA272: 0 | AB272: 0 | AC272: 0 | AD272: 0 | AE272: 0 | AF272: 0 | AG272: 0 | AH272: 0
A273: =ROW() -> 273 | C273: Compression | I273: 0 | J273: 0 | K273: 0 | L273: 0 | M273: 0 | N273: 5.359758893 | O273: 0 | P273: 0 | Q273: 0 | R273: 0 | S273: 0 | T273: =T225/T$28 -> 0.001127763862 | U273: 0 | V273: 0 | W273: 0 | X273: 0 | Y273: 0 | Z273: 0 | AA273: 0 | AB273: 0 | AC273: 0 | AD273: 0 | AE273: 0 | AF273: 0 | AG273: 0 | AH273: 0
A274: =ROW() -> 274 | C274: Metering | I274: 0 | J274: 0 | K274: 0 | L274: 0 | M274: 0 | N274: 0 | O274: 0 | P274: 0 | Q274: 0 | R274: 0 | S274: 0 | T274: =T226/T$28 -> 0 | U274: 0 | V274: 0 | W274: 0.02785128631 | X274: 0 | Y274: 0 | Z274: 0 | AA274: 0 | AB274: 0 | AC274: 0 | AD274: 0 | AE274: 0 | AF274: 0 | AG274: 0 | AH274: 0
A275: =ROW() -> 275 | C275: Other Depreciable | I275: 0 | J275: 0 | K275: 0 | L275: 0 | M275: 0 | N275: 0.09611170235 | O275: 0 | P275: 0.04204545337 | Q275: 0.03177033202 | R275: 0.1014450127 | S275: 0.01329458569 | T275: =T227/T$28 -> 2.019994105 | U275: 0.02859822127 | V275: 0.03865175955 | W275: 0 | X275: 0 | Y275: 0 | Z275: 0 | AA275: 0 | AB275: 0 | AC275: 0 | AD275: 0 | AE275: 0 | AF275: 0 | AG275: 0 | AH275: 0
A276: =ROW() -> 276 | C276: Computers and Motor Vehicles | I276: 0 | J276: 0 | K276: 0 | L276: 0 | M276: 0 | N276: 0 | O276: 0 | P276: 0 | Q276: 0 | R276: 0 | S276: 0 | T276: =T228/T$28 -> 0 | U276: 0 | V276: 0 | W276: 0 | X276: 0 | Y276: 0 | Z276: 0 | AA276: 0 | AB276: 0 | AC276: 0 | AD276: 0 | AE276: 0 | AF276: 0 | AG276: 0 | AH276: 0
A277: =ROW() -> 277 | C277: Cathodic/Corrosion Protection | I277: 0 | J277: 0 | K277: 0 | L277: 0 | M277: 0 | N277: 0 | O277: 0 | P277: 0 | Q277: 0 | R277: 0 | S277: 0 | T277: =T229/T$28 -> 0 | U277: 0 | V277: 0 | W277: 0 | X277: 0 | Y277: 0 | Z277: 0 | AA277: 0 | AB277: 0 | AC277: 0 | AD277: 0 | AE277: 0 | AF277: 0 | AG277: 0 | AH277: 0
A278: =ROW() -> 278 | C278: SCADA , ECI And Comms | I278: 0 | J278: 0 | K278: 0 | L278: 0 | M278: 0 | N278: 0 | O278: 0 | P278: 0 | Q278: 0 | R278: 0 | S278: 0 | T278: =T230/T$28 -> 0 | U278: 0 | V278: 0 | W278: 0 | X278: 0 | Y278: 0 | Z278: 0 | AA278: 0 | AB278: 0 | AC278: 0 | AD278: 0 | AE278: 0 | AF278: 0 | AG278: 0 | AH278: 0
A279: =ROW() -> 279 | C279: Building | I279: 0 | J279: 0 | K279: 0 | L279: 0 | M279: 0 | N279: 0 | O279: 0 | P279: 0 | Q279: 0 | R279: 0 | S279: 0 | T279: 0 | U279: 0 | V279: 0 | W279: 0 | X279: 0 | Y279: 0 | Z279: 0 | AA279: 0 | AB279: 0 | AC279: 0 | AD279: 0 | AE279: 0 | AF279: 0 | AG279: 0 | AH279: 0
A280: =ROW() -> 280 | C280: Non-Depreciable | I280: =I232/$M$28 -> 0 | J280: =J232/$M$28 -> 0 | K280: =K232/$M$28 -> 0 | L280: =L232/$M$28 -> 0 | M280: =M232/$M$28 -> 0 | N280: 2.90459336 | O280: 0 | P280: 0 | Q280: 0 | R280: 0 | S280: 0 | T280: =T232/T$28 -> 0 | U280: 0 | V280: 0 | W280: 0 | X280: 0 | Y280: 0 | Z280: 0 | AA280: 0 | AB280: 0 | AC280: 0 | AD280: 0 | AE280: 0 | AF280: 0 | AG280: 0 | AH280: 0
A281: =ROW() -> 281 | C281: Cost of Raising Equity | Y281: =Y233/Y$28 -> 0 | Z281: 0 | AA281: 0 | AB281: 0 | AC281: 0 | AD281: 0 | AE281: 0 | AF281: 0 | AG281: 0 | AH281: 0
A282: =ROW() -> 282 | C282: Total | I282: =SUM(I272:I281) -> 0 | J282: 0 | K282: 0 | L282: 0 | M282: 0 | N282: 8.360463955 | O282: 0 | P282: 0.04204545337 | Q282: 0.03177033202 | R282: 0.1014450127 | S282: 0.01329458569 | T282: 2.021121869 | U282: 0.02859822127 | V282: 0.03865175955 | W282: 0.02785128631 | X282: 0 | Y282: 0 | Z282: 0 | AA282: 0 | AB282: 0 | AC282: 0 | AD282: 0 | AE282: 0 | AF282: 0 | AG282: 0 | AH282: 0
A283: =ROW() -> 283
A310: Approved DBNGP Capex Depreciation before Structural Adjustment
A311: =ROW() -> 311
A336: =ROW() -> 336 | B336: Approved Capex Depreciation | I336: AA1 [m$ 31/12/2004] | N336: AA2 [m$ 31/12/2004] | T336: AA3 [m$ 31/12/2010 (Perth)] | Y336: AA4 [m$ 31/12/2015]
A337: =ROW() -> 337 | C337: Pipeline | I337: 0 | J337: 0.007251640382 | K337: 0.01197363877 | L337: 0.014638195 | M337: 0.02067560723 | N337: 0.03242092508 | O337: 0.09670166307 | P337: 0.178747868 | Q337: 3.810574283 | R337: 7.724236917 | S337: 8.918133271 | T337: 18.52760378 | U337: 18.83302305 | V337: 18.88802305 | W337: 18.9473802 | X337: 18.95473734 | Y337: 3.676501815 | Z337: 2.490687124 | AA337: 1.639264653 | AB337: 5.377256921 | AC337: 7.64634184
A338: =ROW() -> 338 | C338: Compression | I338: 0 | J338: 0.03777598711 | K338: 0.2089484287 | L338: 0.3840558689 | M338: 0.4560663443 | N338: 0 | O338: 0.06556797988 | P338: 2.358401699 | Q338: 6.268655288 | R338: 7.615663679 | S338: 7.62933908 | T338: 14.52203143 | U338: 15.71538668 | V338: 15.93421002 | W338: 16.00261002 | X338: 16.09567668 | Y338: 15.61368904 | Z338: 15.34347288 | AA338: 11.74790587 | AB338: 10.17321383 | AC338: 10.18314425
A339: =ROW() -> 339 | C339: Metering | I339: 0 | J339: 0 | K339: 0.001180499597 | L339: 0.002360999194 | M339: 0.003541498791 | N339: 0.06471225777 | O339: 0.08727439534 | P339: 0.1118882568 | Q339: 0.1149650671 | R339: 0.1149650671 | S339: 0.1149650671 | T339: 0.1771264073 | U339: 0.1881153779 | V339: 0.1978213779 | W339: 0.2509213779 | X339: 0.3040213779 | Y339: 3.603669905 | Z339: 2.683992345 | AA339: 0.850339013 | AB339: 0.6489792836 | AC339: 1.319119056
A340: =ROW() -> 340 | C340: Other | I340: 0 | J340: 0.199189632 | K340: 0.3973168144 | L340: 0.6223987376 | M340: 0.8081306742 | N340: 0.3267486045 | O340: 0.460412177 | P340: 0.5663885251 | Q340: 0.619378035 | R340: 0.8019400457 | S340: 1.019037048 | T340: 3.135946571 | U340: 5.758162335 | V340: 5.841162335 | W340: 5.904495668 | X340: 6.054495668 | Y340: 2.395154548 | Z340: 2.646921958 | AA340: 2.597313274 | AB340: 1.760588085 | AC340: 2.546354647
A341: =ROW() -> 341 | C341: Computers and Motor Vehicles
A342: =ROW() -> 342 | C342: Cathodic/Corrosion Protection
A343: =ROW() -> 343 | C343: SCADA , ECI And Comms
A344: =ROW() -> 344 | C344: Building
A345: =ROW() -> 345 | C345: Non-Depreciable | I345: 0 | J345: 0 | K345: 0 | L345: 0 | M345: 0 | N345: 0 | O345: 0 | P345: 0 | Q345: 0 | R345: 0 | S345: 0 | T345: 0 | U345: 0 | V345: 0 | W345: 0 | X345: 0 | Y345: 0 | Z345: 0 | AA345: 0 | AB345: 0 | AC345: 0
A346: =ROW() -> 346 | C346: Cost of Raising Equity | Y346: 2.861416982e-14 | Z346: 0 | AA346: 0 | AB346: 0 | AC346: -2.703431989e-14
A347: =ROW() -> 347 | C347: Total | I347: =SUM(I337:I346) -> 0 | J347: 0.2442172595 | K347: 0.6194193815 | L347: 1.023453801 | M347: 1.288414125 | N347: 0.4238817873 | O347: 0.7099562153 | P347: 3.215426349 | Q347: 10.81357267 | R347: 16.25680571 | S347: 17.68147447 | T347: 36.36270819 | U347: 40.49468745 | V347: 40.86121678 | W347: 41.10540726 | X347: 41.40893107 | Y347: 25.28901531 | Z347: 23.16507431 | AA347: 16.83482281 | AB347: 17.96003812 | AC347: 21.69495979
A348: =ROW() -> 348 | B348: Approved Capex Depreciation | I348: ="AA1 [m$ "&$E$28&"]" -> AA1 [m$ 31/12/2019] | N348: ="AA2 [m$ "&$E$28&"]" -> AA2 [m$ 31/12/2019] | T348: ="AA3 [m$ "&$E$28&"]" -> AA3 [m$ 31/12/2019] | Y348: ="AA4 [m$ "&$E$28&"]" -> AA4 [m$ 31/12/2019]
A349: =ROW() -> 349 | C349: Pipeline | I349: =I337/$M$28 -> 0 | J349: 0.01033943148 | K349: 0.01707208454 | L349: 0.02087122448 | M349: 0.02947940232 | N349: 0.04622594555 | O349: 0.1378777996 | P349: 0.2548597609 | Q349: 5.433139211 | R349: 11.0132624 | S349: 12.71552684 | T349: =T337/$S$28 -> 22.24170272 | U349: 22.60834726 | V349: 22.67437272 | W349: 22.74562878 | X349: 22.75446075 | Y349: =Y337/$X$28 -> 3.941047149 | Z349: 2.669906309 | AA349: 1.75721912 | AB349: 5.764181312 | AC349: 8.196539869
A350: =ROW() -> 350 | C350: Compression | I350: =I338/$M$28 -> 0 | J350: 0.05386122446 | K350: 0.2979198978 | L350: 0.5475891154 | M350: 0.6502620745 | N350: 0 | O350: 0.09348721111 | P350: 3.362623005 | Q350: 8.937885557 | R350: 10.85845804 | S350: 10.87795651 | T350: 17.43316135 | U350: 18.86574016 | V350: 19.12842948 | W350: 19.21054115 | X350: 19.32226424 | Y350: 16.73718327 | Z350: 16.44752352 | AA350: 12.5932349 | AB350: 10.90523475 | AC350: 10.91587972
A351: =ROW() -> 351 | C351: Metering | I351: =I339/$M$28 -> 0 | J351: 0 | K351: 0.001683163264 | L351: 0.003366326529 | M351: 0.005049489793 | N351: 0.09226711751 | O351: 0.1244363459 | P351: 0.1595309343 | Q351: 0.1639178684 | R351: 0.1639178684 | S351: 0.1639178684 | T351: 0.2126336974 | U351: 0.22582555 | V351: 0.2374772438 | W351: 0.3012218288 | X351: 0.3649664138 | Y351: 3.862974566 | Z351: 2.877120946 | AA351: 0.9115257685 | AB351: 0.6956770549 | AC351: 1.414037217
A352: =ROW() -> 352 | C352: Other | I352: =I340/$M$28 -> 0 | J352: 0.2840057482 | K352: 0.5664966494 | L352: 0.8874197785 | M352: 1.152237465 | N352: 0.4658800809 | O352: 0.6564583883 | P352: 0.8075600883 | Q352: 0.883112843 | R352: 1.143410831 | S352: 1.452949013 | T352: 3.764587812 | U352: 6.912460802 | V352: 7.01209923 | W352: 7.088128553 | X352: 7.268198002 | Y352: 2.567499617 | Z352: 2.837383132 | AA352: 2.78420482 | AB352: 1.887272467 | AC352: 2.729579428
A353: =ROW() -> 353 | C353: Computers and Motor Vehicles | I353: =I341/$M$28 -> 0 | J353: 0 | K353: 0 | L353: 0 | M353: 0 | N353: 0 | O353: 0 | P353: 0 | Q353: 0 | R353: 0 | S353: 0 | T353: 0 | U353: 0 | V353: 0 | W353: 0 | X353: 0 | Y353: 0 | Z353: 0 | AA353: 0 | AB353: 0 | AC353: 0
A354: =ROW() -> 354 | C354: Cathodic/Corrosion Protection | I354: =I342/$M$28 -> 0 | J354: 0 | K354: 0 | L354: 0 | M354: 0 | N354: 0 | O354: 0 | P354: 0 | Q354: 0 | R354: 0 | S354: 0 | T354: 0 | U354: 0 | V354: 0 | W354: 0 | X354: 0 | Y354: 0 | Z354: 0 | AA354: 0 | AB354: 0 | AC354: 0
A355: =ROW() -> 355 | C355: SCADA , ECI And Comms | I355: =I343/$M$28 -> 0 | J355: 0 | K355: 0 | L355: 0 | M355: 0 | N355: 0 | O355: 0 | P355: 0 | Q355: 0 | R355: 0 | S355: 0 | T355: 0 | U355: 0 | V355: 0 | W355: 0 | X355: 0 | Y355: 0 | Z355: 0 | AA355: 0 | AB355: 0 | AC355: 0
A356: =ROW() -> 356 | C356: Building | I356: 0 | J356: 0 | K356: 0 | L356: 0 | M356: 0 | N356: 0 | O356: 0 | P356: 0 | Q356: 0 | R356: 0 | S356: 0 | T356: 0 | U356: 0 | V356: 0 | W356: 0 | X356: 0 | Y356: 0 | Z356: 0 | AA356: 0 | AB356: 0 | AC356: 0
A357: =ROW() -> 357 | C357: Non-Depreciable | I357: =I345/$M$28 -> 0 | J357: 0 | K357: 0 | L357: 0 | M357: 0 | N357: 0 | O357: 0 | P357: 0 | Q357: 0 | R357: 0 | S357: 0 | T357: =T345/$S$28 -> 0 | U357: =U345/$S$28 -> 0 | V357: =V345/$S$28 -> 0 | W357: =W345/$S$28 -> 0 | X357: =X345/$S$28 -> 0 | Y357: =Y345/$X$28 -> 0 | Z357: =Z345/$X$28 -> 0 | AA357: =AA345/$X$28 -> 0 | AB357: =AB345/$X$28 -> 0 | AC357: =AC345/$X$28 -> 0
A358: =ROW() -> 358 | C358: Cost of Raising Equity
A359: =ROW() -> 359 | C359: Total | I359: =SUM(I349:I358) -> 0 | J359: 0.3482064041 | K359: 0.883171795 | L359: 1.459246445 | M359: 1.837028432 | N359: 0.6043731439 | O359: 1.012259745 | P359: 4.584573788 | Q359: 15.41805548 | R359: 23.17904914 | S359: 25.21035023 | T359: 43.65208558 | U359: 48.61237377 | V359: 49.05237867 | W359: 49.3455203 | X359: 49.70988941 | Y359: 27.1087046 | Z359: 24.8319339 | AA359: 18.0461846 | AB359: 19.25236558 | AC359: 23.25603623
... 1332 more rows

Sheet Load
A1: =Main!A1 -> ERA, DBNGP Tariff Model, Final Decision, April 2021
A2: =MID(CELL("filename",A1),FIND("]",CELL("filename",A1))+1,256) -> \[DBNGP-DBP-AA5-D227177-20210401-Public.XLSM]Load
A3: Ref. | B3: =COLUMN() -> 2 | C3: =COLUMN() -> 3 | D3: =COLUMN() -> 4 | E3: =COLUMN() -> 5 | F3: =COLUMN() -> 6 | G3: =COLUMN() -> 7 | H3: =COLUMN() -> 8 | I3: =COLUMN() -> 9 | J3: =COLUMN() -> 10 | K3: =COLUMN() -> 11 | L3: =COLUMN() -> 12 | M3: =COLUMN() -> 13 | N3: =COLUMN() -> 14 | O3: =COLUMN() -> 15 | P3: =COLUMN() -> 16 | Q3: =COLUMN() -> 17 | R3: =COLUMN() -> 18 | S3: =COLUMN() -> 19 | T3: =COLUMN() -> 20 | U3: =COLUMN() -> 21 | V3: =COLUMN() -> 22 | W3: =COLUMN() -> 23 | X3: =COLUMN() -> 24 | Y3: =COLUMN() -> 25 | Z3: =COLUMN() -> 26 | AA3: =COLUMN() -> 27 | AB3: =COLUMN() -> 28 | AC3: =COLUMN() -> 29 | AD3: =COLUMN() -> 30 | AE3: =COLUMN() -> 31 | AF3: =COLUMN() -> 32 | AG3: =COLUMN() -> 33 | AH3: =COLUMN() -> 34
A5: Regulatory Period | I5: =Inputs!I$5 -> AA1 | J5: =Inputs!J$5 -> AA1 | K5: =Inputs!K$5 -> AA1 | L5: =Inputs!L$5 -> AA1 | M5: =Inputs!M$5 -> AA1 | N5: =Inputs!N$5 -> AA2 | O5: =Inputs!O$5 -> AA2 | P5: =Inputs!P$5 -> AA2 | Q5: =Inputs!Q$5 -> AA2 | R5: =Inputs!R$5 -> AA2 | S5: =Inputs!S$5 -> AA2 | T5: =Inputs!T$5 -> AA3 | U5: =Inputs!U$5 -> AA3 | V5: =Inputs!V$5 -> AA3 | W5: =Inputs!W$5 -> AA3 | X5: =Inputs!X$5 -> AA3 | Y5: =Inputs!Y$5 -> AA4 | Z5: =Inputs!Z$5 -> AA4 | AA5: =Inputs!AA$5 -> AA4 | AB5: =Inputs!AB$5 -> AA4 | AC5: =Inputs!AC$5 -> AA4 | AD5: =Inputs!AD$5 -> AA5 | AE5: =Inputs!AE$5 -> AA5 | AF5: =Inputs!AF$5 -> AA5 | AG5: =Inputs!AG$5 -> AA5 | AH5: =Inputs!AH$5 -> AA5
A6: Year | H6: =Inputs!H$6 -> 1999 | I6: =Inputs!I$6 -> 2000 | J6: =Inputs!J$6 -> 2001 | K6: =Inputs!K$6 -> 2002 | L6: =Inputs!L$6 -> 2003 | M6: =Inputs!M$6 -> 2004 | N6: =Inputs!N$6 -> 2005 | O6: =Inputs!O$6 -> 2006 | P6: =Inputs!P$6 -> 2007 | Q6: =Inputs!Q$6 -> 2008 | R6: =Inputs!R$6 -> 2009 | S6: =Inputs!S$6 -> 2010 | T6: =Inputs!T$6 -> 2011 | U6: =Inputs!U$6 -> 2012 | V6: =Inputs!V$6 -> 2013 | W6: =Inputs!W$6 -> 2014 | X6: =Inputs!X$6 -> 2015 | Y6: =Inputs!Y$6 -> 2016 | Z6: =Inputs!Z$6 -> 2017 | AA6: =Inputs!AA$6 -> 2018 | AB6: =Inputs!AB$6 -> 2019 | AC6: =Inputs!AC$6 -> 2020 | AD6: =Inputs!AD$6 -> 2021 | AE6: =Inputs!AE$6 -> 2022 | AF6: =Inputs!AF$6 -> 2023 | AG6: =Inputs!AG$6 -> 2024 | AH6: =Inputs!AH$6 -> 2025
A7: Days | H7: =Inputs!H$7 -> 365 | I7: =Inputs!I$7 -> 366 | J7: =Inputs!J$7 -> 365 | K7: =Inputs!K$7 -> 365 | L7: =Inputs!L$7 -> 365 | M7: =Inputs!M$7 -> 366 | N7: =Inputs!N$7 -> 365 | O7: =Inputs!O$7 -> 365 | P7: =Inputs!P$7 -> 365 | Q7: =Inputs!Q$7 -> 366 | R7: =Inputs!R$7 -> 365 | S7: =Inputs!S$7 -> 365 | T7: =Inputs!T$7 -> 365 | U7: =Inputs!U$7 -> 366 | V7: =Inputs!V$7 -> 365 | W7: =Inputs!W$7 -> 365 | X7: =Inputs!X$7 -> 365 | Y7: =Inputs!Y$7 -> 366 | Z7: =Inputs!Z$7 -> 365 | AA7: =Inputs!AA$7 -> 365 | AB7: =Inputs!AB$7 -> 365 | AC7: =Inputs!AC$7 -> 366 | AD7: =Inputs!AD$7 -> 365 | AE7: =Inputs!AE$7 -> 365 | AF7: =Inputs!AF$7 -> 365 | AG7: =Inputs!AG$7 -> 366 | AH7: =Inputs!AH$7 -> 365
A8: Project Year | H8: =Inputs!H$8 -> 0 | I8: =Inputs!I$8 -> 1 | J8: =Inputs!J$8 -> 2 | K8: =Inputs!K$8 -> 3 | L8: =Inputs!L$8 -> 4 | M8: =Inputs!M$8 -> 5 | N8: =Inputs!N$8 -> 6 | O8: =Inputs!O$8 -> 7 | P8: =Inputs!P$8 -> 8 | Q8: =Inputs!Q$8 -> 9 | R8: =Inputs!R$8 -> 10 | S8: =Inputs!S$8 -> 11 | T8: =Inputs!T$8 -> 12 | U8: =Inputs!U$8 -> 13 | V8: =Inputs!V$8 -> 14 | W8: =Inputs!W$8 -> 15 | X8: =Inputs!X$8 -> 16 | Y8: =Inputs!Y$8 -> 17 | Z8: =Inputs!Z$8 -> 18 | AA8: =Inputs!AA$8 -> 19 | AB8: =Inputs!AB$8 -> 20 | AC8: =Inputs!AC$8 -> 21 | AD8: =Inputs!AD$8 -> 22 | AE8: =Inputs!AE$8 -> 23 | AF8: =Inputs!AF$8 -> 24 | AG8: =Inputs!AG$8 -> 25 | AH8: =Inputs!AH$8 -> 26
A9: Full Haul Equivalent Capacity and throughput forecast
A10: =ROW() -> 10 | B10: Full Haul
A11: =ROW() -> 11 | C11: MDQ [TJ/d] | N11: 541.99 | O11: 609.803 | P11: 711.157 | Q11: 785.133 | R11: 817.94 | S11: 878.64 | T11: 851.31 | U11: 860.31 | V11: 860.31 | W11: 860.31 | X11: 860.31 | Y11: 736.4300469 | Z11: 725.9800469 | AA11: 724.4800469 | AB11: 722.3600469 | AC11: 722.3600469 | AD11: 606.05 | AE11: 591.05 | AF11: 570.29 | AG11: 503.59 | AH11: 495.49
A12: =ROW() -> 12 | C12: Throughput [TJ/d] | N12: 525.6 | O12: 545.840423 | P12: 599.5140275 | Q12: 582.8725078 | R12: 625.4901504 | S12: 625.6198182 | T12: 703.07362 | U12: 718.81722 | V12: 719.71722 | W12: 725.8464727 | X12: 732.5209612 | Y12: 620.2109161 | Z12: 610.5658459 | AA12: 614.2212229 | AB12: 618.0149871 | AC12: 621.606189 | AD12: 555.283651 | AE12: 540.8231879 | AF12: 521.6223233 | AG12: 465.8524131 | AH12: 459.5534151
A13: =ROW() -> 13 | C13: Load Factor | N13: =N12/N11 -> 0.9697595897 | O13: 0.8951094419 | P13: 0.8430122005 | Q13: 0.7423869686 | R13: 0.7647139771 | S13: 0.7120320247 | T13: =T12/T11 -> 0.8258726198 | U13: =U12/U11 -> 0.8355327963 | V13: =V12/V11 -> 0.8365789309 | W13: =W12/W11 -> 0.8437034007 | X13: =X12/X11 -> 0.8514616374 | Y13: =Y12/Y11 -> 0.8421857836 | Z13: 0.8410229021 | AA13: 0.8478097161 | AB13: 0.8555497909 | AC13: 0.8605212756 | AD13: =AD12/AD11 -> 0.9162340583 | AE13: 0.9150210437 | AF13: 0.9146615288 | AG13: 0.9250628748 | AH13: 0.9274726333
A14: =ROW() -> 14 | B14: FH Equivalent of Part Haul
A15: =ROW() -> 15 | C15: MDQ [TJ/d] | N15: 6.558460172 | O15: 7.133019071 | P15: 15.31132558 | Q15: 16.99170922 | R15: 26.44863896 | S15: 91.04443052 | T15: 30.58656503 | U15: 30.58656503 | V15: 30.58656503 | W15: 30.58656503 | X15: 30.58656503 | Y15: 24.10069189 | Z15: 23.76609932 | AA15: 23.48686594 | AB15: 23.06570797 | AC15: 22.64455 | AD15: 25.96724646 | AE15: 25.38784332 | AF15: 26.86570122 | AG15: 41.06693295 | AH15: 43.08411179
A16: =ROW() -> 16 | C16: Throughput [TJ/d] | N16: 6.121788492 | O16: 5.862333024 | P16: 11.70554153 | Q16: 15.12561481 | R16: 22.08511296 | S16: 23.08825433 | T16: 27.00164392 | U16: 26.98983549 | V16: 26.98983549 | W16: 26.98983549 | X16: 26.98983549 | Y16: 13.66704779 | Z16: 13.84066096 | AA16: 14.3338704 | AB16: 14.3338704 | AC16: 14.33055676 | AD16: 17.74130476 | AE16: 17.85907301 | AF16: 19.5650885 | AG16: 33.99562008 | AH16: 36.32732016
A17: =ROW() -> 17 | C17: Load Factor | N17: =N16/N15 -> 0.9334185665 | O17: 0.8218585939 | P17: 0.7645021636 | Q17: 0.8901761804 | R17: 0.8350188832 | S17: 0.2535932642 | T17: =T16/T15 -> 0.8827942561 | U17: =U16/U15 -> 0.88240819 | V17: =V16/V15 -> 0.88240819 | W17: =W16/W15 -> 0.88240819 | X17: =X16/X15 -> 0.88240819 | Y17: =Y16/Y15 -> 0.5670811383 | Z17: 0.5823699033 | AA17: 0.6102930223 | AB17: 0.6214363945 | AC17: 0.6328479374 | AD17: =AD16/AD15 -> 0.6832185609 | AE17: 0.7034497884 | AF17: 0.7282552701 | AG17: 0.8278100562 | AH17: 0.84317208
A18: =ROW() -> 18 | B18: FH Equivalent of Back Haul
A19: =ROW() -> 19 | C19: MDQ [TJ/d] | N19: 11.6143268 | O19: 13.01039685 | P19: 13.50721708 | Q19: 13.32644282 | R19: 13.32644282 | S19: 13.32644282 | T19: 11.72479937 | U19: 11.72479937 | V19: 11.72479937 | W19: 11.72479937 | X19: 11.72479937 | Y19: 18.2735694 | Z19: 18.40813427 | AA19: 18.40813427 | AB19: 18.40813427 | AC19: 18.40813427 | AD19: 18.08818956 | AE19: 17.28962345 | AF19: 17.28962345 | AG19: 17.8936263 | AH19: 17.8936263
A20: =ROW() -> 20 | C20: Throughput [TJ/d] | N20: 4.389555397 | O20: 9.391935668 | P20: 10.00059821 | Q20: 5.606373101 | R20: 9.971516782 | S20: 10.69197174 | T20: 10.23098813 | U20: 10.23098813 | V20: 10.23098813 | W20: 10.23098813 | X20: 10.23098813 | Y20: 14.88098646 | Z20: 14.87955541 | AA20: 14.87955541 | AB20: 14.87955541 | AC20: 14.88098646 | AD20: 13.89414154 | AE20: 13.27218848 | AF20: 13.27218848 | AG20: 13.27218848 | AH20: 13.27218848
A21: =ROW() -> 21 | C21: Load Factor | N21: =N20/N19 -> 0.377943162 | O21: 0.7218792611 | P21: 0.7403892416 | Q21: 0.4206953933 | R21: 0.7482504461 | S21: 0.8023125063 | T21: =T20/T19 -> 0.8725938769 | U21: =U20/U19 -> 0.8725938769 | V21: =V20/V19 -> 0.8725938769 | W21: =W20/W19 -> 0.8725938769 | X21: =X20/X19 -> 0.8725938769 | Y21: =Y20/Y19 -> 0.8143448131 | Z21: 0.8083141502 | AA21: 0.8083141502 | AB21: 0.8083141502 | AC21: 0.8083918903 | AD21: =AD20/AD19 -> 0.7681333444 | AE21: 0.7676389554 | AF21: 0.7676389554 | AG21: 0.7417271522 | AH21: 0.7417271522
A22: =ROW() -> 22 | B22: Total System
A23: =ROW() -> 23 | C23: MDQ [TJ/d] | N23: =N11+N15+N19 -> 560.162787 | O23: 629.9464159 | P23: 739.9755427 | Q23: 815.451152 | R23: 857.7150818 | S23: 983.0108733 | T23: 893.6213644 | U23: 902.6213644 | V23: 902.6213644 | W23: 902.6213644 | X23: 902.6213644 | Y23: 778.8043082 | Z23: 768.1542805 | AA23: 766.3750471 | AB23: 763.8338892 | AC23: 763.4127312 | AD23: =AD11+AD15+AD19 -> 650.105436 | AE23: 633.7274668 | AF23: 614.4453247 | AG23: 562.5505593 | AH23: 556.4677381
A24: =ROW() -> 24 | C24: Throughput [TJ/d] | N24: 536.1113439 | O24: 561.0946917 | P24: 621.2201672 | Q24: 603.6044957 | R24: 657.5467802 | S24: 659.4000442 | T24: 740.3062521 | U24: 756.0380436 | V24: 756.9380436 | W24: 763.0672963 | X24: 769.7417849 | Y24: 648.7589504 | Z24: 639.2860623 | AA24: 643.4346487 | AB24: 647.2284129 | AC24: 650.8177322 | AD24: =AD12+AD16+AD20 -> 586.9190973 | AE24: 571.9544494 | AF24: 554.4596002 | AG24: 513.1202217 | AH24: 509.1529237
A25: =ROW() -> 25 | C25: Load Factor | N25: =N24/N23 -> 0.9570634757 | O25: 0.8907022526 | P25: 0.8395144588 | Q25: 0.7402092623 | R25: 0.7666261142 | S25: 0.6707962873 | T25: =T24/T23 -> 0.8284339224 | U25: =U24/U23 -> 0.8376026465 | V25: =V24/V23 -> 0.8385997423 | W25: =W24/W23 -> 0.8453902449 | X25: =X24/X23 -> 0.8527848057 | Y25: =Y24/Y23 -> 0.833019211 | Z25: 0.8322365422 | AA25: 0.8395819399 | AB25: 0.8473418398 | AC25: 0.8525109756 | AD25: =AD24/AD23 -> 0.9028060139 | AE25: 0.9025243174 | AF25: 0.9023741869 | AG25: 0.9121317422 | AH25: 0.9149729425
A26: =ROW() -> 26
A27: =ROW() -> 27 | C27: MDQ [TJ/year] | N27: =N23*N$7 -> 204459.4172 | O27: =O23*O$7 -> 229930.4418 | P27: 270091.0731 | Q27: 298455.1216 | R27: 313066.0048 | S27: 358798.9688 | T27: 326171.798 | U27: 330359.4194 | V27: 329456.798 | W27: 329456.798 | X27: 329456.798 | Y27: 285042.3768 | Z27: 280376.3124 | AA27: 279726.8922 | AB27: 278799.3695 | AC27: 279409.0596 | AD27: =AD23*AD$7 -> 237288.4841 | AE27: 231310.5254 | AF27: 224272.5435 | AG27: 205893.5047 | AH27: 203110.7244
A28: =ROW() -> 28 | C28: Throughput [TJ/year] | N28: =N24*N$7 -> 195680.6405 | O28: 204799.5625 | P28: 226745.361 | Q28: 220919.2454 | R28: 240004.5748 | S28: 240681.0161 | T28: 270211.782 | U28: 276709.924 | V28: 276282.3859 | W28: 278519.5631 | X28: 280955.7515 | Y28: 237445.7758 | Z28: 233339.4127 | AA28: 234853.6468 | AB28: 236238.3707 | AC28: 238199.29 | AD28: =AD24*AD$7 -> 214225.4705 | AE28: 208763.374 | AF28: 202377.7541 | AG28: 187802.0011 | AH28: 185840.8172
A29: =ROW() -> 29
E31: ERA km
E33: 1399

Sheet CoS_Tariff_Revenue
A1: =Main!A1 -> ERA, DBNGP Tariff Model, Final Decision, April 2021
A2: =MID(CELL("filename",A1),FIND("]",CELL("filename",A1))+1,256) -> \[DBNGP-DBP-AA5-D227177-20210401-Public.XLSM]CoS_Tariff_Revenue
A3: Ref. | B3: =COLUMN() -> 2 | C3: =COLUMN() -> 3 | D3: =COLUMN() -> 4 | E3: =COLUMN() -> 5 | F3: =COLUMN() -> 6 | G3: =COLUMN() -> 7 | H3: =COLUMN() -> 8 | I3: =COLUMN() -> 9 | J3: =COLUMN() -> 10 | K3: =COLUMN() -> 11 | L3: =COLUMN() -> 12 | M3: =COLUMN() -> 13 | N3: =COLUMN() -> 14 | O3: =COLUMN() -> 15 | P3: =COLUMN() -> 16 | Q3: =COLUMN() -> 17 | R3: =COLUMN() -> 18 | S3: =COLUMN() -> 19 | T3: =COLUMN() -> 20 | U3: =COLUMN() -> 21 | V3: =COLUMN() -> 22 | W3: =COLUMN() -> 23 | X3: =COLUMN() -> 24 | Y3: =COLUMN() -> 25 | Z3: =COLUMN() -> 26 | AA3: =COLUMN() -> 27 | AB3: =COLUMN() -> 28 | AC3: =COLUMN() -> 29 | AD3: =COLUMN() -> 30 | AE3: =COLUMN() -> 31 | AH3: =COLUMN() -> 34 | AI3: =COLUMN() -> 35 | AJ3: =COLUMN() -> 36 | AK3: =COLUMN() -> 37 | AL3: =COLUMN() -> 38
A5: Regulatory Period | I5: =Inputs!I$5 -> AA1 | J5: =Inputs!J$5 -> AA1 | K5: =Inputs!K$5 -> AA1 | L5: =Inputs!L$5 -> AA1 | M5: =Inputs!M$5 -> AA1 | N5: =Inputs!N$5 -> AA2 | O5: =Inputs!O$5 -> AA2 | P5: =Inputs!P$5 -> AA2 | Q5: =Inputs!Q$5 -> AA2 | R5: =Inputs!R$5 -> AA2 | S5: =Inputs!S$5 -> AA2 | T5: =Inputs!T$5 -> AA3 | U5: =Inputs!U$5 -> AA3 | V5: =Inputs!V$5 -> AA3 | W5: =Inputs!W$5 -> AA3 | X5: =Inputs!X$5 -> AA3 | Y5: =Z5 -> AA4 | Z5: =AA5 -> AA4 | AA5: =Inputs!Y$5 -> AA4 | AB5: =Inputs!Z$5 -> AA4 | AC5: =Inputs!AA$5 -> AA4 | AD5: =Inputs!AB$5 -> AA4 | AE5: =Inputs!AC$5 -> AA4 | AF5: 1/1/2021 to | AG5: =AF6+1 -> 2021-07-01 | AH5: =Inputs!AD$5 -> AA5 | AI5: =Inputs!AE$5 -> AA5 | AJ5: =Inputs!AF$5 -> AA5 | AK5: =Inputs!AG$5 -> AA5 | AL5: =Inputs!AH$5 -> AA5
A6: Year | H6: =Inputs!H$6 -> 1999 | I6: =Inputs!I$6 -> 2000 | J6: =Inputs!J$6 -> 2001 | K6: =Inputs!K$6 -> 2002 | L6: =Inputs!L$6 -> 2003 | M6: =Inputs!M$6 -> 2004 | N6: =Inputs!N$6 -> 2005 | O6: =Inputs!O$6 -> 2006 | P6: =Inputs!P$6 -> 2007 | Q6: =Inputs!Q$6 -> 2008 | R6: =Inputs!R$6 -> 2009 | S6: =Inputs!S$6 -> 2010 | T6: =Inputs!T$6 -> 2011 | U6: =Inputs!U$6 -> 2012 | V6: =Inputs!V$6 -> 2013 | W6: =Inputs!W$6 -> 2014 | X6: =Inputs!X$6 -> 2015 | Y6: =Z6 -> 2016 | Z6: =AA6 -> 2016 | AA6: =Inputs!Y$6 -> 2016 | AB6: =Inputs!Z$6 -> 2017 | AC6: =Inputs!AA$6 -> 2018 | AD6: =Inputs!AB$6 -> 2019 | AE6: =Inputs!AC$6 -> 2020 | AF6: 2021-06-30 | AG6: 2021-12-31 | AH6: =Inputs!AD$6 -> 2021 | AI6: =Inputs!AE$6 -> 2022 | AJ6: =Inputs!AF$6 -> 2023 | AK6: =Inputs!AG$6 -> 2024 | AL6: =Inputs!AH$6 -> 2025
A7: Days | H7: =Inputs!H$7 -> 365 | I7: =Inputs!I$7 -> 366 | J7: =Inputs!J$7 -> 365 | K7: =Inputs!K$7 -> 365 | L7: =Inputs!L$7 -> 365 | M7: =Inputs!M$7 -> 366 | N7: =Inputs!N$7 -> 365 | O7: =Inputs!O$7 -> 365 | P7: =Inputs!P$7 -> 365 | Q7: =Inputs!Q$7 -> 366 | R7: =Inputs!R$7 -> 365 | S7: =Inputs!S$7 -> 365 | T7: =Inputs!T$7 -> 365 | U7: =Inputs!U$7 -> 366 | V7: =Inputs!V$7 -> 365 | W7: =Inputs!W$7 -> 365 | X7: =Inputs!X$7 -> 365 | Y7: =DATEVALUE("1/7/2016")-DATEVALUE("1/1/2016") -> 182 | Z7: =AA7-Y7 -> 184 | AA7: =Inputs!Y$7 -> 366 | AB7: =Inputs!Z$7 -> 365 | AC7: =Inputs!AA$7 -> 365 | AD7: =Inputs!AB$7 -> 365 | AE7: =Inputs!AC$7 -> 366 | AF7: =AF6-DATEVALUE("31/12/2020") -> 181 | AG7: =AG6-AF6 -> 184 | AH7: =Inputs!AD$7 -> 365 | AI7: =Inputs!AE$7 -> 365 | AJ7: =Inputs!AF$7 -> 365 | AK7: =Inputs!AG$7 -> 366 | AL7: =Inputs!AH$7 -> 365
A8: Project Year | H8: =Inputs!H$8 -> 0 | I8: =Inputs!I$8 -> 1 | J8: =Inputs!J$8 -> 2 | K8: =Inputs!K$8 -> 3 | L8: =Inputs!L$8 -> 4 | M8: =Inputs!M$8 -> 5 | N8: =Inputs!N$8 -> 6 | O8: =Inputs!O$8 -> 7 | P8: =Inputs!P$8 -> 8 | Q8: =Inputs!Q$8 -> 9 | R8: =Inputs!R$8 -> 10 | S8: =Inputs!S$8 -> 11 | T8: =Inputs!T$8 -> 12 | U8: =Inputs!U$8 -> 13 | V8: =Inputs!V$8 -> 14 | W8: =Inputs!W$8 -> 15 | X8: =Inputs!X$8 -> 16 | AA8: =Inputs!Y$8 -> 17 | AB8: =Inputs!Z$8 -> 18 | AC8: =Inputs!AA$8 -> 19 | AD8: =Inputs!AB$8 -> 20 | AE8: =Inputs!AC$8 -> 21 | AH8: =Inputs!AD$8 -> 22 | AI8: =Inputs!AE$8 -> 23 | AJ8: =Inputs!AF$8 -> 24 | AK8: =Inputs!AG$8 -> 25 | AL8: =Inputs!AH$8 -> 26
A9: Financial Parameters
A10: =ROW() -> 10 | B10: Modelled Inflation
A11: =ROW() -> 11 | C11: Inflation | I11: =Inputs!I$27 -> 0.05801772764 | J11: =Inputs!J$27 -> 0.03122619954 | K11: =Inputs!K$27 -> 0.03028064993 | L11: =Inputs!L$27 -> 0.02365591398 | M11: =Inputs!M$27 -> 0.02591036415 | N11: =Inputs!N$27 -> 0.02798634812 | O11: =Inputs!O$27 -> 0.03253652058 | P11: =Inputs!P$27 -> 0.02958199357 | Q11: =Inputs!Q$27 -> 0.03685196752 | R11: =Inputs!R$27 -> 0.02108433735 | S11: =Inputs!S$27 -> 0.02654867257 | T11: =Inputs!T$27 -> 0.03103448276 | U11: =Inputs!U$27 -> 0.02204408818 | V11: =Inputs!V$27 -> 0.02745098039 | W11: =Inputs!W$27 -> 0.01717557252 | X11: =Inputs!X$27 -> 0.01688555347 | AA11: =Inputs!Y$27 -> 0.0147601476 | AB11: =Inputs!Z$27 -> 0.01909090909 | AC11: =Inputs!AA$27 -> 0.0178412132 | AD11: =Inputs!AB$27 -> 0.01840490798 | AE11: =Inputs!AC$27 -> 0.0115 | AH11: =Inputs!AD$27 -> 0.0115 | AI11: =Inputs!AE$27 -> 0.0115 | AJ11: =Inputs!AF$27 -> 0.0115 | AK11: =Inputs!AG$27 -> 0.0115 | AL11: =Inputs!AH$27 -> 0.0115
A12: =ROW() -> 12 | C12: =Inputs!C28 -> Inflation Factor (convert 31/12/2019 $ to nominal $) | I12: =Inputs!I$28 -> 0.6285888897 | J12: =Inputs!J$28 -> 0.6482173318 | K12: =Inputs!K$28 -> 0.6678457739 | L12: =Inputs!L$28 -> 0.6836442761 | M12: =Inputs!M$28 -> 0.7013577482 | N12: =Inputs!N$28 -> 0.7209861903 | O12: =Inputs!O$28 -> 0.7444445724 | P12: =Inputs!P$28 -> 0.7664667269 | Q12: =Inputs!Q$28 -> 0.7947125338 | R12: =Inputs!R$28 -> 0.811468521 | S12: =Inputs!S$28 -> 0.8330119331 | T12: =Inputs!T$28 -> 0.8588640275 | U12: =Inputs!U$28 -> 0.8777969019 | V12: =Inputs!V$28 -> 0.9018932874 | W12: =Inputs!W$28 -> 0.917383821 | X12: =Inputs!X$28 -> 0.9328743546 | Y12: =AA12 -> 0.9466437177 | Z12: =AA12 -> 0.9466437177 | AA12: =Inputs!Y$28 -> 0.9466437177 | AB12: =Inputs!Z$28 -> 0.9647160069 | AC12: =Inputs!AA$28 -> 0.9819277108 | AD12: =Inputs!AB$28 -> 1 | AE12: =Inputs!AC$28 -> 1.0115 | AF12: =$AH12 -> 1.02313225 | AG12: =$AH12 -> 1.02313225 | AH12: =Inputs!AD$28 -> 1.02313225 | AI12: =Inputs!AE$28 -> 1.034898271 | AJ12: =Inputs!AF$28 -> 1.046799601 | AK12: =Inputs!AG$28 -> 1.058837796 | AL12: =Inputs!AH$28 -> 1.071014431
A13: =ROW() -> 13 | C13: =Inputs!C29 -> Inflation Factor (convert nominal to real 31/12/2019 $) | I13: =Inputs!I$29 -> 1.590864898 | J13: =Inputs!J$29 -> 1.542692475 | K13: =Inputs!K$29 -> 1.497351693 | L13: =Inputs!L$29 -> 1.462749027 | M13: =Inputs!M$29 -> 1.425805878 | N13: =Inputs!N$29 -> 1.386989118 | O13: =Inputs!O$29 -> 1.343283351 | P13: =Inputs!P$29 -> 1.304688077 | Q13: =Inputs!Q$29 -> 1.258316633 | R13: =Inputs!R$29 -> 1.232333694 | S13: =Inputs!S$29 -> 1.200462995 | T13: =Inputs!T$29 -> 1.164328657 | U13: =Inputs!U$29 -> 1.139215686 | V13: =Inputs!V$29 -> 1.108778626 | W13: =Inputs!W$29 -> 1.090056285 | X13: =Inputs!X$29 -> 1.07195572 | Y13: =AA13 -> 1.056363636 | Z13: =AA13 -> 1.056363636 | AA13: =Inputs!Y$29 -> 1.056363636 | AB13: =Inputs!Z$29 -> 1.036574487 | AC13: =Inputs!AA$29 -> 1.018404908 | AD13: =Inputs!AB$29 -> 1 | AE13: =Inputs!AC$29 -> 0.9886307464 | AF13: =$AH13 -> 0.9773907528 | AG13: =$AH13 -> 0.9773907528 | AH13: =Inputs!AD$29 -> 0.9773907528 | AI13: =Inputs!AE$29 -> 0.9662785494 | AJ13: =Inputs!AF$29 -> 0.9552926836 | AK13: =Inputs!AG$29 -> 0.9444317188 | AL13: =Inputs!AH$29 -> 0.9336942351
A14: =ROW() -> 14 | B14: Real Post Tax WACC
A15: =ROW() -> 15 | C15: WACC | AE15: =Inputs!AC$34 -> 0.02365694513 | AH15: =Inputs!AD$34 -> 0.02365694513 | AI15: =Inputs!AE$34 -> 0.02365694513 | AJ15: =Inputs!AF$34 -> 0.02365694513 | AK15: =Inputs!AG$34 -> 0.02365694513 | AL15: =Inputs!AH$34 -> 0.02365694513
A16: =ROW() -> 16 | C16: Discounting Factor | AD16: =Inputs!AB$35 -> 1 | AE16: =Inputs!AC$35 -> 0.9768897723 | AF16: =$AH16 -> 0.9543136271 | AG16: =$AH16 -> 0.9543136271 | AH16: =Inputs!AD$35 -> 0.9543136271 | AI16: =Inputs!AE$35 -> 0.9322592219 | AJ16: =Inputs!AF$35 -> 0.910714499 | AK16: =Inputs!AG$35 -> 0.8896676795 | AL16: =Inputs!AH$35 -> 0.8691072568
A17: =ROW() -> 17 | B17: Nominal Post Tax WACC
A18: =ROW() -> 18 | C18: WACC | AE18: =Inputs!AC$37 -> 0.035429 | AH18: =Inputs!AD$37 -> 0.035429 | AI18: =Inputs!AE$37 -> 0.035429 | AJ18: =Inputs!AF$37 -> 0.035429 | AK18: =Inputs!AG$37 -> 0.035429 | AL18: =Inputs!AH$37 -> 0.035429
A19: =ROW() -> 19 | C19: Discounting Factor | AD19: =Inputs!AB$38 -> 1 | AE19: =Inputs!AC$38 -> 0.9657832647 | AF19: =$AH19 -> 0.9327373144 | AG19: =$AH19 -> 0.9327373144 | AH19: =Inputs!AD$38 -> 0.9327373144 | AI19: =Inputs!AE$38 -> 0.9008220886 | AJ19: =Inputs!AF$38 -> 0.8699988977 | AK19: =Inputs!AG$38 -> 0.8402303757 | AL19: =Inputs!AH$38 -> 0.8114804354
A20: =ROW() -> 20
A21: ="Capital Base [m$ "&Inputs!$E$28&"]" -> Capital Base [m$ 31/12/2019]
A22: =ROW() -> 22 | B22: Asset Account
A23: =ROW() -> 23 | C23: Opening Value | I23: =Asset_NoReclass!I29 -> 2608.90306 | J23: =Asset_NoReclass!J29 -> 2553.390658 | K23: =Asset_NoReclass!K29 -> 2494.521683 | L23: =Asset_NoReclass!L29 -> 2431.956686 | M23: =Asset_NoReclass!M29 -> 2368.068156 | N23: =Asset_NoReclass!N29 -> 2307.484274 | O23: =Asset_NoReclass!O29 -> 2308.471125 | P23: =Asset_NoReclass!P29 -> 2761.204847 | Q23: =Asset_NoReclass!Q29 -> 2700.988376 | R23: =Asset_NoReclass!R29 -> 3412.62029 | S23: =Asset_NoReclass!S29 -> 3328.511278 | T23: =Asset_NoReclass!T29 -> 4020.677942 | U23: =Asset_NoReclass!U29 -> 4080.461855 | V23: =Asset_NoReclass!V29 -> 4004.345511 | W23: =Asset_NoReclass!W29 -> 3915.351121 | X23: =Asset_NoReclass!X29 -> 3814.919396 | AA23: =Asset_NoReclass!Y29 -> 3726.31782 | AB23: =Asset_NoReclass!Z29 -> 3639.303541 | AC23: =Asset_NoReclass!AA29 -> 3555.311758 | AD23: =Asset_NoReclass!AB29 -> 3469.130585 | AE23: =ProposedApproach!AC29 -> 3393.130089 | AH23: =ProposedApproach!AD29 -> 3331.497475 | AI23: =ProposedApproach!AE29 -> 3201.960968 | AJ23: =ProposedApproach!AF29 -> 3122.978852 | AK23: =ProposedApproach!AG29 -> 3028.896158 | AL23: =ProposedApproach!AH29 -> 2944.803912
A24: =ROW() -> 24 | C24: Capex | I24: =Asset_NoReclass!I30 -> 8.048978154 | J24: =Asset_NoReclass!J30 -> 5.040611844 | K24: =Asset_NoReclass!K30 -> 1.879554216 | L24: =Asset_NoReclass!L30 -> 1.13209695 | M24: =Asset_NoReclass!M30 -> 4.814526422 | N24: =Asset_NoReclass!N30 -> 72.35976823 | O24: =Asset_NoReclass!O30 -> 516.1540624 | P24: =Asset_NoReclass!P30 -> 6.818227898 | Q24: =Asset_NoReclass!Q30 -> 789.4898201 | R24: =Asset_NoReclass!R30 -> 1.5795629 | S24: =Asset_NoReclass!S30 -> 742.9262251 | T24: =Asset_NoReclass!T30 -> 170.3195658 | U24: =Asset_NoReclass!U30 -> 35.05240507 | V24: =Asset_NoReclass!V30 -> 23.03399318 | W24: =Asset_NoReclass!W30 -> 13.42431892 | X24: =Asset_NoReclass!X30 -> 24.0774892 | AA24: =Asset_NoReclass!Y30 -> 18.33823878 | AB24: =Asset_NoReclass!Z30 -> 24.0231836 | AC24: =Asset_NoReclass!AA30 -> 22.57230732 | AD24: =Asset_NoReclass!AB30 -> 26.41905884 | AE24: =ProposedApproach!AC30 -> 30.9433036 | AH24: =ProposedApproach!AD30 -> 49.55667738 | AI24: =ProposedApproach!AE30 -> 35.0587286 | AJ24: =ProposedApproach!AF30 -> 21.77968506 | AK24: =ProposedApproach!AG30 -> 32.04667616 | AL24: =ProposedApproach!AH30 -> 20.71784905
A25: =ROW() -> 25 | C25: Depreciation | I25: =Asset_NoReclass!I32 -> -63.56138005 | J25: =Asset_NoReclass!J32 -> -63.90958646 | K25: =Asset_NoReclass!K32 -> -64.44455185 | L25: =Asset_NoReclass!L32 -> -65.0206265 | M25: =Asset_NoReclass!M32 -> -65.39840848 | N25: =Asset_NoReclass!N32 -> -63.01245344 | O25: =Asset_NoReclass!O32 -> -63.42034004 | P25: =Asset_NoReclass!P32 -> -66.99265409 | Q25: =Asset_NoReclass!Q32 -> -77.82613578 | R25: =Asset_NoReclass!R32 -> -85.58712944 | S25: =Asset_NoReclass!S32 -> -87.61843053 | T25: =Asset_NoReclass!T32 -> -105.3883301 | U25: =Asset_NoReclass!U32 -> -110.7457826 | V25: =Asset_NoReclass!V32 -> -111.1857875 | W25: =Asset_NoReclass!W32 -> -111.4789291 | X25: =Asset_NoReclass!X32 -> -111.8432982 | AA25: =Asset_NoReclass!Y32 -> -105.3525174 | AB25: =Asset_NoReclass!Z32 -> -108.0149664 | AC25: =Asset_NoReclass!AA32 -> -108.7534806 | AD25: =Asset_NoReclass!AB32 -> -102.4195553 | AE25: =ProposedApproach!AC32 -> -92.5759175 | AH25: =ProposedApproach!AD32 -> -179.0931836 | AI25: =ProposedApproach!AE32 -> -114.0408449 | AJ25: =ProposedApproach!AF32 -> -115.8623792 | AK25: =ProposedApproach!AG32 -> -116.1389217 | AL25: =ProposedApproach!AH32 -> -117.4363995
A26: =ROW() -> 26 | C26: Asset Adjustment, Redundant Assets & Asset Disposal | I26: =Asset_NoReclass!I31 -> 0 | J26: =Asset_NoReclass!J31 -> 0 | K26: =Asset_NoReclass!K31 -> 0 | L26: =Asset_NoReclass!L31 -> 0 | M26: =Asset_NoReclass!M31 -> 0 | N26: =Asset_NoReclass!N31 -> -8.360463955 | O26: =Asset_NoReclass!O31 -> 0 | P26: =Asset_NoReclass!P31 -> -0.04204545337 | Q26: =Asset_NoReclass!Q31 -> -0.03177033202 | R26: =Asset_NoReclass!R31 -> -0.1014450127 | S26: =Asset_NoReclass!S31 -> -0.01329458569 | T26: =Asset_NoReclass!T31 -> -5.147322122 | U26: =Asset_NoReclass!U31 -> -0.4229668787 | V26: =Asset_NoReclass!V31 -> -0.8425955491 | W26: =Asset_NoReclass!W31 -> -2.377115297 | X26: =Asset_NoReclass!X31 -> -0.8357667587 | AA26: =Asset_NoReclass!Y31 -> 0 | AB26: =Asset_NoReclass!Z31 -> 0 | AC26: =Asset_NoReclass!AA31 -> 0 | AD26: =Asset_NoReclass!AB31 -> 0 | AE26: =ProposedApproach!AC31 -> 0 | AH26: =ProposedApproach!AD31 -> 0 | AI26: =ProposedApproach!AE31 -> 0 | AJ26: =ProposedApproach!AF31 -> 0 | AK26: =ProposedApproach!AG31 -> 0 | AL26: =ProposedApproach!AH31 -> 0
A27: =ROW() -> 27 | C27: Closing Value | I27: =Asset_NoReclass!I33 -> 2553.390658 | J27: =Asset_NoReclass!J33 -> 2494.521683 | K27: =Asset_NoReclass!K33 -> 2431.956686 | L27: =Asset_NoReclass!L33 -> 2368.068156 | M27: =Asset_NoReclass!M33 -> 2307.484274 | N27: =Asset_NoReclass!N33 -> 2308.471125 | O27: =Asset_NoReclass!O33 -> 2761.204847 | P27: =Asset_NoReclass!P33 -> 2700.988376 | Q27: =Asset_NoReclass!Q33 -> 3412.62029 | R27: =Asset_NoReclass!R33 -> 3328.511278 | S27: =Asset_NoReclass!S33 -> 4020.677942 | T27: =Asset_NoReclass!T33 -> 4080.461855 | U27: =Asset_NoReclass!U33 -> 4004.345511 | V27: =Asset_NoReclass!V33 -> 3915.351121 | W27: =Asset_NoReclass!W33 -> 3814.919396 | X27: =Asset_NoReclass!X33 -> 3726.31782 | AA27: =Asset_NoReclass!Y33 -> 3639.303541 | AB27: =Asset_NoReclass!Z33 -> 3555.311758 | AC27: =Asset_NoReclass!AA33 -> 3469.130585 | AD27: =Asset_NoReclass!AB33 -> 3393.130089 | AE27: =ProposedApproach!AC33 -> 3331.497475 | AH27: =ProposedApproach!AD33 -> 3201.960968 | AI27: =ProposedApproach!AE33 -> 3122.978852 | AJ27: =ProposedApproach!AF33 -> 3028.896158 | AK27: =ProposedApproach!AG33 -> 2944.803912 | AL27: =ProposedApproach!AH33 -> 2848.085362
A28: Capital Base [m$ nominal]
A29: =ROW() -> 29 | B29: Asset Account
A30: =ROW() -> 30 | C30: Opening Value (start period) | I30: =H36 -> 0 | J30: 1605.032999 | K30: 1616.99219 | L30: 1624.171995 | M30: 1618.91624 | N30: 1618.371975 | O30: 1664.375802 | P30: 2055.563962 | Q30: 2070.21772 | R30: 2712.052118 | S30: 2700.982124 | T30: 3349.272704 | U30: 3504.561903 | V30: 3515.002084 | W30: 3531.228894 | X30: 3499.745332 | AA30: =X36 -> 3476.186331 | AB30: =AA36 -> 3445.123834 | AC30: =AB36 -> 3429.866163 | AD30: =AC36 -> 3406.435454 | AE30: =AD36 -> 3393.130089 | AH30: =AE36 -> 3369.809696 | AI30: =AH36 -> 3276.02953 | AJ30: 3231.965414 | AK30: 3170.64729 | AL30: 3118.069686
A31: =ROW() -> 31 | C31: Inflation on Opening Value (start period) | I31: =I30*I$11 -> 0 | J31: 50.11908069 | K31: 48.96357443 | L31: 38.421273 | M31: 41.94670931 | N31: 45.29232147 | O31: 54.15299754 | P31: 60.8076799 | Q31: 76.29159617 | R31: 57.18182175 | S31: 71.70749002 | T31: 103.942946 | U31: 77.25487162 | V31: 96.49025328 | W31: 60.65087795 | X31: 59.09513694 | AA31: =AA30*AA$11 -> 51.30902334 | AB31: =AB30*AB$11 -> 65.77054592 | AC31: =AC30*AC$11 -> 61.19297346 | AD31: =AD30*AD$11 -> 62.69513106 | AE31: =AE30*AE$11 -> 39.02099602 | AH31: =AH30*AH$11 -> 38.7528115 | AI31: 37.6743396 | AJ31: 37.16760226 | AK31: 36.46244383 | AL31: 35.85780138
A32: =ROW() -> 32 | C32: Opening Value (end period) | I32: =SUM(I30:I31) -> 0 | J32: 1655.152079 | K32: 1665.955764 | L32: 1662.593268 | M32: 1660.86295 | N32: 1663.664296 | O32: 1718.528799 | P32: 2116.371642 | Q32: 2146.509316 | R32: 2769.233939 | S32: 2772.689614 | T32: 3453.21565 | U32: 3581.816775 | V32: 3611.492337 | W32: 3591.879772 | X32: 3558.840469 | AA32: =SUM(AA30:AA31) -> 3527.495354 | AB32: =SUM(AB30:AB31) -> 3510.89438 | AC32: =SUM(AC30:AC31) -> 3491.059136 | AD32: =SUM(AD30:AD31) -> 3469.130585 | AE32: =SUM(AE30:AE31) -> 3432.151085 | AH32: =SUM(AH30:AH31) -> 3408.562507 | AI32: 3313.70387 | AJ32: 3269.133016 | AK32: 3207.109733 | AL32: 3153.927487
A33: =ROW() -> 33 | C33: Capex | I33: =I24*I$12 -> 5.059498241 | J33: 3.26741196 | K33: 1.25525234 | L33: 0.7739516 | M33: 3.37670541 | N33: 52.17039363 | O33: 384.2480902 | P33: 5.22594482 | Q33: 627.4174554 | R33: 1.28176557 | S33: 618.8664109 | T33: 146.2813483 | U33: 30.76889257 | V33: 20.77420383 | W33: 12.31525298 | X33: 22.4612722 | AA33: =AA24*AA$12 -> 17.35977853 | AB33: 23.17554976 | AC33: 22.16437406 | AD33: 26.41905884 | AE33: 31.2991516 | AH33: =AH24*AH$12 -> 50.70303483 | AI33: 36.28221761 | AJ33: 22.79896563 | AK33: 33.93223197 | AL33: 22.18911531
A34: =ROW() -> 34 | C34: Depreciation | I34: =I25*I$12 -> -39.95397732 | J34: -41.42730161 | K34: -43.0390216 | L34: -44.45097913 | M34: -45.86768051 | N34: -45.43110875 | O34: -47.21292792 | P34: -51.34764031 | Q34: -61.84940556 | R34: -69.45126134 | S34: -72.98719818 | T34: -90.51424561 | U34: -97.21230487 | V34: -100.2777154 | W34: -102.268966 | X34: -104.3357447 | AA34: -99.73129878 | AB34: -104.2037671 | AC34: -106.7880562 | AD34: -102.4195553 | AE34: -93.64054056 | AH34: =AH25*AH$12 -> -183.2360119 | AI34: -118.0206732 | AJ34: -121.2846923 | AK34: -122.97228 | AL34: -125.7760786
A35: =ROW() -> 35 | C35: Asset Adjustment, Redundant Assets & Asset Disposal | I35: =I26*I$12 -> 0 | J35: 0 | K35: 0 | L35: 0 | M35: 0 | N35: -6.027779056 | O35: 0 | P35: -0.03222644103 | Q35: -0.02524828106 | R35: -0.08231943446 | S35: -0.01107454853 | T35: -4.420849809 | U35: -0.3712790157 | V35: -0.7599312697 | W35: -2.180727114 | X35: -0.7796653756 | AA35: 0 | AB35: 0 | AC35: 0 | AD35: 0 | AE35: 0 | AH35: =AH26*AH$12 -> 0 | AI35: 0 | AJ35: 0 | AK35: 0 | AL35: 0
A36: =ROW() -> 36 | C36: Closing Value | I36: =I27*I$12 -> 1605.032999 | J36: 1616.99219 | K36: 1624.171995 | L36: 1618.91624 | M36: 1618.371975 | N36: 1664.375802 | O36: 2055.563962 | P36: 2070.21772 | Q36: 2712.052118 | R36: 2700.982124 | S36: 3349.272704 | T36: 3504.561903 | U36: 3515.002084 | V36: 3531.228894 | W36: 3499.745332 | X36: 3476.186331 | AA36: 3445.123834 | AB36: 3429.866163 | AC36: 3406.435454 | AD36: 3393.130089 | AE36: 3369.809696 | AH36: =AH27*AH$12 -> 3276.02953 | AI36: 3231.965414 | AJ36: 3170.64729 | AK36: 3118.069686 | AL36: 3050.340524
A37: =ROW() -> 37
A38: Cost of Service, Allowable Revenue [m$ nominal]
A39: =ROW() -> 39 | B39: Cost of Service | F39: PV AA5 | H39: based nominal post tax WACC
A40: =ROW() -> 40 | C40: OPEX
A41: =ROW() -> 41 | C41: Opex; System Use Gas | F41: =SUMPRODUCT($AF$19:$AL$19,AF41:AL41) -> 78.05605861 | AH41: =Inputs!AD$1884 -> 20.85777095 | AI41: =Inputs!AE$1884 -> 20.24191053 | AJ41: =Inputs!AF$1884 -> 19.26105376 | AK41: =Inputs!AG$1884 -> 14.5458372 | AL41: =Inputs!AH$1884 -> 14.03352063
A42: =ROW() -> 42 | C42: Opex; Other Expenses | F42: 311.5292427 | AH42: =Inputs!AD$1885-AH41 -> 73.48893409 | AI42: =Inputs!AE$1885-AI41 -> 72.37886279 | AJ42: =Inputs!AF$1885-AJ41 -> 73.55558757 | AK42: =Inputs!AG$1885-AK41 -> 68.09508528 | AL42: =Inputs!AH$1885-AL41 -> 69.71708948
A43: =ROW() -> 43 | C43: Depreciation | F43: 588.1341157 | AH43: =-AH$34 -> 183.2360119 | AI43: 118.0206732 | AJ43: 121.2846923 | AK43: 122.97228 | AL43: 125.7760786
A44: =ROW() -> 44 | C44: Inflationary Gains on RAB | F44: -162.1546008 | AH44: =-AH$31 -> -38.7528115 | AI44: -37.6743396 | AJ44: -37.16760226 | AK44: -36.46244383 | AL44: -35.85780138
A45: =ROW() -> 45 | C45: Return on Asset | F45: 499.5630739 | AH45: =AH$18*AH$30 -> 119.3889877 | AI45: 116.0664502 | AJ45: 114.5053027 | AK45: 112.3328628 | AL45: 110.4700909
A46: =ROW() -> 46 | C46: Tax | F46: 68.05048307 | AH46: =-Tax_CoRE!AD45 -> 36.1440478 | AI46: =-Tax_CoRE!AE45 -> 9.517957271 | AJ46: =-Tax_CoRE!AF45 -> 9.753287279 | AK46: =-Tax_CoRE!AG45 -> 10.33510946 | AL46: =-Tax_CoRE!AH45 -> 10.59097963
A47: =ROW() -> 47 | C47: Imputation Credits | F47: -34.02524153 | AH47: =-Tax_CoRE!AD46 -> -18.0720239 | AI47: =-Tax_CoRE!AE46 -> -4.758978636 | AJ47: =-Tax_CoRE!AF46 -> -4.876643639 | AK47: =-Tax_CoRE!AG46 -> -5.167554731 | AL47: =-Tax_CoRE!AH46 -> -5.295489813
A48: =ROW() -> 48 | C48: Over Depreciation | F48: 0
A49: =ROW() -> 49 | C49: Cost of Service | F49: 1349.153132 | AH49: =SUM(AH40:AH48) -> 376.2909171 | AI49: 293.7925358 | AJ49: 296.3156777 | AK49: 286.6511762 | AL49: 289.4344681
A50: =ROW() -> 50 | C50: less non-reference cost of service | D50: 0.01 | F50: -13.49153132 | AH50: =-AH49*$D50 -> -3.762909171 | AI50: -2.937925358 | AJ50: -2.963156777 | AK50: -2.866511762 | AL50: -2.894344681
A51: =ROW() -> 51 | C51: add back SUG for non-reference cost of service | D51: =D$50 -> 0.01 | F51: 0.7805605861 | AH51: =$D50*Inputs!AD$1844 -> 0.2085777095 | AI51: =$D50*Inputs!AE$1844 -> 0.2024191053 | AJ51: =$D50*Inputs!AF$1844 -> 0.1926105376 | AK51: =$D50*Inputs!AG$1844 -> 0.145458372 | AL51: =$D50*Inputs!AH$1844 -> 0.1403352063
A52: =ROW() -> 52 | C52: Total Unsmooth Revenue | F52: 1336.442161 | AH52: =SUM(AH49:AH51) -> 372.7365856 | AI52: 291.0570295 | AJ52: 293.5451315 | AK52: 283.9301228 | AL52: 286.6804586
A53: =ROW() -> 53 | C53: Total Tariff Revenue | F53: 1336.442161 | AH53: =AH209 -> 320.6042121 | AI53: 318.452659 | AJ53: 312.3112655 | AK53: 290.1809691 | AL53: 289.5992659
A54: =ROW() -> 54 | C54: Check CoS - Revenue (should be 0) | F54: =IF(ROUND(F52-F53,5)=0,"OK",F52-F53) -> OK
A55: =ROW() -> 55
A56: Hide | B56: Cost of Service | F56: PV AA5 | H56: based real post tax WACC | AH56: PV | AI56: PV | AJ56: PV | AK56: PV | AL56: PV
A57: Hide | C57: OPEX
A58: Hide | C58: Opex; System Use Gas | F58: =SUM(AF58:AL58) -> 78.05605861 | AH58: =AH41*AH$19 -> 19.45482126 | AI58: 18.23436012 | AJ58: 16.75709554 | AK58: 12.22185426 | AL58: 11.38792743
A59: Hide | C59: Opex; Other Expenses | F59: 311.5292427 | AH59: =AH42*AH$19 -> 68.54587102 | AI59: 65.20047836 | AJ59: 63.99328011 | AK59: 57.21555909 | AL59: 56.57405412
A60: Hide | C60: Depreciation | F60: 588.1341157 | AH60: =AH43*AH$19 -> 170.9110657 | AI60: 106.3156293 | AJ60: 105.5175486 | AK60: 103.325045 | AL60: 102.0648271
A61: Hide | C61: Inflationary Gains on RAB | F61: -162.1546008 | AH61: =AH44*AH$19 -> -36.14619332 | AI61: -33.93787728 | AJ61: -32.335773 | AK61: -30.63685288 | AL61: -29.09790428
A62: Hide | C62: Return on Asset | F62: 499.5630739 | AH62: =AH45*AH$19 -> 111.3585638 | AI62: 104.5552221 | AJ62: 99.61948709 | AK62: 94.38548354 | AL62: 89.64431745
A63: Hide | C63: Tax | F63: 68.05048307 | AH63: =AH46*AH$19 -> 33.71290207 | AI63: 8.573986149 | AJ63: 8.485349181 | AK63: 8.683872907 | AL63: 8.594372758
A64: Hide | C64: Imputation Credits | F64: -34.02524153 | AH64: =AH47*AH$19 -> -16.85645104 | AI64: -4.286993074 | AJ64: -4.242674591 | AK64: -4.341936453 | AL64: -4.297186379
A65: Hide | C65: Over Depreciation | F65: 0
A66: Hide | C66: Net Cost of Service | F66: 1349.153132 | AH66: =AH49*AH$19 -> 350.9805794 | AI66: 264.6548057 | AJ66: 257.794313 | AK66: 240.8530254 | AL66: 234.8704082
A67: Hide | C67: less non-reference cost of service | D67: =D$50 -> 0.01 | F67: -13.49153132 | AH67: =-AH66*$D67 -> -3.509805794 | AI67: -2.646548057 | AJ67: -2.57794313 | AK67: -2.408530254 | AL67: -2.348704082
A68: Hide | C68: add back SUG | D68: =D$50 -> 0.01 | F68: 0.7805605861 | AH68: =AH51*AH$19 -> 0.1945482126 | AI68: 0.1823436012 | AJ68: 0.1675709554 | AK68: 0.1222185426 | AL68: 0.1138792743
A69: Hide | C69: Total Unsmooth Revenue | F69: 1336.442161 | AH69: =SUM(AH66:AH68) -> 347.6653218 | AI69: 262.1906012 | AJ69: 255.3839408 | AK69: 238.5667137 | AL69: 232.6355833
A70: Hide | C70: Total Tariff Revenue | F70: 1336.442161 | AH70: =AH53*AH$19 -> 299.0395118 | AI70: 286.8691894 | AJ70: 271.7104567 | AK70: 243.8188647 | AL70: 235.0041383
A71: Hide | C71: Check CoS - Revenue (should be 0) | F71: =IF(ROUND(F69-F70,5)=0,"OK",F69-F70) -> OK
A72: Hide
A73: ="CHECK -- Cost of Service, Allowable Revenue [m$ "&Inputs!$E$28&"]" -> CHECK -- Cost of Service, Allowable Revenue [m$ 31/12/2019]
A74: =ROW() -> 74 | B74: Cost of Service | F74: PV AA5 | H74: based on real post tax WACC
A75: =ROW() -> 75 | C75: OPEX
A76: =ROW() -> 76 | C76: Opex; System Use Gas | F76: =SUMPRODUCT($AH$16:$AL$16,AH76:AL76) -> 78.05605861 | AH76: =Inputs!AD$1892 -> 20.38619245 | AI76: =Inputs!AE$1892 -> 19.55932395 | AJ76: =Inputs!AF$1892 -> 18.39994374 | AK76: =Inputs!AG$1892 -> 13.73755003 | AL76: =Inputs!AH$1892 -> 13.10301731
A77: =ROW() -> 77 | C77: Opex; Other Expenses | F77: 311.5292427 | AH77: =Inputs!AD$1893-AH76 -> 71.82740461 | AI77: =Inputs!AE$1893-AI76 -> 69.93814255 | AJ77: =Inputs!AF$1893-AJ76 -> 70.26711464 | AK77: =Inputs!AG$1893-AK76 -> 64.31115844 | AL77: =Inputs!AH$1893-AL76 -> 65.09444454
A78: =ROW() -> 78 | C78: Depreciation | F78: 588.1341157 | AH78: =-AH25 -> 179.0931836 | AI78: 114.0408449 | AJ78: 115.8623792 | AK78: 116.1389217 | AL78: 117.4363995
A79: =ROW() -> 79 | C79: Return on Asset | F79: 337.4084732 | AH79: =AH$15*AH$23 -> 78.81305296 | AI79: 75.74861494 | AJ79: 73.88013935 | AK79: 71.65443022 | AL79: 69.66506458
A80: =ROW() -> 80 | C80: Tax | F80: 68.05048307 | AH80: =AH46*AH$13 -> 35.32685809 | AI80: 9.196997946 | AJ80: 9.317243978 | AK80: 9.760805194 | AL80: 9.888736621
A81: =ROW() -> 81 | C81: Imputation Credits | F81: -34.02524153 | AH81: =AH47*AH$13 -> -17.66342904 | AI81: -4.598498973 | AJ81: -4.658621989 | AK81: -4.880402597 | AL81: -4.944368311
A82: =ROW() -> 82 | C82: Over Depreciation | F82: 0
A83: =ROW() -> 83 | C83: Net Cost of Service | F83: 1349.153132 | AH83: =SUM(AH75:AH82) -> 367.7832627 | AI83: 283.8854253 | AJ83: 283.0681989 | AK83: 270.722463 | AL83: 270.2432943
A84: =ROW() -> 84 | C84: less non-reference cost of service | D84: =D$50 -> 0.01 | F84: -13.49153132 | AH84: =-AH83*$D84 -> -3.677832627 | AI84: -2.838854253 | AJ84: -2.830681989 | AK84: -2.70722463 | AL84: -2.702432943
A85: =ROW() -> 85 | C85: add back SUG | D85: =D$50 -> 0.01 | F85: 0.7805605861 | AH85: =$D85*Inputs!AD$1852 -> 0.2038619245 | AI85: =$D85*Inputs!AE$1852 -> 0.1955932395 | AJ85: =$D85*Inputs!AF$1852 -> 0.1839994374 | AK85: =$D85*Inputs!AG$1852 -> 0.1373755003 | AL85: =$D85*Inputs!AH$1852 -> 0.1310301731
A86: =ROW() -> 86 | C86: Total Unsmooth Revenue | F86: 1336.442161 | AH86: =SUM(AH83:AH85) -> 364.309292 | AI86: 281.2421643 | AJ86: 280.4215164 | AK86: 268.1526139 | AL86: 267.6718915
A87: =ROW() -> 87 | C87: Total Tariff Revenue | F87: 1336.442161 | AH87: =AH239 -> 313.3555922 | AI87: 307.7139734 | AJ87: 298.3486669 | AK87: 274.0561114 | AL87: 270.397165
A88: =ROW() -> 88 | C88: Check CoS - Revenue (should be 0) | F88: =IF(ROUND(F86-F87,5)=0,"OK",F86-F87) -> OK
A89: =ROW() -> 89
A90: Hide | B90: Cost of Service | F90: PV AA5 | H90: based on real post tax WACC | AH90: PV | AI90: PV | AJ90: PV | AK90: PV | AL90: PV
A91: Hide | C91: OPEX
A92: Hide | C92: Opex; System Use Gas | F92: =SUM(AH92:AL92) -> 78.05605861 | AH92: =AH76*AH$16 -> 19.45482126 | AI92: 18.23436012 | AJ92: 16.75709554 | AK92: 12.22185426 | AL92: 11.38792743
A93: Hide | C93: Opex; Other Expenses | F93: 311.5292427 | AH93: =AH77*AH$16 -> 68.54587102 | AI93: 65.20047836 | AJ93: 63.99328011 | AK93: 57.21555909 | AL93: 56.57405412
A94: Hide | C94: Depreciation | F94: 588.1341157 | AH94: =AH78*AH$16 -> 170.9110657 | AI94: 106.3156293 | AJ94: 105.5175486 | AK94: 103.325045 | AL94: 102.0648271
A95: Hide | C95: Return on Asset | F95: 337.4084732 | AH95: =AH79*AH$16 -> 75.21237044 | AI95: 70.61734482 | AJ95: 67.28371409 | AK95: 63.74863066 | AL95: 60.54641317
A96: Hide | C96: Tax | F96: 68.05048307 | AH96: =AH80*AH$16 -> 33.71290207 | AI96: 8.573986149 | AJ96: 8.485349181 | AK96: 8.683872907 | AL96: 8.594372758
A97: Hide | C97: Imputation Credits | F97: -34.02524153 | AH97: =AH81*AH$16 -> -16.85645104 | AI97: -4.286993074 | AJ97: -4.242674591 | AK97: -4.341936453 | AL97: -4.297186379
A98: Hide | C98: Over Depreciation | F98: 0
A99: Hide | C99: Net Cost of Service | F99: 1349.153132 | AH99: =AH83*AH$16 -> 350.9805794 | AI99: 264.6548057 | AJ99: 257.794313 | AK99: 240.8530254 | AL99: 234.8704082
A100: Hide | C100: less non-reference cost of service | D100: =D$50 -> 0.01 | F100: -13.49153132 | AH100: =-AH99*$D100 -> -3.509805794 | AI100: -2.646548057 | AJ100: -2.57794313 | AK100: -2.408530254 | AL100: -2.348704082
A101: Hide | C101: add back SUG | D101: =D$50 -> 0.01 | F101: 0.7805605861 | AH101: =AH85*AH$16 -> 0.1945482126 | AI101: 0.1823436012 | AJ101: 0.1675709554 | AK101: 0.1222185426 | AL101: 0.1138792743
A102: Hide | C102: Total Unsmooth Revenue | F102: 1336.442161 | AH102: =SUM(AH99:AH101) -> 347.6653218 | AI102: 262.1906012 | AJ102: 255.3839408 | AK102: 238.5667137 | AL102: 232.6355833
A103: Hide | C103: Total Tariff Revenue | F103: 1336.442161 | AH103: =AH87*AH$16 -> 299.0395118 | AI103: 286.8691894 | AJ103: 271.7104567 | AK103: 243.8188647 | AL103: 235.0041383
A104: Hide | C104: Check CoS - Revenue (should be 0) | F104: =IF(ROUND(F102-F103,5)=0,"OK",F102-F103) -> OK
A105: Hide
A106: Credit Foncier Check
A107: =ROW() -> 107 | B107: Net Cash Flow | F107: PV | H107: based nominal post tax WACC
A108: =ROW() -> 108 | C108: Total Tariff Revenue | F108: =SUMPRODUCT($AE$19:$AL$19,AE108:AL108) -> 1336.442161 | AH108: =AH$53 -> 320.6042121 | AI108: 318.452659 | AJ108: 312.3112655 | AK108: 290.1809691 | AL108: 289.5992659
A109: =ROW() -> 109 | C109: Opex | F109: -389.5853013 | AH109: =-(AH41+AH42) -> -94.34670504 | AI109: -92.62077333 | AJ109: -92.81664133 | AK109: -82.64092249 | AL109: -83.75061011
A110: =ROW() -> 110 | C110: Tax | F110: -68.05048307 | AH110: =-AH$46 -> -36.1440478 | AI110: -9.517957271 | AJ110: -9.753287279 | AK110: -10.33510946 | AL110: -10.59097963
A111: =ROW() -> 111 | C111: Imputation Credits | F111: 34.02524153 | AH111: =-AH$47 -> 18.0720239 | AI111: 4.758978636 | AJ111: 4.876643639 | AK111: 5.167554731 | AL111: 5.295489813
A112: =ROW() -> 112 | C112: Over Depreciation | F112: 0
A113: =ROW() -> 113 | C113: Asset Opening Value | F113: -3254.505809 | AE113: =-AE36 -> -3369.809696
A114: =ROW() -> 114 | C114: Capex | F114: -146.3284355 | AH114: =-AH$33 -> -50.70303483 | AI114: -36.28221761 | AJ114: -22.79896563 | AK114: -33.93223197 | AL114: -22.18911531
A115: =ROW() -> 115 | C115: Asset Residual Value | F115: 2475.291656 | AL115: =AL36 -> 3050.340524
A116: =ROW() -> 116 | C116: non-reference cost of service | F116: 13.49153132 | AH116: =-AH50 -> 3.762909171 | AI116: 2.937925358 | AJ116: 2.963156777 | AK116: 2.866511762 | AL116: 2.894344681
A117: =ROW() -> 117 | C117: SUG | F117: -0.7805605861 | AH117: =-AH51 -> -0.2085777095 | AI117: -0.2024191053 | AJ117: -0.1926105376 | AK117: -0.145458372 | AL117: -0.1403352063
A118: =ROW() -> 118 | C118: Net Cash Flow (should be 0) | F118: -6.448317436e-10 | AE118: =SUM(AE108:AE117) -> -3369.809696 | AH118: =SUM(AH108:AH117) -> 161.0367798 | AI118: 187.5261957 | AJ118: 194.5895612 | AK118: 171.1613133 | AL118: 3231.458584
A119: =ROW() -> 119
A120: =ROW() -> 120 | F120: IRR
A121: =ROW() -> 121 | C121: Net Cash Flow [m$ OD] | E121: Nominal IRR | F121: =IRR(AE121:AL121,0.05) -> 0.035429 | G121: =IF(Recalc_From_Year=Inputs!$Y$6,IF(ABS(F121-WACC!$O$36)<0.00001,"OK","Check"),"") ->  | AE121: =AE118 -> -3369.809696 | AH121: =AH118 -> 161.0367798 | AI121: 187.5261957 | AJ121: 194.5895612 | AK121: 171.1613133 | AL121: 3231.458584
A122: =ROW() -> 122 | C122: ="Net Cash Flow [m$ "&Inputs!$E$28&"]" -> Net Cash Flow [m$ 31/12/2019] | E122: Real IRR | F122: =IRR(AE122:AL122,0.05) -> 0.02365694513 | G122: =IF(Recalc_From_Year=Inputs!$Y$6,IF(ABS(F122-WACC!$O$37)<0.00001,"OK","Check"),"") ->  | AE122: =AE121*AE$13 -> -3331.497475 | AH122: =AH121*AH$13 -> 157.3958594 | AI122: 181.2025404 | AJ122: 185.8899841 | AK122: 161.6501733 | AL122: 3017.194251
A123: =ROW() -> 123
A124: =ROW() -> 124
A125: =ROW() -> 125
A126: =ROW() -> 126
A127: =ROW() -> 127 | C127: Credit Foncier Check | F127: (A) | AE127: Total Revenue Building Block | AJ127: (B) | AK127: (A + B)
A128: =ROW() -> 128 | AK128: Difference
A129: =ROW() -> 129 | F129: PV | AJ129: PV | AK129: (should be 0)
A130: =ROW() -> 130 | C130: Total Smoothed Revenue | F130: =F108 -> 1336.442161 | AE130: Total Unsmoothed Revenue | AJ130: =-F52 -> -1336.442161 | AK130: =ROUND(AJ130+F130,0.000001) -> 0
A131: =ROW() -> 131
A132: =ROW() -> 132 | C132: Asset Opening Value | F132: =F113 -> -3254.505809 | AE132: Return on Asset | AJ132: =F45 -> 499.5630739
A133: =ROW() -> 133 | C133: Capex | F133: =F114 -> -146.3284355 | AE133: Inflationary gains | AJ133: =F44 -> -162.1546008
A134: =ROW() -> 134 | C134: Asset Residual Value | F134: =F115 -> 2475.291656 | AE134: Depreciation | AJ134: =F43 -> 588.1341157
A135: =ROW() -> 135 | F135: =SUM(F132:F134) -> -925.5425888 | AJ135: =SUM(AJ132:AJ134) -> 925.5425888 | AK135: =ROUND(AJ135+F135,0.000001) -> 0
A136: =ROW() -> 136
A137: =ROW() -> 137 | C137: Opex | F137: =F109 -> -389.5853013 | AE137: Opex | AJ137: =F41+F42 -> 389.5853013 | AK137: =ROUND(AJ137+F137,0.000001) -> 0
A138: =ROW() -> 138 | C138: Tax | F138: =F110 -> -68.05048307 | AE138: Tax | AJ138: =F46 -> 68.05048307 | AK138: =ROUND(AJ138+F138,0.000001) -> 0
A139: =ROW() -> 139 | C139: Imputation Credits | F139: =F111 -> 34.02524153 | AE139: Imputation Credits | AJ139: =F47 -> -34.02524153 | AK139: =ROUND(AJ139+F139,0.000001) -> 0
A140: =ROW() -> 140 | C140: Over Depreciation | F140: =F112 -> 0 | AE140: Over Depreciation | AJ140: =F48 -> 0 | AK140: =ROUND(AJ140+F140,0.000001) -> 0
A141: =ROW() -> 141 | F141: =SUM(F137:F140) -> -423.6105428 | AJ141: =SUM(AJ137:AJ140) -> 423.6105428 | AK141: =ROUND(AJ141+F141,0.000001) -> 0
A142: =ROW() -> 142
A143: =ROW() -> 143 | C143: non-reference cost of service | F143: =F116 -> 13.49153132 | AE143: non-reference cost of service | AJ143: =F50 -> -13.49153132 | AK143: =ROUND(AJ143+F143,0.000001) -> 0
A144: =ROW() -> 144 | C144: SUG | F144: =F117 -> -0.7805605861 | AE144: SUG | AJ144: =F51 -> 0.7805605861 | AK144: =ROUND(AJ144+F144,0.000001) -> 0
A145: =ROW() -> 145 | F145: =SUM(F143:F144) -> 12.71097073 | AJ145: =SUM(AJ143:AJ144) -> -12.71097073 | AK145: =ROUND(AJ145+F145,0.000001) -> 0
A146: =ROW() -> 146
A147: =ROW() -> 147 | C147: Net Cash Flow (should be 0) | F147: =ROUND(F130+F135+F141+F145,0.00001) -> 0 | AJ147: =ROUND(AJ130+AJ135+AJ141+AJ145,0.00001) -> 0 | AK147: =ROUND(AJ147+F147,0.000001) -> 0
A148: =ROW() -> 148
A149: =ROW() -> 149
A150: Financeability metrics
A151: =ROW() -> 151
A152: =ROW() -> 152 | C152: Debt | AH152: =Tax_CoRE!AD21 -> 1853.395333 | AI152: =Tax_CoRE!AE21 -> 1801.816242 | AJ152: =Tax_CoRE!AF21 -> 1777.580978 | AK152: =Tax_CoRE!AG21 -> 1743.856009 | AL152: =Tax_CoRE!AH21 -> 1714.938327
A153: =ROW() -> 153 | C153: Smoothed Revenue | AH153: =AH53 -> 320.6042121 | AI153: 318.452659 | AJ153: 312.3112655 | AK153: 290.1809691 | AL153: 289.5992659
A154: =ROW() -> 154 | C154: Interest | AH154: =-Tax_CoRE!AD38 -> 51.30198281 | AI154: =-Tax_CoRE!AE38 -> 49.87427357 | AJ154: =-Tax_CoRE!AF38 -> 49.20344146 | AK154: =-Tax_CoRE!AG38 -> 48.26993434 | AL154: =-Tax_CoRE!AH38 -> 47.46949289
A155: =ROW() -> 155 | C155: Opex | AH155: =SUM(AH41:AH42) -> 94.34670504 | AI155: 92.62077333 | AJ155: 92.81664133 | AK155: 82.64092249 | AL155: 83.75061011
A156: =ROW() -> 156 | C156: Tax (gross) | AH156: =AH46 -> 36.1440478 | AI156: 9.517957271 | AJ156: 9.753287279 | AK156: 10.33510946 | AL156: 10.59097963
A157: =ROW() -> 157 | C157: FFO | AH157: =AH153-AH154-AH155-AH156 -> 138.8114764 | AI157: 166.4396549 | AJ157: 160.5378954 | AK157: 148.9350028 | AL157: 147.7881832
A158: =ROW() -> 158 | C158: FFO + Interest | AH158: =AH157+AH154 -> 190.1134592 | AI158: 216.3139284 | AJ158: 209.7413369 | AK158: 197.2049372 | AL158: 195.2576761
A159: =ROW() -> 159
A160: =ROW() -> 160 | C160: FFO/debt | AH160: =AH157/AH152 -> 0.07489577318 | AI160: 0.09237326816 | AJ160: 0.09031256379 | AK160: 0.08540556217 | AL160: 0.08617696677
A161: =ROW() -> 161 | C161: FFO Interest Cover | AH161: =AH158/AH154 -> 3.705772152 | AI161: 4.337184543 | AJ161: 4.262737131 | AK161: 4.085461061 | AL161: 4.113329724
A162: =ROW() -> 162
A163: ="Cost of Service Tariff [m$ "&Inputs!$E$28&"] (Not used for Reference Tariff)" -> Cost of Service Tariff [m$ 31/12/2019] (Not used for Reference Tariff)
A164: =ROW() -> 164
A165: =ROW() -> 165 | B165: ="Cost of Service Tariff [$/TJ OD]" -> Cost of Service Tariff [$/TJ OD]
A166: =ROW() -> 166 | C166: Capacity Reservation | AH166: =1000*((AH49-AH41)/AH$7)/AH182 -> 1.49789463 | AI166: 1.182612096 | AJ166: 1.235347937 | AK166: 1.321582919 | AL166: 1.355915342
A167: =ROW() -> 167 | C167: Commodity | AH167: =1000*(AH41/AH$7)/AH183 -> 0.097363637 | AI167: 0.09696102407 | AJ167: 0.0951737697 | AK167: 0.07745304691 | AL167: 0.07551366187
A168: =ROW() -> 168 | C168: Total | AH168: =SUM(AH166:AH167) -> 1.595258267 | AI168: 1.27957312 | AJ168: 1.330521707 | AK168: 1.399035966 | AL168: 1.431429004
A169: =ROW() -> 169
A170: =ROW() -> 170 | B170: ="Cost of Service Tariff [$/TJ "&Inputs!$E$28&"]" -> Cost of Service Tariff [$/TJ 31/12/2019]
A171: =ROW() -> 171 | C171: Capacity Reservation | AH171: =1000*((AH83-AH76)/AH$7)/AH182 -> 1.46402836 | AI171: 1.142732701 | AJ171: 1.180118846 | AK171: 1.248144828 | AL171: 1.266010339
A172: =ROW() -> 172 | C172: Commodity | AH172: =1000*(AH76/AH$7)/AH183 -> 0.09516231846 | AI172: 0.09369135769 | AJ172: 0.09091880586 | AK172: 0.07314911422 | AL172: 0.07050667076
A173: =ROW() -> 173 | C173: Total | AH173: =SUM(AH171:AH172) -> 1.559190678 | AI173: 1.236424058 | AJ173: 1.271037652 | AK173: 1.321293942 | AL173: 1.336517009
A174: =ROW() -> 174
A175: Tariff and Revenue
A176: =ROW() -> 176
A177: =ROW() -> 177 | AG177: =AH177 -> X_Factor_2021 | AH177: X_Factor_2021 | AI177: X_Factor_2022 | AJ177: X_Factor_2023 | AK177: X_Factor_2024 | AL177: X_Factor_2025
A178: =ROW() -> 178 | B178: X_Factor (for real $ calculation) | AG178: =AH178 -> -0.0006092703266 | AH178: =X_Factor_2021 -> -0.0006092703266 | AI178: =X_Factor_2022 -> 0 | AJ178: =X_Factor_2023 -> 0 | AK178: =X_Factor_2024 -> 0 | AL178: =X_Factor_2025 -> 0
A179: =ROW() -> 179
A180: =ROW() -> 180 | AF180: =AF$7/$AH$7 -> 0.495890411 | AG180: =AG$7/$AH$7 -> 0.504109589
A181: =ROW() -> 181 | B181: Load F/H Equivalent [TJ/day] | F181: PV (use real discount rate)
A182: =ROW() -> 182 | C182: Capacity Reservation | F182: =SUMPRODUCT($AH$16:$AL$16,AH182:AL182) -> 2754.900218 | AE182: =Load!AC$23 -> 763.4127312 | AF182: =$AH182 -> 650.105436 | AG182: =$AH182 -> 650.105436 | AH182: =Load!AD$23 -> 650.105436 | AI182: =Load!AE$23 -> 633.7274668 | AJ182: =Load!AF$23 -> 614.4453247 | AK182: =Load!AG$23 -> 562.5505593 | AL182: =Load!AH$23 -> 556.4677381
A183: =ROW() -> 183 | C183: Commodity | F183: =SUMPRODUCT($AH$16:$AL$16,AH183:AL183) -> 2497.284077 | AE183: =Load!AC$24 -> 650.8177322 | AF183: =$AH183 -> 586.9190973 | AG183: =$AH183 -> 586.9190973 | AH183: =Load!AD$24 -> 586.9190973 | AI183: =Load!AE$24 -> 571.9544494 | AJ183: =Load!AF$24 -> 554.4596002 | AK183: =Load!AG$24 -> 513.1202217 | AL183: =Load!AH$24 -> 509.1529237
A184: =ROW() -> 184 | C184: Total | AE184: =SUM(AE182:AE183) -> 1414.230463 | AF184: 1237.024533 | AG184: 1237.024533 | AH184: 1237.024533 | AI184: 1205.681916 | AJ184: 1168.904925 | AK184: 1075.670781 | AL184: 1065.620662
A185: =ROW() -> 185
A186: =ROW() -> 186 | B186: Applied Tariff Allocation
A187: =ROW() -> 187 | C187: Capacity Reservation | AG187: =IF(Recalc_From_Year>=AH$6,SolverSheet!I22,AE187) -> 0.9415941264 | AI187: =IF(Recalc_From_Year>=AI$6,SolverSheet!J22,AG187) -> 0.9415941264 | AJ187: =IF(Recalc_From_Year>=AJ$6,SolverSheet!K22,AI187) -> 0.9415941264 | AK187: =IF(Recalc_From_Year>=AK$6,SolverSheet!L22,AJ187) -> 0.9415941264 | AL187: =IF(Recalc_From_Year>=AL$6,SolverSheet!M22,AK187) -> 0.9415941264
A188: =ROW() -> 188 | C188: Commodity | AG188: =IF(Recalc_From_Year>=AH$6,SolverSheet!I23,AE188) -> 0.05840587361 | AI188: =IF(Recalc_From_Year>=AI$6,SolverSheet!J23,AG188) -> 0.05840587361 | AJ188: =IF(Recalc_From_Year>=AJ$6,SolverSheet!K23,AI188) -> 0.05840587361 | AK188: =IF(Recalc_From_Year>=AK$6,SolverSheet!L23,AJ188) -> 0.05840587361 | AL188: =IF(Recalc_From_Year>=AL$6,SolverSheet!M23,AK188) -> 0.05840587361
A189: =ROW() -> 189 | C189: Total | AG189: =SUM(AG187:AG188) -> 1 | AI189: =SUM(AI187:AI188) -> 1 | AJ189: 1 | AK189: 1 | AL189: 1
A190: =ROW() -> 190
A191: =ROW() -> 191
A192: =ROW() -> 192 | B192: Nominal $ Calculation
A193: =ROW() -> 193 | B193: Forecast Full Haul Tariff [$ OD /GJ/day]
A194: =ROW() -> 194 | C194: Capacity Reservation Charge | AE194: 1.218619 | AF194: =AE194 -> 1.218619 | AG194: =AG224*AG$12 -> 1.288922805 | AI194: =AI224*AI$12 -> 1.303745417 | AJ194: 1.31873849 | AK194: 1.333903982 | AL194: 1.349243878
A195: =ROW() -> 195 | C195: Commodity Charge | AE195: 0.135516 | AF195: =AE195 -> 0.135516 | AG195: =AG225*AG$12 -> 0.0799502252 | AI195: =AI225*AI$12 -> 0.08086965279 | AJ195: 0.08179965379 | AK195: 0.08274034981 | AL195: 0.08369186384
A196: =ROW() -> 196 | C196: Total | AE196: 1.354135 | AF196: =AE196 -> 1.354135 | AG196: =SUM(AG194:AG195) -> 1.36887303 | AI196: =SUM(AI194:AI195) -> 1.38461507 | AJ196: 1.400538143 | AK196: 1.416644332 | AL196: 1.432935742
A197: =ROW() -> 197 | B197: Less Rebateable Forecast Full Haul Tariff [$ OD /GJ/day]
A198: =ROW() -> 198 | C198: Capacity Reservation Charge | AI198: =RebateableServices!AE75 -> 0 | AJ198: =RebateableServices!AF75 -> 0 | AK198: =RebateableServices!AG75 -> 0 | AL198: =RebateableServices!AH75 -> 0
A199: =ROW() -> 199 | C199: Commodity Charge | AI199: =RebateableServices!AE76 -> 0 | AJ199: =RebateableServices!AF76 -> 0 | AK199: =RebateableServices!AG76 -> 0 | AL199: =RebateableServices!AH76 -> 0
A200: =ROW() -> 200 | C200: Total | AI200: =SUM(AI198:AI199) -> 0 | AJ200: 0 | AK200: 0 | AL200: 0
A201: =ROW() -> 201 | B201: Net Forecast Full Haul Tariff [$ OD /GJ/day]
... 81 more rows

Sheet Tax_CoRE
A1: =Main!A1 -> ERA, DBNGP Tariff Model, Final Decision, April 2021
A2: =MID(CELL("filename",A1),FIND("]",CELL("filename",A1))+1,256) -> \[DBNGP-DBP-AA5-D227177-20210401-Public.XLSM]Tax_CoRE
A3: Ref. | B3: =COLUMN() -> 2 | C3: =COLUMN() -> 3 | D3: =COLUMN() -> 4 | E3: =COLUMN() -> 5 | F3: =COLUMN() -> 6 | G3: =COLUMN() -> 7 | H3: =COLUMN() -> 8 | I3: =COLUMN() -> 9 | J3: =COLUMN() -> 10 | K3: =COLUMN() -> 11 | L3: =COLUMN() -> 12 | M3: =COLUMN() -> 13 | N3: =COLUMN() -> 14 | Q3: =COLUMN() -> 17 | R3: =COLUMN() -> 18 | S3: =COLUMN() -> 19 | T3: =COLUMN() -> 20 | U3: =COLUMN() -> 21 | V3: =COLUMN() -> 22 | W3: =COLUMN() -> 23 | X3: =COLUMN() -> 24 | Y3: =COLUMN() -> 25 | Z3: =COLUMN() -> 26 | AA3: =COLUMN() -> 27 | AB3: =COLUMN() -> 28 | AC3: =COLUMN() -> 29 | AD3: =COLUMN() -> 30 | AE3: =COLUMN() -> 31 | AF3: =COLUMN() -> 32 | AG3: =COLUMN() -> 33 | AH3: =COLUMN() -> 34 | AI3: =COLUMN() -> 35
A5: Regulatory Period | I5: =Inputs!I$5 -> AA1 | J5: =Inputs!J$5 -> AA1 | K5: =Inputs!K$5 -> AA1 | L5: =Inputs!L$5 -> AA1 | M5: =Inputs!M$5 -> AA1 | N5: =Inputs!N$5 -> AA2 | O5: =Inputs!O$5 -> AA2 | P5: =Inputs!P$5 -> AA2 | Q5: =Inputs!Q$5 -> AA2 | R5: =Inputs!R$5 -> AA2 | S5: =Inputs!S$5 -> AA2 | T5: =Inputs!T$5 -> AA3 | U5: =Inputs!U$5 -> AA3 | V5: =Inputs!V$5 -> AA3 | W5: =Inputs!W$5 -> AA3 | X5: =Inputs!X$5 -> AA3 | Y5: =Inputs!Y$5 -> AA4 | Z5: =Inputs!Z$5 -> AA4 | AA5: =Inputs!AA$5 -> AA4 | AB5: =Inputs!AB$5 -> AA4 | AC5: =Inputs!AC$5 -> AA4 | AD5: =Inputs!AD$5 -> AA5 | AE5: =Inputs!AE$5 -> AA5 | AF5: =Inputs!AF$5 -> AA5 | AG5: =Inputs!AG$5 -> AA5 | AH5: =Inputs!AH$5 -> AA5 | AI5: AA6
A6: Year | H6: =Inputs!H$6 -> 1999 | I6: =Inputs!I$6 -> 2000 | J6: =Inputs!J$6 -> 2001 | K6: =Inputs!K$6 -> 2002 | L6: =Inputs!L$6 -> 2003 | M6: =Inputs!M$6 -> 2004 | N6: =Inputs!N$6 -> 2005 | O6: =Inputs!O$6 -> 2006 | P6: =Inputs!P$6 -> 2007 | Q6: =Inputs!Q$6 -> 2008 | R6: =Inputs!R$6 -> 2009 | S6: =Inputs!S$6 -> 2010 | T6: =Inputs!T$6 -> 2011 | U6: =Inputs!U$6 -> 2012 | V6: =Inputs!V$6 -> 2013 | W6: =Inputs!W$6 -> 2014 | X6: =Inputs!X$6 -> 2015 | Y6: =Inputs!Y$6 -> 2016 | Z6: =Inputs!Z$6 -> 2017 | AA6: =Inputs!AA$6 -> 2018 | AB6: =Inputs!AB$6 -> 2019 | AC6: =Inputs!AC$6 -> 2020 | AD6: =Inputs!AD$6 -> 2021 | AE6: =Inputs!AE$6 -> 2022 | AF6: =Inputs!AF$6 -> 2023 | AG6: =Inputs!AG$6 -> 2024 | AH6: =Inputs!AH$6 -> 2025 | AI6: =AH6+1 -> 2026
A7: Days | H7: =Inputs!H$7 -> 365 | I7: =Inputs!I$7 -> 366 | J7: =Inputs!J$7 -> 365 | K7: =Inputs!K$7 -> 365 | L7: =Inputs!L$7 -> 365 | M7: =Inputs!M$7 -> 366 | N7: =Inputs!N$7 -> 365 | O7: =Inputs!O$7 -> 365 | P7: =Inputs!P$7 -> 365 | Q7: =Inputs!Q$7 -> 366 | R7: =Inputs!R$7 -> 365 | S7: =Inputs!S$7 -> 365 | T7: =Inputs!T$7 -> 365 | U7: =Inputs!U$7 -> 366 | V7: =Inputs!V$7 -> 365 | W7: =Inputs!W$7 -> 365 | X7: =Inputs!X$7 -> 365 | Y7: =Inputs!Y$7 -> 366 | Z7: =Inputs!Z$7 -> 365 | AA7: =Inputs!AA$7 -> 365 | AB7: =Inputs!AB$7 -> 365 | AC7: =Inputs!AC$7 -> 366 | AD7: =Inputs!AD$7 -> 365 | AE7: =Inputs!AE$7 -> 365 | AF7: =Inputs!AF$7 -> 365 | AG7: =Inputs!AG$7 -> 366 | AH7: =Inputs!AH$7 -> 365 | AI7: 365
A8: Project Year | H8: =Inputs!H$8 -> 0 | I8: =Inputs!I$8 -> 1 | J8: =Inputs!J$8 -> 2 | K8: =Inputs!K$8 -> 3 | L8: =Inputs!L$8 -> 4 | M8: =Inputs!M$8 -> 5 | N8: =Inputs!N$8 -> 6 | O8: =Inputs!O$8 -> 7 | P8: =Inputs!P$8 -> 8 | Q8: =Inputs!Q$8 -> 9 | R8: =Inputs!R$8 -> 10 | S8: =Inputs!S$8 -> 11 | T8: =Inputs!T$8 -> 12 | U8: =Inputs!U$8 -> 13 | V8: =Inputs!V$8 -> 14 | W8: =Inputs!W$8 -> 15 | X8: =Inputs!X$8 -> 16 | Y8: =Inputs!Y$8 -> 17 | Z8: =Inputs!Z$8 -> 18 | AA8: =Inputs!AA$8 -> 19 | AB8: =Inputs!AB$8 -> 20 | AC8: =Inputs!AC$8 -> 21 | AD8: =Inputs!AD$8 -> 22 | AE8: =Inputs!AE$8 -> 23 | AF8: =Inputs!AF$8 -> 24 | AG8: =Inputs!AG$8 -> 25 | AH8: =Inputs!AH$8 -> 26 | AI8: =AH8+1 -> 27
A9: Financial Parameters
A10: =ROW() -> 10 | B10: Modelled Inflation
A11: =ROW() -> 11 | C11: Inflation | S11: =Inputs!S$27 -> 0.02654867257 | T11: =Inputs!T$27 -> 0.03103448276 | U11: =Inputs!U$27 -> 0.02204408818 | V11: =Inputs!V$27 -> 0.02745098039 | W11: =Inputs!W$27 -> 0.01717557252 | X11: =Inputs!X$27 -> 0.01688555347 | Y11: =Inputs!Y$27 -> 0.0147601476 | Z11: =Inputs!Z$27 -> 0.01909090909 | AA11: =Inputs!AA$27 -> 0.0178412132 | AB11: =Inputs!AB$27 -> 0.01840490798 | AC11: =Inputs!AC$27 -> 0.0115 | AD11: =Inputs!AD$27 -> 0.0115 | AE11: =Inputs!AE$27 -> 0.0115 | AF11: =Inputs!AF$27 -> 0.0115 | AG11: =Inputs!AG$27 -> 0.0115 | AH11: =Inputs!AH$27 -> 0.0115
A12: =ROW() -> 12 | C12: =Inputs!C28 -> Inflation Factor (convert 31/12/2019 $ to nominal $) | S12: =Inputs!S$28 -> 0.8330119331 | T12: =Inputs!T$28 -> 0.8588640275 | U12: =Inputs!U$28 -> 0.8777969019 | V12: =Inputs!V$28 -> 0.9018932874 | W12: =Inputs!W$28 -> 0.917383821 | X12: =Inputs!X$28 -> 0.9328743546 | Y12: =Inputs!Y$28 -> 0.9466437177 | Z12: =Inputs!Z$28 -> 0.9647160069 | AA12: =Inputs!AA$28 -> 0.9819277108 | AB12: =Inputs!AB$28 -> 1 | AC12: =Inputs!AC$28 -> 1.0115 | AD12: =Inputs!AD$28 -> 1.02313225 | AE12: =Inputs!AE$28 -> 1.034898271 | AF12: =Inputs!AF$28 -> 1.046799601 | AG12: =Inputs!AG$28 -> 1.058837796 | AH12: =Inputs!AH$28 -> 1.071014431
A13: =ROW() -> 13 | B13: Nominal Post Tax WACC
A14: =ROW() -> 14 | C14: WACC | T14: =Inputs!T$37 -> 0 | U14: =Inputs!U$37 -> 0 | V14: =Inputs!V$37 -> 0 | W14: =Inputs!W$37 -> 0 | X14: =Inputs!X$37 -> 0 | Y14: =Inputs!Y$37 -> 0 | Z14: =Inputs!Z$37 -> 0 | AA14: =Inputs!AA$37 -> 0 | AB14: =Inputs!AB$37 -> 0 | AC14: =Inputs!AC$37 -> 0.035429 | AD14: =Inputs!AD$37 -> 0.035429 | AE14: =Inputs!AE$37 -> 0.035429 | AF14: =Inputs!AF$37 -> 0.035429 | AG14: =Inputs!AG$37 -> 0.035429 | AH14: =Inputs!AH$37 -> 0.035429
A15: =ROW() -> 15 | C15: Discounting Factor | AB15: =Inputs!AB$38 -> 1 | AC15: =Inputs!AC$38 -> 0.9657832647 | AD15: =Inputs!AD$38 -> 0.9327373144 | AE15: =Inputs!AE$38 -> 0.9008220886 | AF15: =Inputs!AF$38 -> 0.8699988977 | AG15: =Inputs!AG$38 -> 0.8402303757 | AH15: =Inputs!AH$38 -> 0.8114804354
A16: =ROW() -> 16 | B16: Nominal Cost of Debt (DPn) | AB16: =WACC!R$15 -> 0.04678 | AC16: =WACC!S$15 -> 0.04665 | AD16: =WACC!T15 -> 0.02768 | AE16: =WACC!U15 -> 0.02768 | AF16: =WACC!V15 -> 0.02768 | AG16: =WACC!W15 -> 0.02768 | AH16: =WACC!X15 -> 0.02768
A17: =ROW() -> 17
A18: Asset Value [m$ nominal]
A19: =ROW() -> 19 | B19: Asset Value (Opening) | AD19: =ProposedApproach!AC33*AC$12 -> 3369.809696 | AE19: =ProposedApproach!AD33*AD$12 -> 3276.02953 | AF19: =ProposedApproach!AE33*AE$12 -> 3231.965414 | AG19: =ProposedApproach!AF33*AF$12 -> 3170.64729 | AH19: =ProposedApproach!AG33*AG$12 -> 3118.069686 | AI19: =ProposedApproach!AH33*AH$12 -> 3050.340524
A20: =ROW() -> 20 | B20: Equity | AD20: =AD$19*WACC!T26 -> 1516.414363 | AE20: =AE$19*WACC!U26 -> 1474.213289 | AF20: =AF$19*WACC!V26 -> 1454.384436 | AG20: =AG$19*WACC!W26 -> 1426.79128 | AH20: =AH$19*WACC!X26 -> 1403.131358
A21: =ROW() -> 21 | B21: Debt | AD21: =AD$19*WACC!T25 -> 1853.395333 | AE21: =AE$19*WACC!U25 -> 1801.816242 | AF21: =AF$19*WACC!V25 -> 1777.580978 | AG21: =AG$19*WACC!W25 -> 1743.856009 | AH21: =AH$19*WACC!X25 -> 1714.938327
A22: =ROW() -> 22 | C22: Check that A=D+E | AD22: =IF(ROUND(AD19-AD20-AD21,8)=0,"OK","CHECK") -> OK | AE22: =IF(ROUND(AE19-AE20-AE21,8)=0,"OK","CHECK") -> OK | AF22: OK | AG22: OK | AH22: OK
A23: Calculation of Tax Expense - [m$ nominal]
A24: =ROW() -> 24 | B24: Revenue | F24: PV
A25: =ROW() -> 25 | C25: Revenue requirement
A26: =ROW() -> 26 | C26: Opex
A27: =ROW() -> 27 | C27: Opex; System Use Gas | F27: =SUMPRODUCT($AB$15:$AH$15,AB27:AH27) -> 78.05605861 | AD27: =CoS_Tariff_Revenue!AH41 -> 20.85777095 | AE27: =CoS_Tariff_Revenue!AI41 -> 20.24191053 | AF27: =CoS_Tariff_Revenue!AJ41 -> 19.26105376 | AG27: =CoS_Tariff_Revenue!AK41 -> 14.5458372 | AH27: =CoS_Tariff_Revenue!AL41 -> 14.03352063
A28: =ROW() -> 28 | C28: Opex; Other Expenses | F28: 311.5292427 | AD28: =CoS_Tariff_Revenue!AH42 -> 73.48893409 | AE28: =CoS_Tariff_Revenue!AI42 -> 72.37886279 | AF28: =CoS_Tariff_Revenue!AJ42 -> 73.55558757 | AG28: =CoS_Tariff_Revenue!AK42 -> 68.09508528 | AH28: =CoS_Tariff_Revenue!AL42 -> 69.71708948
A29: =ROW() -> 29 | C29: Return of Asset (Depreciation) | F29: 588.1341157 | AD29: =CoS_Tariff_Revenue!AH43 -> 183.2360119 | AE29: =CoS_Tariff_Revenue!AI43 -> 118.0206732 | AF29: =CoS_Tariff_Revenue!AJ43 -> 121.2846923 | AG29: =CoS_Tariff_Revenue!AK43 -> 122.97228 | AH29: =CoS_Tariff_Revenue!AL43 -> 125.7760786
A30: =ROW() -> 30 | C30: Inflationary Gains on RAB | F30: -162.1546008 | AD30: =CoS_Tariff_Revenue!AH44 -> -38.7528115 | AE30: =CoS_Tariff_Revenue!AI44 -> -37.6743396 | AF30: =CoS_Tariff_Revenue!AJ44 -> -37.16760226 | AG30: =CoS_Tariff_Revenue!AK44 -> -36.46244383 | AH30: =CoS_Tariff_Revenue!AL44 -> -35.85780138
A31: =ROW() -> 31 | C31: Return on Asset | AD31: =CoS_Tariff_Revenue!AH45 -> 119.3889877 | AE31: =CoS_Tariff_Revenue!AI45 -> 116.0664502 | AF31: =CoS_Tariff_Revenue!AJ45 -> 114.5053027 | AG31: =CoS_Tariff_Revenue!AK45 -> 112.3328628 | AH31: =CoS_Tariff_Revenue!AL45 -> 110.4700909
A32: =ROW() -> 32 | C32: Income tax expense | F32: 68.05048307 | AD32: =-AD45 -> 36.1440478 | AE32: =-AE45 -> 9.517957271 | AF32: 9.753287279 | AG32: 10.33510946 | AH32: 10.59097963
A33: =ROW() -> 33 | C33: Imputation Credits | F33: -34.02524153 | AD33: =-AD46 -> -18.0720239 | AE33: =-AE46 -> -4.758978636 | AF33: -4.876643639 | AG33: -5.167554731 | AH33: -5.295489813
A34: =ROW() -> 34 | C34: Cost of Service | F34: =SUMPRODUCT($AB$15:$AH$15,AB34:AH34) -> 1349.153132 | AD34: =SUM(AD27:AD33) -> 376.2909171 | AE34: =SUM(AE27:AE33) -> 293.7925358 | AF34: =SUM(AF27:AF33) -> 296.3156777 | AG34: =SUM(AG27:AG33) -> 286.6511762 | AH34: =SUM(AH27:AH33) -> 289.4344681
A35: =ROW() -> 35 | B35: Expenses
A36: =ROW() -> 36 | C36: Opex; System Use Gas | F36: =SUMPRODUCT($AB$15:$AH$15,AB36:AH36) -> -78.05605861 | AD36: =-Inputs!AD1884 -> -20.85777095 | AE36: =-Inputs!AE1884 -> -20.24191053 | AF36: =-Inputs!AF1884 -> -19.26105376 | AG36: =-Inputs!AG1884 -> -14.5458372 | AH36: =-Inputs!AH1884 -> -14.03352063
A37: =ROW() -> 37 | C37: Opex; Other Expenses | F37: -311.5292427 | AD37: =-Inputs!AD1885-AD36 -> -73.48893409 | AE37: =-Inputs!AE1885-AE36 -> -72.37886279 | AF37: =-Inputs!AF1885-AF36 -> -73.55558757 | AG37: =-Inputs!AG1885-AG36 -> -68.09508528 | AH37: =-Inputs!AH1885-AH36 -> -69.71708948
A38: =ROW() -> 38 | C38: Interest on Debt | F38: -214.6644906 | AD38: =-AD21*AD$16 -> -51.30198281 | AE38: -49.87427357 | AF38: -49.20344146 | AG38: -48.26993434 | AH38: -47.46949289
A39: =ROW() -> 39 | C39: Tax Depreciation | F39: -518.0683962 | AD39: =Tax_Asset!AD32 -> -110.1620699 | AE39: =Tax_Asset!AE32 -> -119.5709646 | AF39: =Tax_Asset!AF32 -> -121.7846373 | AG39: =Tax_Asset!AG32 -> -121.2899545 | AH39: =Tax_Asset!AH32 -> -122.9110996
A40: =ROW() -> 40 | C40: Total Expenses | F40: -1122.318188 | AD40: =SUM(AD36:AD39) -> -255.8107577 | AE40: -262.0660115 | AF40: -263.8047201 | AG40: -252.2008113 | AH40: -254.1312026
A41: =ROW() -> 41 | B41: Tax
A42: =ROW() -> 42 | C42: Net Income | F42: =SUMPRODUCT($AB$15:$AH$15,AB42:AH42) -> 226.8349436 | AD42: =AD34+AD40 -> 120.4801593 | AE42: 31.72652424 | AF42: 32.5109576 | AG42: 34.45036488 | AH42: 35.30326542
A43: =ROW() -> 43 | C43: Tax Loss Carried Forward | AD43: =IF(AD44<0,AD44,0) -> 0 | AE43: 0 | AF43: 0 | AG43: 0 | AH43: 0
A44: =ROW() -> 44 | C44: Taxable Income | AD44: =AD42+AC43 -> 120.4801593 | AE44: =AE42+AD43 -> 31.72652424 | AF44: =AF42+AE43 -> 32.5109576 | AG44: =AG42+AF43 -> 34.45036488 | AH44: =AH42+AG43 -> 35.30326542
A45: =ROW() -> 45 | C45: Income tax expense | F45: =SUMPRODUCT($AB$15:$AH$15,AB45:AH45) -> -68.05048307 | AD45: =-IF((SUM(AD27:AD31)+AD40+AC43)>0,(SUM(AD27:AD31)+AD40+AC43)*WACC!T$28/(1-(1-WACC!T$29)*WACC!T$28),0) -> -36.1440478 | AE45: =-IF((SUM(AE27:AE31)+AE40+AD43)>0,(SUM(AE27:AE31)+AE40+AD43)*WACC!U$28/(1-(1-WACC!U$29)*WACC!U$28),0) -> -9.517957271 | AF45: =-IF((SUM(AF27:AF31)+AF40+AE43)>0,(SUM(AF27:AF31)+AF40+AE43)*WACC!V$28/(1-(1-WACC!V$29)*WACC!V$28),0) -> -9.753287279 | AG45: =-IF((SUM(AG27:AG31)+AG40+AF43)>0,(SUM(AG27:AG31)+AG40+AF43)*WACC!W$28/(1-(1-WACC!W$29)*WACC!W$28),0) -> -10.33510946 | AH45: =-IF((SUM(AH27:AH31)+AH40+AG43)>0,(SUM(AH27:AH31)+AH40+AG43)*WACC!X$28/(1-(1-WACC!X$29)*WACC!X$28),0) -> -10.59097963
A46: =ROW() -> 46 | C46: Imputation Credits | F46: 34.02524153 | AD46: =-AD45*WACC!T29 -> 18.0720239 | AE46: =-AE45*WACC!U29 -> 4.758978636 | AF46: =-AF45*WACC!V29 -> 4.876643639 | AG46: =-AG45*WACC!W29 -> 5.167554731 | AH46: =-AH45*WACC!X29 -> 5.295489813
A47: =ROW() -> 47 | C47: Net Tax Expense | F47: -34.02524153 | AD47: =SUM(AD45:AD46) -> -18.0720239 | AE47: =SUM(AE45:AE46) -> -4.758978636 | AF47: -4.876643639 | AG47: -5.167554731 | AH47: -5.295489813
A48: =ROW() -> 48
A49: Equity Raising Costs, Nominal Calculations [m$ nominal]
A50: =ROW() -> 50 | B50: Yield / cost inputs (ERA Rate of Return Guideline, 16 Dec 2013)
A51: =ROW() -> 51 | C51: Dividend imputation/payout ratio | F51: 0.7
A52: =ROW() -> 52 | C52: Benchmark seasoned equity offering (SEO) raising cost | F52: 0.03
A53: =ROW() -> 53 | C53: Benchmark DRP cost (AER 2010 Victorian DNSP decision) | F53: 0.01
A54: =ROW() -> 54 | C54: Benchmark DRP take-up | F54: 0.25
A55: =ROW() -> 55
A56: =ROW() -> 56 | B56: Dividend assessment
A57: =ROW() -> 57 | C57: Tax payable | AD57: =-AD45 -> 36.1440478 | AE57: 9.517957271 | AF57: 9.753287279 | AG57: 10.33510946 | AH57: 10.59097963
A58: =ROW() -> 58 | C58: Dividends | AD58: =(AD57/WACC!T$28*(1-WACC!T$28)*$F$51) -> 59.03527807 | AE58: =(AE57/WACC!U$28*(1-WACC!U$28)*$F$51) -> 15.54599688 | AF58: =(AF57/WACC!V$28*(1-WACC!V$28)*$F$51) -> 15.93036922 | AG58: =(AG57/WACC!W$28*(1-WACC!W$28)*$F$51) -> 16.88067879 | AH58: =(AH57/WACC!X$28*(1-WACC!X$28)*$F$51) -> 17.29860006
A59: =ROW() -> 59 | C59: Dividend re-investment (DRP) | AD59: =AD58*$F$54 -> 14.75881952 | AE59: =AE58*$F$54 -> 3.886499219 | AF59: 3.982592306 | AG59: 4.220169697 | AH59: 4.324650014
A60: =ROW() -> 60
A61: =ROW() -> 61 | B61: Benchmark Cash Flows
A62: =ROW() -> 62 | C62: Revenue | AD62: =AD34 -> 376.2909171 | AE62: 293.7925358 | AF62: 296.3156777 | AG62: 286.6511762 | AH62: 289.4344681
A63: =ROW() -> 63 | C63: Opex | AD63: =AD40-AD64 -> -204.5087749 | AE63: -212.191738 | AF63: -214.6012786 | AG63: -203.930877 | AH63: -206.6617098
A64: =ROW() -> 64 | C64: Interest | AD64: =AD38 -> -51.30198281 | AE64: -49.87427357 | AF64: -49.20344146 | AG64: -48.26993434 | AH64: -47.46949289
A65: =ROW() -> 65 | C65: Tax | AD65: =AD45 -> -36.1440478 | AE65: -9.517957271 | AF65: -9.753287279 | AG65: -10.33510946 | AH65: -10.59097963
A66: =ROW() -> 66 | C66: Internal cash flow | AD66: =SUM(AD62:AD65) -> 84.33611153 | AE66: 22.20856697 | AF66: 22.75767032 | AG66: 24.11525541 | AH66: 24.71228579
A67: =ROW() -> 67 | C67: Dividend | AD67: =-AD58 -> -59.03527807 | AE67: -15.54599688 | AF67: -15.93036922 | AG67: -16.88067879 | AH67: -17.29860006
A68: =ROW() -> 68 | C68: Dividend reinvestment | AD68: =AD59 -> 14.75881952 | AE68: 3.886499219 | AF68: 3.982592306 | AG68: 4.220169697 | AH68: 4.324650014
A69: =ROW() -> 69 | C69: Retained cash flow | AD69: =SUM(AD66:AD68) -> 40.05965298 | AE69: 10.54906931 | AF69: 10.8098934 | AG69: 11.45474632 | AH69: 11.73833575
A70: =ROW() -> 70
A71: =ROW() -> 71 | B71: Benchmark capex funding
A72: =ROW() -> 72 | C72: Capex | AD72: =Inputs!AD681 -> 50.70303483 | AE72: =Inputs!AE681 -> 36.28221761 | AF72: =Inputs!AF681 -> 22.79896563 | AG72: =Inputs!AG681 -> 33.93223197 | AH72: =Inputs!AH681 -> 22.18911531
A73: =ROW() -> 73 | C73: less Debt Component | AD73: =(AE19-AD19)*WACC!T$25 -> -51.57909108 | AE73: =(AF19-AE19)*WACC!U$25 -> -24.23526378 | AF73: =(AG19-AF19)*WACC!V$25 -> -33.72496844 | AG73: =(AH19-AG19)*WACC!W$25 -> -28.91768228 | AH73: =(AI19-AH19)*WACC!X$25 -> -37.25103907
A74: =ROW() -> 74 | C74: Equity Component | AD74: =AD72-AD73 -> 102.2821259 | AE74: 60.51748139 | AF74: 56.52393407 | AG74: 62.84991425 | AH74: 59.44015438
A75: =ROW() -> 75 | C75: Retained cash flows | AD75: =AD69 -> 40.05965298 | AE75: 10.54906931 | AF75: 10.8098934 | AG75: 11.45474632 | AH75: 11.73833575
A76: =ROW() -> 76 | C76: Equity Required (SEO) | AD76: =AD74-AD75 -> 62.22247294 | AE76: 49.96841208 | AF76: 45.71404067 | AG76: 51.39516793 | AH76: 47.70181863
A77: =ROW() -> 77
A78: =ROW() -> 78 | B78: Equity raising costs
A79: =ROW() -> 79 | C79: External Equity Raising Costs | AD79: =AD76*$F$52 -> 1.866674188 | AE79: =AE76*$F$52 -> 1.499052362 | AF79: 1.37142122 | AG79: 1.541855038 | AH79: 1.431054559
A80: =ROW() -> 80 | C80: DRP cost | AD80: =AD59*$F$53 -> 0.1475881952 | AE80: =AE59*$F$53 -> 0.03886499219 | AF80: 0.03982592306 | AG80: 0.04220169697 | AH80: 0.04324650014
A81: =ROW() -> 81 | C81: Total Equity Raising Costs | AD81: =SUM(AD79:AD80) -> 2.014262383 | AE81: =SUM(AE79:AE80) -> 1.537917355 | AF81: 1.411247143 | AG81: 1.584056735 | AH81: 1.474301059
A82: =ROW() -> 82 | C82: Equity Raising Costs (capitalised and included in RAB) | AD82: =MAX(0,SUM(AD79:AD80)) -> 2.014262383 | AE82: =MAX(0,SUM(AE79:AE80)) -> 1.537917355 | AF82: 1.411247143 | AG82: 1.584056735 | AH82: 1.474301059
A83: =ROW() -> 83 | C83: Equity Raising Costs (manual entry) | AD83: =SolverSheet!I40 -> 2.014262383 | AE83: =SolverSheet!J40 -> 1.537917355 | AF83: =SolverSheet!K40 -> 1.411247143 | AG83: =SolverSheet!L40 -> 1.584056735 | AH83: =SolverSheet!M40 -> 1.474301059
A84: =ROW() -> 84 | C84: ="Total Equity Raising Costs [Real " & Inputs!$E$28 & " $M]" -> Total Equity Raising Costs [Real 31/12/2019 $M] | AD84: =AD83/AD12 -> 1.968721427 | AE84: 1.486056551 | AF84: 1.348154071 | AG84: 1.496033425 | AH84: 1.3765464

Sheet RebateableServices
A1: =Main!A1 -> ERA, DBNGP Tariff Model, Final Decision, April 2021
A2: =MID(CELL("filename",A1),FIND("]",CELL("filename",A1))+1,256) -> \[DBNGP-DBP-AA5-D227177-20210401-Public.XLSM]RebateableServices
A3: Ref. | B3: =COLUMN() -> 2 | C3: =COLUMN() -> 3 | D3: =COLUMN() -> 4 | E3: =COLUMN() -> 5 | F3: =COLUMN() -> 6 | G3: =COLUMN() -> 7 | H3: =COLUMN() -> 8 | I3: =COLUMN() -> 9 | J3: =COLUMN() -> 10 | K3: =COLUMN() -> 11 | L3: =COLUMN() -> 12 | M3: =COLUMN() -> 13 | N3: =COLUMN() -> 14 | Q3: =COLUMN() -> 17 | R3: =COLUMN() -> 18 | S3: =COLUMN() -> 19 | T3: =COLUMN() -> 20 | U3: =COLUMN() -> 21 | V3: =COLUMN() -> 22 | W3: =COLUMN() -> 23 | X3: =COLUMN() -> 24 | Y3: =COLUMN() -> 25 | Z3: =COLUMN() -> 26 | AA3: =COLUMN() -> 27 | AB3: =COLUMN() -> 28 | AC3: =COLUMN() -> 29 | AD3: =COLUMN() -> 30 | AE3: =COLUMN() -> 31 | AF3: =COLUMN() -> 32 | AG3: =COLUMN() -> 33 | AH3: =COLUMN() -> 34
A5: Regulatory Period | I5: =Inputs!I$5 -> AA1 | J5: =Inputs!J$5 -> AA1 | K5: =Inputs!K$5 -> AA1 | L5: =Inputs!L$5 -> AA1 | M5: =Inputs!M$5 -> AA1 | N5: =Inputs!N$5 -> AA2 | O5: =Inputs!O$5 -> AA2 | P5: =Inputs!P$5 -> AA2 | Q5: =Inputs!Q$5 -> AA2 | R5: =Inputs!R$5 -> AA2 | S5: =Inputs!S$5 -> AA2 | T5: =Inputs!T$5 -> AA3 | U5: =Inputs!U$5 -> AA3 | V5: =Inputs!V$5 -> AA3 | W5: =Inputs!W$5 -> AA3 | X5: =Inputs!X$5 -> AA3 | Y5: =Inputs!Y$5 -> AA4 | Z5: =Inputs!Z$5 -> AA4 | AA5: =Inputs!AA$5 -> AA4 | AB5: =Inputs!AB$5 -> AA4 | AC5: =Inputs!AC$5 -> AA4 | AD5: =Inputs!AD$5 -> AA5 | AE5: =Inputs!AE$5 -> AA5 | AF5: =Inputs!AF$5 -> AA5 | AG5: =Inputs!AG$5 -> AA5 | AH5: =Inputs!AH$5 -> AA5
A6: Year | H6: =Inputs!H$6 -> 1999 | I6: =Inputs!I$6 -> 2000 | J6: =Inputs!J$6 -> 2001 | K6: =Inputs!K$6 -> 2002 | L6: =Inputs!L$6 -> 2003 | M6: =Inputs!M$6 -> 2004 | N6: =Inputs!N$6 -> 2005 | O6: =Inputs!O$6 -> 2006 | P6: =Inputs!P$6 -> 2007 | Q6: =Inputs!Q$6 -> 2008 | R6: =Inputs!R$6 -> 2009 | S6: =Inputs!S$6 -> 2010 | T6: =Inputs!T$6 -> 2011 | U6: =Inputs!U$6 -> 2012 | V6: =Inputs!V$6 -> 2013 | W6: =Inputs!W$6 -> 2014 | X6: =Inputs!X$6 -> 2015 | Y6: =Inputs!Y$6 -> 2016 | Z6: =Inputs!Z$6 -> 2017 | AA6: =Inputs!AA$6 -> 2018 | AB6: =Inputs!AB$6 -> 2019 | AC6: =Inputs!AC$6 -> 2020 | AD6: =Inputs!AD$6 -> 2021 | AE6: =Inputs!AE$6 -> 2022 | AF6: =Inputs!AF$6 -> 2023 | AG6: =Inputs!AG$6 -> 2024 | AH6: =Inputs!AH$6 -> 2025
A7: Days | H7: =Inputs!H$7 -> 365 | I7: =Inputs!I$7 -> 366 | J7: =Inputs!J$7 -> 365 | K7: =Inputs!K$7 -> 365 | L7: =Inputs!L$7 -> 365 | M7: =Inputs!M$7 -> 366 | N7: =Inputs!N$7 -> 365 | O7: =Inputs!O$7 -> 365 | P7: =Inputs!P$7 -> 365 | Q7: =Inputs!Q$7 -> 366 | R7: =Inputs!R$7 -> 365 | S7: =Inputs!S$7 -> 365 | T7: =Inputs!T$7 -> 365 | U7: =Inputs!U$7 -> 366 | V7: =Inputs!V$7 -> 365 | W7: =Inputs!W$7 -> 365 | X7: =Inputs!X$7 -> 365 | Y7: =Inputs!Y$7 -> 366 | Z7: =Inputs!Z$7 -> 365 | AA7: =Inputs!AA$7 -> 365 | AB7: =Inputs!AB$7 -> 365 | AC7: =Inputs!AC$7 -> 366 | AD7: =Inputs!AD$7 -> 365 | AE7: =Inputs!AE$7 -> 365 | AF7: =Inputs!AF$7 -> 365 | AG7: =Inputs!AG$7 -> 366 | AH7: =Inputs!AH$7 -> 365
A8: Project Year | H8: =Inputs!H$8 -> 0 | I8: =Inputs!I$8 -> 1 | J8: =Inputs!J$8 -> 2 | K8: =Inputs!K$8 -> 3 | L8: =Inputs!L$8 -> 4 | M8: =Inputs!M$8 -> 5 | N8: =Inputs!N$8 -> 6 | O8: =Inputs!O$8 -> 7 | P8: =Inputs!P$8 -> 8 | Q8: =Inputs!Q$8 -> 9 | R8: =Inputs!R$8 -> 10 | S8: =Inputs!S$8 -> 11 | T8: =Inputs!T$8 -> 12 | U8: =Inputs!U$8 -> 13 | V8: =Inputs!V$8 -> 14 | W8: =Inputs!W$8 -> 15 | X8: =Inputs!X$8 -> 16 | Y8: =Inputs!Y$8 -> 17 | Z8: =Inputs!Z$8 -> 18 | AA8: =Inputs!AA$8 -> 19 | AB8: =Inputs!AB$8 -> 20 | AC8: =Inputs!AC$8 -> 21 | AD8: =Inputs!AD$8 -> 22 | AE8: =Inputs!AE$8 -> 23 | AF8: =Inputs!AF$8 -> 24 | AG8: =Inputs!AG$8 -> 25 | AH8: =Inputs!AH$8 -> 26
A9: Financial Parameters
A10: =ROW() -> 10 | B10: Modelled Inflation
A11: =ROW() -> 11 | C11: Inflation | AB11: =Inputs!AB$27 -> 0.01840490798 | AC11: =Inputs!AC$27 -> 0.0115 | AD11: =Inputs!AD$27 -> 0.0115 | AE11: =Inputs!AE$27 -> 0.0115 | AF11: =Inputs!AF$27 -> 0.0115 | AG11: =Inputs!AG$27 -> 0.0115 | AH11: =Inputs!AH$27 -> 0.0115
A12: =ROW() -> 12 | C12: =Inputs!C28 -> Inflation Factor (convert 31/12/2019 $ to nominal $) | AB12: =Inputs!AB$28 -> 1 | AC12: =Inputs!AC$28 -> 1.0115 | AD12: =Inputs!AD$28 -> 1.02313225 | AE12: =Inputs!AE$28 -> 1.034898271 | AF12: =Inputs!AF$28 -> 1.046799601 | AG12: =Inputs!AG$28 -> 1.058837796 | AH12: =Inputs!AH$28 -> 1.071014431
A13: =ROW() -> 13 | C13: =Inputs!C29 -> Inflation Factor (convert nominal to real 31/12/2019 $) | AB13: =Inputs!AB$29 -> 1 | AC13: =Inputs!AC$29 -> 0.9886307464 | AD13: =Inputs!AD$29 -> 0.9773907528 | AE13: =Inputs!AE$29 -> 0.9662785494 | AF13: =Inputs!AF$29 -> 0.9552926836 | AG13: =Inputs!AG$29 -> 0.9444317188 | AH13: =Inputs!AH$29 -> 0.9336942351
A14: =ROW() -> 14 | B14: Real Post Tax WACC
A15: =ROW() -> 15 | C15: WACC | AB15: =Inputs!AB$34 -> 0 | AC15: =Inputs!AC$34 -> 0.02365694513 | AD15: =Inputs!AD$34 -> 0.02365694513 | AE15: =Inputs!AE$34 -> 0.02365694513 | AF15: =Inputs!AF$34 -> 0.02365694513 | AG15: =Inputs!AG$34 -> 0.02365694513 | AH15: =Inputs!AH$34 -> 0.02365694513
A16: =ROW() -> 16 | C16: Discounting Factor | AB16: =Inputs!AB$35 -> 1 | AC16: =Inputs!AC$35 -> 0.9768897723 | AD16: =Inputs!AD$35 -> 0.9543136271 | AE16: =Inputs!AE$35 -> 0.9322592219 | AF16: =Inputs!AF$35 -> 0.910714499 | AG16: =Inputs!AG$35 -> 0.8896676795 | AH16: =Inputs!AH$35 -> 0.8691072568
A17: =ROW() -> 17 | B17: Nominal Post Tax WACC
A18: =ROW() -> 18 | C18: WACC | AB18: =Inputs!AB$37 -> 0 | AC18: =Inputs!AC$37 -> 0.035429 | AD18: =Inputs!AD$37 -> 0.035429 | AE18: =Inputs!AE$37 -> 0.035429 | AF18: =Inputs!AF$37 -> 0.035429 | AG18: =Inputs!AG$37 -> 0.035429 | AH18: =Inputs!AH$37 -> 0.035429
A19: =ROW() -> 19 | C19: Discounting Factor | AB19: =Inputs!AB$38 -> 1 | AC19: =Inputs!AC$38 -> 0.9657832647 | AD19: =Inputs!AD$38 -> 0.9327373144 | AE19: =Inputs!AE$38 -> 0.9008220886 | AF19: =Inputs!AF$38 -> 0.8699988977 | AG19: =Inputs!AG$38 -> 0.8402303757 | AH19: =Inputs!AH$38 -> 0.8114804354
A20: =ROW() -> 20
A21: Rebateable Non-Reference Service Revenue [m$ nominal]
A22: =ROW() -> 22 | B22: Date range
A23: =ROW() -> 23 | C23: From | AE23: =Inputs!AE1906 -> 2021-01-01 | AF23: =Inputs!AF1906 -> 2021-10-01 | AG23: =Inputs!AG1906 -> 2022-10-01 | AH23: =Inputs!AH1906 -> 2023-10-01
A24: =ROW() -> 24 | C24: to | AE24: =Inputs!AE1907 -> 2021-09-30 | AF24: =Inputs!AF1907 -> 2022-09-30 | AG24: =Inputs!AG1907 -> 2023-09-30 | AH24: =Inputs!AH1907 -> 2024-09-30
A25: =ROW() -> 25
A26: =ROW() -> 26 | B26: Actual Rebateable Non-Reference Service Revenue (Sep-Sep m$ OD)
A27: =ROW() -> 27 | C27: Peaker Service | AE27: =Inputs!AE1910 -> 0 | AF27: =Inputs!AF1910 -> 0 | AG27: =Inputs!AG1910 -> 0 | AH27: =Inputs!AH1910 -> 0
A28: =ROW() -> 28 | C28: Other Reserved Service | AE28: =Inputs!AE1911 -> 0 | AF28: =Inputs!AF1911 -> 0 | AG28: =Inputs!AG1911 -> 0 | AH28: =Inputs!AH1911 -> 0
A29: =ROW() -> 29 | C29: Ullage Service | AE29: =Inputs!AE1912 -> 0 | AF29: =Inputs!AF1912 -> 0 | AG29: =Inputs!AG1912 -> 0 | AH29: =Inputs!AH1912 -> 0
A30: =ROW() -> 30 | C30: Spot Capacity | AE30: =Inputs!AE1913 -> 0 | AF30: =Inputs!AF1913 -> 0 | AG30: =Inputs!AG1913 -> 0 | AH30: =Inputs!AH1913 -> 0
A31: =ROW() -> 31 | C31: Subtotal | AE31: =SUM(AE27:AE30) -> 0 | AF31: =SUM(AF27:AF30) -> 0 | AG31: 0 | AH31: 0
A32: =ROW() -> 32 | B32: Inflation Factor
A33: =ROW() -> 33 | C33: ="Inflation Factor (convert nominal to real "&Inputs!$E$28&" $)" -> Inflation Factor (convert nominal to real 31/12/2019 $) | AE33: =AE13 -> 0.9662785494 | AF33: =AF13 -> 0.9552926836 | AG33: 0.9444317188 | AH33: 0.9336942351
A34: =ROW() -> 34 | C34: ="Compounded Sep-Sep to real "&Inputs!$E$28&"$ WACC" -> Compounded Sep-Sep to real 31/12/2019$ WACC | AE34: =AE33*(1+AE15)^0.5 -> 0.9776413393 | AF34: =AF33*(1+AF15)^0.5 -> 0.966526287 | AG34: =AG33*(1+AG15)^0.5 -> 0.9555376046 | AH34: =AH33*(1+AH15)^0.5 -> 0.9446738553
A35: =ROW() -> 35 | C35: Convert to nominal $ | AE35: =AE34*AE$12 -> 1.011759332 | AF35: =AF34*AF$12 -> 1.011759332 | AG35: 1.011759332 | AH35: 1.011759332
A36: =ROW() -> 36 | B36: Actual Rebateable Non-Reference Service Revenue (m$ nominal)
A37: =ROW() -> 37 | C37: Peaker Service | AE37: =AE27*AE$35 -> 0 | AF37: =AF27*AF$35 -> 0 | AG37: 0 | AH37: 0
A38: =ROW() -> 38 | C38: Other Reserved Service | AE38: =AE28*AE$35 -> 0 | AF38: 0 | AG38: 0 | AH38: 0
A39: =ROW() -> 39 | C39: Ullage Service | AE39: =AE29*AE$35 -> 0 | AF39: 0 | AG39: 0 | AH39: 0
A40: =ROW() -> 40 | C40: Spot Capacity | AE40: =AE30*AE$35 -> 0 | AF40: 0 | AG40: 0 | AH40: 0
A41: =ROW() -> 41 | C41: Subtotal | AE41: =SUM(AE37:AE40) -> 0 | AF41: =SUM(AF37:AF40) -> 0 | AG41: 0 | AH41: 0
A42: =ROW() -> 42 | B42: % applicable to reference tariff
A43: =ROW() -> 43 | C43: Peaker Service | AE43: =Inputs!AE1916 -> 0.7 | AF43: =Inputs!AF1916 -> 0.7 | AG43: =Inputs!AG1916 -> 0.7 | AH43: =Inputs!AH1916 -> 0.7
A44: =ROW() -> 44 | C44: Other Reserved Service | AE44: =Inputs!AE1917 -> 0.7 | AF44: =Inputs!AF1917 -> 0.7 | AG44: =Inputs!AG1917 -> 0.7 | AH44: =Inputs!AH1917 -> 0.7
A45: =ROW() -> 45 | C45: Ullage Service | AE45: =Inputs!AE1918 -> 0.7 | AF45: =Inputs!AF1918 -> 0.7 | AG45: =Inputs!AG1918 -> 0.7 | AH45: =Inputs!AH1918 -> 0.7
A46: =ROW() -> 46 | C46: Spot Capacity | AE46: =Inputs!AE1919 -> 0.7 | AF46: =Inputs!AF1919 -> 0.7 | AG46: =Inputs!AG1919 -> 0.7 | AH46: =Inputs!AH1919 -> 0.7
A47: =ROW() -> 47 | B47: Applicable Rebateable Amount (Model)
A48: =ROW() -> 48 | C48: Peaker Service | AE48: =AE37*AE43 -> 0 | AF48: 0 | AG48: 0 | AH48: 0
A49: =ROW() -> 49 | C49: Other Reserved Service | AE49: =AE38*AE44 -> 0 | AF49: 0 | AG49: 0 | AH49: 0
A50: =ROW() -> 50 | C50: Ullage Service | AE50: =AE39*AE45 -> 0 | AF50: 0 | AG50: 0 | AH50: 0
A51: =ROW() -> 51 | C51: Spot Capacity | AE51: =AE40*AE46 -> 0 | AF51: 0 | AG51: 0 | AH51: 0
A52: =ROW() -> 52 | C52: Total | AE52: =SUM(AE48:AE51) -> 0 | AF52: =SUM(AF48:AF51) -> 0 | AG52: =SUM(AG48:AG51) -> 0 | AH52: =SUM(AH48:AH51) -> 0
A53: =ROW() -> 53
A54: ="Rebateable Non-Reference Service Revenue [m$ "&Inputs!$E$28&"]" -> Rebateable Non-Reference Service Revenue [m$ 31/12/2019]
A55: =ROW() -> 55 | B55: Applicable Rebateable Amount
A56: =ROW() -> 56 | C56: Peaker Service | AE56: =AE48/AE$12 -> 0 | AF56: 0 | AG56: 0 | AH56: 0
A57: =ROW() -> 57 | C57: Other Reserved Service | AE57: =AE49/AE$12 -> 0 | AF57: 0 | AG57: 0 | AH57: 0
A58: =ROW() -> 58 | C58: Ullage Service | AE58: =AE50/AE$12 -> 0 | AF58: 0 | AG58: 0 | AH58: 0
A59: =ROW() -> 59 | C59: Spot Capacity | AE59: =AE51/AE$12 -> 0 | AF59: 0 | AG59: 0 | AH59: 0
A60: =ROW() -> 60 | C60: Total | AE60: =SUM(AE56:AE59) -> 0 | AF60: 0 | AG60: 0 | AH60: 0
A61: =ROW() -> 61
A62: Rebateable Non-Reference Service Tariff
A63: =ROW() -> 63
A64: =ROW() -> 64 | B64: Load F/H Equivalent [TJ/day]
A65: =ROW() -> 65 | C65: Capacity Reservation | AE65: =Load!AE$23 -> 633.7274668 | AF65: =Load!AF$23 -> 614.4453247 | AG65: =Load!AG$23 -> 562.5505593 | AH65: =Load!AH$23 -> 556.4677381
A66: =ROW() -> 66 | C66: Commodity | AE66: =Load!AE$24 -> 571.9544494 | AF66: =Load!AF$24 -> 554.4596002 | AG66: =Load!AG$24 -> 513.1202217 | AH66: =Load!AH$24 -> 509.1529237
A67: =ROW() -> 67 | C67: Total | AE67: =SUM(AE65:AE66) -> 1205.681916 | AF67: 1168.904925 | AG67: 1075.670781 | AH67: 1065.620662
A68: =ROW() -> 68
A69: =ROW() -> 69 | B69: Applied Tariff Allocation
A70: =ROW() -> 70 | C70: Capacity Reservation | AE70: =CoS_Tariff_Revenue!AI187 -> 0.9415941264 | AF70: =CoS_Tariff_Revenue!AJ187 -> 0.9415941264 | AG70: =CoS_Tariff_Revenue!AK187 -> 0.9415941264 | AH70: =CoS_Tariff_Revenue!AL187 -> 0.9415941264
A71: =ROW() -> 71 | C71: Commodity | AE71: =CoS_Tariff_Revenue!AI188 -> 0.05840587361 | AF71: =CoS_Tariff_Revenue!AJ188 -> 0.05840587361 | AG71: =CoS_Tariff_Revenue!AK188 -> 0.05840587361 | AH71: =CoS_Tariff_Revenue!AL188 -> 0.05840587361
A72: =ROW() -> 72 | C72: Total | AE72: =SUM(AE70:AE71) -> 1 | AF72: 1 | AG72: 1 | AH72: 1
A73: =ROW() -> 73
A74: =ROW() -> 74 | B74: Rebateable Forecast Total System F/H Equivalent Tariff [$ OD /GJ/day]
A75: =ROW() -> 75 | C75: Capacity Reservation Charge | AE75: =AE85*AE$7 -> 0 | AF75: =AF85*AF$12 -> 0 | AG75: 0 | AH75: 0
A76: =ROW() -> 76 | C76: Commodity Charge | AE76: =AE86*AE$7 -> 0 | AF76: =AF86*AF$12 -> 0 | AG76: 0 | AH76: 0
A77: =ROW() -> 77 | C77: Total | AE77: =SUM(AE75:AE76) -> 0 | AF77: 0 | AG77: 0 | AH77: 0
A78: =ROW() -> 78 | B78: Rebateable Forecast Tariff Revenue [m$ OD]
A79: =ROW() -> 79 | C79: Capacity Reservation | AE79: =AE$81*AE70 -> 0 | AF79: =AF$81*AF70 -> 0 | AG79: 0 | AH79: 0
A80: =ROW() -> 80 | C80: Commodity | AE80: =AE$81*AE71 -> 0 | AF80: 0 | AG80: 0 | AH80: 0
A81: =ROW() -> 81 | C81: Total Revenue | AE81: =AE52 -> 0 | AF81: =AF52 -> 0 | AG81: 0 | AH81: 0
A82: =ROW() -> 82
A83: =ROW() -> 83
A84: =ROW() -> 84 | B84: ="Rebateable Forecast Total System F/H Equivalent Tariff [$ /GJ/day] [$ "&TEXT(Inputs!$E$28,"dd/mm/yyyy")&"]" -> Rebateable Forecast Total System F/H Equivalent Tariff [$ /GJ/day] [$ 31/12/2019]
A85: =ROW() -> 85 | C85: Capacity Reservation Charge | AE85: =(IF(AE$7>0,(AE89/AE$7)/AE65*1000,0)) -> 0 | AF85: =(IF(AF$7>0,(AF89/AF$7)/AF65*1000,0)) -> 0 | AG85: 0 | AH85: 0
A86: =ROW() -> 86 | C86: Commodity Charge | AE86: =(IF(AE$7>0,(AE90/AE$7)/AE66*1000,0)) -> 0 | AF86: =(IF(AF$7>0,(AF90/AF$7)/AF66*1000,0)) -> 0 | AG86: 0 | AH86: 0
A87: =ROW() -> 87 | C87: Full Haul Tariff | AE87: =SUM(AE85:AE86) -> 0 | AF87: =SUM(AF85:AF86) -> 0 | AG87: 0 | AH87: 0
A88: =ROW() -> 88 | B88: ="Rebateable Forecast Tariff Revenue [m$ "&TEXT(Inputs!$E$28,"dd/mm/yyyy")&"]" -> Rebateable Forecast Tariff Revenue [m$ 31/12/2019]
A89: =ROW() -> 89 | C89: Capacity Reservation | AE89: =AE$91*AE70 -> 0 | AF89: =AF$91*AF70 -> 0 | AG89: 0 | AH89: 0
A90: =ROW() -> 90 | C90: Commodity | AE90: =AE$91*AE71 -> 0 | AF90: =AF$91*AF71 -> 0 | AG90: 0 | AH90: 0
A91: =ROW() -> 91 | C91: Tariff Revenue | AE91: =AE60 -> 0 | AF91: =AF60 -> 0 | AG91: 0 | AH91: 0

Sheet ProposedApproach
A1: =Main!A1 -> ERA, DBNGP Tariff Model, Final Decision, April 2021
A2: =MID(CELL("filename",A1),FIND("]",CELL("filename",A1))+1,256) -> \[DBNGP-DBP-AA5-D227177-20210401-Public.XLSM]ProposedApproach | AB2: <------ Asset_NoReclass | AC2: Principled Approach | AD2: Proposed Approach ---->
A3: Ref. | B3: =COLUMN() -> 2 | C3: =COLUMN() -> 3 | D3: =COLUMN() -> 4 | E3: =COLUMN() -> 5 | F3: =COLUMN() -> 6 | G3: =COLUMN() -> 7 | H3: =COLUMN() -> 8 | I3: =COLUMN() -> 9 | J3: =COLUMN() -> 10 | K3: =COLUMN() -> 11 | L3: =COLUMN() -> 12 | M3: =COLUMN() -> 13 | N3: =COLUMN() -> 14 | O3: =COLUMN() -> 15 | P3: =COLUMN() -> 16 | Q3: =COLUMN() -> 17 | R3: =COLUMN() -> 18 | S3: =COLUMN() -> 19 | T3: =COLUMN() -> 20 | U3: =COLUMN() -> 21 | V3: =COLUMN() -> 22 | W3: =COLUMN() -> 23 | X3: =COLUMN() -> 24 | Y3: =COLUMN() -> 25 | Z3: =COLUMN() -> 26 | AA3: =COLUMN() -> 27 | AB3: =COLUMN() -> 28 | AC3: =COLUMN() -> 29 | AD3: =COLUMN() -> 30 | AE3: =COLUMN() -> 31 | AF3: =COLUMN() -> 32 | AG3: =COLUMN() -> 33 | AH3: =COLUMN() -> 34
A5: Regulatory Period | I5: =Inputs!I$5 -> AA1 | J5: =Inputs!J$5 -> AA1 | K5: =Inputs!K$5 -> AA1 | L5: =Inputs!L$5 -> AA1 | M5: =Inputs!M$5 -> AA1 | N5: =Inputs!N$5 -> AA2 | O5: =Inputs!O$5 -> AA2 | P5: =Inputs!P$5 -> AA2 | Q5: =Inputs!Q$5 -> AA2 | R5: =Inputs!R$5 -> AA2 | S5: =Inputs!S$5 -> AA2 | T5: =Inputs!T$5 -> AA3 | U5: =Inputs!U$5 -> AA3 | V5: =Inputs!V$5 -> AA3 | W5: =Inputs!W$5 -> AA3 | X5: =Inputs!X$5 -> AA3 | Y5: =Inputs!Y$5 -> AA4 | Z5: =Inputs!Z$5 -> AA4 | AA5: =Inputs!AA$5 -> AA4 | AB5: =Inputs!AB$5 -> AA4 | AC5: =Inputs!AC$5 -> AA4 | AD5: =Inputs!AD$5 -> AA5 | AE5: =Inputs!AE$5 -> AA5 | AF5: =Inputs!AF$5 -> AA5 | AG5: =Inputs!AG$5 -> AA5 | AH5: =Inputs!AH$5 -> AA5
A6: Year | H6: =Inputs!H$6 -> 1999 | I6: =Inputs!I$6 -> 2000 | J6: =Inputs!J$6 -> 2001 | K6: =Inputs!K$6 -> 2002 | L6: =Inputs!L$6 -> 2003 | M6: =Inputs!M$6 -> 2004 | N6: =Inputs!N$6 -> 2005 | O6: =Inputs!O$6 -> 2006 | P6: =Inputs!P$6 -> 2007 | Q6: =Inputs!Q$6 -> 2008 | R6: =Inputs!R$6 -> 2009 | S6: =Inputs!S$6 -> 2010 | T6: =Inputs!T$6 -> 2011 | U6: =Inputs!U$6 -> 2012 | V6: =Inputs!V$6 -> 2013 | W6: =Inputs!W$6 -> 2014 | X6: =Inputs!X$6 -> 2015 | Y6: =Inputs!Y$6 -> 2016 | Z6: =Inputs!Z$6 -> 2017 | AA6: =Inputs!AA$6 -> 2018 | AB6: =Inputs!AB$6 -> 2019 | AC6: =Inputs!AC$6 -> 2020 | AD6: =Inputs!AD$6 -> 2021 | AE6: =Inputs!AE$6 -> 2022 | AF6: =Inputs!AF$6 -> 2023 | AG6: =Inputs!AG$6 -> 2024 | AH6: =Inputs!AH$6 -> 2025
A7: Days | H7: =Inputs!H$7 -> 365 | I7: =Inputs!I$7 -> 366 | J7: =Inputs!J$7 -> 365 | K7: =Inputs!K$7 -> 365 | L7: =Inputs!L$7 -> 365 | M7: =Inputs!M$7 -> 366 | N7: =Inputs!N$7 -> 365 | O7: =Inputs!O$7 -> 365 | P7: =Inputs!P$7 -> 365 | Q7: =Inputs!Q$7 -> 366 | R7: =Inputs!R$7 -> 365 | S7: =Inputs!S$7 -> 365 | T7: =Inputs!T$7 -> 365 | U7: =Inputs!U$7 -> 366 | V7: =Inputs!V$7 -> 365 | W7: =Inputs!W$7 -> 365 | X7: =Inputs!X$7 -> 365 | Y7: =Inputs!Y$7 -> 366 | Z7: =Inputs!Z$7 -> 365 | AA7: =Inputs!AA$7 -> 365 | AB7: =Inputs!AB$7 -> 365 | AC7: =Inputs!AC$7 -> 366 | AD7: =Inputs!AD$7 -> 365 | AE7: =Inputs!AE$7 -> 365 | AF7: =Inputs!AF$7 -> 365 | AG7: =Inputs!AG$7 -> 366 | AH7: =Inputs!AH$7 -> 365
A8: Project Year | H8: =Inputs!H$8 -> 0 | I8: =Inputs!I$8 -> 1 | J8: =Inputs!J$8 -> 2 | K8: =Inputs!K$8 -> 3 | L8: =Inputs!L$8 -> 4 | M8: =Inputs!M$8 -> 5 | N8: =Inputs!N$8 -> 6 | O8: =Inputs!O$8 -> 7 | P8: =Inputs!P$8 -> 8 | Q8: =Inputs!Q$8 -> 9 | R8: =Inputs!R$8 -> 10 | S8: =Inputs!S$8 -> 11 | T8: =Inputs!T$8 -> 12 | U8: =Inputs!U$8 -> 13 | V8: =Inputs!V$8 -> 14 | W8: =Inputs!W$8 -> 15 | X8: =Inputs!X$8 -> 16 | Y8: =Inputs!Y$8 -> 17 | Z8: =Inputs!Z$8 -> 18 | AA8: =Inputs!AA$8 -> 19 | AB8: =Inputs!AB$8 -> 20 | AC8: =Inputs!AC$8 -> 21 | AD8: =Inputs!AD$8 -> 22 | AE8: =Inputs!AE$8 -> 23 | AF8: =Inputs!AF$8 -> 24 | AG8: =Inputs!AG$8 -> 25 | AH8: =Inputs!AH$8 -> 26
A9: Financial Parameters
A10: =ROW() -> 10 | B10: Modelled Inflation
A11: =ROW() -> 11 | C11: ="Inflation Factor (convert " &Inputs!$E$28& " $ to nominal $)" -> Inflation Factor (convert 31/12/2019 $ to nominal $) | H11: =Inputs!H28 -> 0.5941194304 | I11: =Inputs!I28 -> 0.6285888897 | J11: =Inputs!J28 -> 0.6482173318 | K11: =Inputs!K28 -> 0.6678457739 | L11: =Inputs!L28 -> 0.6836442761 | M11: =Inputs!M28 -> 0.7013577482 | N11: =Inputs!N28 -> 0.7209861903 | O11: =Inputs!O28 -> 0.7444445724 | P11: =Inputs!P28 -> 0.7664667269 | Q11: =Inputs!Q28 -> 0.7947125338 | R11: =Inputs!R28 -> 0.811468521 | S11: =Inputs!S28 -> 0.8330119331 | T11: =Inputs!T28 -> 0.8588640275 | U11: =Inputs!U28 -> 0.8777969019 | V11: =Inputs!V28 -> 0.9018932874 | W11: =Inputs!W28 -> 0.917383821 | X11: =Inputs!X28 -> 0.9328743546 | Y11: =Inputs!Y28 -> 0.9466437177 | Z11: =Inputs!Z28 -> 0.9647160069 | AA11: =Inputs!AA28 -> 0.9819277108 | AB11: =Inputs!AB28 -> 1 | AC11: =Inputs!AC28 -> 1.0115 | AD11: =Inputs!AD28 -> 1.02313225 | AE11: =Inputs!AE28 -> 1.034898271 | AF11: =Inputs!AF28 -> 1.046799601 | AG11: =Inputs!AG28 -> 1.058837796 | AH11: =Inputs!AH28 -> 1.071014431
A12: =ROW() -> 12 | C12: ="Inflation Factor (convert nominal to real "&Inputs!$E$28&" $)" -> Inflation Factor (convert nominal to real 31/12/2019 $) | H12: =Inputs!H29 -> 1.683163264 | I12: =Inputs!I29 -> 1.590864898 | J12: =Inputs!J29 -> 1.542692475 | K12: =Inputs!K29 -> 1.497351693 | L12: =Inputs!L29 -> 1.462749027 | M12: =Inputs!M29 -> 1.425805878 | N12: =Inputs!N29 -> 1.386989118 | O12: =Inputs!O29 -> 1.343283351 | P12: =Inputs!P29 -> 1.304688077 | Q12: =Inputs!Q29 -> 1.258316633 | R12: =Inputs!R29 -> 1.232333694 | S12: =Inputs!S29 -> 1.200462995 | T12: =Inputs!T29 -> 1.164328657 | U12: =Inputs!U29 -> 1.139215686 | V12: =Inputs!V29 -> 1.108778626 | W12: =Inputs!W29 -> 1.090056285 | X12: =Inputs!X29 -> 1.07195572 | Y12: =Inputs!Y29 -> 1.056363636 | Z12: =Inputs!Z29 -> 1.036574487 | AA12: =Inputs!AA29 -> 1.018404908 | AB12: =Inputs!AB29 -> 1 | AC12: =Inputs!AC29 -> 0.9886307464 | AD12: =Inputs!AD29 -> 0.9773907528 | AE12: =Inputs!AE29 -> 0.9662785494 | AF12: =Inputs!AF29 -> 0.9552926836 | AG12: =Inputs!AG29 -> 0.9444317188 | AH12: =Inputs!AH29 -> 0.9336942351
A13: ="DBNGP Asset Account Summary [m$ "&TEXT(Inputs!$E$28,"dd/mm/yyyy")&"]" -> DBNGP Asset Account Summary [m$ 31/12/2019]
A27: DBNGP and BEP Assets
A28: =ROW() -> 28 | B28: DBNGP Asset Including BEP
A29: =ROW() -> 29 | C29: Opening Value | I29: =I35+I42 -> 2608.90306 | J29: 2553.390658 | K29: 2494.521683 | L29: 2431.956686 | M29: 2368.068156 | N29: 2307.484274 | O29: 2308.471125 | P29: 2761.204847 | Q29: 2700.988376 | R29: 3412.62029 | S29: 3328.511278 | T29: 4020.677942 | U29: 4080.461855 | V29: 4004.345511 | W29: 3915.351121 | X29: =X35+X42 -> 3814.919396 | Y29: =Y35+Y42 -> 3726.31782 | Z29: 3639.303541 | AA29: 3555.311758 | AB29: 3469.130585 | AC29: 3393.130089 | AD29: =AD35+AD42 -> 3331.497475 | AE29: 3201.960968 | AF29: 3122.978852 | AG29: 3028.896158 | AH29: 2944.803912
A30: =ROW() -> 30 | C30: Capex | I30: 8.048978154 | J30: 5.040611844 | K30: 1.879554216 | L30: 1.13209695 | M30: 4.814526422 | N30: 72.35976823 | O30: 516.1540624 | P30: 6.818227898 | Q30: 789.4898201 | R30: 1.5795629 | S30: 742.9262251 | T30: 170.3195658 | U30: 35.05240507 | V30: 23.03399318 | W30: 13.42431892 | X30: =X36+X43 -> 24.0774892 | Y30: 18.33823878 | Z30: 24.0231836 | AA30: 22.57230732 | AB30: 26.41905884 | AC30: 30.9433036 | AD30: =AD36+AD43 -> 49.55667738 | AE30: 35.0587286 | AF30: 21.77968506 | AG30: 32.04667616 | AH30: 20.71784905
A31: =ROW() -> 31 | C31: Redundant & Disposed Asset | I31: 0 | J31: 0 | K31: 0 | L31: 0 | M31: 0 | N31: -8.360463955 | O31: 0 | P31: -0.04204545337 | Q31: -0.03177033202 | R31: -0.1014450127 | S31: -0.01329458569 | T31: -5.147322122 | U31: -0.4229668787 | V31: -0.8425955491 | W31: -2.377115297 | X31: =X37+X44 -> -0.8357667587 | Y31: 0 | Z31: 0 | AA31: 0 | AB31: 0 | AC31: 0 | AD31: =AD37+AD44 -> 0 | AE31: 0 | AF31: 0 | AG31: 0 | AH31: 0
A32: =ROW() -> 32 | C32: Depreciation | I32: -63.56138005 | J32: -63.90958646 | K32: -64.44455185 | L32: -65.0206265 | M32: -65.39840848 | N32: -63.01245344 | O32: -63.42034004 | P32: -66.99265409 | Q32: -77.82613578 | R32: -85.58712944 | S32: -87.61843053 | T32: -105.3883301 | U32: -110.7457826 | V32: -111.1857875 | W32: -111.4789291 | X32: =X38+X45 -> -111.8432982 | Y32: -105.3525174 | Z32: -108.0149664 | AA32: -108.7534806 | AB32: -102.4195553 | AC32: -92.5759175 | AD32: =AD38+AD45 -> -179.0931836 | AE32: -114.0408449 | AF32: -115.8623792 | AG32: -116.1389217 | AH32: -117.4363995
A33: =ROW() -> 33 | C33: Closing Value | H33: =H39+H47 -> 2608.90306 | I33: 2553.390658 | J33: 2494.521683 | K33: 2431.956686 | L33: 2368.068156 | M33: 2307.484274 | N33: 2308.471125 | O33: 2761.204847 | P33: 2700.988376 | Q33: 3412.62029 | R33: 3328.511278 | S33: 4020.677942 | T33: 4080.461855 | U33: 4004.345511 | V33: 3915.351121 | W33: 3814.919396 | X33: 3726.31782 | Y33: 3639.303541 | Z33: 3555.311758 | AA33: 3469.130585 | AB33: 3393.130089 | AC33: 3331.497475 | AD33: =AD39+AD47 -> 3201.960968 | AE33: 3122.978852 | AF33: 3028.896158 | AG33: 2944.803912 | AH33: 2848.085362
A34: =ROW() -> 34 | B34: BEP Asset Account
A35: =ROW() -> 35 | C35: Opening Value (Starting 01/12/2010) | T35: =T133 -> 0 | U35: =U133 -> 22.63836826 | V35: =V133 -> 22.2412039 | W35: 21.84403955 | X35: 21.44687519 | Y35: 21.04971084 | Z35: 20.65254648 | AA35: 20.25538213 | AB35: 19.85821777 | AC35: 19.46105342 | AD35: =AD133 -> 19.06388906 | AE35: 18.60998694 | AF35: 18.15608482 | AG35: 17.7021827 | AH35: 17.24828058
A36: =ROW() -> 36 | C36: Capex | T36: =T134 -> 22.63836826 | U36: =U134 -> 0 | V36: 0 | W36: 0 | X36: 0 | Y36: 0 | Z36: 0 | AA36: 0 | AB36: 0 | AC36: 0 | AD36: =AD134 -> 0 | AE36: 0 | AF36: 0 | AG36: 0 | AH36: 0
A37: =ROW() -> 37 | C37: Redundant & Disposed Asset | T37: =T135 -> 0 | U37: 0 | V37: 0 | W37: 0 | X37: 0 | Y37: 0 | Z37: 0 | AA37: 0 | AB37: 0 | AC37: 0 | AD37: =AD135 -> 0 | AE37: 0 | AF37: 0 | AG37: 0 | AH37: 0
A38: =ROW() -> 38 | C38: Depreciation | T38: 0 | U38: -0.3971643554 | V38: -0.3971643554 | W38: -0.3971643554 | X38: -0.3971643554 | Y38: -0.3971643554 | Z38: -0.3971643554 | AA38: -0.3971643554 | AB38: -0.3971643554 | AC38: -0.3971643554 | AD38: =AD136 -> -0.4539021205 | AE38: -0.4539021205 | AF38: -0.4539021205 | AG38: -0.4539021205 | AH38: -0.4539021205
A39: =ROW() -> 39 | C39: Closing Value | T39: =SUM(T35:T38) -> 22.63836826 | U39: =SUM(U35:U38) -> 22.2412039 | V39: =SUM(V35:V38) -> 21.84403955 | W39: =SUM(W35:W38) -> 21.44687519 | X39: =SUM(X35:X38) -> 21.04971084 | Y39: =SUM(Y35:Y38) -> 20.65254648 | Z39: 20.25538213 | AA39: 19.85821777 | AB39: 19.46105342 | AC39: 19.06388906 | AD39: =SUM(AD35:AD38) -> 18.60998694 | AE39: 18.15608482 | AF39: 17.7021827 | AG39: 17.24828058 | AH39: 16.79437846
A40: DBNGP Assets
A41: =ROW() -> 41 | B41: DBNGP Asset
A42: =ROW() -> 42 | C42: Opening Value | I42: =H47 -> 2608.90306 | J42: =I47 -> 2553.390658 | K42: 2494.521683 | L42: 2431.956686 | M42: 2368.068156 | N42: 2307.484274 | O42: 2308.471125 | P42: 2761.204847 | Q42: 2700.988376 | R42: 3412.62029 | S42: 3328.511278 | T42: 4020.677942 | U42: 4057.823487 | V42: 3982.104307 | W42: 3893.507082 | X42: 3793.47252 | Y42: 3705.268109 | Z42: 3618.650995 | AA42: 3535.056376 | AB42: 3449.272367 | AC42: 3373.669035 | AD42: =AC47 -> 3312.433586 | AE42: =AD47 -> 3183.350982 | AF42: =AE47 -> 3104.822767 | AG42: =AF47 -> 3011.193975 | AH42: =AG47 -> 2927.555632
A43: =ROW() -> 43 | C43: Capex | I43: =I78 -> 8.048978154 | J43: =J78 -> 5.040611844 | K43: 1.879554216 | L43: 1.13209695 | M43: 4.814526422 | N43: 72.35976823 | O43: 516.1540624 | P43: 6.818227898 | Q43: 789.4898201 | R43: 1.5795629 | S43: 742.9262251 | T43: 147.6811976 | U43: 35.05240507 | V43: 23.03399318 | W43: 13.42431892 | X43: 24.0774892 | Y43: 18.33823878 | Z43: 24.0231836 | AA43: 22.57230732 | AB43: 26.41905884 | AC43: 30.9433036 | AD43: =AD78 -> 49.55667738 | AE43: 35.0587286 | AF43: 21.77968506 | AG43: 32.04667616 | AH43: 20.71784905
A44: =ROW() -> 44 | C44: Redundant & Disposed Asset | I44: =I90 -> 0 | J44: =J90 -> 0 | K44: 0 | L44: 0 | M44: 0 | N44: -8.360463955 | O44: 0 | P44: -0.04204545337 | Q44: -0.03177033202 | R44: -0.1014450127 | S44: -0.01329458569 | T44: -5.147322122 | U44: -0.4229668787 | V44: -0.8425955491 | W44: -2.377115297 | X44: -0.8357667587 | Y44: 0 | Z44: 0 | AA44: 0 | AB44: 0 | AC44: 0 | AD44: =AD90 -> 0 | AE44: 0 | AF44: 0 | AG44: 0 | AH44: 0
A45: =ROW() -> 45 | C45: Depreciation | I45: =I102 -> -63.56138005 | J45: =J102 -> -63.90958646 | K45: -64.44455185 | L45: -65.0206265 | M45: -65.39840848 | N45: -63.01245344 | O45: -63.42034004 | P45: -66.99265409 | Q45: -77.82613578 | R45: -85.58712944 | S45: -87.61843053 | T45: -105.3883301 | U45: -110.3486183 | V45: -110.7886232 | W45: -111.0817648 | X45: -111.4461339 | Y45: -104.9553531 | Z45: -107.617802 | AA45: -108.3563162 | AB45: -102.0223909 | AC45: -92.17875315 | AD45: =AD102 -> -178.6392815 | AE45: -113.5869428 | AF45: -115.4084771 | AG45: -115.6850196 | AH45: -116.9824974
A46: =ROW() -> 46
A47: =ROW() -> 47 | C47: Closing Value | H47: =H114 -> 2608.90306 | I47: =SUM(I42:I46) -> 2553.390658 | J47: 2494.521683 | K47: 2431.956686 | L47: 2368.068156 | M47: 2307.484274 | N47: 2308.471125 | O47: 2761.204847 | P47: =SUM(P42:P46) -> 2700.988376 | Q47: =SUM(Q42:Q46) -> 3412.62029 | R47: 3328.511278 | S47: =SUM(S42:S46)-S50 -> 4020.677942 | T47: 4057.823487 | U47: 3982.104307 | V47: 3893.507082 | W47: 3793.47252 | X47: 3705.268109 | Y47: =SUM(Y42:Y46)-Y50 -> 3618.650995 | Z47: 3535.056376 | AA47: 3449.272367 | AB47: 3373.669035 | AC47: 3312.433586 | AD47: =SUM(AD42:AD46)-AD50 -> 3183.350982 | AE47: =SUM(AE42:AE46) -> 3104.822767 | AF47: 3011.193975 | AG47: 2927.555632 | AH47: 2831.290984
A48: =ROW() -> 48 | G48: Check | H48: =IF(ROUND(H47-Inputs!H109,6)=0,"OK","Wrong") -> Wrong | I48: =IF(ROUND(I47-Inputs!I109,6)=0,"OK","Wrong") -> Wrong | J48: =IF(ROUND(J47-Inputs!J109,6)=0,"OK","Wrong") -> Wrong | K48: =IF(ROUND(K47-Inputs!K109,6)=0,"OK","Wrong") -> Wrong | L48: =IF(ROUND(L47-Inputs!L109,6)=0,"OK","Wrong") -> Wrong | M48: =IF(ROUND(M47-Inputs!M109,6)=0,"OK","Wrong") -> Wrong | N48: =IF(ROUND(N47-N200-N275,6)=0,"OK","Wrong") -> OK | O48: =IF(ROUND(O47-O200-O275,6)=0,"OK","Wrong") -> OK | P48: OK | Q48: OK | R48: OK | S48: OK | T48: OK | U48: OK | V48: OK | W48: OK | X48: OK | Y48: OK | Z48: OK | AA48: OK | AB48: OK | AC48: OK | AD48: =IF(ROUND(AD47-AD200-AD275,6)=0,"OK","Wrong") -> OK | AE48: OK | AF48: OK | AG48: OK | AH48: OK
A49: =ROW() -> 49 | B49: Over Depreciation
A50: =ROW() -> 50 | C50: Over Depreciation | S50: =S126 -> -36.87216348 | Y50: =Y126 -> 0
A51: =ROW() -> 51 | C51: Rolled Forward Value | T51: =S50*(1+WACC!M34) -> -38.99998684
A52: =ROW() -> 52
A53: ="DBNGP Asset Account [m$ "&TEXT(Inputs!$E$28,"dd/mm/yyyy")&"]" -> DBNGP Asset Account [m$ 31/12/2019]
A54: Asset Accounts
A55: =ROW() -> 55 | B55: Opening Value
A56: =ROW() -> 56 | C56: Pipeline | I56: =H104 -> 2126.082083 | J56: 2089.27927 | K56: 2050.30468 | L56: 2011.372667 | M56: 1972.341146 | N56: 1934.186735 | O56: 1905.440156 | P56: 2175.086304 | Q56: 2137.316441 | R56: 2713.904421 | S56: 2663.880479 | T56: 3216.083005 | U56: 3208.523307 | V56: 3163.543819 | W56: 3107.060584 | X56: 3045.939702 | Y56: 2986.953945 | Z56: 2924.541674 | AA56: 2862.073102 | AB56: 2799.653191 | AC56: =PrincipledApproach!AC56 -> 2694.290607 | AD56: 2632.804491 | AE56: 2562.223651 | AF56: 2491.642811 | AG56: 2421.061971 | AH56: 2350.481131
A57: =ROW() -> 57 | C57: Compression | I57: =H105 -> 356.1635421 | J57: 333.9666307 | K57: 316.9383756 | L57: 297.7436692 | M57: 278.006621 | N57: 258.5964098 | O57: 292.5236002 | P57: 481.0156663 | Q57: 459.9504717 | R57: 592.721561 | S57: 563.983461 | T57: 688.790204 | U57: 687.1419242 | V57: 657.8881037 | W57: 625.0618409 | X57: 589.326078 | Y57: 554.6648941 | Z57: 518.1168414 | AA57: 483.2499324 | AB57: 445.9476486 | AC57: =PrincipledApproach!AC57 -> 379.6819915 | AD57: 361.2068968 | AE57: 345.9451272 | AF57: 327.8945869 | AG57: 310.3238906 | AH57: 292.4531913
A58: =ROW() -> 58 | C58: Metering | I58: =H106 -> 29.20819445 | J58: 29.34914886 | K58: 29.41310633 | L58: 29.17889171 | M58: 28.36052572 | N58: 29.96879019 | O58: 29.11939387 | P58: 28.23782832 | Q58: 27.32116818 | R58: 26.40012111 | S58: 25.57295293 | T58: 30.71771149 | U58: 30.15500872 | V58: 31.2793291 | W58: 31.34290917 | X58: 29.75244968 | Y58: 32.55511147 | Z58: 36.31903795 | AA58: 38.7766742 | AB58: 44.43300926 | AC58: =PrincipledApproach!AC58 -> 42.43423416 | AD58: 49.5430741 | AE58: 36.61443191 | AF58: 36.26751694 | AG58: 36.08454755 | AH58: 35.65263818
A59: =ROW() -> 59 | C59: Other Depreciable | I59: =H107 -> 80.21659485 | J59: 83.56296348 | K59: 80.63287668 | L59: 76.42881298 | M59: 72.12721837 | N59: 67.49969376 | O59: 67.05992313 | P59: 62.69798244 | Q59: 59.89215915 | R59: 61.30496372 | S59: 55.97022921 | T59: 65.02229618 | U59: 108.4168567 | V59: 104.192843 | W59: 103.6313564 | X59: 102.2555489 | Y59: 104.9992329 | Z59: 103.8120072 | AA59: 104.7327895 | AB59: 102.3493204 | AC59: =PrincipledApproach!AC59 -> 45.9770412 | AD59: 48.38923515 | AE59: 42.90045267 | AF59: 40.62129985 | AG59: 37.8265812 | AH59: 35.1925841
A60: =ROW() -> 60 | C60: Computers and Motor Vehicles | I60: =H108 -> 0 | J60: =I108 -> 0 | K60: =J108 -> 0 | L60: =K108 -> 0 | M60: =L108 -> 0 | N60: =M108 -> 0 | O60: =N108 -> 0 | P60: =O108 -> 0 | Q60: =P108 -> 0 | R60: =Q108 -> 0 | S60: =R108 -> 0 | T60: =S108 -> 0 | U60: =T108 -> 0 | V60: =U108 -> 0 | W60: =V108 -> 0 | X60: =W108 -> 0 | Y60: =X108 -> 0 | Z60: =Y108 -> 3.492916192 | AA60: =Z108 -> 6.043089188 | AB60: =AA108 -> 9.064029911 | AC60: =PrincipledApproach!AC60 -> 28.16503563 | AD60: =AC108 -> 32.34771548 | AE60: =AD108 -> 30.27904161 | AF60: =AE108 -> 27.58277061 | AG60: =AF108 -> 24.27462175 | AH60: =AG108 -> 23.43216391
A61: =ROW() -> 61 | C61: Cathodic/Corrosion Protection | I61: 0 | J61: 0 | K61: 0 | L61: 0 | M61: 0 | N61: 0 | O61: 0 | P61: 0 | Q61: 0 | R61: 0 | S61: 0 | T61: 0 | U61: 0 | V61: 0 | W61: 0 | X61: 0 | Y61: 0 | Z61: 0.8831525338 | AA61: 2.459600726 | AB61: 7.39283462 | AC61: =PrincipledApproach!AC61 -> 54.9436818 | AD61: 58.22243145 | AE61: 57.36683082 | AF61: 55.72772737 | AG61: 54.11898189 | AH61: 52.11010339
A62: =ROW() -> 62 | C62: SCADA , ECI And Comms | I62: 0 | J62: 0 | K62: 0 | L62: 0 | M62: 0 | N62: 0 | O62: 0 | P62: 0 | Q62: 0 | R62: 0 | S62: 0 | T62: 0 | U62: 0 | V62: 0 | W62: 0 | X62: 0 | Y62: 0 | Z62: 5.522678107 | AA62: 11.97878417 | AB62: 14.91021319 | AC62: =PrincipledApproach!AC62 -> 102.8746075 | AD62: 104.8381891 | AE62: 78.01545032 | AF62: 90.36366044 | AG62: 90.87550636 | AH62: 93.77205032
A63: =ROW() -> 63 | C63: Building | I63: =H111 -> 0 | J63: =I111 -> 0 | K63: =J111 -> 0 | L63: =K111 -> 0 | M63: =L111 -> 0 | N63: =M111 -> 0 | O63: =N111 -> 0 | P63: =O111 -> 0 | Q63: =P111 -> 0 | R63: =Q111 -> 0 | S63: =R111 -> 0 | T63: =S111 -> 0 | U63: =T111 -> 3.540654415 | V63: =U111 -> 5.198912544 | W63: =V111 -> 6.199947543 | X63: =W111 -> 5.987646643 | Y63: =X111 -> 5.887015139 | Z63: =Y111 -> 5.688166728 | AA63: =Z111 -> 5.467883045 | AB63: =AA111 -> 5.247599361 | AC63: =PrincipledApproach!AC63 -> 5.027315677 | AD63: =AC111 -> 4.807031993 | AE63: =AD111 -> 7.762753816 | AF63: =AE111 -> 11.04465412 | AG63: =AF111 -> 11.69245759 | AH63: =AG111 -> 18.1561025
A64: =ROW() -> 64 | C64: Non-Depreciable | I64: =H112 -> 17.23264518 | J64: =I112 -> 17.23264518 | K64: 17.23264518 | L64: 17.23264518 | M64: 17.23264518 | N64: 17.23264518 | O64: 14.32805182 | P64: 14.16706645 | Q64: 16.50813532 | R64: 18.28922253 | S64: 19.10415644 | T64: 20.06472478 | U64: 20.04573592 | V64: 20.00129952 | W64: 20.21044364 | X64: 20.21109552 | Y64: 20.20791062 | Z64: =Y112 -> 20.27452078 | AA64: 20.27452078 | AB64: 20.27452078 | AC64: =PrincipledApproach!AC64 -> 20.27452078 | AD64: =AC112 -> 20.27452078 | AE64: =AD112 -> 20.27452078 | AF64: =AE112 -> 20.27452078 | AG64: =AF112 -> 20.27452078 | AH64: =AG112 -> 20.27452078
A65: =ROW() -> 65 | C65: Cost of Raising Equity | I65: 0 | J65: =I113 -> 0 | K65: =J113 -> 0 | L65: =K113 -> 0 | M65: =L113 -> 0 | N65: =M113 -> 0 | O65: =N113 -> 0 | P65: =O113 -> 0 | Q65: =P113 -> 0 | R65: =Q113 -> 0 | S65: =R113 -> 0 | T65: =S113 -> 0 | U65: =T113 -> 0 | V65: =U113 -> 0 | W65: =V113 -> 0 | X65: =W113 -> 0 | Y65: =X113 -> 0 | Z65: =Y113 -> 0 | AA65: =Z113 -> -4.899938547e-16 | AB65: =AA113 -> -9.799877094e-16 | AC65: =PrincipledApproach!AC65 -> -1.469981564e-15 | AD65: -1.959975419e-15 | AE65: 1.968721427 | AF65: 3.403219249 | AG65: 4.660896344 | AH65: 6.031146066
A66: =ROW() -> 66 | C66: Total | I66: =SUM(I56:I65) -> 2608.90306 | J66: =SUM(J56:J65) -> 2553.390658 | K66: 2494.521683 | L66: 2431.956686 | M66: 2368.068156 | N66: 2307.484274 | O66: 2308.471125 | P66: 2761.204847 | Q66: 2700.988376 | R66: 3412.62029 | S66: 3328.511278 | T66: 4020.677942 | U66: 4057.823487 | V66: 3982.104307 | W66: 3893.507082 | X66: 3793.47252 | Y66: 3705.268109 | Z66: 3618.650995 | AA66: 3535.056376 | AB66: 3449.272367 | AC66: 3373.669035 | AD66: =SUM(AD56:AD65) -> 3312.433586 | AE66: 3183.350982 | AF66: 3104.822767 | AG66: 3011.193975 | AH66: 2927.555632
A67: =ROW() -> 67 | B67: Capex | H67: Check | I67: =IF(ROUND(I66-I164-I227,6)=0,"OK","Wrong") -> OK | J67: =IF(ROUND(J66-J164-J227,6)=0,"OK","Wrong") -> OK | K67: OK | L67: OK | M67: OK | N67: OK | O67: OK | P67: OK | Q67: OK | R67: OK | S67: OK | T67: OK | U67: OK | V67: OK | W67: OK | X67: OK | Y67: OK | Z67: OK | AA67: OK | AB67: OK | AC67: OK | AD67: =IF(ROUND(AD66-AD164-AD227,6)=0,"OK","Wrong") -> OK | AE67: OK | AF67: OK | AG67: OK | AH67: OK
A68: =ROW() -> 68 | C68: Pipeline | I68: =I229 -> 2.207866895 | J68: =J229 -> 0.04642964408 | K68: 0.09573961908 | L68: 3.092251444e-05 | M68: 0.8857491082 | N68: 10.31032713 | O68: 308.794706 | P68: 1.495677711 | Q68: 621.0317997 | R68: 0 | S68: 588.1787289 | T68: 53.69268508 | U68: 16.63953968 | V68: 5.201817839 | W68: 0.6354269696 | X68: 2.77938422 | Y68: 0 | Z68: 0 | AA68: 0.08680207597 | AB68: 0.00888114375 | AC68: 0.2306430349 | AD68: 0 | AE68: 0 | AF68: 0 | AG68: 0 | AH68: 0
A69: =ROW() -> 69 | C69: Compression | I69: =I230 -> -3.175372793 | J69: 2.047144784 | K69: 0.1247520958 | L69: -0.1679204873 | M69: 0.2615894962 | N69: 57.16659117 | O69: 206.4651952 | P69: 0.1770702827 | Q69: 159.5886167 | R69: 0 | S69: 132.960128 | T69: 35.61412781 | U69: 9.451016998 | V69: 6.157275926 | W69: 3.333318723 | X69: 4.797671046 | Y69: 2.547186765 | Z69: 4.786236623 | AA69: 2.89911258 | AB69: 1.913767388 | AC69: 2.445226512 | AD69: 5.025718599 | AE69: 2.404471886 | AF69: 2.964464934 | AG69: 2.763277359 | AH69: 3.171774309
A70: =ROW() -> 70 | C70: Metering | I70: =I231 -> 0.9094866444 | J70: 0.8324896968 | K70: 0.5360007714 | L70: -0.04646742628 | M70: 2.381846189 | N70: 0 | O70: 0 | P70: 0 | Q70: 0 | R70: 0.09387888504 | S70: 5.708845842 | T70: 0.4070601295 | U70: 2.107275128 | V70: 1.058186517 | W70: 1.306647501 | X70: 3.924757404 | Y70: 3.498003272 | Z70: 3.66731456 | AA70: 6.923555793 | AB70: 5.403261786 | AC70: 8.267206504 | AD70: 1.752969025 | AE70: 1.197163217 | AF70: 1.401014249 | AG70: 1.198774737 | AH70: 1.377485317
A71: =ROW() -> 71 | C71: Other Depreciable | I71: =I232 -> 8.106997409 | J71: 2.114547718 | K71: 1.12306173 | L71: 1.346453941 | M71: 1.285341628 | N71: 4.882849931 | O71: 1.055146466 | P71: 2.804411026 | Q71: 7.088316517 | R71: 0.6707501103 | S71: 15.27893935 | T71: 54.44565901 | U71: 5.054599582 | V71: 9.193744074 | W71: 8.138917809 | X71: 12.45762924 | Y71: 2.373558095 | Z71: 4.986905168 | AA71: 1.777233237 | AB71: 2.676406141 | AC71: 4.32714147 | AD71: 2.782845903 | AE71: 1.685352174 | AF71: 1.174130144 | AG71: 0.8758156793 | AH71: 1.597361963
A72: =ROW() -> 72 | C72: Computers and Motor Vehicles | I72: =I233 -> 0 | J72: 0 | K72: 0 | L72: 0 | M72: 0 | N72: 0 | O72: 0 | P72: 0 | Q72: 0 | R72: 0 | S72: 0 | T72: 0 | U72: 0 | V72: 0 | W72: 0 | X72: 0 | Y72: 3.492916192 | Z72: 2.550172996 | AA72: 3.020940723 | AB72: 2.521185578 | AC72: 5.017835506 | AD72: 14.972046 | AE72: 2.92016516 | AF72: 2.382285733 | AG72: 4.720245761 | AH72: 2.731283986
A73: =ROW() -> 73 | C73: Cathodic/Corrosion Protection | I73: =I234 -> 0 | J73: 0 | K73: 0 | L73: 0 | M73: 0 | N73: 0 | O73: 0 | P73: 0 | Q73: 0 | R73: 0 | S73: 0 | T73: 0 | U73: 0 | V73: 0 | W73: 0 | X73: 0 | Y73: 0.8831525338 | Z73: 1.576448192 | AA73: 4.933233895 | AB73: 7.366636398 | AC73: 4.258752785 | AD73: 3.420413642 | AE73: 2.864938398 | AF73: 3.08629226 | AG73: 2.885186654 | AH73: 1.667214701
A74: =ROW() -> 74 | C74: SCADA , ECI And Comms | I74: =I235 -> 0 | J74: 0 | K74: 0 | L74: 0 | M74: 0 | N74: 0 | O74: 0 | P74: 0 | Q74: 0 | R74: 0 | S74: 0 | T74: 0 | U74: 0 | V74: 0 | W74: 0 | X74: 0 | Y74: 5.522678107 | Z74: 6.456106064 | AA74: 2.93142902 | AB74: 6.528920406 | AC74: 6.396497794 | AD74: 16.5632254 | AE74: 19.04225061 | AF74: 8.529943278 | AG74: 11.38023271 | AH74: 6.564149588
A75: =ROW() -> 75 | C75: Building | I75: 0 | J75: 0 | K75: 0 | L75: 0 | M75: 0 | N75: 0 | O75: 0 | P75: 0 | Q75: 0 | R75: 0 | S75: 0 | T75: 3.540654415 | U75: 1.844410081 | V75: 1.213824706 | W75: 0.009356033686 | X75: 0.1212321889 | Y75: 0.02074381273 | Z75: 0 | AA75: 0 | AB75: 0 | AC75: 0 | AD75: 3.070737383 | AE75: 3.458330608 | AF75: 0.8934003909 | AG75: 6.727109838 | AH75: 2.232032783
A76: =ROW() -> 76 | C76: Non-Depreciable | I76: =I237 -> 0 | J76: 0 | K76: 0 | L76: 0 | M76: 0 | N76: 0 | O76: -0.1609853768 | P76: 2.341068877 | Q76: 1.78108721 | R76: 0.8149339043 | S76: 0.7995829634 | T76: -0.01898885366 | U76: -0.0444364075 | V76: 0.2091441216 | W76: 0.0006518819614 | X76: -0.003184898358 | Y76: 0 | Z76: 0 | AA76: 0 | AB76: 0 | AC76: 0 | AD76: 0 | AE76: 0 | AF76: 0 | AG76: 0 | AH76: 0
A77: =ROW() -> 77 | C77: Cost of Raising Equity | I77: =I238 -> 0 | J77: 0 | K77: 0 | L77: 0 | M77: 0 | N77: 0 | O77: 0 | P77: 0 | Q77: 0 | R77: 0 | S77: 0 | T77: 0 | U77: 0 | V77: 0 | W77: 0 | X77: 0 | Y77: 0 | Z77: 0 | AA77: 0 | AB77: 0 | AC77: 0 | AD77: 1.968721427 | AE77: 1.486056551 | AF77: 1.348154071 | AG77: 1.496033425 | AH77: 1.3765464
A78: =ROW() -> 78 | C78: Total | I78: =SUM(I68:I77) -> 8.048978154 | J78: =SUM(J68:J77) -> 5.040611844 | K78: =SUM(K68:K77) -> 1.879554216 | L78: =SUM(L68:L77) -> 1.13209695 | M78: =SUM(M68:M77) -> 4.814526422 | N78: =SUM(N68:N77) -> 72.35976823 | O78: =SUM(O68:O77) -> 516.1540624 | P78: =SUM(P68:P77) -> 6.818227898 | Q78: =SUM(Q68:Q77) -> 789.4898201 | R78: =SUM(R68:R77) -> 1.5795629 | S78: =SUM(S68:S77) -> 742.9262251 | T78: =SUM(T68:T77) -> 147.6811976 | U78: =SUM(U68:U77) -> 35.05240507 | V78: =SUM(V68:V77) -> 23.03399318 | W78: =SUM(W68:W77) -> 13.42431892 | X78: =SUM(X68:X77) -> 24.0774892 | Y78: =SUM(Y68:Y77) -> 18.33823878 | Z78: =SUM(Z68:Z77) -> 24.0231836 | AA78: =SUM(AA68:AA77) -> 22.57230732 | AB78: =SUM(AB68:AB77) -> 26.41905884 | AC78: =SUM(AC68:AC77) -> 30.9433036 | AD78: 49.55667738 | AE78: 35.0587286 | AF78: 21.77968506 | AG78: 32.04667616 | AH78: =SUM(AH68:AH77) -> 20.71784905
A79: =ROW() -> 79 | B79: Redundant & Disposed Asset | H79: Check | I79: =IF(ROUND(I78-Inputs!I693,6)=0,"OK","Wrong") -> OK | J79: =IF(ROUND(J78-Inputs!J693,6)=0,"OK","Wrong") -> OK | K79: =IF(ROUND(K78-Inputs!K693,6)=0,"OK","Wrong") -> OK | L79: =IF(ROUND(L78-Inputs!L693,6)=0,"OK","Wrong") -> OK | M79: =IF(ROUND(M78-Inputs!M693,6)=0,"OK","Wrong") -> OK | N79: =IF(ROUND(N78-Inputs!N693,6)=0,"OK","Wrong") -> OK | O79: =IF(ROUND(O78-Inputs!O693,6)=0,"OK","Wrong") -> OK | P79: =IF(ROUND(P78-Inputs!P693,6)=0,"OK","Wrong") -> OK | Q79: =IF(ROUND(Q78-Inputs!Q693,6)=0,"OK","Wrong") -> OK | R79: =IF(ROUND(R78-Inputs!R693,6)=0,"OK","Wrong") -> OK | S79: =IF(ROUND(S78-Inputs!S693,6)=0,"OK","Wrong") -> OK | T79: =IF(ROUND(T78-Inputs!T693,6)=0,"OK","Wrong") -> OK | U79: =IF(ROUND(U78-Inputs!U693,6)=0,"OK","Wrong") -> OK | V79: =IF(ROUND(V78-Inputs!V693,6)=0,"OK","Wrong") -> OK | W79: =IF(ROUND(W78-Inputs!W693,6)=0,"OK","Wrong") -> OK | X79: =IF(ROUND(X78-Inputs!X693,6)=0,"OK","Wrong") -> OK | Y79: =IF(ROUND(Y78-Inputs!Y693,6)=0,"OK","Wrong") -> OK | Z79: =IF(ROUND(Z78-Inputs!Z693,6)=0,"OK","Wrong") -> OK | AA79: =IF(ROUND(AA78-Inputs!AA693,6)=0,"OK","Wrong") -> OK | AB79: =IF(ROUND(AB78-Inputs!AB693,6)=0,"OK","Wrong") -> OK | AC79: =IF(ROUND(AC78-Inputs!AC693,6)=0,"OK","Wrong") -> OK | AD79: =IF(ROUND(AD78-Inputs!AD693,6)=0,"OK","Wrong") -> OK | AE79: =IF(ROUND(AE78-Inputs!AE693,6)=0,"OK","Wrong") -> OK | AF79: =IF(ROUND(AF78-Inputs!AF693,6)=0,"OK","Wrong") -> OK | AG79: =IF(ROUND(AG78-Inputs!AG693,6)=0,"OK","Wrong") -> OK | AH79: =IF(ROUND(AH78-Inputs!AH693,6)=0,"OK","Wrong") -> OK
A80: =ROW() -> 80 | C80: Pipeline | I80: =I166+I241 -> 0 | J80: =J166+J241 -> 0 | K80: 0 | L80: 0 | M80: 0 | N80: 0 | O80: 0 | P80: 0 | Q80: 0 | R80: 0 | S80: 0 | T80: 0 | U80: 0 | V80: 0 | W80: 0 | X80: 0 | Y80: 0 | Z80: 0 | AA80: 0 | AB80: 0 | AC80: 0 | AD80: 0 | AE80: 0 | AF80: 0 | AG80: 0 | AH80: 0
A81: =ROW() -> 81 | C81: Compression | I81: =I167+I242 -> 0 | J81: 0 | K81: 0 | L81: 0 | M81: 0 | N81: -5.359758893 | O81: 0 | P81: 0 | Q81: 0 | R81: 0 | S81: 0 | T81: -0.08935803079 | U81: 0 | V81: -0.01601200471 | W81: -0.01944318253 | X81: -0.2974934607 | Y81: 0 | Z81: 0 | AA81: 0 | AB81: 0 | AC81: 0 | AD81: 0 | AE81: 0 | AF81: 0 | AG81: 0 | AH81: 0
A82: =ROW() -> 82 | C82: Metering | I82: =I168+I243 -> 0 | J82: 0 | K82: 0 | L82: 0 | M82: 0 | N82: 0 | O82: 0 | P82: 0 | Q82: 0 | R82: 0 | S82: 0 | T82: 0 | U82: 0 | V82: 0 | W82: -1.838755962 | X82: 0 | Y82: 0 | Z82: 0 | AA82: 0 | AB82: 0 | AC82: 0 | AD82: 0 | AE82: 0 | AF82: 0 | AG82: 0 | AH82: 0
A83: =ROW() -> 83 | C83: Other Depreciable | I83: =I169+I244 -> 0 | J83: 0 | K83: 0 | L83: 0 | M83: 0 | N83: -0.09611170235 | O83: 0 | P83: -0.04204545337 | Q83: -0.03177033202 | R83: -0.1014450127 | S83: -0.01329458569 | T83: -5.057964091 | U83: -0.4229668787 | V83: -0.8265835443 | W83: -0.5189161527 | X83: -0.538273298 | Y83: 0 | Z83: 0 | AA83: 0 | AB83: 0 | AC83: 0 | AD83: 0 | AE83: 0 | AF83: 0 | AG83: 0 | AH83: 0
A84: =ROW() -> 84 | C84: Computers and Motor Vehicles | I84: =I170+I245 -> 0 | J84: 0 | K84: 0 | L84: 0 | M84: 0 | N84: 0 | O84: 0 | P84: 0 | Q84: 0 | R84: 0 | S84: 0 | T84: 0 | U84: 0 | V84: 0 | W84: 0 | X84: 0 | Y84: 0 | Z84: 0 | AA84: 0 | AB84: 0 | AC84: 0 | AD84: 0 | AE84: 0 | AF84: 0 | AG84: 0 | AH84: 0
A85: =ROW() -> 85 | C85: Cathodic/Corrosion Protection | I85: =I171+I246 -> 0 | J85: 0 | K85: 0 | L85: 0 | M85: 0 | N85: 0 | O85: 0 | P85: 0 | Q85: 0 | R85: 0 | S85: 0 | T85: 0 | U85: 0 | V85: 0 | W85: 0 | X85: 0 | Y85: 0 | Z85: 0 | AA85: 0 | AB85: 0 | AC85: 0 | AD85: 0 | AE85: 0 | AF85: 0 | AG85: 0 | AH85: 0
A86: =ROW() -> 86 | C86: SCADA , ECI And Comms | I86: =I172+I247 -> 0 | J86: 0 | K86: 0 | L86: 0 | M86: 0 | N86: 0 | O86: 0 | P86: 0 | Q86: 0 | R86: 0 | S86: 0 | T86: 0 | U86: 0 | V86: 0 | W86: 0 | X86: 0 | Y86: 0 | Z86: 0 | AA86: 0 | AB86: 0 | AC86: 0 | AD86: 0 | AE86: 0 | AF86: 0 | AG86: 0 | AH86: 0
A87: =ROW() -> 87 | C87: Building | I87: =I173+I248 -> 0 | J87: 0 | K87: 0 | L87: 0 | M87: 0 | N87: 0 | O87: 0 | P87: 0 | Q87: 0 | R87: 0 | S87: 0 | T87: 0 | U87: 0 | V87: 0 | W87: 0 | X87: 0 | Y87: 0 | Z87: 0 | AA87: 0 | AB87: 0 | AC87: 0 | AD87: 0 | AE87: 0 | AF87: 0 | AG87: 0 | AH87: 0
A88: =ROW() -> 88 | C88: Non-Depreciable | I88: =I174+I249 -> 0 | J88: 0 | K88: 0 | L88: 0 | M88: 0 | N88: -2.90459336 | O88: 0 | P88: 0 | Q88: 0 | R88: 0 | S88: 0 | T88: 0 | U88: 0 | V88: 0 | W88: 0 | X88: 0 | Y88: 0 | Z88: 0 | AA88: 0 | AB88: 0 | AC88: 0 | AD88: 0 | AE88: 0 | AF88: 0 | AG88: 0 | AH88: 0
A89: =ROW() -> 89 | C89: Cost of Raising Equity | I89: =I175+I250 -> 0 | J89: 0 | K89: 0 | L89: 0 | M89: 0 | N89: 0 | O89: 0 | P89: 0 | Q89: 0 | R89: 0 | S89: 0 | T89: 0 | U89: 0 | V89: 0 | W89: 0 | X89: 0 | Y89: 0 | Z89: 0 | AA89: 0 | AB89: 0 | AC89: 0 | AD89: 0 | AE89: 0 | AF89: 0 | AG89: 0 | AH89: 0
A90: =ROW() -> 90 | C90: Total | I90: =SUM(I80:I89) -> 0 | J90: =SUM(J80:J89) -> 0 | K90: =SUM(K80:K89) -> 0 | L90: =SUM(L80:L89) -> 0 | M90: =SUM(M80:M89) -> 0 | N90: =SUM(N80:N89) -> -8.360463955 | O90: =SUM(O80:O89) -> 0 | P90: =SUM(P80:P89) -> -0.04204545337 | Q90: =SUM(Q80:Q89) -> -0.03177033202 | R90: =SUM(R80:R89) -> -0.1014450127 | S90: =SUM(S80:S89) -> -0.01329458569 | T90: =SUM(T80:T89) -> -5.147322122 | U90: =SUM(U80:U89) -> -0.4229668787 | V90: =SUM(V80:V89) -> -0.8425955491 | W90: =SUM(W80:W89) -> -2.377115297 | X90: =SUM(X80:X89) -> -0.8357667587 | Y90: =SUM(Y80:Y89) -> 0 | Z90: =SUM(Z80:Z89) -> 0 | AA90: =SUM(AA80:AA89) -> 0 | AB90: =SUM(AB80:AB89) -> 0 | AC90: =SUM(AC80:AC89) -> 0 | AD90: 0 | AE90: 0 | AF90: 0 | AG90: 0 | AH90: =SUM(AH80:AH89) -> 0
A91: =ROW() -> 91 | B91: Depreciation | H91: Check | I91: =IF(ROUND(I90-I176-I251,6)=0,"OK","Wrong") -> OK | J91: =IF(ROUND(J90-J176-J251,6)=0,"OK","Wrong") -> OK | K91: OK | L91: OK | M91: OK | N91: OK | O91: OK | P91: OK | Q91: OK | R91: OK | S91: OK | T91: OK | U91: OK | V91: OK | W91: OK | X91: OK | Y91: OK | Z91: OK | AA91: OK | AB91: OK | AC91: OK | AD91: =IF(ROUND(AD90-AD176-AD251,6)=0,"OK","Wrong") -> OK | AE91: OK | AF91: OK | AG91: OK | AH91: OK
A92: =ROW() -> 92 | C92: Pipeline | I92: =I178+I253 -> -39.01068043 | J92: -39.02101986 | K92: -39.02775251 | L92: -39.03155165 | M92: -39.04015983 | N92: -39.05690637 | O92: -39.14855823 | P92: -39.26554019 | Q92: -44.44381964 | R92: -50.02394283 | S92: -51.72620727 | T92: -61.25238315 | U92: -61.61902769 | V92: -61.68505315 | W92: -61.7563092 | X92: -61.76514118 | Y92: -62.41227091 | Z92: -62.46857158 | AA92: -62.5067131 | AB92: -62.53181623 | AC92: -61.71675917 | AD92: =AD178+AD253 -> -70.58083987 | AE92: -70.58083987 | AF92: -70.58083987 | AG92: -70.58083987 | AH92: -70.58083987
A93: =ROW() -> 93 | C93: Compression | I93: =I179+I254 -> -19.02153862 | J93: -19.07539984 | K93: -19.31945852 | L93: -19.56912773 | M93: -19.67180069 | N93: -17.87964189 | O93: -17.97312911 | P93: -21.2422649 | Q93: -26.81752745 | R93: -28.73809993 | S93: -28.7575984 | T93: -37.17304959 | U93: -38.70483744 | V93: -38.96752676 | W93: -39.04963842 | X93: -39.16136151 | Y93: -39.0952395 | Z93: -39.6531456 | AA93: -40.20139639 | AB93: -33.73133066 | AC93: -20.92032122 | AD93: =AD179+AD254 -> -20.2874882 | AE93: -20.45501215 | AF93: -20.53516122 | AG93: -20.63397671 | AH93: -20.72608596
A94: =ROW() -> 94 | C94: Metering | I94: =I180+I255 -> -0.7685322314 | J94: -0.7685322314 | K94: -0.7702153947 | L94: -0.771898558 | M94: -0.7735817212 | N94: -0.8493963198 | O94: -0.8815655482 | P94: -0.9166601366 | Q94: -0.9210470707 | R94: -0.9210470707 | S94: -0.9210470707 | T94: -0.9697628997 | U94: -0.9829547523 | V94: -0.9946064461 | W94: -1.058351031 | X94: -1.122095616 | Y94: 0.2659232114 | Z94: -1.209678312 | AA94: -1.26722073 | AB94: -1.285451246 | AC94: -1.158366562 | AD94: =AD180+AD255 -> -14.68161121 | AE94: -1.544078195 | AF94: -1.583983636 | AG94: -1.630684111 | AH94: -1.670643268
A95: =ROW() -> 95 | C95: Other Depreciable | I95: =I181+I256 -> -4.760628774 | J95: -5.044634523 | K95: -5.327125424 | L95: -5.648048553 | M95: -5.91286624 | N95: -5.226508855 | O95: -5.417087163 | P95: -5.568188863 | Q95: -5.643741617 | R95: -5.904039605 | S95: -6.213577788 | T95: -5.993134424 | U95: -8.855646421 | V95: -8.928647095 | W95: -8.995809192 | X95: -9.175671881 | Y95: -3.560783833 | Z95: -4.066122857 | AA95: -4.160702295 | AB95: -4.253509122 | AC95: -1.914947519 | AD95: =AD181+AD256 -> -8.271628378 | AE95: -3.964505002 | AF95: -3.968848788 | AG95: -3.50981278 | AH95: -3.189195181
A96: =ROW() -> 96 | C96: Computers and Motor Vehicles | I96: =I182+I257 -> 0 | J96: 0 | K96: 0 | L96: 0 | M96: 0 | N96: 0 | O96: 0 | P96: 0 | Q96: 0 | R96: 0 | S96: 0 | T96: 0 | U96: 0 | V96: 0 | W96: 0 | X96: 0 | Y96: 0 | Z96: 0 | AA96: 0 | AB96: 0 | AC96: -0.8351556549 | AD96: -17.04071987 | AE96: -5.61643616 | AF96: -5.690434593 | AG96: -5.562703595 | AH96: -6.002515631
A97: =ROW() -> 97 | C97: Cathodic/Corrosion Protection | I97: =I183+I258 -> 0 | J97: 0 | K97: 0 | L97: 0 | M97: 0 | N97: 0 | O97: 0 | P97: 0 | Q97: 0 | R97: 0 | S97: 0 | T97: 0 | U97: 0 | V97: 0 | W97: 0 | X97: 0 | Y97: 0 | Z97: 0 | AA97: 0 | AB97: 0 | AC97: -0.9800031355 | AD97: -4.27601427 | AE97: -4.504041846 | AF97: -4.695037739 | AG97: -4.894065155 | AH97: -5.086410932
A98: =ROW() -> 98 | C98: SCADA , ECI And Comms | I98: =I184+I259 -> 0 | J98: 0 | K98: 0 | L98: 0 | M98: 0 | N98: 0 | O98: 0 | P98: 0 | Q98: 0 | R98: 0 | S98: 0 | T98: 0 | U98: 0 | V98: 0 | W98: 0 | X98: 0 | Y98: 0 | Z98: 0 | AA98: 0 | AB98: 0 | AC98: -4.432916197 | AD98: -43.38596415 | AE98: -6.694040488 | AF98: -8.018097363 | AG98: -8.483688749 | AH98: -9.163836224
A99: =ROW() -> 99 | C99: Building | I99: 0 | J99: 0 | K99: 0 | L99: 0 | M99: 0 | N99: 0 | O99: 0 | P99: 0 | Q99: 0 | R99: 0 | S99: 0 | T99: 0 | U99: -0.1861519527 | V99: -0.2127897067 | W99: -0.2216569333 | X99: -0.2218636931 | Y99: -0.2195922235 | Z99: -0.2202836839 | AA99: -0.2202836839 | AB99: -0.2202836839 | AC99: -0.2202836839 | AD99: -0.1150155601 | AE99: -0.1764303078 | AF99: -0.2455969199 | AG99: -0.2634649277 | AH99: -0.3980071245
A100: =ROW() -> 100 | C100: Non-Depreciable | I100: =I186+I261 -> 0 | J100: 0 | K100: 0 | L100: 0 | M100: 0 | N100: 0 | O100: 0 | P100: 0 | Q100: 0 | R100: 0 | S100: 0 | T100: 0 | U100: 0 | V100: 0 | W100: 0 | X100: 0 | Y100: 0.06661015952 | Z100: 0 | AA100: 0 | AB100: 0 | AC100: 0 | AD100: =AD186+AD261 -> 0 | AE100: 0 | AF100: 0 | AG100: 0 | AH100: 0
A101: =ROW() -> 101 | C101: Cost of Raising Equity | I101: =I187+I262 -> 0 | J101: 0 | K101: 0 | L101: 0 | M101: 0 | N101: 0 | O101: 0 | P101: 0 | Q101: 0 | R101: 0 | S101: 0 | T101: 0 | U101: 0 | V101: 0 | W101: 0 | X101: 0 | Y101: 0 | Z101: -4.899938547e-16 | AA101: -4.899938547e-16 | AB101: -4.899938547e-16 | AC101: -4.899938547e-16 | AD101: =AD187+AD262 -> 1.959975419e-15 | AE101: -0.05155872879 | AF101: -0.09047697572 | AG101: -0.1257837028 | AH101: -0.1649632335
A102: =ROW() -> 102 | C102: Total | I102: =SUM(I92:I101) -> -63.56138005 | J102: =SUM(J92:J101) -> -63.90958646 | K102: =SUM(K92:K101) -> -64.44455185 | L102: =SUM(L92:L101) -> -65.0206265 | M102: =SUM(M92:M101) -> -65.39840848 | N102: =SUM(N92:N101) -> -63.01245344 | O102: =SUM(O92:O101) -> -63.42034004 | P102: =SUM(P92:P101) -> -66.99265409 | Q102: =SUM(Q92:Q101) -> -77.82613578 | R102: =SUM(R92:R101) -> -85.58712944 | S102: =SUM(S92:S101) -> -87.61843053 | T102: =SUM(T92:T101) -> -105.3883301 | U102: =SUM(U92:U101) -> -110.3486183 | V102: =SUM(V92:V101) -> -110.7886232 | W102: =SUM(W92:W101) -> -111.0817648 | X102: =SUM(X92:X101) -> -111.4461339 | Y102: =SUM(Y92:Y101) -> -104.9553531 | Z102: =SUM(Z92:Z101) -> -107.617802 | AA102: =SUM(AA92:AA101) -> -108.3563162 | AB102: =SUM(AB92:AB101) -> -102.0223909 | AC102: =SUM(AC92:AC101) -> -92.17875315 | AD102: -178.6392815 | AE102: -113.5869428 | AF102: -115.4084771 | AG102: -115.6850196 | AH102: =SUM(AH92:AH101) -> -116.9824974
A103: =ROW() -> 103 | B103: Closing Value | H103: Check | I103: =IF(ROUND(I102+Inputs!I133,6)=0,"OK","Wrong") -> OK | J103: =IF(ROUND(J102+Inputs!J133,6)=0,"OK","Wrong") -> OK | K103: =IF(ROUND(K102+Inputs!K133,6)=0,"OK","Wrong") -> OK | L103: =IF(ROUND(L102+Inputs!L133,6)=0,"OK","Wrong") -> OK | M103: =IF(ROUND(M102+Inputs!M133,6)=0,"OK","Wrong") -> OK | N103: =IF(ROUND(N102+Inputs!N133,6)=0,"OK","Wrong") -> OK | O103: =IF(ROUND(O102+Inputs!O133,6)=0,"OK","Wrong") -> OK | P103: =IF(ROUND(P102+Inputs!P133,6)=0,"OK","Wrong") -> OK | Q103: =IF(ROUND(Q102+Inputs!Q133,6)=0,"OK","Wrong") -> OK | R103: =IF(ROUND(R102+Inputs!R133,6)=0,"OK","Wrong") -> OK | S103: =IF(ROUND(S102+Inputs!S133,6)=0,"OK","Wrong") -> OK | T103: =IF(ROUND(T102+Inputs!T133,6)=0,"OK","Wrong") -> OK | U103: =IF(ROUND(U102+Inputs!U133,6)=0,"OK","Wrong") -> OK | V103: =IF(ROUND(V102+Inputs!V133,6)=0,"OK","Wrong") -> OK | W103: =IF(ROUND(W102+Inputs!W133,6)=0,"OK","Wrong") -> OK | X103: =IF(ROUND(X102+Inputs!X133,6)=0,"OK","Wrong") -> OK | Y103: =IF(ROUND(Y102-Y188-Y263,6)=0,"OK","Wrong") -> OK | Z103: OK | AA103: OK | AB103: OK | AC103: OK | AD103: =IF(ROUND(AD102-AD188-AD263,6)=0,"OK","Wrong") -> OK | AE103: OK | AF103: OK | AG103: OK | AH103: OK
A104: =ROW() -> 104 | C104: Pipeline | H104: =H190 -> 2126.082083 | I104: =I56+I68+I80+I92 -> 2089.27927 | J104: =J56+J68+J80+J92 -> 2050.30468 | K104: 2011.372667 | L104: 1972.341146 | M104: 1934.186735 | N104: 1905.440156 | O104: 2175.086304 | P104: 2137.316441 | Q104: 2713.904421 | R104: 2663.880479 | S104: =S56+S68+S80+S92-S116 -> 3216.083005 | T104: =T56+T68+T80+T92 -> 3208.523307 | U104: =U56+U68+U80+U92 -> 3163.543819 | V104: 3107.060584 | W104: 3045.939702 | X104: =X56+X68+X80+X92 -> 2986.953945 | Y104: =MAX(Y56+Y68+Y80+Y92,0) -> 2924.541674 | Z104: 2862.073102 | AA104: 2799.653191 | AB104: 2737.130256 | AC104: 2632.804491 | AD104: =MAX(AD56+AD68+AD80+AD92,0) -> 2562.223651 | AE104: =AE56+AE68+AE80+AE92 -> 2491.642811 | AF104: 2421.061971 | AG104: 2350.481131 | AH104: 2279.900291
A105: =ROW() -> 105 | C105: Compression | H105: =H191 -> 356.1635421 | I105: =I57+I69+I81+I93 -> 333.9666307 | J105: =J57+J69+J81+J93 -> 316.9383756 | K105: 297.7436692 | L105: 278.006621 | M105: 258.5964098 | N105: 292.5236002 | O105: 481.0156663 | P105: 459.9504717 | Q105: 592.721561 | R105: 563.983461 | S105: 688.790204 | T105: =T57+T69+T81+T93 -> 687.1419242 | U105: 657.8881037 | V105: 625.0618409 | W105: 589.326078 | X105: =X57+X69+X81+X93 -> 554.6648941 | Y105: 518.1168414 | Z105: 483.2499324 | AA105: 445.9476486 | AB105: 414.1300853 | AC105: 361.2068968 | AD105: 345.9451272 | AE105: =AE57+AE69+AE81+AE93 -> 327.8945869 | AF105: 310.3238906 | AG105: 292.4531913 | AH105: 274.8988796
A106: =ROW() -> 106 | C106: Metering | H106: =H192 -> 29.20819445 | I106: =I58+I70+I82+I94 -> 29.34914886 | J106: =J58+J70+J82+J94 -> 29.41310633 | K106: 29.17889171 | L106: 28.36052572 | M106: 29.96879019 | N106: 29.11939387 | O106: 28.23782832 | P106: 27.32116818 | Q106: 26.40012111 | R106: 25.57295293 | S106: 30.71771149 | T106: =T58+T70+T82+T94 -> 30.15500872 | U106: 31.2793291 | V106: 31.34290917 | W106: 29.75244968 | X106: =X58+X70+X82+X94 -> 32.55511147 | Y106: 36.31903795 | Z106: 38.7766742 | AA106: 44.43300926 | AB106: 48.5508198 | AC106: 49.5430741 | AD106: 36.61443191 | AE106: =AE58+AE70+AE82+AE94 -> 36.26751694 | AF106: 36.08454755 | AG106: 35.65263818 | AH106: 35.35948023
A107: =ROW() -> 107 | C107: Other Depreciable | H107: =H193 -> 80.21659485 | I107: =I59+I71+I83+I95 -> 83.56296348 | J107: =J59+J71+J83+J95 -> 80.63287668 | K107: 76.42881298 | L107: 72.12721837 | M107: 67.49969376 | N107: 67.05992313 | O107: 62.69798244 | P107: 59.89215915 | Q107: 61.30496372 | R107: 55.97022921 | S107: 65.02229618 | T107: =T59+T71+T83+T95 -> 108.4168567 | U107: 104.192843 | V107: 103.6313564 | W107: 102.2555489 | X107: =X59+X71+X83+X95 -> 104.9992329 | Y107: 103.8120072 | Z107: 104.7327895 | AA107: 102.3493204 | AB107: 100.7722175 | AC107: 48.38923515 | AD107: 42.90045267 | AE107: =AE59+AE71+AE83+AE95 -> 40.62129985 | AF107: 37.8265812 | AG107: 35.1925841 | AH107: 33.60075088
A108: =ROW() -> 108 | C108: Computers and Motor Vehicles | I108: =I60+I72+I84+I96 -> 0 | J108: 0 | K108: 0 | L108: 0 | M108: 0 | N108: 0 | O108: 0 | P108: 0 | Q108: 0 | R108: 0 | S108: 0 | T108: =T60+T72+T84+T96 -> 0 | U108: 0 | V108: 0 | W108: 0 | X108: =X60+X72+X84+X96 -> 0 | Y108: 3.492916192 | Z108: =Z60+Z72+Z84+Z96 -> 6.043089188 | AA108: 9.064029911 | AB108: 11.58521549 | AC108: 32.34771548 | AD108: 30.27904161 | AE108: =AE60+AE72+AE84+AE96 -> 27.58277061 | AF108: 24.27462175 | AG108: 23.43216391 | AH108: 20.16093227
A109: =ROW() -> 109 | C109: Cathodic/Corrosion Protection | I109: =I61+I73+I85+I97 -> 0 | J109: 0 | K109: 0 | L109: 0 | M109: 0 | N109: 0 | O109: 0 | P109: 0 | Q109: 0 | R109: 0 | S109: 0 | T109: =T61+T73+T85+T97 -> 0 | U109: 0 | V109: 0 | W109: 0 | X109: =X61+X73+X85+X97 -> 0 | Y109: 0.8831525338 | Z109: =Z61+Z73+Z85+Z97 -> 2.459600726 | AA109: 7.39283462 | AB109: 14.75947102 | AC109: 58.22243145 | AD109: 57.36683082 | AE109: =AE61+AE73+AE85+AE97 -> 55.72772737 | AF109: 54.11898189 | AG109: 52.11010339 | AH109: 48.69090716
A110: =ROW() -> 110 | C110: SCADA , ECI And Comms | I110: =I62+I74+I86+I98 -> 0 | J110: 0 | K110: 0 | L110: 0 | M110: 0 | N110: 0 | O110: 0 | P110: 0 | Q110: 0 | R110: 0 | S110: 0 | T110: =T62+T74+T86+T98 -> 0 | U110: 0 | V110: 0 | W110: 0 | X110: =X62+X74+X86+X98 -> 0 | Y110: 5.522678107 | Z110: =Z62+Z74+Z86+Z98 -> 11.97878417 | AA110: 14.91021319 | AB110: 21.4391336 | AC110: 104.8381891 | AD110: 78.01545032 | AE110: =AE62+AE74+AE86+AE98 -> 90.36366044 | AF110: 90.87550636 | AG110: 93.77205032 | AH110: 91.17236368
A111: =ROW() -> 111 | C111: Building | I111: 0 | J111: 0 | K111: 0 | L111: 0 | M111: 0 | N111: 0 | O111: 0 | P111: 0 | Q111: 0 | R111: 0 | S111: 0 | T111: 3.540654415 | U111: 5.198912544 | V111: 6.199947543 | W111: 5.987646643 | X111: =X63+X75+X87+X99 -> 5.887015139 | Y111: 5.688166728 | Z111: 5.467883045 | AA111: 5.247599361 | AB111: 5.027315677 | AC111: 4.807031993 | AD111: 7.762753816 | AE111: 11.04465412 | AF111: 11.69245759 | AG111: 18.1561025 | AH111: 19.99012816
A112: =ROW() -> 112 | C112: Non-Depreciable | H112: =H198 -> 17.23264518 | I112: =I64+I76+I88+I100 -> 17.23264518 | J112: =J64+J76+J88+J100 -> 17.23264518 | K112: 17.23264518 | L112: 17.23264518 | M112: 17.23264518 | N112: 14.32805182 | O112: 14.16706645 | P112: 16.50813532 | Q112: 18.28922253 | R112: 19.10415644 | S112: =S64+S76+S88+S100-S124 -> 20.06472478 | T112: =T64+T76+T88+T100 -> 20.04573592 | U112: 20.00129952 | V112: 20.21044364 | W112: 20.21109552 | X112: =X64+X76+X88+X100 -> 20.20791062 | Y112: =MAX(Y64+Y76+Y88+Y100,0) -> 20.27452078 | Z112: 20.27452078 | AA112: 20.27452078 | AB112: 20.27452078 | AC112: 20.27452078 | AD112: =MAX(AD64+AD76+AD88+AD100,0) -> 20.27452078 | AE112: =AE64+AE76+AE88+AE100 -> 20.27452078 | AF112: 20.27452078 | AG112: 20.27452078 | AH112: 20.27452078
A113: =ROW() -> 113 | C113: Cost of Raising Equity | H113: 0 | I113: =I65+I77+I89+I101 -> 0 | J113: =J65+J77+J89+J101 -> 0 | K113: 0 | L113: 0 | M113: 0 | N113: 0 | O113: 0 | P113: 0 | Q113: 0 | R113: 0 | S113: =S65+S77+S89+S101-S125 -> 0 | T113: =T65+T77+T89+T101 -> 0 | U113: 0 | V113: 0 | W113: 0 | X113: =X65+X77+X89+X101 -> 0 | Y113: =MAX(Y65+Y77+Y89+Y101,0) -> 0 | Z113: -4.899938547e-16 | AA113: -9.799877094e-16 | AB113: -1.469981564e-15 | AC113: -1.959975419e-15 | AD113: =MAX(AD65+AD77+AD89+AD101,0) -> 1.968721427 | AE113: =AE65+AE77+AE89+AE101 -> 3.403219249 | AF113: 4.660896344 | AG113: 6.031146066 | AH113: 7.242729232
A114: =ROW() -> 114 | C114: Total | H114: =SUM(H104:H113) -> 2608.90306 | I114: =SUM(I104:I113) -> 2553.390658 | J114: 2494.521683 | K114: 2431.956686 | L114: 2368.068156 | M114: 2307.484274 | N114: 2308.471125 | O114: 2761.204847 | P114: 2700.988376 | Q114: 3412.62029 | R114: 3328.511278 | S114: 4020.677942 | T114: 4057.823487 | U114: 3982.104307 | V114: 3893.507082 | W114: 3793.47252 | X114: 3705.268109 | Y114: 3618.650995 | Z114: 3535.056376 | AA114: 3449.272367 | AB114: 3373.669035 | AC114: 3312.433586 | AD114: =SUM(AD104:AD113) -> 3183.350982 | AE114: 3104.822767 | AF114: 3011.193975 | AG114: 2927.555632 | AH114: 2831.290984
A115: =ROW() -> 115 | B115: Over Depreciation | G115: Check | H115: =IF(ROUND(H114-Inputs!H109,6)=0,"OK","Wrong") -> Wrong | I115: =IF(ROUND(I114-Inputs!I109,6)=0,"OK","Wrong") -> Wrong | J115: =IF(ROUND(J114-Inputs!J109,6)=0,"OK","Wrong") -> Wrong | K115: =IF(ROUND(K114-Inputs!K109,6)=0,"OK","Wrong") -> Wrong | L115: =IF(ROUND(L114-Inputs!L109,6)=0,"OK","Wrong") -> Wrong | M115: =IF(ROUND(M114-Inputs!M109,6)=0,"OK","Wrong") -> Wrong | N115: =IF(ROUND(N114-N200-N275,6)=0,"OK","Wrong") -> OK | O115: OK | P115: OK | Q115: OK | R115: OK | S115: OK | T115: OK | U115: OK | V115: OK | W115: OK | X115: OK | Y115: OK | Z115: OK | AA115: OK | AB115: OK | AC115: OK | AD115: =IF(ROUND(AD114-AD200-AD275,6)=0,"OK","Wrong") -> OK | AE115: OK | AF115: OK | AG115: OK | AH115: OK
A116: =ROW() -> 116 | C116: Pipeline | S116: =S202+S277 -> -15.75000498 | Y116: =Y202+Y277 -> 0
A117: =ROW() -> 117 | C117: Compression | S117: -20.60421332 | Y117: 0
A118: =ROW() -> 118 | C118: Metering | S118: -0.3569597962 | Y118: 0
A119: =ROW() -> 119 | C119: Other Depreciable | S119: 0 | Y119: 0
A120: =ROW() -> 120 | C120: Computers and Motor Vehicles | S120: 0 | Y120: 0
A121: =ROW() -> 121 | C121: Cathodic/Corrosion Protection | S121: 0 | Y121: 0
A122: =ROW() -> 122 | C122: SCADA , ECI And Comms | S122: 0 | Y122: 0
A123: =ROW() -> 123 | C123: Building | S123: 0 | Y123: 0
A124: =ROW() -> 124 | C124: Non-Depreciable | S124: =S210+S285 -> -0.1609853768 | Y124: =Y210+Y285 -> 0
A125: =ROW() -> 125 | C125: Cost of Raising Equity | S125: =S211+S286 -> 0 | Y125: =Y211+Y286 -> 0
A126: =ROW() -> 126 | C126: Total | S126: =SUM(S116:S125) -> -36.87216348 | Y126: =SUM(Y116:Y125) -> 0
A127: =ROW() -> 127
A128: =ROW() -> 128 | B128: Economic end date | AD128: =Inputs!$D$81 -> 2063 | AE128: =AD128 -> 2063 | AF128: =AE128 -> 2063 | AG128: 2063 | AH128: 2063
A129: ="BEP Asset Account [m$ "&TEXT(Inputs!$E$28,"dd/mm/yyyy")&"]" -> BEP Asset Account [m$ 31/12/2019]
A130: BEP Lease (Capex)
A131: =ROW() -> 131 | B131: BEP Asset Account | AD131: =IF(ProposedApproach!AD$128="","",ProposedApproach!AD$128-AD$6) -> 42 | AE131: =IF(AE128="","",AD131-1) -> 41 | AF131: =IF(AF128="","",AE131-1) -> 40 | AG131: 39 | AH131: 38
A132: =ROW() -> 132 | C132: Life | U132: =Inputs!$D$66 -> 57 | V132: =U132-1 -> 56 | W132: 55 | X132: 54 | Y132: 53 | Z132: 52 | AA132: 51 | AB132: 50 | AC132: =PrincipledApproach!AC132 -> 49 | AD132: =IF(AD$131="",AC132-1,MIN(AC132-1,AD$131)) -> 42 | AE132: =AD132-1 -> 41 | AF132: =AE132-1 -> 40 | AG132: =AF132-1 -> 39 | AH132: =AG132-1 -> 38
A133: =ROW() -> 133 | C133: Opening Value (Starting 01/12/2010) | T133: =S137 -> 0 | U133: =T137 -> 22.63836826 | V133: =U137 -> 22.2412039 | W133: =V137 -> 21.84403955 | X133: =W137 -> 21.44687519 | Y133: =X137 -> 21.04971084 | Z133: 20.65254648 | AA133: 20.25538213 | AB133: 19.85821777 | AC133: =PrincipledApproach!AC133 -> 19.46105342 | AD133: =AC137 -> 19.06388906 | AE133: =AD137 -> 18.60998694 | AF133: =AE137 -> 18.15608482 | AG133: =AF137 -> 17.7021827 | AH133: =AG137 -> 17.24828058
A134: =ROW() -> 134 | C134: Capex | T134: =Inputs!$T$452 -> 22.63836826
A135: =ROW() -> 135 | C135: Redundant & Disposed Asset | U135: =Inputs!U460 -> 0 | V135: =Inputs!V460 -> 0 | W135: =Inputs!W460 -> 0 | X135: =Inputs!X460 -> 0 | Y135: =Inputs!Y460 -> 0 | Z135: =Inputs!Z460 -> 0 | AA135: =Inputs!AA460 -> 0 | AB135: =Inputs!AB460 -> 0 | AC135: =PrincipledApproach!AC135 -> 0 | AD135: =Inputs!AD460 -> 0 | AE135: =Inputs!AE460 -> 0 | AF135: =Inputs!AF460 -> 0 | AG135: =Inputs!AG460 -> 0 | AH135: =Inputs!AH460 -> 0
A136: =ROW() -> 136 | C136: Depreciation | T136: =Inputs!T456 -> 0 | U136: =Inputs!U456 -> -0.3971643554 | V136: =Inputs!V456 -> -0.3971643554 | W136: =Inputs!W456 -> -0.3971643554 | X136: =Inputs!X456 -> -0.3971643554 | Y136: =-Y133/Y132 -> -0.3971643554 | Z136: -0.3971643554 | AA136: -0.3971643554 | AB136: -0.3971643554 | AC136: =PrincipledApproach!AC136 -> -0.3971643554 | AD136: =-AD133/AD132 -> -0.4539021205 | AE136: -0.4539021205 | AF136: -0.4539021205 | AG136: -0.4539021205 | AH136: -0.4539021205
A137: =ROW() -> 137 | C137: Closing Value | T137: =SUM(T133:T136) -> 22.63836826 | U137: =SUM(U133:U136) -> 22.2412039 | V137: =SUM(V133:V136) -> 21.84403955 | W137: =SUM(W133:W136) -> 21.44687519 | X137: =SUM(X133:X136) -> 21.04971084 | Y137: =SUM(Y133:Y136) -> 20.65254648 | Z137: 20.25538213 | AA137: 19.85821777 | AB137: 19.46105342 | AC137: 19.06388906 | AD137: =SUM(AD133:AD136) -> 18.60998694 | AE137: 18.15608482 | AF137: 17.7021827 | AG137: 17.24828058 | AH137: 16.79437846
A138: =ROW() -> 138
A139: ="Opening Capital Base (OCB) [$m "&TEXT(Inputs!$E$28,"dd/mm/yyyy")&"]" -> Opening Capital Base (OCB) [$m 31/12/2019]
A140: Opening Capital Base Accounts
A141: =ROW() -> 141 | B141: Life | I141: Life | AD141: =IF(ProposedApproach!AD$128="","",ProposedApproach!AD$128-AD$6) -> 42
A142: =ROW() -> 142 | C142: Pipeline | I142: =Inputs!D42 -> 54.5 | J142: =MAX(I142-1,0) -> 53.5 | K142: =MAX(J142-1,0) -> 52.5 | L142: 51.5 | M142: 50.5 | N142: 49.5 | O142: 48.5 | P142: 47.5 | Q142: 46.5 | R142: 45.5 | S142: 44.5 | T142: 43.5 | U142: 42.5 | V142: 41.5 | W142: 40.5 | X142: 39.5 | Y142: 38.5 | Z142: 37.5 | AA142: 36.5 | AB142: 35.5 | AC142: =PrincipledApproach!AC142 -> 34.5 | AD142: =IF(AD$131="",AC142-1,MIN(AC142-1,AD$131)) -> 33.5 | AE142: =MAX(AD142-1,0) -> 32.5 | AF142: =MAX(AE142-1,0) -> 31.5 | AG142: =MAX(AF142-1,0) -> 30.5 | AH142: =MAX(AG142-1,0) -> 29.5
A143: =ROW() -> 143 | C143: Compression | I143: =Inputs!D43 -> 19.60073141 | J143: =MAX(I143-1,0) -> 18.60073141 | K143: 17.60073141 | L143: 16.60073141 | M143: 15.60073141 | N143: 14.60073141 | O143: 13.60073141 | P143: 12.60073141 | Q143: 11.60073141 | R143: 10.60073141 | S143: 9.600731411 | T143: 8.600731411 | U143: 7.600731411 | V143: 6.600731411 | W143: 5.600731411 | X143: 4.600731411 | Y143: 3.600731411 | Z143: 2.600731411 | AA143: 1.600731411 | AB143: 0.6007314111 | AC143: =PrincipledApproach!AC143 -> 0 | AD143: =MAX(AC143-1,0) -> 0 | AE143: 0 | AF143: 0 | AG143: 0 | AH143: 0
A144: =ROW() -> 144 | C144: Metering | I144: =Inputs!D44 -> 38.50225195 | J144: 37.50225195 | K144: 36.50225195 | L144: 35.50225195 | M144: 34.50225195 | N144: 33.50225195 | O144: 32.50225195 | P144: 31.50225195 | Q144: 30.50225195 | R144: 29.50225195 | S144: 28.50225195 | T144: 27.50225195 | U144: 26.50225195 | V144: 25.50225195 | W144: 24.50225195 | X144: 23.50225195 | Y144: 22.50225195 | Z144: 21.50225195 | AA144: 20.50225195 | AB144: 19.50225195 | AC144: =PrincipledApproach!AC144 -> 18.50225195 | AD144: =MAX(0,1) -> 1 | AE144: 0 | AF144: 0 | AG144: 0 | AH144: 0
A145: =ROW() -> 145 | C145: Other Depreciable | I145: =Inputs!D45 -> 16.85 | J145: 15.85 | K145: 14.85 | L145: 13.85 | M145: 12.85 | N145: 11.85 | O145: 10.85 | P145: 9.85 | Q145: 8.85 | R145: 7.85 | S145: 6.85 | T145: 5.85 | U145: 4.85 | V145: 3.85 | W145: 2.85 | X145: 1.85 | Y145: 0.85 | Z145: 0 | AA145: 0 | AB145: 0 | AC145: =PrincipledApproach!AC145 -> 0 | AD145: 0 | AE145: 0 | AF145: 0 | AG145: 0 | AH145: 0
A146: =ROW() -> 146 | C146: Computers and Motor Vehicles | I146: =Inputs!D46 -> 0 | J146: =MAX(I146-1,0) -> 0 | K146: =MAX(J146-1,0) -> 0 | L146: =MAX(K146-1,0) -> 0 | M146: =MAX(L146-1,0) -> 0 | N146: =MAX(M146-1,0) -> 0 | O146: =MAX(N146-1,0) -> 0 | P146: =MAX(O146-1,0) -> 0 | Q146: =MAX(P146-1,0) -> 0 | R146: =MAX(Q146-1,0) -> 0 | S146: =MAX(R146-1,0) -> 0 | T146: =MAX(S146-1,0) -> 0 | U146: =MAX(T146-1,0) -> 0 | V146: =MAX(U146-1,0) -> 0 | W146: =MAX(V146-1,0) -> 0 | X146: =MAX(W146-1,0) -> 0 | Y146: =MAX(X146-1,0) -> 0 | Z146: =MAX(Y146-1,0) -> 0 | AA146: =MAX(Z146-1,0) -> 0 | AB146: =MAX(AA146-1,0) -> 0 | AC146: =PrincipledApproach!AC146 -> 0 | AD146: =MAX(AC146-1,0) -> 0 | AE146: =MAX(AD146-1,0) -> 0 | AF146: =MAX(AE146-1,0) -> 0 | AG146: =MAX(AF146-1,0) -> 0 | AH146: =MAX(AG146-1,0) -> 0
A147: =ROW() -> 147 | C147: Cathodic/Corrosion Protection | I147: =Inputs!D47 -> 0 | J147: 0 | K147: 0 | L147: 0 | M147: 0 | N147: 0 | O147: 0 | P147: 0 | Q147: 0 | R147: 0 | S147: 0 | T147: 0 | U147: 0 | V147: 0 | W147: 0 | X147: 0 | Y147: 0 | Z147: 0 | AA147: 0 | AB147: 0 | AC147: =PrincipledApproach!AC147 -> 0 | AD147: 0 | AE147: 0 | AF147: 0 | AG147: 0 | AH147: 0
A148: =ROW() -> 148 | C148: SCADA , ECI And Comms | I148: =Inputs!D48 -> 0 | J148: 0 | K148: 0 | L148: 0 | M148: 0 | N148: 0 | O148: 0 | P148: 0 | Q148: 0 | R148: 0 | S148: 0 | T148: 0 | U148: 0 | V148: 0 | W148: 0 | X148: 0 | Y148: 0 | Z148: 0 | AA148: 0 | AB148: 0 | AC148: =PrincipledApproach!AC148 -> 0 | AD148: 0 | AE148: 0 | AF148: 0 | AG148: 0 | AH148: 0
A149: =ROW() -> 149 | C149: Building | I149: =Inputs!D49 -> 0 | J149: =MAX(I149-1,0) -> 0 | K149: =MAX(J149-1,0) -> 0 | L149: =MAX(K149-1,0) -> 0 | M149: =MAX(L149-1,0) -> 0 | N149: =MAX(M149-1,0) -> 0 | O149: =MAX(N149-1,0) -> 0 | P149: =MAX(O149-1,0) -> 0 | Q149: =MAX(P149-1,0) -> 0 | R149: =MAX(Q149-1,0) -> 0 | S149: =MAX(R149-1,0) -> 0 | T149: =MAX(S149-1,0) -> 0 | U149: =MAX(T149-1,0) -> 0 | V149: =MAX(U149-1,0) -> 0 | W149: =MAX(V149-1,0) -> 0 | X149: =MAX(W149-1,0) -> 0 | Y149: =MAX(X149-1,0) -> 0 | Z149: =MAX(Y149-1,0) -> 0 | AA149: =MAX(Z149-1,0) -> 0 | AB149: =MAX(AA149-1,0) -> 0 | AC149: =PrincipledApproach!AC149 -> 0 | AD149: =MAX(AC149-1,0) -> 0 | AE149: =MAX(AD149-1,0) -> 0 | AF149: =MAX(AE149-1,0) -> 0 | AG149: =MAX(AF149-1,0) -> 0 | AH149: =MAX(AG149-1,0) -> 0
A150: =ROW() -> 150 | C150: Non-Depreciable | AC150: =PrincipledApproach!AC150 -> 0
A151: =ROW() -> 151 | C151: Cost of Raising Equity | AC151: =PrincipledApproach!AC151 -> 0
A152: =ROW() -> 152
A153: =ROW() -> 153 | B153: Opening Value
A154: =ROW() -> 154 | C154: Pipeline | I154: =H190 -> 2126.082083 | J154: 2087.071403 | K154: 2048.060722 | L154: 2009.050042 | M154: 1970.039362 | N154: 1931.028681 | O154: 1892.018001 | P154: 1853.00732 | Q154: 1813.99664 | R154: 1774.985959 | S154: 1735.975279 | T154: 1696.964599 | U154: 1657.953918 | V154: 1618.943238 | W154: 1579.932557 | X154: 1540.921877 | Y154: 1501.911196 | Z154: 1462.900516 | AA154: 1423.889836 | AB154: 1384.879155 | AC154: =PrincipledApproach!AC154 -> 1345.868475 | AD154: 1306.857794 | AE154: 1267.847114 | AF154: 1228.836433 | AG154: 1189.825753 | AH154: 1150.815073
A155: =ROW() -> 155 | C155: Compression | I155: =H191 -> 356.1635421 | J155: 337.1420035 | K155: 318.1204649 | L155: 299.0989263 | M155: 280.0773876 | N155: 261.055849 | O155: 237.8164482 | P155: 219.9368063 | Q155: 202.0571644 | R155: 184.1775226 | S155: 166.2978807 | T155: 148.4182388 | U155: 131.1606439 | V155: 113.9041768 | W155: 96.64770966 | X155: 79.39124254 | Y155: 62.13477542 | Z155: 44.87862151 | AA155: 27.6224676 | AB155: 10.36631369 | AC155: =PrincipledApproach!AC155 -> 0 | AD155: 0 | AE155: 0 | AF155: 0 | AG155: 0 | AH155: 0
A156: =ROW() -> 156 | C156: Metering | I156: =H192 -> 29.20819445 | J156: 28.43966222 | K156: 27.67112999 | L156: 26.90259776 | M156: 26.13406552 | N156: 25.36553329 | O156: 24.60840409 | P156: 23.85127489 | Q156: 23.09414569 | R156: 22.33701648 | S156: 21.57988728 | T156: 20.82275808 | U156: 20.06562888 | V156: 19.30849967 | W156: 18.55137047 | X156: 17.76638998 | Y156: 17.00926078 | Z156: 16.25336929 | AA156: 15.4974778 | AB156: 14.74158631 | AC156: =PrincipledApproach!AC156 -> 13.98569482 | AD156: 13.22980332 | AE156: 0 | AF156: 0 | AG156: 0 | AH156: 0
A157: =ROW() -> 157 | C157: Other Depreciable | I157: =H193 -> 80.21659485 | J157: 75.45596607 | K157: 70.6953373 | L157: 65.93470852 | M157: 61.17407975 | N157: 56.41345098 | O157: 51.5567105 | P157: 46.79608173 | Q157: 41.9934075 | R157: 37.20100839 | S157: 32.3389346 | T157: 27.56501124 | U157: 20.8330494 | V157: 16.09248345 | W157: 11.34186396 | X157: 6.629896222 | Y157: 1.917928488 | Z157: 0 | AA157: 0 | AB157: 0 | AC157: =PrincipledApproach!AC157 -> 0 | AD157: 0 | AE157: 0 | AF157: 0 | AG157: 0 | AH157: 0
A158: =ROW() -> 158 | C158: Computers and Motor Vehicles | I158: =H194 -> 0 | J158: =I194 -> 0 | K158: =J194 -> 0 | L158: =K194 -> 0 | M158: =L194 -> 0 | N158: =M194 -> 0 | O158: =N194 -> 0 | P158: =O194 -> 0 | Q158: =P194 -> 0 | R158: =Q194 -> 0 | S158: =R194 -> 0 | T158: =S194 -> 0 | U158: =T194 -> 0 | V158: =U194 -> 0 | W158: =V194 -> 0 | X158: =W194 -> 0 | Y158: =X194 -> 0 | Z158: =Y194 -> 0 | AA158: =Z194 -> 0 | AB158: =AA194 -> 0 | AC158: =PrincipledApproach!AC158 -> 0 | AD158: =AC194 -> 0 | AE158: =AD194 -> 0 | AF158: =AE194 -> 0 | AG158: =AF194 -> 0 | AH158: =AG194 -> 0
A159: =ROW() -> 159 | C159: Cathodic/Corrosion Protection | I159: 0 | J159: 0 | K159: 0 | L159: 0 | M159: 0 | N159: 0 | O159: 0 | P159: 0 | Q159: 0 | R159: 0 | S159: 0 | T159: 0 | U159: 0 | V159: 0 | W159: 0 | X159: 0 | Y159: 0 | Z159: 0 | AA159: 0 | AB159: 0 | AC159: =PrincipledApproach!AC159 -> 0 | AD159: 0 | AE159: 0 | AF159: 0 | AG159: 0 | AH159: 0
A160: =ROW() -> 160 | C160: SCADA , ECI And Comms | I160: 0 | J160: 0 | K160: 0 | L160: 0 | M160: 0 | N160: 0 | O160: 0 | P160: 0 | Q160: 0 | R160: 0 | S160: 0 | T160: 0 | U160: 0 | V160: 0 | W160: 0 | X160: 0 | Y160: 0 | Z160: 0 | AA160: 0 | AB160: 0 | AC160: =PrincipledApproach!AC160 -> 0 | AD160: 0 | AE160: 0 | AF160: 0 | AG160: 0 | AH160: 0
A161: =ROW() -> 161 | C161: Building | I161: =H197 -> 0 | J161: =I197 -> 0 | K161: =J197 -> 0 | L161: =K197 -> 0 | M161: =L197 -> 0 | N161: =M197 -> 0 | O161: =N197 -> 0 | P161: =O197 -> 0 | Q161: =P197 -> 0 | R161: =Q197 -> 0 | S161: =R197 -> 0 | T161: =S197 -> 0 | U161: =T197 -> 0 | V161: =U197 -> 0 | W161: =V197 -> 0 | X161: =W197 -> 0 | Y161: =X197 -> 0 | Z161: =Y197 -> 0 | AA161: =Z197 -> 0 | AB161: =AA197 -> 0 | AC161: =PrincipledApproach!AC161 -> 0 | AD161: =AC197 -> 0 | AE161: =AD197 -> 0 | AF161: =AE197 -> 0 | AG161: =AF197 -> 0 | AH161: =AG197 -> 0
A162: =ROW() -> 162 | C162: Non-Depreciable | I162: =H198 -> 17.23264518 | J162: =I198 -> 17.23264518 | K162: 17.23264518 | L162: 17.23264518 | M162: 17.23264518 | N162: 17.23264518 | O162: 14.32805182 | P162: 14.32805182 | Q162: 14.32805182 | R162: 14.32805182 | S162: 14.32805182 | T162: 14.32805182 | U162: 14.32805182 | V162: 14.32805182 | W162: 14.32805182 | X162: =W198 -> 14.32805182 | Y162: =X198 -> 14.32805182 | Z162: 14.32805182 | AA162: 14.32805182 | AB162: 14.32805182 | AC162: =PrincipledApproach!AC162 -> 14.32805182 | AD162: =AC198 -> 14.32805182 | AE162: =AD198 -> 14.32805182 | AF162: =AE198 -> 14.32805182 | AG162: =AF198 -> 14.32805182 | AH162: =AG198 -> 14.32805182
A163: =ROW() -> 163 | C163: Cost of Raising Equity | I163: 0 | J163: =I199 -> 0 | K163: =J199 -> 0 | L163: =K199 -> 0 | M163: =L199 -> 0 | N163: =M199 -> 0 | O163: =N199 -> 0 | P163: =O199 -> 0 | Q163: =P199 -> 0 | R163: =Q199 -> 0 | S163: =R199 -> 0 | T163: =S199 -> 0 | U163: =T199 -> 0 | V163: =U199 -> 0 | W163: =V199 -> 0 | X163: 0 | Y163: =X199 -> 0 | Z163: =Y199 -> 0 | AA163: =Z199 -> 0 | AB163: =AA199 -> 0 | AC163: =PrincipledApproach!AC163 -> 0 | AD163: 0 | AE163: 0 | AF163: 0 | AG163: 0 | AH163: 0
A164: =ROW() -> 164 | C164: Total | I164: =SUM(I154:I163) -> 2608.90306 | J164: =SUM(J154:J163) -> 2545.34168 | K164: =SUM(K154:K163) -> 2481.7803 | L164: =SUM(L154:L163) -> 2418.21892 | M164: =SUM(M154:M163) -> 2354.65754 | N164: =SUM(N154:N163) -> 2291.09616 | O164: =SUM(O154:O163) -> 2220.327615 | P164: =SUM(P154:P163) -> 2157.919535 | Q164: =SUM(Q154:Q163) -> 2095.469409 | R164: =SUM(R154:R163) -> 2033.029559 | S164: =SUM(S154:S163) -> 1970.520033 | T164: =SUM(T154:T163) -> 1908.098659 | U164: =SUM(U154:U163) -> 1844.341292 | V164: =SUM(V154:V163) -> 1782.576449 | W164: =SUM(W154:W163) -> 1720.801553 | X164: =SUM(X154:X163) -> 1659.037457 | Y164: =SUM(Y154:Y163) -> 1597.301213 | Z164: =SUM(Z154:Z163) -> 1538.360559 | AA164: =SUM(AA154:AA163) -> 1481.337833 | AB164: =SUM(AB154:AB163) -> 1424.315107 | AC164: =SUM(AC154:AC163) -> 1374.182221 | AD164: 1334.41565 | AE164: 1282.175166 | AF164: 1243.164485 | AG164: 1204.153805 | AH164: =SUM(AH154:AH163) -> 1165.143124
A165: =ROW() -> 165 | B165: Redundant & Disposed Asset
A166: =ROW() -> 166 | C166: Pipeline | I166: =-Inputs!I272 -> 0 | J166: =-Inputs!J272 -> 0 | K166: =-Inputs!K272 -> 0 | L166: =-Inputs!L272 -> 0 | M166: =-Inputs!M272 -> 0 | N166: =-Inputs!N272 -> 0 | O166: =-Inputs!O272 -> 0 | P166: =-Inputs!P272 -> 0 | Q166: =-Inputs!Q272 -> 0 | R166: =-Inputs!R272 -> 0 | S166: =-Inputs!S272 -> 0 | T166: =-Inputs!T272 -> 0 | U166: =-Inputs!U272 -> 0 | V166: =-Inputs!V272 -> 0 | W166: =-Inputs!W272 -> 0 | X166: =-Inputs!X272 -> 0 | Y166: =-Inputs!Y272 -> 0 | Z166: =-Inputs!Z272 -> 0 | AA166: =-Inputs!AA272 -> 0 | AB166: =-Inputs!AB272 -> 0 | AC166: =PrincipledApproach!AC166 -> 0 | AD166: =-Inputs!AD272 -> 0 | AE166: =-Inputs!AE272 -> 0 | AF166: =-Inputs!AF272 -> 0 | AG166: =-Inputs!AG272 -> 0 | AH166: =-Inputs!AH272 -> 0
A167: =ROW() -> 167 | C167: Compression | I167: =-Inputs!I273 -> 0 | J167: =-Inputs!J273 -> 0 | K167: =-Inputs!K273 -> 0 | L167: =-Inputs!L273 -> 0 | M167: =-Inputs!M273 -> 0 | N167: =-Inputs!N273 -> -5.359758893 | O167: =-Inputs!O273 -> 0 | P167: =-Inputs!P273 -> 0 | Q167: =-Inputs!Q273 -> 0 | R167: =-Inputs!R273 -> 0 | S167: =-Inputs!S273 -> 0 | T167: =-Inputs!T273 -> -0.001127763862 | U167: =-Inputs!U273 -> 0 | V167: =-Inputs!V273 -> 0 | W167: =-Inputs!W273 -> 0 | X167: =-Inputs!X273 -> 0 | Y167: =-Inputs!Y273 -> 0 | Z167: =-Inputs!Z273 -> 0 | AA167: =-Inputs!AA273 -> 0 | AB167: =-Inputs!AB273 -> 0 | AC167: =PrincipledApproach!AC167 -> 0 | AD167: =-Inputs!AD273 -> 0 | AE167: =-Inputs!AE273 -> 0 | AF167: =-Inputs!AF273 -> 0 | AG167: =-Inputs!AG273 -> 0 | AH167: =-Inputs!AH273 -> 0
A168: =ROW() -> 168 | C168: Metering | I168: =-Inputs!I274 -> 0 | J168: =-Inputs!J274 -> 0 | K168: =-Inputs!K274 -> 0 | L168: =-Inputs!L274 -> 0 | M168: =-Inputs!M274 -> 0 | N168: =-Inputs!N274 -> 0 | O168: =-Inputs!O274 -> 0 | P168: =-Inputs!P274 -> 0 | Q168: =-Inputs!Q274 -> 0 | R168: =-Inputs!R274 -> 0 | S168: =-Inputs!S274 -> 0 | T168: =-Inputs!T274 -> 0 | U168: =-Inputs!U274 -> 0 | V168: =-Inputs!V274 -> 0 | W168: =-Inputs!W274 -> -0.02785128631 | X168: =-Inputs!X274 -> 0 | Y168: =-Inputs!Y274 -> 0 | Z168: =-Inputs!Z274 -> 0 | AA168: =-Inputs!AA274 -> 0 | AB168: =-Inputs!AB274 -> 0 | AC168: =PrincipledApproach!AC168 -> 0 | AD168: =-Inputs!AD274 -> 0 | AE168: =-Inputs!AE274 -> 0 | AF168: =-Inputs!AF274 -> 0 | AG168: =-Inputs!AG274 -> 0 | AH168: =-Inputs!AH274 -> 0
A169: =ROW() -> 169 | C169: Other Depreciable | I169: =-Inputs!I275 -> 0 | J169: =-Inputs!J275 -> 0 | K169: =-Inputs!K275 -> 0 | L169: =-Inputs!L275 -> 0 | M169: =-Inputs!M275 -> 0 | N169: =-Inputs!N275 -> -0.09611170235 | O169: =-Inputs!O275 -> 0 | P169: =-Inputs!P275 -> -0.04204545337 | Q169: =-Inputs!Q275 -> -0.03177033202 | R169: =-Inputs!R275 -> -0.1014450127 | S169: =-Inputs!S275 -> -0.01329458569 | T169: =-Inputs!T275 -> -2.019994105 | U169: =-Inputs!U275 -> -0.02859822127 | V169: =-Inputs!V275 -> -0.03865175955 | W169: =-Inputs!W275 -> 0 | X169: =-Inputs!X275 -> 0 | Y169: =-Inputs!Y275 -> 0 | Z169: =-Inputs!Z275 -> 0 | AA169: =-Inputs!AA275 -> 0 | AB169: =-Inputs!AB275 -> 0 | AC169: =PrincipledApproach!AC169 -> 0 | AD169: =-Inputs!AD275 -> 0 | AE169: =-Inputs!AE275 -> 0 | AF169: =-Inputs!AF275 -> 0 | AG169: =-Inputs!AG275 -> 0 | AH169: =-Inputs!AH275 -> 0
A170: =ROW() -> 170 | C170: Computers and Motor Vehicles | I170: =-Inputs!I276 -> 0 | J170: =-Inputs!J276 -> 0 | K170: =-Inputs!K276 -> 0 | L170: =-Inputs!L276 -> 0 | M170: =-Inputs!M276 -> 0 | N170: =-Inputs!N276 -> 0 | O170: =-Inputs!O276 -> 0 | P170: =-Inputs!P276 -> 0 | Q170: =-Inputs!Q276 -> 0 | R170: =-Inputs!R276 -> 0 | S170: =-Inputs!S276 -> 0 | T170: =-Inputs!T276 -> 0 | U170: =-Inputs!U276 -> 0 | V170: =-Inputs!V276 -> 0 | W170: =-Inputs!W276 -> 0 | X170: =-Inputs!X276 -> 0 | Y170: =-Inputs!Y276 -> 0 | Z170: =-Inputs!Z276 -> 0 | AA170: =-Inputs!AA276 -> 0 | AB170: =-Inputs!AB276 -> 0 | AC170: =PrincipledApproach!AC170 -> 0 | AD170: =-Inputs!AD276 -> 0 | AE170: =-Inputs!AE276 -> 0 | AF170: =-Inputs!AF276 -> 0 | AG170: =-Inputs!AG276 -> 0 | AH170: =-Inputs!AH276 -> 0
A171: =ROW() -> 171 | C171: Cathodic/Corrosion Protection | I171: =-Inputs!I277 -> 0 | J171: =-Inputs!J277 -> 0 | K171: =-Inputs!K277 -> 0 | L171: =-Inputs!L277 -> 0 | M171: =-Inputs!M277 -> 0 | N171: =-Inputs!N277 -> 0 | O171: =-Inputs!O277 -> 0 | P171: =-Inputs!P277 -> 0 | Q171: =-Inputs!Q277 -> 0 | R171: =-Inputs!R277 -> 0 | S171: =-Inputs!S277 -> 0 | T171: =-Inputs!T277 -> 0 | U171: =-Inputs!U277 -> 0 | V171: =-Inputs!V277 -> 0 | W171: =-Inputs!W277 -> 0 | X171: =-Inputs!X277 -> 0 | Y171: =-Inputs!Y277 -> 0 | Z171: =-Inputs!Z277 -> 0 | AA171: =-Inputs!AA277 -> 0 | AB171: =-Inputs!AB277 -> 0 | AC171: =PrincipledApproach!AC171 -> 0 | AD171: =-Inputs!AD277 -> 0 | AE171: =-Inputs!AE277 -> 0 | AF171: =-Inputs!AF277 -> 0 | AG171: =-Inputs!AG277 -> 0 | AH171: =-Inputs!AH277 -> 0
A172: =ROW() -> 172 | C172: SCADA , ECI And Comms | I172: =-Inputs!I278 -> 0 | J172: =-Inputs!J278 -> 0 | K172: =-Inputs!K278 -> 0 | L172: =-Inputs!L278 -> 0 | M172: =-Inputs!M278 -> 0 | N172: =-Inputs!N278 -> 0 | O172: =-Inputs!O278 -> 0 | P172: =-Inputs!P278 -> 0 | Q172: =-Inputs!Q278 -> 0 | R172: =-Inputs!R278 -> 0 | S172: =-Inputs!S278 -> 0 | T172: =-Inputs!T278 -> 0 | U172: =-Inputs!U278 -> 0 | V172: =-Inputs!V278 -> 0 | W172: =-Inputs!W278 -> 0 | X172: =-Inputs!X278 -> 0 | Y172: =-Inputs!Y278 -> 0 | Z172: =-Inputs!Z278 -> 0 | AA172: =-Inputs!AA278 -> 0 | AB172: =-Inputs!AB278 -> 0 | AC172: =PrincipledApproach!AC172 -> 0 | AD172: =-Inputs!AD278 -> 0 | AE172: =-Inputs!AE278 -> 0 | AF172: =-Inputs!AF278 -> 0 | AG172: =-Inputs!AG278 -> 0 | AH172: =-Inputs!AH278 -> 0
A173: =ROW() -> 173 | C173: Building | I173: =-Inputs!I279 -> 0 | J173: =-Inputs!J279 -> 0 | K173: =-Inputs!K279 -> 0 | L173: =-Inputs!L279 -> 0 | M173: =-Inputs!M279 -> 0 | N173: =-Inputs!N279 -> 0 | O173: =-Inputs!O279 -> 0 | P173: =-Inputs!P279 -> 0 | Q173: =-Inputs!Q279 -> 0 | R173: =-Inputs!R279 -> 0 | S173: =-Inputs!S279 -> 0 | T173: =-Inputs!T279 -> 0 | U173: =-Inputs!U279 -> 0 | V173: =-Inputs!V279 -> 0 | W173: =-Inputs!W279 -> 0 | X173: =-Inputs!X279 -> 0 | Y173: =-Inputs!Y279 -> 0 | Z173: =-Inputs!Z279 -> 0 | AA173: =-Inputs!AA279 -> 0 | AB173: =-Inputs!AB279 -> 0 | AC173: =PrincipledApproach!AC173 -> 0 | AD173: =-Inputs!AD279 -> 0 | AE173: =-Inputs!AE279 -> 0 | AF173: =-Inputs!AF279 -> 0 | AG173: =-Inputs!AG279 -> 0 | AH173: =-Inputs!AH279 -> 0
A174: =ROW() -> 174 | C174: Non-Depreciable | I174: =-Inputs!I280 -> 0 | J174: =-Inputs!J280 -> 0 | K174: =-Inputs!K280 -> 0 | L174: =-Inputs!L280 -> 0 | M174: =-Inputs!M280 -> 0 | N174: =-Inputs!N280 -> -2.90459336 | O174: =-Inputs!O280 -> 0 | P174: =-Inputs!P280 -> 0 | Q174: =-Inputs!Q280 -> 0 | R174: =-Inputs!R280 -> 0 | S174: =-Inputs!S280 -> 0 | T174: =-Inputs!T280 -> 0 | U174: =-Inputs!U280 -> 0 | V174: =-Inputs!V280 -> 0 | W174: =-Inputs!W280 -> 0 | X174: =-Inputs!X280 -> 0 | Y174: =-Inputs!Y280 -> 0 | Z174: =-Inputs!Z280 -> 0 | AA174: =-Inputs!AA280 -> 0 | AB174: =-Inputs!AB280 -> 0 | AC174: =PrincipledApproach!AC174 -> 0 | AD174: =-Inputs!AD280 -> 0 | AE174: =-Inputs!AE280 -> 0 | AF174: =-Inputs!AF280 -> 0 | AG174: =-Inputs!AG280 -> 0 | AH174: =-Inputs!AH280 -> 0
A175: =ROW() -> 175 | C175: Cost of Raising Equity | I175: =-Inputs!I281 -> 0 | J175: =-Inputs!J281 -> 0 | K175: =-Inputs!K281 -> 0 | L175: =-Inputs!L281 -> 0 | M175: =-Inputs!M281 -> 0 | N175: =-Inputs!N281 -> 0 | O175: =-Inputs!O281 -> 0 | P175: =-Inputs!P281 -> 0 | Q175: =-Inputs!Q281 -> 0 | R175: =-Inputs!R281 -> 0 | S175: =-Inputs!S281 -> 0 | T175: =-Inputs!T281 -> 0 | U175: =-Inputs!U281 -> 0 | V175: =-Inputs!V281 -> 0 | W175: =-Inputs!W281 -> 0 | X175: =-Inputs!X281 -> 0 | Y175: =-Inputs!Y281 -> 0 | Z175: =-Inputs!Z281 -> 0 | AA175: =-Inputs!AA281 -> 0 | AB175: =-Inputs!AB281 -> 0 | AC175: =PrincipledApproach!AC175 -> 0 | AD175: =-Inputs!AD281 -> 0 | AE175: =-Inputs!AE281 -> 0 | AF175: =-Inputs!AF281 -> 0 | AG175: =-Inputs!AG281 -> 0 | AH175: =-Inputs!AH281 -> 0
A176: =ROW() -> 176 | C176: Total | I176: =SUM(I166:I175) -> 0 | J176: =SUM(J166:J175) -> 0 | K176: =SUM(K166:K175) -> 0 | L176: =SUM(L166:L175) -> 0 | M176: =SUM(M166:M175) -> 0 | N176: =SUM(N166:N175) -> -8.360463955 | O176: =SUM(O166:O175) -> 0 | P176: =SUM(P166:P175) -> -0.04204545337 | Q176: =SUM(Q166:Q175) -> -0.03177033202 | R176: =SUM(R166:R175) -> -0.1014450127 | S176: =SUM(S166:S175) -> -0.01329458569 | T176: =SUM(T166:T175) -> -2.021121869 | U176: =SUM(U166:U175) -> -0.02859822127 | V176: =SUM(V166:V175) -> -0.03865175955 | W176: =SUM(W166:W175) -> -0.02785128631 | X176: =SUM(X166:X175) -> 0 | Y176: =SUM(Y166:Y175) -> 0 | Z176: =SUM(Z166:Z175) -> 0 | AA176: =SUM(AA166:AA175) -> 0 | AB176: =SUM(AB166:AB175) -> 0 | AC176: =SUM(AC166:AC175) -> 0 | AD176: 0 | AE176: 0 | AF176: 0 | AG176: 0 | AH176: =SUM(AH166:AH175) -> 0
A177: =ROW() -> 177 | B177: Depreciation | Z177: =Z157/($H181-(Z$8-1)) -> 0 | AE177: =AE157/($H181-(AE$8-1)) -> 0
A178: =ROW() -> 178 | C178: Pipeline | I178: =-Inputs!I210 -> -39.01068043 | J178: =-Inputs!J210 -> -39.01068043 | K178: =-Inputs!K210 -> -39.01068043 | L178: =-Inputs!L210 -> -39.01068043 | M178: =-Inputs!M210 -> -39.01068043 | N178: =-Inputs!N210 -> -39.01068043 | O178: =-Inputs!O210 -> -39.01068043 | P178: =-Inputs!P210 -> -39.01068043 | Q178: =-Inputs!Q210 -> -39.01068043 | R178: =-Inputs!R210 -> -39.01068043 | S178: =-Inputs!S210 -> -39.01068043 | T178: =-Inputs!T210 -> -39.01068043 | U178: =-Inputs!U210 -> -39.01068043 | V178: =-Inputs!V210 -> -39.01068043 | W178: =-Inputs!W210 -> -39.01068043 | X178: =-Inputs!X210 -> -39.01068043 | Y178: =-Inputs!Y210 -> -39.01068043 | Z178: =-Inputs!Z210 -> -39.01068043 | AA178: =-Inputs!AA210 -> -39.01068043 | AB178: =-Inputs!AB210 -> -39.01068043 | AC178: =PrincipledApproach!AC178 -> -39.01068043 | AD178: =IF(AD142<=0,0,-MIN(IF(AD154/AD142>AD154,AD154,AD154/AD142),AD154)) -> -39.01068043 | AE178: -39.01068043 | AF178: -39.01068043 | AG178: -39.01068043 | AH178: -39.01068043
A179: =ROW() -> 179 | C179: Compression | I179: =-Inputs!I211 -> -19.02153862 | J179: =-Inputs!J211 -> -19.02153862 | K179: =-Inputs!K211 -> -19.02153862 | L179: =-Inputs!L211 -> -19.02153862 | M179: =-Inputs!M211 -> -19.02153862 | N179: =-Inputs!N211 -> -17.87964189 | O179: =-Inputs!O211 -> -17.87964189 | P179: =-Inputs!P211 -> -17.87964189 | Q179: =-Inputs!Q211 -> -17.87964189 | R179: =-Inputs!R211 -> -17.87964189 | S179: =-Inputs!S211 -> -17.87964189 | T179: =-Inputs!T211 -> -17.25646712 | U179: =-Inputs!U211 -> -17.25646712 | V179: =-Inputs!V211 -> -17.25646712 | W179: =-Inputs!W211 -> -17.25646712 | X179: =-Inputs!X211 -> -17.25646712 | Y179: =-Inputs!Y211 -> -17.25615391 | Z179: =-Inputs!Z211 -> -17.25615391 | AA179: =-Inputs!AA211 -> -17.25615391 | AB179: =-Inputs!AB211 -> -10.36631369 | AC179: =PrincipledApproach!AC179 -> 0 | AD179: 0 | AE179: 0 | AF179: 0 | AG179: 0 | AH179: 0
A180: =ROW() -> 180 | C180: Metering | I180: =-Inputs!I212 -> -0.7685322314 | J180: =-Inputs!J212 -> -0.7685322314 | K180: =-Inputs!K212 -> -0.7685322314 | L180: =-Inputs!L212 -> -0.7685322314 | M180: =-Inputs!M212 -> -0.7685322314 | N180: =-Inputs!N212 -> -0.7571292023 | O180: =-Inputs!O212 -> -0.7571292023 | P180: =-Inputs!P212 -> -0.7571292023 | Q180: =-Inputs!Q212 -> -0.7571292023 | R180: =-Inputs!R212 -> -0.7571292023 | S180: =-Inputs!S212 -> -0.7571292023 | T180: =-Inputs!T212 -> -0.7571292023 | U180: =-Inputs!U212 -> -0.7571292023 | V180: =-Inputs!V212 -> -0.7571292023 | W180: =-Inputs!W212 -> -0.7571292023 | X180: =-Inputs!X212 -> -0.7571292023 | Y180: =-Inputs!Y212 -> -0.7558914913 | Z180: =-Inputs!Z212 -> -0.7558914913 | AA180: =-Inputs!AA212 -> -0.7558914913 | AB180: =-Inputs!AB212 -> -0.7558914913 | AC180: =PrincipledApproach!AC180 -> -0.7558914913 | AD180: -13.22980332 | AE180: 0 | AF180: 0 | AG180: 0 | AH180: 0
A181: =ROW() -> 181 | C181: Other Depreciable | I181: =-Inputs!I213 -> -4.760628774 | J181: =-Inputs!J213 -> -4.760628774 | K181: =-Inputs!K213 -> -4.760628774 | L181: =-Inputs!L213 -> -4.760628774 | M181: =-Inputs!M213 -> -4.760628774 | N181: =-Inputs!N213 -> -4.760628774 | O181: =-Inputs!O213 -> -4.760628774 | P181: =-Inputs!P213 -> -4.760628774 | Q181: =-Inputs!Q213 -> -4.760628774 | R181: =-Inputs!R213 -> -4.760628774 | S181: =-Inputs!S213 -> -4.760628774 | T181: =-Inputs!T213 -> -4.711967734 | U181: =-Inputs!U213 -> -4.711967734 | V181: =-Inputs!V213 -> -4.711967734 | W181: =-Inputs!W213 -> -4.711967734 | X181: =-Inputs!X213 -> -4.711967734 | Y181: =-Inputs!Y213 -> -1.917928488 | Z181: =-Inputs!Z213 -> 0 | AA181: =-Inputs!AA213 -> 0 | AB181: =-Inputs!AB213 -> 0 | AC181: =PrincipledApproach!AC181 -> 0 | AD181: 0 | AE181: 0 | AF181: 0 | AG181: 0 | AH181: 0
A182: =ROW() -> 182 | C182: Computers and Motor Vehicles | I182: =-Inputs!I214 -> 0 | J182: =-Inputs!J214 -> 0 | K182: =-Inputs!K214 -> 0 | L182: =-Inputs!L214 -> 0 | M182: =-Inputs!M214 -> 0 | N182: =-Inputs!N214 -> 0 | O182: =-Inputs!O214 -> 0 | P182: =-Inputs!P214 -> 0 | Q182: =-Inputs!Q214 -> 0 | R182: =-Inputs!R214 -> 0 | S182: =-Inputs!S214 -> 0 | T182: =-Inputs!T214 -> 0 | U182: =-Inputs!U214 -> 0 | V182: =-Inputs!V214 -> 0 | W182: =-Inputs!W214 -> 0 | X182: =-Inputs!X214 -> 0 | Y182: =-Inputs!Y214 -> 0 | Z182: =-Inputs!Z214 -> 0 | AA182: =-Inputs!AA214 -> 0 | AB182: =-Inputs!AB214 -> 0 | AC182: =PrincipledApproach!AC182 -> 0 | AD182: 0 | AE182: 0 | AF182: 0 | AG182: 0 | AH182: 0
A183: =ROW() -> 183 | C183: Cathodic/Corrosion Protection | I183: =-Inputs!I215 -> 0 | J183: =-Inputs!J215 -> 0 | K183: =-Inputs!K215 -> 0 | L183: =-Inputs!L215 -> 0 | M183: =-Inputs!M215 -> 0 | N183: =-Inputs!N215 -> 0 | O183: =-Inputs!O215 -> 0 | P183: =-Inputs!P215 -> 0 | Q183: =-Inputs!Q215 -> 0 | R183: =-Inputs!R215 -> 0 | S183: =-Inputs!S215 -> 0 | T183: =-Inputs!T215 -> 0 | U183: =-Inputs!U215 -> 0 | V183: =-Inputs!V215 -> 0 | W183: =-Inputs!W215 -> 0 | X183: =-Inputs!X215 -> 0 | Y183: =-Inputs!Y215 -> 0 | Z183: =-Inputs!Z215 -> 0 | AA183: =-Inputs!AA215 -> 0 | AB183: =-Inputs!AB215 -> 0 | AC183: =PrincipledApproach!AC183 -> 0 | AD183: 0 | AE183: 0 | AF183: 0 | AG183: 0 | AH183: 0
A184: =ROW() -> 184 | C184: SCADA , ECI And Comms | I184: =-Inputs!I216 -> 0 | J184: =-Inputs!J216 -> 0 | K184: =-Inputs!K216 -> 0 | L184: =-Inputs!L216 -> 0 | M184: =-Inputs!M216 -> 0 | N184: =-Inputs!N216 -> 0 | O184: =-Inputs!O216 -> 0 | P184: =-Inputs!P216 -> 0 | Q184: =-Inputs!Q216 -> 0 | R184: =-Inputs!R216 -> 0 | S184: =-Inputs!S216 -> 0 | T184: =-Inputs!T216 -> 0 | U184: =-Inputs!U216 -> 0 | V184: =-Inputs!V216 -> 0 | W184: =-Inputs!W216 -> 0 | X184: =-Inputs!X216 -> 0 | Y184: =-Inputs!Y216 -> 0 | Z184: =-Inputs!Z216 -> 0 | AA184: =-Inputs!AA216 -> 0 | AB184: =-Inputs!AB216 -> 0 | AC184: =PrincipledApproach!AC184 -> 0 | AD184: 0 | AE184: 0 | AF184: 0 | AG184: 0 | AH184: 0
A185: =ROW() -> 185 | C185: Building | I185: =-Inputs!I217 -> 0 | J185: =-Inputs!J217 -> 0 | K185: =-Inputs!K217 -> 0 | L185: =-Inputs!L217 -> 0 | M185: =-Inputs!M217 -> 0 | N185: =-Inputs!N217 -> 0 | O185: =-Inputs!O217 -> 0 | P185: =-Inputs!P217 -> 0 | Q185: =-Inputs!Q217 -> 0 | R185: =-Inputs!R217 -> 0 | S185: =-Inputs!S217 -> 0 | T185: =-Inputs!T217 -> 0 | U185: =-Inputs!U217 -> 0 | V185: =-Inputs!V217 -> 0 | W185: =-Inputs!W217 -> 0 | X185: =-Inputs!X217 -> 0 | Y185: =-Inputs!Y217 -> 0 | Z185: =-Inputs!Z217 -> 0 | AA185: =-Inputs!AA217 -> 0 | AB185: =-Inputs!AB217 -> 0 | AC185: =PrincipledApproach!AC185 -> 0 | AD185: 0 | AE185: 0 | AF185: 0 | AG185: 0 | AH185: 0
A186: =ROW() -> 186 | C186: Non-Depreciable | I186: =-Inputs!I218 -> 0 | J186: =-Inputs!J218 -> 0 | K186: =-Inputs!K218 -> 0 | L186: =-Inputs!L218 -> 0 | M186: =-Inputs!M218 -> 0 | N186: =-Inputs!N218 -> 0 | O186: =-Inputs!O218 -> 0 | P186: =-Inputs!P218 -> 0 | Q186: =-Inputs!Q218 -> 0 | R186: =-Inputs!R218 -> 0 | S186: =-Inputs!S218 -> 0 | T186: =-Inputs!T218 -> 0 | U186: =-Inputs!U218 -> 0 | V186: =-Inputs!V218 -> 0 | W186: =-Inputs!W218 -> 0 | X186: =-Inputs!X218 -> 0 | Y186: =-Inputs!Y218 -> 0 | Z186: =-Inputs!Z218 -> 0 | AA186: =-Inputs!AA218 -> 0 | AB186: =-Inputs!AB218 -> 0 | AC186: =PrincipledApproach!AC186 -> 0
A187: =ROW() -> 187 | C187: Cost of Raising Equity | I187: =-Inputs!I219 -> 0 | J187: =-Inputs!J219 -> 0 | K187: =-Inputs!K219 -> 0 | L187: =-Inputs!L219 -> 0 | M187: =-Inputs!M219 -> 0 | N187: =-Inputs!N219 -> 0 | O187: =-Inputs!O219 -> 0 | P187: =-Inputs!P219 -> 0 | Q187: =-Inputs!Q219 -> 0 | R187: =-Inputs!R219 -> 0 | S187: =-Inputs!S219 -> 0 | T187: =-Inputs!T219 -> 0 | U187: =-Inputs!U219 -> 0 | V187: =-Inputs!V219 -> 0 | W187: =-Inputs!W219 -> 0 | X187: =-Inputs!X219 -> 0 | Y187: =-Inputs!Y219 -> 0 | Z187: =-Inputs!Z219 -> 0 | AA187: =-Inputs!AA219 -> 0 | AB187: =-Inputs!AB219 -> 0 | AC187: =PrincipledApproach!AC187 -> 0 | AD187: =IF(AD151<=0,0,-MIN(IF(AD163/AD151>AD163,AD163,AD163/AD151),AD163)) -> 0 | AE187: 0 | AF187: 0 | AG187: 0 | AH187: 0
A188: =ROW() -> 188 | C188: Total | I188: =SUM(I178:I187) -> -63.56138005 | J188: =SUM(J178:J187) -> -63.56138005 | K188: =SUM(K178:K187) -> -63.56138005 | L188: =SUM(L178:L187) -> -63.56138005 | M188: =SUM(M178:M187) -> -63.56138005 | N188: =SUM(N178:N187) -> -62.4080803 | O188: =SUM(O178:O187) -> -62.4080803 | P188: =SUM(P178:P187) -> -62.4080803 | Q188: =SUM(Q178:Q187) -> -62.4080803 | R188: =SUM(R178:R187) -> -62.4080803 | S188: =SUM(S178:S187) -> -62.4080803 | T188: =SUM(T178:T187) -> -61.73624448 | U188: =SUM(U178:U187) -> -61.73624448 | V188: =SUM(V178:V187) -> -61.73624448 | W188: =SUM(W178:W187) -> -61.73624448 | X188: =SUM(X178:X187) -> -61.73624448 | Y188: =SUM(Y178:Y187) -> -58.94065432 | Z188: =SUM(Z178:Z187) -> -57.02272583 | AA188: =SUM(AA178:AA187) -> -57.02272583 | AB188: =SUM(AB178:AB187) -> -50.13288561 | AC188: =SUM(AC178:AC187) -> -39.76657192 | AD188: -52.24048375 | AE188: -39.01068043 | AF188: -39.01068043 | AG188: -39.01068043 | AH188: =SUM(AH178:AH187) -> -39.01068043
A189: =ROW() -> 189 | B189: Closing Value | H189: Check | I189: =IF(ROUND(I188+Inputs!I220,6)=0,"OK","Wrong") -> OK | J189: =IF(ROUND(J188+Inputs!J220,6)=0,"OK","Wrong") -> OK | K189: =IF(ROUND(K188+Inputs!K220,6)=0,"OK","Wrong") -> OK | L189: =IF(ROUND(L188+Inputs!L220,6)=0,"OK","Wrong") -> OK | M189: =IF(ROUND(M188+Inputs!M220,6)=0,"OK","Wrong") -> OK | N189: =IF(ROUND(N188+Inputs!N220,6)=0,"OK","Wrong") -> OK | O189: =IF(ROUND(O188+Inputs!O220,6)=0,"OK","Wrong") -> OK | P189: =IF(ROUND(P188+Inputs!P220,6)=0,"OK","Wrong") -> OK | Q189: =IF(ROUND(Q188+Inputs!Q220,6)=0,"OK","Wrong") -> OK | R189: =IF(ROUND(R188+Inputs!R220,6)=0,"OK","Wrong") -> OK | S189: =IF(ROUND(S188+Inputs!S220,6)=0,"OK","Wrong") -> OK | T189: =IF(ROUND(T188+Inputs!T220,6)=0,"OK","Wrong") -> OK | U189: =IF(ROUND(U188+Inputs!U220,6)=0,"OK","Wrong") -> OK | V189: =IF(ROUND(V188+Inputs!V220,6)=0,"OK","Wrong") -> OK | W189: =IF(ROUND(W188+Inputs!W220,6)=0,"OK","Wrong") -> OK | X189: =IF(ROUND(X188+Inputs!X220,6)=0,"OK","Wrong") -> OK | Y189: =IF(ROUND(Y188+Inputs!Y220,6)=0,"OK","Wrong") -> OK | Z189: =IF(ROUND(Z188+Inputs!Z220,6)=0,"OK","Wrong") -> OK | AA189: =IF(ROUND(AA188+Inputs!AA220,6)=0,"OK","Wrong") -> OK | AB189: =IF(ROUND(AB188+Inputs!AB220,6)=0,"OK","Wrong") -> OK | AC189: =IF(ROUND(AC188+Inputs!AC220,6)=0,"OK","Wrong") -> OK
A190: =ROW() -> 190 | C190: Pipeline | H190: =Inputs!H138 -> 2126.082083 | I190: =I154+I166+I178 -> 2087.071403 | J190: =J154+J166+J178 -> 2048.060722 | K190: 2009.050042 | L190: 1970.039362 | M190: 1931.028681 | N190: 1892.018001 | O190: 1853.00732 | P190: 1813.99664 | Q190: 1774.985959 | R190: 1735.975279 | S190: =(S154+S166+S178-S202)*(S154+S166+S178-S202>0) -> 1696.964599 | T190: =T154+T166+T178 -> 1657.953918 | U190: 1618.943238 | V190: 1579.932557 | W190: 1540.921877 | X190: =X154+X166+X178 -> 1501.911196 | Y190: =Y154+Y166+Y178 -> 1462.900516 | Z190: 1423.889836 | AA190: 1384.879155 | AB190: 1345.868475 | AC190: =PrincipledApproach!AC190 -> 1306.857794 | AD190: =AD154+AD166+AD178 -> 1267.847114 | AE190: =AE154+AE166+AE178 -> 1228.836433 | AF190: 1189.825753 | AG190: 1150.815073 | AH190: 1111.804392
A191: =ROW() -> 191 | C191: Compression | H191: =Inputs!H139 -> 356.1635421 | I191: =I155+I167+I179 -> 337.1420035 | J191: =J155+J167+J179 -> 318.1204649 | K191: 299.0989263 | L191: 280.0773876 | M191: 261.055849 | N191: 237.8164482 | O191: 219.9368063 | P191: 202.0571644 | Q191: 184.1775226 | R191: 166.2978807 | S191: 148.4182388 | T191: =T155+T167+T179 -> 131.1606439 | U191: 113.9041768 | V191: 96.64770966 | W191: 79.39124254 | X191: =X155+X167+X179 -> 62.13477542 | Y191: 44.87862151 | Z191: 27.6224676 | AA191: 10.36631369 | AB191: 0 | AC191: =PrincipledApproach!AC191 -> 0 | AD191: 0 | AE191: =AE155+AE167+AE179 -> 0 | AF191: 0 | AG191: 0 | AH191: 0
A192: =ROW() -> 192 | C192: Metering | H192: =Inputs!H140 -> 29.20819445 | I192: =I156+I168+I180 -> 28.43966222 | J192: =J156+J168+J180 -> 27.67112999 | K192: 26.90259776 | L192: 26.13406552 | M192: 25.36553329 | N192: 24.60840409 | O192: 23.85127489 | P192: 23.09414569 | Q192: 22.33701648 | R192: 21.57988728 | S192: 20.82275808 | T192: =T156+T168+T180 -> 20.06562888 | U192: 19.30849967 | V192: 18.55137047 | W192: 17.76638998 | X192: =X156+X168+X180 -> 17.00926078 | Y192: 16.25336929 | Z192: 15.4974778 | AA192: 14.74158631 | AB192: 13.98569482 | AC192: =PrincipledApproach!AC192 -> 13.22980332 | AD192: 0 | AE192: =AE156+AE168+AE180 -> 0 | AF192: 0 | AG192: 0 | AH192: 0
A193: =ROW() -> 193 | C193: Other Depreciable | H193: =Inputs!H141 -> 80.21659485 | I193: =I157+I169+I181 -> 75.45596607 | J193: =J157+J169+J181 -> 70.6953373 | K193: 65.93470852 | L193: 61.17407975 | M193: 56.41345098 | N193: 51.5567105 | O193: 46.79608173 | P193: 41.9934075 | Q193: 37.20100839 | R193: 32.3389346 | S193: 27.56501124 | T193: =T157+T169+T181 -> 20.8330494 | U193: 16.09248345 | V193: 11.34186396 | W193: 6.629896222 | X193: =X157+X169+X181 -> 1.917928488 | Y193: 0 | Z193: 0 | AA193: 0 | AB193: 0 | AC193: =PrincipledApproach!AC193 -> 0 | AD193: 0 | AE193: =AE157+AE169+AE181 -> 0 | AF193: 0 | AG193: 0 | AH193: 0
A194: =ROW() -> 194 | C194: Computers and Motor Vehicles | H194: =Inputs!H142 -> 0 | I194: =I158+I170+I182 -> 0 | J194: 0 | K194: 0 | L194: 0 | M194: 0 | N194: 0 | O194: 0 | P194: 0 | Q194: 0 | R194: 0 | S194: 0 | T194: =T158+T170+T182 -> 0 | U194: 0 | V194: 0 | W194: 0 | X194: 0 | Y194: 0 | Z194: 0 | AA194: 0 | AB194: 0 | AC194: =PrincipledApproach!AC194 -> 0 | AD194: 0 | AE194: 0 | AF194: 0 | AG194: 0 | AH194: 0
A195: =ROW() -> 195 | C195: Cathodic/Corrosion Protection | H195: =Inputs!H143 -> 0 | I195: =I159+I171+I183 -> 0 | J195: 0 | K195: 0 | L195: 0 | M195: 0 | N195: 0 | O195: 0 | P195: 0 | Q195: 0 | R195: 0 | S195: 0 | T195: =T159+T171+T183 -> 0 | U195: 0 | V195: 0 | W195: 0 | X195: 0 | Y195: 0 | Z195: 0 | AA195: 0 | AB195: 0 | AC195: =PrincipledApproach!AC195 -> 0 | AD195: 0 | AE195: 0 | AF195: 0 | AG195: 0 | AH195: 0
A196: =ROW() -> 196 | C196: SCADA , ECI And Comms | H196: =Inputs!H144 -> 0 | I196: =I160+I172+I184 -> 0 | J196: 0 | K196: 0 | L196: 0 | M196: 0 | N196: 0 | O196: 0 | P196: 0 | Q196: 0 | R196: 0 | S196: 0 | T196: =T160+T172+T184 -> 0 | U196: 0 | V196: 0 | W196: 0 | X196: 0 | Y196: 0 | Z196: 0 | AA196: 0 | AB196: 0 | AC196: =PrincipledApproach!AC196 -> 0 | AD196: 0 | AE196: 0 | AF196: 0 | AG196: 0 | AH196: 0
A197: =ROW() -> 197 | C197: Building | H197: =Inputs!H145 -> 0 | I197: 0 | J197: 0 | K197: 0 | L197: 0 | M197: 0 | N197: 0 | O197: 0 | P197: 0 | Q197: 0 | R197: 0 | S197: 0 | T197: 0 | U197: 0 | V197: 0 | W197: 0 | X197: 0 | Y197: 0 | Z197: 0 | AA197: 0 | AB197: 0 | AC197: =PrincipledApproach!AC197 -> 0 | AD197: 0 | AE197: 0 | AF197: 0 | AG197: 0 | AH197: 0
A198: =ROW() -> 198 | C198: Non-Depreciable | H198: =Inputs!H146 -> 17.23264518 | I198: =I162+I174+I186 -> 17.23264518 | J198: =J162+J174+J186 -> 17.23264518 | K198: 17.23264518 | L198: 17.23264518 | M198: 17.23264518 | N198: 14.32805182 | O198: 14.32805182 | P198: 14.32805182 | Q198: 14.32805182 | R198: 14.32805182 | S198: =(S162+S174+S186-S210)*(S162+S174+S186-S210>0) -> 14.32805182 | T198: =T162+T174+T186 -> 14.32805182 | U198: 14.32805182 | V198: 14.32805182 | W198: 14.32805182 | X198: =X162+X174+X186 -> 14.32805182 | Y198: 14.32805182 | Z198: 14.32805182 | AA198: 14.32805182 | AB198: 14.32805182 | AC198: =PrincipledApproach!AC198 -> 14.32805182 | AD198: 14.32805182 | AE198: =AE162+AE174+AE186 -> 14.32805182 | AF198: 14.32805182 | AG198: 14.32805182 | AH198: 14.32805182
A199: =ROW() -> 199 | C199: Cost of Raising Equity | H199: =Inputs!H147 -> 0 | I199: =I163+I175+I187 -> 0 | J199: =J163+J175+J187 -> 0 | K199: 0 | L199: 0 | M199: 0 | N199: 0 | O199: 0 | P199: 0 | Q199: 0 | R199: 0 | S199: =(S163+S175+S187-S211)*(S163+S175+S187-S211>0) -> 0 | T199: =T163+T175+T187 -> 0 | U199: 0 | V199: 0 | W199: 0 | X199: =X163+X175+X187 -> 0 | Y199: 0 | Z199: 0 | AA199: 0 | AB199: 0 | AC199: =PrincipledApproach!AC199 -> 0 | AD199: 0 | AE199: =AE163+AE175+AE187 -> 0 | AF199: 0 | AG199: 0 | AH199: 0
A200: =ROW() -> 200 | C200: Total | H200: =SUM(H190:H199) -> 2608.90306 | I200: 2545.34168 | J200: =SUM(J190:J199) -> 2481.7803 | K200: =SUM(K190:K199) -> 2418.21892 | L200: =SUM(L190:L199) -> 2354.65754 | M200: =SUM(M190:M199) -> 2291.09616 | N200: =SUM(N190:N199) -> 2220.327615 | O200: =SUM(O190:O199) -> 2157.919535 | P200: =SUM(P190:P199) -> 2095.469409 | Q200: =SUM(Q190:Q199) -> 2033.029559 | R200: =SUM(R190:R199) -> 1970.520033 | S200: =SUM(S190:S199) -> 1908.098659 | T200: =SUM(T190:T199) -> 1844.341292 | U200: =SUM(U190:U199) -> 1782.576449 | V200: =SUM(V190:V199) -> 1720.801553 | W200: =SUM(W190:W199) -> 1659.037457 | X200: 1597.301213 | Y200: =SUM(Y190:Y199) -> 1538.360559 | Z200: =SUM(Z190:Z199) -> 1481.337833 | AA200: =SUM(AA190:AA199) -> 1424.315107 | AB200: =SUM(AB190:AB199) -> 1374.182221 | AC200: =SUM(AC190:AC199) -> 1334.41565 | AD200: 1282.175166 | AE200: 1243.164485 | AF200: 1204.153805 | AG200: 1165.143124 | AH200: =SUM(AH190:AH199) -> 1126.132444
A201: =ROW() -> 201 | B201: Over Depreciation | G201: Check | H201: =IF(ROUND(H200-Inputs!H172,6)=0,"OK","Wrong") -> Wrong | I201: =IF(ROUND(I200-Inputs!I172,6)=0,"OK","Wrong") -> Wrong | J201: =IF(ROUND(J200-Inputs!J172,6)=0,"OK","Wrong") -> Wrong | K201: =IF(ROUND(K200-Inputs!K172,6)=0,"OK","Wrong") -> Wrong | L201: =IF(ROUND(L200-Inputs!L172,6)=0,"OK","Wrong") -> Wrong | M201: =IF(ROUND(M200-Inputs!M172,6)=0,"OK","Wrong") -> Wrong
A202: =ROW() -> 202 | C202: Pipeline | H202: =H200-Inputs!H172 -> 2608.90306 | I202: =I200-Inputs!I172 -> 2545.34168 | J202: =J200-Inputs!J172 -> 2481.7803 | K202: =K200-Inputs!K172 -> 2418.21892 | L202: =L200-Inputs!L172 -> 2354.65754 | M202: =M200-Inputs!M172 -> 2291.09616 | S202: =(S154+S166+S178)*(S154+S166+S178<0) -> 0
A203: =ROW() -> 203 | C203: Compression | S203: =(S155+S167+S179)*(S155+S167+S179<0) -> 0
A204: =ROW() -> 204 | C204: Metering | S204: =(S156+S168+S180)*(S156+S168+S180<0) -> 0
A205: =ROW() -> 205 | C205: Other Depreciable | S205: =(S157+S169+S181)*(S157+S169+S181<0) -> 0
A206: =ROW() -> 206 | C206: Computers and Motor Vehicles
A207: =ROW() -> 207 | C207: Cathodic/Corrosion Protection
A208: =ROW() -> 208 | C208: SCADA , ECI And Comms
A209: =ROW() -> 209 | C209: Building
A210: =ROW() -> 210 | C210: Non-Depreciable | S210: =(S162+S174+S186)*(S162+S174+S186<0) -> 0
A211: =ROW() -> 211 | C211: Cost of Raising Equity | S211: =(S163+S175+S187)*(S163+S175+S187<0) -> 0
A212: =ROW() -> 212 | C212: Total | S212: =SUM(S202:S210) -> 0
A213: =ROW() -> 213
A214: ="Total Capex Account [$m "&TEXT(Inputs!$E$28,"dd/mm/yyyy")&"]" -> Total Capex Account [$m 31/12/2019]
... 2311 more rows

Sheet PrincipledApproach
A1: =Main!A1 -> ERA, DBNGP Tariff Model, Final Decision, April 2021
A2: =MID(CELL("filename",A1),FIND("]",CELL("filename",A1))+1,256) -> \[DBNGP-DBP-AA5-D227177-20210401-Public.XLSM]PrincipledApproach
A3: Ref. | B3: =COLUMN() -> 2 | C3: =COLUMN() -> 3 | D3: =COLUMN() -> 4 | E3: =COLUMN() -> 5 | F3: =COLUMN() -> 6 | G3: =COLUMN() -> 7 | H3: =COLUMN() -> 8 | I3: =COLUMN() -> 9 | J3: =COLUMN() -> 10 | K3: =COLUMN() -> 11 | L3: =COLUMN() -> 12 | M3: =COLUMN() -> 13 | N3: =COLUMN() -> 14 | O3: =COLUMN() -> 15 | P3: =COLUMN() -> 16 | Q3: =COLUMN() -> 17 | R3: =COLUMN() -> 18 | S3: =COLUMN() -> 19 | T3: =COLUMN() -> 20 | U3: =COLUMN() -> 21 | V3: =COLUMN() -> 22 | W3: =COLUMN() -> 23 | X3: =COLUMN() -> 24 | Y3: =COLUMN() -> 25 | Z3: =COLUMN() -> 26 | AA3: =COLUMN() -> 27 | AB3: =COLUMN() -> 28 | AC3: =COLUMN() -> 29 | AD3: =COLUMN() -> 30 | AE3: =COLUMN() -> 31 | AF3: =COLUMN() -> 32 | AG3: =COLUMN() -> 33 | AH3: =COLUMN() -> 34
A5: Regulatory Period | I5: =Inputs!I$5 -> AA1 | J5: =Inputs!J$5 -> AA1 | K5: =Inputs!K$5 -> AA1 | L5: =Inputs!L$5 -> AA1 | M5: =Inputs!M$5 -> AA1 | N5: =Inputs!N$5 -> AA2 | O5: =Inputs!O$5 -> AA2 | P5: =Inputs!P$5 -> AA2 | Q5: =Inputs!Q$5 -> AA2 | R5: =Inputs!R$5 -> AA2 | S5: =Inputs!S$5 -> AA2 | T5: =Inputs!T$5 -> AA3 | U5: =Inputs!U$5 -> AA3 | V5: =Inputs!V$5 -> AA3 | W5: =Inputs!W$5 -> AA3 | X5: =Inputs!X$5 -> AA3 | Y5: =Inputs!Y$5 -> AA4 | Z5: =Inputs!Z$5 -> AA4 | AA5: =Inputs!AA$5 -> AA4 | AB5: =Inputs!AB$5 -> AA4 | AC5: =Inputs!AC$5 -> AA4 | AD5: =Inputs!AD$5 -> AA5 | AE5: =Inputs!AE$5 -> AA5 | AF5: =Inputs!AF$5 -> AA5 | AG5: =Inputs!AG$5 -> AA5 | AH5: =Inputs!AH$5 -> AA5
A6: Year | H6: =Inputs!H$6 -> 1999 | I6: =Inputs!I$6 -> 2000 | J6: =Inputs!J$6 -> 2001 | K6: =Inputs!K$6 -> 2002 | L6: =Inputs!L$6 -> 2003 | M6: =Inputs!M$6 -> 2004 | N6: =Inputs!N$6 -> 2005 | O6: =Inputs!O$6 -> 2006 | P6: =Inputs!P$6 -> 2007 | Q6: =Inputs!Q$6 -> 2008 | R6: =Inputs!R$6 -> 2009 | S6: =Inputs!S$6 -> 2010 | T6: =Inputs!T$6 -> 2011 | U6: =Inputs!U$6 -> 2012 | V6: =Inputs!V$6 -> 2013 | W6: =Inputs!W$6 -> 2014 | X6: =Inputs!X$6 -> 2015 | Y6: =Inputs!Y$6 -> 2016 | Z6: =Inputs!Z$6 -> 2017 | AA6: =Inputs!AA$6 -> 2018 | AB6: =Inputs!AB$6 -> 2019 | AC6: =Inputs!AC$6 -> 2020 | AD6: =Inputs!AD$6 -> 2021 | AE6: =Inputs!AE$6 -> 2022 | AF6: =Inputs!AF$6 -> 2023 | AG6: =Inputs!AG$6 -> 2024 | AH6: =Inputs!AH$6 -> 2025
A7: Days | H7: =Inputs!H$7 -> 365 | I7: =Inputs!I$7 -> 366 | J7: =Inputs!J$7 -> 365 | K7: =Inputs!K$7 -> 365 | L7: =Inputs!L$7 -> 365 | M7: =Inputs!M$7 -> 366 | N7: =Inputs!N$7 -> 365 | O7: =Inputs!O$7 -> 365 | P7: =Inputs!P$7 -> 365 | Q7: =Inputs!Q$7 -> 366 | R7: =Inputs!R$7 -> 365 | S7: =Inputs!S$7 -> 365 | T7: =Inputs!T$7 -> 365 | U7: =Inputs!U$7 -> 366 | V7: =Inputs!V$7 -> 365 | W7: =Inputs!W$7 -> 365 | X7: =Inputs!X$7 -> 365 | Y7: =Inputs!Y$7 -> 366 | Z7: =Inputs!Z$7 -> 365 | AA7: =Inputs!AA$7 -> 365 | AB7: =Inputs!AB$7 -> 365 | AC7: =Inputs!AC$7 -> 366 | AD7: =Inputs!AD$7 -> 365 | AE7: =Inputs!AE$7 -> 365 | AF7: =Inputs!AF$7 -> 365 | AG7: =Inputs!AG$7 -> 366 | AH7: =Inputs!AH$7 -> 365
A8: Project Year | H8: =Inputs!H$8 -> 0 | I8: =Inputs!I$8 -> 1 | J8: =Inputs!J$8 -> 2 | K8: =Inputs!K$8 -> 3 | L8: =Inputs!L$8 -> 4 | M8: =Inputs!M$8 -> 5 | N8: =Inputs!N$8 -> 6 | O8: =Inputs!O$8 -> 7 | P8: =Inputs!P$8 -> 8 | Q8: =Inputs!Q$8 -> 9 | R8: =Inputs!R$8 -> 10 | S8: =Inputs!S$8 -> 11 | T8: =Inputs!T$8 -> 12 | U8: =Inputs!U$8 -> 13 | V8: =Inputs!V$8 -> 14 | W8: =Inputs!W$8 -> 15 | X8: =Inputs!X$8 -> 16 | Y8: =Inputs!Y$8 -> 17 | Z8: =Inputs!Z$8 -> 18 | AA8: =Inputs!AA$8 -> 19 | AB8: =Inputs!AB$8 -> 20 | AC8: =Inputs!AC$8 -> 21 | AD8: =Inputs!AD$8 -> 22 | AE8: =Inputs!AE$8 -> 23 | AF8: =Inputs!AF$8 -> 24 | AG8: =Inputs!AG$8 -> 25 | AH8: =Inputs!AH$8 -> 26
A9: Financial Parameters
A10: =ROW() -> 10 | B10: Modelled Inflation
A11: =ROW() -> 11 | C11: ="Inflation Factor (convert " &Inputs!$E$28& " $ to nominal $)" -> Inflation Factor (convert 31/12/2019 $ to nominal $) | H11: =Inputs!H28 -> 0.5941194304 | I11: =Inputs!I28 -> 0.6285888897 | J11: =Inputs!J28 -> 0.6482173318 | K11: =Inputs!K28 -> 0.6678457739 | L11: =Inputs!L28 -> 0.6836442761 | M11: =Inputs!M28 -> 0.7013577482 | N11: =Inputs!N28 -> 0.7209861903 | O11: =Inputs!O28 -> 0.7444445724 | P11: =Inputs!P28 -> 0.7664667269 | Q11: =Inputs!Q28 -> 0.7947125338 | R11: =Inputs!R28 -> 0.811468521 | S11: =Inputs!S28 -> 0.8330119331 | T11: =Inputs!T28 -> 0.8588640275 | U11: =Inputs!U28 -> 0.8777969019 | V11: =Inputs!V28 -> 0.9018932874 | W11: =Inputs!W28 -> 0.917383821 | X11: =Inputs!X28 -> 0.9328743546 | Y11: =Inputs!Y28 -> 0.9466437177 | Z11: =Inputs!Z28 -> 0.9647160069 | AA11: =Inputs!AA28 -> 0.9819277108 | AB11: =Inputs!AB28 -> 1 | AC11: =Inputs!AC28 -> 1.0115 | AD11: =Inputs!AD28 -> 1.02313225 | AE11: =Inputs!AE28 -> 1.034898271 | AF11: =Inputs!AF28 -> 1.046799601 | AG11: =Inputs!AG28 -> 1.058837796 | AH11: =Inputs!AH28 -> 1.071014431
A12: =ROW() -> 12 | C12: ="Inflation Factor (convert nominal to real "&Inputs!$E$28&" $)" -> Inflation Factor (convert nominal to real 31/12/2019 $) | H12: =Inputs!H29 -> 1.683163264 | I12: =Inputs!I29 -> 1.590864898 | J12: =Inputs!J29 -> 1.542692475 | K12: =Inputs!K29 -> 1.497351693 | L12: =Inputs!L29 -> 1.462749027 | M12: =Inputs!M29 -> 1.425805878 | N12: =Inputs!N29 -> 1.386989118 | O12: =Inputs!O29 -> 1.343283351 | P12: =Inputs!P29 -> 1.304688077 | Q12: =Inputs!Q29 -> 1.258316633 | R12: =Inputs!R29 -> 1.232333694 | S12: =Inputs!S29 -> 1.200462995 | T12: =Inputs!T29 -> 1.164328657 | U12: =Inputs!U29 -> 1.139215686 | V12: =Inputs!V29 -> 1.108778626 | W12: =Inputs!W29 -> 1.090056285 | X12: =Inputs!X29 -> 1.07195572 | Y12: =Inputs!Y29 -> 1.056363636 | Z12: =Inputs!Z29 -> 1.036574487 | AA12: =Inputs!AA29 -> 1.018404908 | AB12: =Inputs!AB29 -> 1 | AC12: =Inputs!AC29 -> 0.9886307464 | AD12: =Inputs!AD29 -> 0.9773907528 | AE12: =Inputs!AE29 -> 0.9662785494 | AF12: =Inputs!AF29 -> 0.9552926836 | AG12: =Inputs!AG29 -> 0.9444317188 | AH12: =Inputs!AH29 -> 0.9336942351
A13: ="DBNGP Asset Account Summary [m$ "&TEXT(Inputs!$E$28,"dd/mm/yyyy")&"]" -> DBNGP Asset Account Summary [m$ 31/12/2019]
A27: DBNGP and BEP Assets
A28: =ROW() -> 28 | B28: DBNGP Asset Including BEP
A29: =ROW() -> 29 | C29: Opening Value | I29: =I35+I42 -> 2608.90306 | J29: 2553.390658 | K29: 2494.521683 | L29: 2431.956686 | M29: 2368.068156 | N29: 2307.484274 | O29: 2308.471125 | P29: 2761.204847 | Q29: 2700.988376 | R29: 3412.62029 | S29: 3328.511278 | T29: 4020.677942 | U29: 4080.461855 | V29: 4004.345511 | W29: 3915.351121 | X29: =X35+X42 -> 3814.919396 | Y29: =Y35+Y42 -> 3726.31782 | Z29: 3639.303541 | AA29: 3555.311758 | AB29: 3469.130585 | AC29: 3393.130089 | AD29: 3331.497475 | AE29: 3152.252362 | AF29: 3061.680416 | AG29: 2958.883129 | AH29: 2868.10866
A30: =ROW() -> 30 | C30: Capex | I30: 8.048978154 | J30: 5.040611844 | K30: 1.879554216 | L30: 1.13209695 | M30: 4.814526422 | N30: 72.35976823 | O30: 516.1540624 | P30: 6.818227898 | Q30: 789.4898201 | R30: 1.5795629 | S30: 742.9262251 | T30: 170.3195658 | U30: 35.05240507 | V30: 23.03399318 | W30: 13.42431892 | X30: =X36+X43 -> 24.0774892 | Y30: 18.33823878 | Z30: 24.0231836 | AA30: 22.57230732 | AB30: 26.41905884 | AC30: 30.9433036 | AD30: 49.55667738 | AE30: 35.0587286 | AF30: 21.77968506 | AG30: 32.04667616 | AH30: 20.71784905
A31: =ROW() -> 31 | C31: Redundant & Disposed Asset | I31: 0 | J31: 0 | K31: 0 | L31: 0 | M31: 0 | N31: -8.360463955 | O31: 0 | P31: -0.04204545337 | Q31: -0.03177033202 | R31: -0.1014450127 | S31: -0.01329458569 | T31: -5.147322122 | U31: -0.4229668787 | V31: -0.8425955491 | W31: -2.377115297 | X31: =X37+X44 -> -0.8357667587 | Y31: 0 | Z31: 0 | AA31: 0 | AB31: 0 | AC31: 0 | AD31: 0 | AE31: 0 | AF31: 0 | AG31: 0 | AH31: 0
A32: =ROW() -> 32 | C32: Depreciation | I32: -63.56138005 | J32: -63.90958646 | K32: -64.44455185 | L32: -65.0206265 | M32: -65.39840848 | N32: -63.01245344 | O32: -63.42034004 | P32: -66.99265409 | Q32: -77.82613578 | R32: -85.58712944 | S32: -87.61843053 | T32: -105.3883301 | U32: -110.7457826 | V32: -111.1857875 | W32: -111.4789291 | X32: =X38+X45 -> -111.8432982 | Y32: -105.3525174 | Z32: -108.0149664 | AA32: -108.7534806 | AB32: -102.4195553 | AC32: -92.5759175 | AD32: -228.8017897 | AE32: -125.6306755 | AF32: -124.5769718 | AG32: -122.8211452 | AH32: -123.1082035
A33: =ROW() -> 33 | C33: Closing Value | H33: =H39+H47 -> 2608.90306 | I33: 2553.390658 | J33: 2494.521683 | K33: 2431.956686 | L33: 2368.068156 | M33: 2307.484274 | N33: 2308.471125 | O33: 2761.204847 | P33: 2700.988376 | Q33: 3412.62029 | R33: 3328.511278 | S33: 4020.677942 | T33: 4080.461855 | U33: 4004.345511 | V33: 3915.351121 | W33: 3814.919396 | X33: 3726.31782 | Y33: 3639.303541 | Z33: 3555.311758 | AA33: 3469.130585 | AB33: 3393.130089 | AC33: 3331.497475 | AD33: 3152.252362 | AE33: 3061.680416 | AF33: 2958.883129 | AG33: 2868.10866 | AH33: 2765.718305
A34: =ROW() -> 34 | B34: BEP Asset Account
A35: =ROW() -> 35 | C35: Opening Value (Starting 01/12/2010) | T35: =T133 -> 0 | U35: =U133 -> 22.63836826 | V35: =V133 -> 22.2412039 | W35: 21.84403955 | X35: 21.44687519 | Y35: 21.04971084 | Z35: 20.65254648 | AA35: 20.25538213 | AB35: 19.85821777 | AC35: 19.46105342 | AD35: 19.06388906 | AE35: 18.60998694 | AF35: 18.15608482 | AG35: 17.7021827 | AH35: 17.24828058
A36: =ROW() -> 36 | C36: Capex | T36: =T134 -> 22.63836826 | U36: =U134 -> 0 | V36: 0 | W36: 0 | X36: 0 | Y36: 0 | Z36: 0 | AA36: 0 | AB36: 0 | AC36: 0 | AD36: 0 | AE36: 0 | AF36: 0 | AG36: 0 | AH36: 0
A37: =ROW() -> 37 | C37: Redundant & Disposed Asset | T37: =T135 -> 0 | U37: 0 | V37: 0 | W37: 0 | X37: 0 | Y37: 0 | Z37: 0 | AA37: 0 | AB37: 0 | AC37: 0 | AD37: 0 | AE37: 0 | AF37: 0 | AG37: 0 | AH37: 0
A38: =ROW() -> 38 | C38: Depreciation | T38: 0 | U38: -0.3971643554 | V38: -0.3971643554 | W38: -0.3971643554 | X38: -0.3971643554 | Y38: -0.3971643554 | Z38: -0.3971643554 | AA38: -0.3971643554 | AB38: -0.3971643554 | AC38: -0.3971643554 | AD38: -0.4539021205 | AE38: -0.4539021205 | AF38: -0.4539021205 | AG38: -0.4539021205 | AH38: -0.4539021205
A39: =ROW() -> 39 | C39: Closing Value | T39: =SUM(T35:T38) -> 22.63836826 | U39: =SUM(U35:U38) -> 22.2412039 | V39: =SUM(V35:V38) -> 21.84403955 | W39: =SUM(W35:W38) -> 21.44687519 | X39: =SUM(X35:X38) -> 21.04971084 | Y39: =SUM(Y35:Y38) -> 20.65254648 | Z39: 20.25538213 | AA39: 19.85821777 | AB39: 19.46105342 | AC39: 19.06388906 | AD39: 18.60998694 | AE39: 18.15608482 | AF39: 17.7021827 | AG39: 17.24828058 | AH39: 16.79437846
A40: DBNGP Assets
A41: =ROW() -> 41 | B41: DBNGP Asset
A42: =ROW() -> 42 | C42: Opening Value | I42: =H47 -> 2608.90306 | J42: =I47 -> 2553.390658 | K42: 2494.521683 | L42: 2431.956686 | M42: 2368.068156 | N42: 2307.484274 | O42: 2308.471125 | P42: 2761.204847 | Q42: 2700.988376 | R42: 3412.62029 | S42: 3328.511278 | T42: 4020.677942 | U42: 4057.823487 | V42: 3982.104307 | W42: 3893.507082 | X42: 3793.47252 | Y42: 3705.268109 | Z42: 3618.650995 | AA42: 3535.056376 | AB42: 3449.272367 | AC42: 3373.669035 | AD42: 3312.433586 | AE42: 3133.642375 | AF42: 3043.524331 | AG42: 2941.180946 | AH42: 2850.860379
A43: =ROW() -> 43 | C43: Capex | I43: =I78 -> 8.048978154 | J43: =J78 -> 5.040611844 | K43: 1.879554216 | L43: 1.13209695 | M43: 4.814526422 | N43: 72.35976823 | O43: 516.1540624 | P43: 6.818227898 | Q43: 789.4898201 | R43: 1.5795629 | S43: 742.9262251 | T43: 147.6811976 | U43: 35.05240507 | V43: 23.03399318 | W43: 13.42431892 | X43: 24.0774892 | Y43: 18.33823878 | Z43: 24.0231836 | AA43: 22.57230732 | AB43: 26.41905884 | AC43: 30.9433036 | AD43: 49.55667738 | AE43: 35.0587286 | AF43: 21.77968506 | AG43: 32.04667616 | AH43: 20.71784905
A44: =ROW() -> 44 | C44: Redundant & Disposed Asset | I44: =I90 -> 0 | J44: =J90 -> 0 | K44: 0 | L44: 0 | M44: 0 | N44: -8.360463955 | O44: 0 | P44: -0.04204545337 | Q44: -0.03177033202 | R44: -0.1014450127 | S44: -0.01329458569 | T44: -5.147322122 | U44: -0.4229668787 | V44: -0.8425955491 | W44: -2.377115297 | X44: -0.8357667587 | Y44: 0 | Z44: 0 | AA44: 0 | AB44: 0 | AC44: 0 | AD44: 0 | AE44: 0 | AF44: 0 | AG44: 0 | AH44: 0
A45: =ROW() -> 45 | C45: Depreciation | I45: =I102 -> -63.56138005 | J45: =J102 -> -63.90958646 | K45: -64.44455185 | L45: -65.0206265 | M45: -65.39840848 | N45: -63.01245344 | O45: -63.42034004 | P45: -66.99265409 | Q45: -77.82613578 | R45: -85.58712944 | S45: -87.61843053 | T45: -105.3883301 | U45: -110.3486183 | V45: -110.7886232 | W45: -111.0817648 | X45: -111.4461339 | Y45: -104.9553531 | Z45: -107.617802 | AA45: -108.3563162 | AB45: -102.0223909 | AC45: -92.17875315 | AD45: -228.3478876 | AE45: -125.1767734 | AF45: -124.1230697 | AG45: -122.3672431 | AH45: -122.6543014
A46: =ROW() -> 46
A47: =ROW() -> 47 | C47: Closing Value | H47: =H114 -> 2608.90306 | I47: =SUM(I42:I46) -> 2553.390658 | J47: 2494.521683 | K47: 2431.956686 | L47: 2368.068156 | M47: 2307.484274 | N47: 2308.471125 | O47: 2761.204847 | P47: =SUM(P42:P46) -> 2700.988376 | Q47: =SUM(Q42:Q46) -> 3412.62029 | R47: 3328.511278 | S47: =SUM(S42:S46)-S50 -> 4020.677942 | T47: 4057.823487 | U47: 3982.104307 | V47: 3893.507082 | W47: 3793.47252 | X47: 3705.268109 | Y47: 3618.650995 | Z47: 3535.056376 | AA47: 3449.272367 | AB47: 3373.669035 | AC47: 3312.433586 | AD47: 3133.642375 | AE47: 3043.524331 | AF47: =SUM(AF42:AF46) -> 2941.180946 | AG47: 2850.860379 | AH47: 2748.923927
A48: =ROW() -> 48 | G48: Check | H48: =IF(ROUND(H47-Inputs!H109,6)=0,"OK","Wrong") -> Wrong | I48: =IF(ROUND(I47-Inputs!I109,6)=0,"OK","Wrong") -> Wrong | J48: =IF(ROUND(J47-Inputs!J109,6)=0,"OK","Wrong") -> Wrong | K48: =IF(ROUND(K47-Inputs!K109,6)=0,"OK","Wrong") -> Wrong | L48: =IF(ROUND(L47-Inputs!L109,6)=0,"OK","Wrong") -> Wrong | M48: =IF(ROUND(M47-Inputs!M109,6)=0,"OK","Wrong") -> Wrong | N48: =IF(ROUND(N47-N200-N275,6)=0,"OK","Wrong") -> OK | O48: =IF(ROUND(O47-O200-O275,6)=0,"OK","Wrong") -> OK | P48: OK | Q48: OK | R48: OK | S48: OK | T48: OK | U48: OK | V48: OK | W48: OK | X48: OK | Y48: OK | Z48: OK | AA48: OK | AB48: OK | AC48: OK | AD48: OK | AE48: OK | AF48: OK | AG48: OK | AH48: OK
A49: =ROW() -> 49 | B49: Over Depreciation
A50: =ROW() -> 50 | C50: Over Depreciation | S50: =S126 -> -36.87216348
A51: =ROW() -> 51 | C51: Rolled Forward Value | T51: =S50*(1+WACC!M34) -> -38.99998684
A52: =ROW() -> 52
A53: ="DBNGP Asset Account [m$ "&TEXT(Inputs!$E$28,"dd/mm/yyyy")&"]" -> DBNGP Asset Account [m$ 31/12/2019]
A54: Asset Accounts
A55: =ROW() -> 55 | B55: Opening Value
A56: =ROW() -> 56 | C56: Pipeline | I56: =H104 -> 2126.082083 | J56: 2089.27927 | K56: 2050.30468 | L56: 2011.372667 | M56: 1972.341146 | N56: 1934.186735 | O56: 1905.440156 | P56: 2175.086304 | Q56: 2137.316441 | R56: 2713.80354 | S56: 2663.780504 | T56: 3199.346143 | U56: 3169.416546 | V56: 3119.794732 | W56: 3061.218372 | X56: 3000.297684 | Y56: 2941.060248 | Z56: 2879.344022 | AA56: 2817.627797 | AB56: 2755.998373 | AC56: 2694.290607 | AD56: 2632.804491 | AE56: 2562.223651 | AF56: 2491.642811 | AG56: 2421.061971 | AH56: 2350.481131
A57: =ROW() -> 57 | C57: Compression | I57: =H105 -> 356.1635421 | J57: 333.9666307 | K57: 316.9383756 | L57: 297.7436692 | M57: 278.006621 | N57: 258.5964098 | O57: 291.7992084 | P57: 478.8509667 | Q57: 457.8097811 | R57: 560.8295166 | S57: 532.4737578 | T57: 655.2153296 | U57: 645.1791294 | V57: 614.7098539 | W57: 582.5351801 | X57: 547.014264 | Y57: 511.3466413 | Z57: 476.5806026 | AA57: 443.8404106 | AB57: 408.9474634 | AC57: 379.6819915 | AD57: 361.2068968 | AE57: 345.9451272 | AF57: 327.8945869 | AG57: 310.3238906 | AH57: 292.4531913
A58: =ROW() -> 58 | C58: Metering | I58: =H106 -> 29.20819445 | J58: 29.34914886 | K58: 29.41310633 | L58: 29.17889171 | M58: 28.36052572 | N58: 29.96879019 | O58: 29.11939387 | P58: 28.23782832 | Q58: 27.32116818 | R58: 26.40012111 | S58: 25.47907404 | T58: 30.52829442 | U58: 29.60266596 | V58: 28.59691838 | W58: 27.84263704 | X58: 25.55772639 | Y58: 25.88153659 | Z58: 29.78352431 | AA58: 32.37929194 | AB58: 38.17602531 | AC58: 42.43423416 | AD58: 49.5430741 | AE58: 36.61443191 | AF58: 36.26751694 | AG58: 36.08454755 | AH58: 35.65263818
A59: =ROW() -> 59 | C59: Other Depreciable | I59: =H107 -> 80.21659485 | J59: 83.56296348 | K59: 80.63287668 | L59: 76.42881298 | M59: 72.12721837 | N59: 67.49969376 | O59: 62.50014065 | P59: 57.652003 | Q59: 52.74856031 | R59: 49.68726457 | S59: 44.69789975 | T59: 39.81614809 | U59: 53.97119839 | V59: 48.66524515 | W59: 47.04969521 | X59: 44.0172034 | Y59: 42.57336936 | Z59: 42.11021681 | AA59: 45.28273648 | AB59: 45.19384117 | AC59: 45.9770412 | AD59: 48.38923515 | AE59: 27.12706403 | AF59: 22.19469816 | AG59: 17.22273044 | AH59: 13.39034692
A60: =ROW() -> 60 | C60: Computers and Motor Vehicles | I60: =H108 -> 0 | J60: 0 | K60: 0 | L60: 0 | M60: 0 | N60: 0 | O60: 2.898580362 | P60: 3.449614257 | Q60: 3.893704389 | R60: 8.040675745 | S60: 7.743121109 | T60: 7.315726667 | U60: 13.74299374 | V60: 14.6313098 | W60: 15.5236185 | X60: 15.82546605 | Y60: 18.06628108 | Z60: 22.36210621 | AA60: 24.18213809 | AB60: 26.44647766 | AC60: 28.16503563 | AD60: 32.34771548 | AE60: 26.51391479 | AF60: 22.60224689 | AG60: 18.80406297 | AH60: 17.84367787
A61: =ROW() -> 61 | C61: Cathodic/Corrosion Protection | I61: =H109 -> 0 | J61: 0 | K61: 0 | L61: 0 | M61: 0 | N61: 0 | O61: 0 | P61: 0 | Q61: 0 | R61: 0.1008810187 | S61: 0.099974578 | T61: 16.73686245 | U61: 33.80690013 | V61: 39.54519961 | W61: 41.56989544 | X61: 42.17816325 | Y61: 43.26603804 | Z61: 43.45893086 | AA61: 44.29760851 | AB61: 48.43488378 | AC61: 54.9436818 | AD61: 58.22243145 | AE61: 53.52640969 | AF61: 48.04688511 | AG61: 42.59771849 | AH61: 36.76985989
A62: =ROW() -> 62 | C62: SCADA , ECI And Comms | I62: =H110 -> 0 | J62: 0 | K62: 0 | L62: 0 | M62: 0 | N62: 0 | O62: 2.385593906 | P62: 3.761064815 | Q62: 5.390585098 | R62: 35.46906781 | S62: 35.13279044 | T62: 51.65471285 | U62: 88.51766325 | V62: 90.96083584 | W62: 91.3572925 | X62: 92.38327151 | Y62: 96.97906873 | Z62: 99.0489038 | AA62: 101.7039899 | AB62: 100.5531825 | AC62: 102.8746075 | AD62: 104.8381891 | AE62: 51.79151057 | AF62: 60.36465087 | AG62: 58.77533918 | AH62: 60.23068319
A63: =ROW() -> 63 | C63: Building | I63: =H111 -> 0 | J63: =I111 -> 0 | K63: =J111 -> 0 | L63: =K111 -> 0 | M63: =L111 -> 0 | N63: =M111 -> 0 | O63: =N111 -> 0 | P63: =O111 -> 0 | Q63: =P111 -> 0 | R63: =Q111 -> 0 | S63: =R111 -> 0 | T63: =S111 -> 0 | U63: =T111 -> 3.540654415 | V63: =U111 -> 5.198912544 | W63: =V111 -> 6.199947543 | X63: =W111 -> 5.987646643 | Y63: =X111 -> 5.887015139 | Z63: =Y111 -> 5.688166728 | AA63: =Z111 -> 5.467883045 | AB63: =AA111 -> 5.247599361 | AC63: =AB111 -> 5.027315677 | AD63: =AC111 -> 4.807031993 | AE63: =AD111 -> 7.6570241 | AF63: =AE111 -> 10.83319469 | AG63: =AF111 -> 11.37526844 | AH63: =AG111 -> 17.73318363
A64: =ROW() -> 64 | C64: Non-Depreciable | I64: =H112 -> 17.23264518 | J64: 17.23264518 | K64: 17.23264518 | L64: 17.23264518 | M64: 17.23264518 | N64: 17.23264518 | O64: 14.32805182 | P64: 14.16706645 | Q64: 16.50813532 | R64: 18.28922253 | S64: 19.10415644 | T64: 20.06472478 | U64: 20.04573592 | V64: 20.00129952 | W64: 20.21044364 | X64: 20.21109552 | Y64: 20.20791062 | Z64: 20.27452078 | AA64: 20.27452078 | AB64: 20.27452078 | AC64: 20.27452078 | AD64: 20.27452078 | AE64: 20.27452078 | AF64: 20.27452078 | AG64: 20.27452078 | AH64: 20.27452078
A65: =ROW() -> 65 | C65: Cost of Raising Equity | I65: 0 | J65: 0 | K65: 0 | L65: 0 | M65: 0 | N65: 0 | O65: 0 | P65: 0 | Q65: 0 | R65: 0 | S65: 0 | T65: 0 | U65: 0 | V65: 0 | W65: 0 | X65: 0 | Y65: 0 | Z65: 0 | AA65: -4.899938547e-16 | AB65: -9.799877094e-16 | AC65: -1.469981564e-15 | AD65: -1.959975419e-15 | AE65: 1.968721427 | AF65: 3.403219249 | AG65: 4.660896344 | AH65: 6.031146066
A66: =ROW() -> 66 | C66: Total | I66: =SUM(I56:I65) -> 2608.90306 | J66: =SUM(J56:J65) -> 2553.390658 | K66: 2494.521683 | L66: 2431.956686 | M66: 2368.068156 | N66: 2307.484274 | O66: 2308.471125 | P66: 2761.204847 | Q66: 2700.988376 | R66: 3412.62029 | S66: 3328.511278 | T66: 4020.677942 | U66: 4057.823487 | V66: 3982.104307 | W66: 3893.507082 | X66: 3793.47252 | Y66: 3705.268109 | Z66: 3618.650995 | AA66: 3535.056376 | AB66: 3449.272367 | AC66: 3373.669035 | AD66: 3312.433586 | AE66: 3133.642375 | AF66: 3043.524331 | AG66: 2941.180946 | AH66: 2850.860379
A67: =ROW() -> 67 | B67: Capex | H67: Check | I67: =IF(ROUND(I66-I164-I227,6)=0,"OK","Wrong") -> OK | J67: =IF(ROUND(J66-J164-J227,6)=0,"OK","Wrong") -> OK | K67: OK | L67: OK | M67: OK | N67: OK | O67: OK | P67: OK | Q67: OK | R67: OK | S67: OK | T67: OK | U67: OK | V67: OK | W67: OK | X67: OK | Y67: OK | Z67: OK | AA67: OK | AB67: OK | AC67: OK | AD67: OK | AE67: OK | AF67: OK | AG67: OK | AH67: OK
A68: =ROW() -> 68 | C68: Pipeline | I68: =I229 -> 2.207866895 | J68: =J229 -> 0.04642964408 | K68: 0.09573961908 | L68: 3.092251444e-05 | M68: 0.8857491082 | N68: 10.31032713 | O68: 308.794706 | P68: 1.495677711 | Q68: 620.9309187 | R68: 0 | S68: 571.5409346 | T68: 31.08364657 | U68: 11.60368692 | V68: 2.695183077 | W68: 0.387775199 | X68: 2.076417473 | Y68: 0 | Z68: 0 | AA68: 0.08680207597 | AB68: 0.00888114375 | AC68: 0.2306430349 | AD68: 0 | AE68: 0 | AF68: 0 | AG68: 0 | AH68: 0
A69: =ROW() -> 69 | C69: Compression | I69: -3.175372793 | J69: =J230 -> 2.047144784 | K69: 0.1247520958 | L69: -0.1679204873 | M69: 0.2615894962 | N69: 56.44219939 | O69: 205.0237028 | P69: 0.1770702827 | Q69: 129.813254 | R69: 0 | S69: 130.5126157 | T69: 26.0235176 | U69: 6.62037346 | V69: 5.114999238 | W69: 1.840400372 | X69: 2.033428811 | Y69: 2.547186765 | Z69: 4.786236623 | AA69: 2.89911258 | AB69: 1.913767388 | AC69: 2.445226512 | AD69: 5.025718599 | AE69: 2.404471886 | AF69: 2.964464934 | AG69: 2.763277359 | AH69: 3.171774309
A70: =ROW() -> 70 | C70: Metering | I70: 0.9094866444 | J70: =J231 -> 0.8324896968 | K70: 0.5360007714 | L70: -0.04646742628 | M70: 2.381846189 | N70: 0 | O70: 0 | P70: 0 | Q70: 0 | R70: 0 | S70: 5.613307654 | T70: 0.04030778103 | U70: -0.03850505939 | V70: 0.2127482667 | W70: 0.5336907689 | X70: 1.329691672 | Y70: 3.498003272 | Z70: 3.66731456 | AA70: 6.923555793 | AB70: 5.403261786 | AC70: 8.267206504 | AD70: 1.752969025 | AE70: 1.197163217 | AF70: 1.401014249 | AG70: 1.198774737 | AH70: 1.377485317
A71: =ROW() -> 71 | C71: Other Depreciable | I71: 8.106997409 | J71: =J232 -> 2.114547718 | K71: 1.12306173 | L71: 1.346453941 | M71: 1.285341628 | N71: 0.3230674435 | O71: 0.3909805791 | P71: 0.4337111558 | Q71: 2.277267456 | R71: 0.5024991475 | S71: 0.7538554908 | T71: 24.45685551 | U71: 1.646688078 | V71: 5.764490215 | W71: 4.081991677 | X71: 5.7802149 | Y71: 2.373558095 | Z71: 4.986905168 | AA71: 1.777233237 | AB71: 2.676406141 | AC71: 4.32714147 | AD71: 2.782845903 | AE71: 1.685352174 | AF71: 1.174130144 | AG71: 0.8758156793 | AH71: 1.597361963
A72: =ROW() -> 72 | C72: Computers and Motor Vehicles | I72: 0 | J72: =J233 -> 0 | K72: 0 | L72: 0 | M72: 0 | N72: 2.898580362 | O72: 0.6641658874 | P72: 0.6523336532 | Q72: 4.372789194 | R72: 0.08884127743 | S72: 0 | T72: 6.70005492 | U72: 1.513363171 | V72: 1.539212448 | W72: 0.9599955337 | X72: 2.92017805 | Y72: 3.492916192 | Z72: 2.550172996 | AA72: 3.020940723 | AB72: 2.521185578 | AC72: 5.017835506 | AD72: 14.972046 | AE72: 2.92016516 | AF72: 2.382285733 | AG72: 4.720245761 | AH72: 2.731283986
A73: =ROW() -> 73 | C73: Cathodic/Corrosion Protection | I73: 0 | J73: =J234 -> 0 | K73: 0 | L73: 0 | M73: 0 | N73: 0 | O73: 0 | P73: 0 | Q73: 0.1008810187 | R73: 0 | S73: 16.63779431 | T73: 17.30917734 | U73: 6.099570212 | V73: 2.410361697 | W73: 1.031699492 | X73: 1.532432161 | Y73: 0.8831525338 | Z73: 1.576448192 | AA73: 4.933233895 | AB73: 7.366636398 | AC73: 4.258752785 | AD73: 3.420413642 | AE73: 2.864938398 | AF73: 3.08629226 | AG73: 2.885186654 | AH73: 1.667214701
A74: =ROW() -> 74 | C74: SCADA , ECI And Comms | I74: 0 | J74: =J235 -> 0 | K74: 0 | L74: 0 | M74: 0 | N74: 2.385593906 | O74: 1.44149249 | P74: 1.718366217 | Q74: 30.21362261 | R74: 0.1732885705 | S74: 17.06813439 | T74: 38.5459723 | U74: 5.807254608 | V74: 3.874029414 | W74: 4.57875796 | X74: 8.287078846 | Y74: 5.522678107 | Z74: 6.456106064 | AA74: 2.93142902 | AB74: 6.528920406 | AC74: 6.396497794 | AD74: 16.5632254 | AE74: 19.04225061 | AF74: 8.529943278 | AG74: 11.38023271 | AH74: 6.564149588
A75: =ROW() -> 75 | C75: Building | I75: 0 | J75: 0 | K75: 0 | L75: 0 | M75: 0 | N75: 0 | O75: 0 | P75: 0 | Q75: 0 | R75: 0 | S75: 0 | T75: 3.540654415 | U75: 1.844410081 | V75: 1.213824706 | W75: 0.009356033686 | X75: 0.1212321889 | Y75: 0.02074381273 | Z75: 0 | AA75: 0 | AB75: 0 | AC75: 0 | AD75: 3.070737383 | AE75: 3.458330608 | AF75: 0.8934003909 | AG75: 6.727109838 | AH75: 2.232032783
A76: =ROW() -> 76 | C76: Non-Depreciable | I76: =I237 -> 0 | J76: 0 | K76: 0 | L76: 0 | M76: 0 | N76: 0 | O76: -0.1609853768 | P76: 2.341068877 | Q76: 1.78108721 | R76: 0.8149339043 | S76: 0.7995829634 | T76: -0.01898885366 | U76: -0.0444364075 | V76: 0.2091441216 | W76: 0.0006518819614 | X76: -0.003184898358 | Y76: 0 | Z76: 0 | AA76: 0 | AB76: 0 | AC76: 0 | AD76: 0 | AE76: 0 | AF76: 0 | AG76: 0 | AH76: 0
A77: =ROW() -> 77 | C77: Cost of Raising Equity | I77: 0 | J77: 0 | K77: 0 | L77: 0 | M77: 0 | N77: 0 | O77: 0 | P77: 0 | Q77: 0 | R77: 0 | S77: 0 | T77: 0 | U77: 0 | V77: 0 | W77: 0 | X77: 0 | Y77: 0 | Z77: 0 | AA77: 0 | AB77: 0 | AC77: 0 | AD77: 1.968721427 | AE77: 1.486056551 | AF77: 1.348154071 | AG77: 1.496033425 | AH77: 1.3765464
A78: =ROW() -> 78 | C78: Total | I78: =SUM(I68:I77) -> 8.048978154 | J78: =SUM(J68:J77) -> 5.040611844 | K78: 1.879554216 | L78: 1.13209695 | M78: 4.814526422 | N78: 72.35976823 | O78: 516.1540624 | P78: 6.818227898 | Q78: 789.4898201 | R78: 1.5795629 | S78: 742.9262251 | T78: 147.6811976 | U78: 35.05240507 | V78: 23.03399318 | W78: 13.42431892 | X78: 24.0774892 | Y78: 18.33823878 | Z78: 24.0231836 | AA78: 22.57230732 | AB78: 26.41905884 | AC78: 30.9433036 | AD78: 49.55667738 | AE78: 35.0587286 | AF78: 21.77968506 | AG78: 32.04667616 | AH78: 20.71784905
A79: =ROW() -> 79 | B79: Redundant & Disposed Asset | H79: Check | I79: =IF(ROUND(I78-Inputs!I693,6)=0,"OK","Wrong") -> OK | J79: =IF(ROUND(J78-Inputs!J693,6)=0,"OK","Wrong") -> OK | K79: =IF(ROUND(K78-Inputs!K693,6)=0,"OK","Wrong") -> OK | L79: =IF(ROUND(L78-Inputs!L693,6)=0,"OK","Wrong") -> OK | M79: =IF(ROUND(M78-Inputs!M693,6)=0,"OK","Wrong") -> OK | N79: =IF(ROUND(N78-Inputs!N693,6)=0,"OK","Wrong") -> OK | O79: =IF(ROUND(O78-Inputs!O693,6)=0,"OK","Wrong") -> OK | P79: =IF(ROUND(P78-Inputs!P693,6)=0,"OK","Wrong") -> OK | Q79: =IF(ROUND(Q78-Inputs!Q693,6)=0,"OK","Wrong") -> OK | R79: =IF(ROUND(R78-Inputs!R693,6)=0,"OK","Wrong") -> OK | S79: =IF(ROUND(S78-Inputs!S693,6)=0,"OK","Wrong") -> OK | T79: =IF(ROUND(T78-Inputs!T693,6)=0,"OK","Wrong") -> OK | U79: =IF(ROUND(U78-Inputs!U693,6)=0,"OK","Wrong") -> OK | V79: =IF(ROUND(V78-Inputs!V693,6)=0,"OK","Wrong") -> OK | W79: =IF(ROUND(W78-Inputs!W693,6)=0,"OK","Wrong") -> OK | X79: =IF(ROUND(X78-Inputs!X693,6)=0,"OK","Wrong") -> OK | Y79: =IF(ROUND(Y78-Inputs!Y693,6)=0,"OK","Wrong") -> OK | Z79: =IF(ROUND(Z78-Inputs!Z693,6)=0,"OK","Wrong") -> OK | AA79: =IF(ROUND(AA78-Inputs!AA693,6)=0,"OK","Wrong") -> OK | AB79: =IF(ROUND(AB78-Inputs!AB693,6)=0,"OK","Wrong") -> OK | AC79: =IF(ROUND(AC78-Inputs!AC693,6)=0,"OK","Wrong") -> OK | AD79: =IF(ROUND(AD78-Inputs!AD693,6)=0,"OK","Wrong") -> OK | AE79: =IF(ROUND(AE78-Inputs!AE693,6)=0,"OK","Wrong") -> OK | AF79: =IF(ROUND(AF78-Inputs!AF693,6)=0,"OK","Wrong") -> OK | AG79: =IF(ROUND(AG78-Inputs!AG693,6)=0,"OK","Wrong") -> OK | AH79: =IF(ROUND(AH78-Inputs!AH693,6)=0,"OK","Wrong") -> OK
A80: =ROW() -> 80 | C80: Pipeline | I80: =I166+I241 -> 0 | J80: 0 | K80: 0 | L80: 0 | M80: 0 | N80: 0 | O80: 0 | P80: 0 | Q80: 0 | R80: 0 | S80: 0 | T80: 0 | U80: 0 | V80: 0 | W80: 0 | X80: 0 | Y80: 0 | Z80: 0 | AA80: 0 | AB80: 0 | AC80: 0 | AD80: 0 | AE80: 0 | AF80: 0 | AG80: 0 | AH80: 0
A81: =ROW() -> 81 | C81: Compression | I81: =I167+I242 -> 0 | J81: 0 | K81: 0 | L81: 0 | M81: 0 | N81: -5.359758893 | O81: 0 | P81: 0 | Q81: 0 | R81: 0 | S81: 0 | T81: -0.08935803079 | U81: 0 | V81: -0.01601200471 | W81: -0.01944318253 | X81: -0.2974934607 | Y81: 0 | Z81: 0 | AA81: 0 | AB81: 0 | AC81: 0 | AD81: 0 | AE81: 0 | AF81: 0 | AG81: 0 | AH81: 0
A82: =ROW() -> 82 | C82: Metering | I82: =I168+I243 -> 0 | J82: 0 | K82: 0 | L82: 0 | M82: 0 | N82: 0 | O82: 0 | P82: 0 | Q82: 0 | R82: 0 | S82: 0 | T82: 0 | U82: 0 | V82: 0 | W82: -1.838755962 | X82: 0 | Y82: 0 | Z82: 0 | AA82: 0 | AB82: 0 | AC82: 0 | AD82: 0 | AE82: 0 | AF82: 0 | AG82: 0 | AH82: 0
A83: =ROW() -> 83 | C83: Other Depreciable | I83: =I169+I244 -> 0 | J83: 0 | K83: 0 | L83: 0 | M83: 0 | N83: -0.09611170235 | O83: 0 | P83: -0.04204545337 | Q83: -0.03177033202 | R83: -0.1014450127 | S83: -0.01329458569 | T83: -5.057964091 | U83: -0.4229668787 | V83: -0.8265835443 | W83: -0.5189161527 | X83: -0.538273298 | Y83: 0 | Z83: 0 | AA83: 0 | AB83: 0 | AC83: 0 | AD83: 0 | AE83: 0 | AF83: 0 | AG83: 0 | AH83: 0
A84: =ROW() -> 84 | C84: Computers and Motor Vehicles | I84: =I170+I245 -> 0 | J84: 0 | K84: 0 | L84: 0 | M84: 0 | N84: 0 | O84: 0 | P84: 0 | Q84: 0 | R84: 0 | S84: 0 | T84: 0 | U84: 0 | V84: 0 | W84: 0 | X84: 0 | Y84: 0 | Z84: 0 | AA84: 0 | AB84: 0 | AC84: 0 | AD84: 0 | AE84: 0 | AF84: 0 | AG84: 0 | AH84: 0
A85: =ROW() -> 85 | C85: Cathodic/Corrosion Protection | I85: =I171+I246 -> 0 | J85: 0 | K85: 0 | L85: 0 | M85: 0 | N85: 0 | O85: 0 | P85: 0 | Q85: 0 | R85: 0 | S85: 0 | T85: 0 | U85: 0 | V85: 0 | W85: 0 | X85: 0 | Y85: 0 | Z85: 0 | AA85: 0 | AB85: 0 | AC85: 0 | AD85: 0 | AE85: 0 | AF85: 0 | AG85: 0 | AH85: 0
A86: =ROW() -> 86 | C86: SCADA , ECI And Comms | I86: =I172+I247 -> 0 | J86: 0 | K86: 0 | L86: 0 | M86: 0 | N86: 0 | O86: 0 | P86: 0 | Q86: 0 | R86: 0 | S86: 0 | T86: 0 | U86: 0 | V86: 0 | W86: 0 | X86: 0 | Y86: 0 | Z86: 0 | AA86: 0 | AB86: 0 | AC86: 0 | AD86: 0 | AE86: 0 | AF86: 0 | AG86: 0 | AH86: 0
A87: =ROW() -> 87 | C87: Building | I87: 0 | J87: 0 | K87: 0 | L87: 0 | M87: 0 | N87: 0 | O87: 0 | P87: 0 | Q87: 0 | R87: 0 | S87: 0 | T87: 0 | U87: 0 | V87: 0 | W87: 0 | X87: 0 | Y87: 0 | Z87: 0 | AA87: 0 | AB87: 0 | AC87: 0 | AD87: 0 | AE87: 0 | AF87: 0 | AG87: 0 | AH87: 0
A88: =ROW() -> 88 | C88: Non-Depreciable | I88: =I174+I249 -> 0 | J88: 0 | K88: 0 | L88: 0 | M88: 0 | N88: -2.90459336 | O88: 0 | P88: 0 | Q88: 0 | R88: 0 | S88: 0 | T88: 0 | U88: 0 | V88: 0 | W88: 0 | X88: 0 | Y88: 0 | Z88: 0 | AA88: 0 | AB88: 0 | AC88: 0 | AD88: 0 | AE88: 0 | AF88: 0 | AG88: 0 | AH88: 0
A89: =ROW() -> 89 | C89: Cost of Raising Equity | I89: =I175+I250 -> 0 | J89: 0 | K89: 0 | L89: 0 | M89: 0 | N89: 0 | O89: 0 | P89: 0 | Q89: 0 | R89: 0 | S89: 0 | T89: 0 | U89: 0 | V89: 0 | W89: 0 | X89: 0 | Y89: 0 | Z89: 0 | AA89: 0 | AB89: 0 | AC89: 0 | AD89: 0 | AE89: 0 | AF89: 0 | AG89: 0 | AH89: 0
A90: =ROW() -> 90 | C90: Total | I90: =SUM(I80:I89) -> 0 | J90: =SUM(J80:J89) -> 0 | K90: 0 | L90: 0 | M90: 0 | N90: -8.360463955 | O90: 0 | P90: -0.04204545337 | Q90: -0.03177033202 | R90: -0.1014450127 | S90: -0.01329458569 | T90: -5.147322122 | U90: -0.4229668787 | V90: -0.8425955491 | W90: -2.377115297 | X90: -0.8357667587 | Y90: 0 | Z90: 0 | AA90: 0 | AB90: 0 | AC90: 0 | AD90: 0 | AE90: 0 | AF90: 0 | AG90: 0 | AH90: 0
A91: =ROW() -> 91 | B91: Depreciation | H91: Check | I91: =IF(ROUND(I90-I176-I251,6)=0,"OK","Wrong") -> OK | J91: =IF(ROUND(J90-J176-J251,6)=0,"OK","Wrong") -> OK | K91: OK | L91: OK | M91: OK | N91: OK | O91: OK | P91: OK | Q91: OK | R91: OK | S91: OK | T91: OK | U91: OK | V91: OK | W91: OK | X91: OK | Y91: OK | Z91: OK | AA91: OK | AB91: OK | AC91: OK | AD91: OK | AE91: OK | AF91: OK | AG91: OK | AH91: OK
A92: =ROW() -> 92 | C92: Pipeline | I92: =I178+I253 -> -39.01068043 | J92: -39.02101986 | K92: -39.02775251 | L92: -39.03155165 | M92: -39.04015983 | N92: -39.05690637 | O92: -39.14855823 | P92: -39.26554019 | Q92: -44.44381964 | R92: -50.02303639 | S92: -51.72530083 | T92: -61.01324349 | U92: -61.22550051 | V92: -61.27154378 | W92: -61.3084632 | X92: -61.313853 | Y92: -61.71622559 | Z92: -61.71622559 | AA92: -61.71622559 | AB92: -61.71664753 | AC92: -61.71675917 | AD92: -70.58083987 | AE92: -70.58083987 | AF92: -70.58083987 | AG92: -70.58083987 | AH92: -70.58083987
A93: =ROW() -> 93 | C93: Compression | I93: =I179+I254 -> -19.02153862 | J93: -19.07539984 | K93: -19.31945852 | L93: -19.56912773 | M93: -19.67180069 | N93: -17.87964189 | O93: -17.97194447 | P93: -21.21825591 | Q93: -26.79351847 | R93: -28.35575873 | S93: -28.3752572 | T93: -35.9703598 | U93: -37.08964898 | V93: -37.27366107 | W93: -37.34187324 | X93: -37.40355807 | Y93: -37.31322543 | Z93: -37.52642865 | AA93: -37.79205978 | AB93: -31.17923929 | AC93: -20.92032122 | AD93: -20.2874882 | AE93: -20.45501215 | AF93: -20.53516122 | AG93: -20.63397671 | AH93: -20.72608596
A94: =ROW() -> 94 | C94: Metering | I94: =I180+I255 -> -0.7685322314 | J94: -0.7685322314 | K94: -0.7702153947 | L94: -0.771898558 | M94: -0.7735817212 | N94: -0.8493963198 | O94: -0.8815655482 | P94: -0.9166601366 | Q94: -0.9210470707 | R94: -0.9210470707 | S94: -0.9210470707 | T94: -0.9659362404 | U94: -0.9672425199 | V94: -0.967029615 | W94: -0.9798454558 | X94: -1.005881473 | Y94: 0.4039844477 | Z94: -1.071546931 | AA94: -1.126822421 | AB94: -1.145052936 | AC94: -1.158366562 | AD94: -14.68161121 | AE94: -1.544078195 | AF94: -1.583983636 | AG94: -1.630684111 | AH94: -1.670643268
A95: =ROW() -> 95 | C95: Other Depreciable | I95: =I181+I256 -> -4.760628774 | J95: -5.044634523 | K95: -5.327125424 | L95: -5.648048553 | M95: -5.91286624 | N95: -5.226508855 | O95: -5.239118222 | P95: -5.295108392 | Q95: -5.306792868 | R95: -5.39041895 | S95: -5.622312572 | T95: -5.243841122 | U95: -6.529674439 | V95: -6.553456608 | W95: -6.595567335 | X95: -6.685775642 | Y95: -2.836710645 | Z95: -1.814385498 | AA95: -1.866128544 | AB95: -1.893206115 | AC95: -1.914947519 | AD95: -24.04501703 | AE95: -6.617718044 | AF95: -6.146097863 | AG95: -4.708199193 | AH95: -3.969894547
A96: =ROW() -> 96 | C96: Computers and Motor Vehicles | I96: =I182+I257 -> 0 | J96: 0 | K96: 0 | L96: 0 | M96: 0 | N96: 0 | O96: -0.113131992 | P96: -0.2082435219 | Q96: -0.2258178375 | R96: -0.3863959135 | S96: -0.4273944421 | T96: -0.2727878488 | U96: -0.6250471095 | V96: -0.6469037433 | W96: -0.658147991 | X96: -0.6793630201 | Y96: 0.8029089398 | Z96: -0.7301411133 | AA96: -0.7566011549 | AB96: -0.8026276041 | AC96: -0.8351556549 | AD96: -20.80584669 | AE96: -6.831833059 | AF96: -6.180469656 | AG96: -5.680630861 | AH96: -6.002515631
A97: =ROW() -> 97 | C97: Cathodic/Corrosion Protection | I97: =I183+I258 -> 0 | J97: 0 | K97: 0 | L97: 0 | M97: 0 | N97: 0 | O97: 0 | P97: 0 | Q97: 0 | R97: -0.0009064407202 | S97: -0.0009064407202 | T97: -0.2391396602 | U97: -0.361270723 | V97: -0.3856658725 | W97: -0.4234316859 | X97: -0.4445573675 | Y97: -0.6902597082 | Z97: -0.7377705493 | AA97: -0.7959586178 | AB97: -0.8578383845 | AC97: -0.9800031355 | AD97: -8.116435403 | AE97: -8.344462979 | AF97: -8.535458872 | AG97: -8.713045258 | AH97: -8.905391035
A98: =ROW() -> 98 | C98: SCADA , ECI And Comms | I98: =I184+I259 -> 0 | J98: 0 | K98: 0 | L98: 0 | M98: 0 | N98: 0 | O98: -0.06602158036 | P98: -0.08884593431 | Q98: -0.1351398977 | R98: -0.5095659413 | S98: -0.5462119728 | T98: -1.683021904 | U98: -3.364082019 | V98: -3.477572761 | W98: -3.552778949 | X98: -3.691281624 | Y98: -3.452843034 | Z98: -3.801020015 | AA98: -4.082236401 | AB98: -4.207495404 | AC98: -4.432916197 | AD98: -69.60990391 | AE98: -10.46911031 | AF98: -10.11925497 | AG98: -9.924888703 | AH98: -10.13023102
A99: =ROW() -> 99 | C99: Building | I99: 0 | J99: 0 | K99: 0 | L99: 0 | M99: 0 | N99: 0 | O99: 0 | P99: 0 | Q99: 0 | R99: 0 | S99: 0 | T99: 0 | U99: -0.1861519527 | V99: -0.2127897067 | W99: -0.2216569333 | X99: -0.2218636931 | Y99: -0.2195922235 | Z99: -0.2202836839 | AA99: -0.2202836839 | AB99: -0.2202836839 | AC99: -0.2202836839 | AD99: -0.2207452757 | AE99: -0.2821600234 | AF99: -0.3513266355 | AG99: -0.3691946434 | AH99: -0.5037368401
A100: =ROW() -> 100 | C100: Non-Depreciable | I100: =I186+I261 -> 0 | J100: 0 | K100: 0 | L100: 0 | M100: 0 | N100: 0 | O100: 0 | P100: 0 | Q100: 0 | R100: 0 | S100: 0 | T100: 0 | U100: 0 | V100: 0 | W100: 0 | X100: 0 | Y100: 0.06661015952 | Z100: 0 | AA100: 0 | AB100: 0 | AC100: 0 | AD100: 0 | AE100: 0 | AF100: 0 | AG100: 0 | AH100: 0
A101: =ROW() -> 101 | C101: Cost of Raising Equity | I101: =I187+I262 -> 0 | J101: 0 | K101: 0 | L101: 0 | M101: 0 | N101: 0 | O101: 0 | P101: 0 | Q101: 0 | R101: 0 | S101: 0 | T101: 0 | U101: 0 | V101: 0 | W101: 0 | X101: 0 | Y101: 0 | Z101: -4.899938547e-16 | AA101: -4.899938547e-16 | AB101: -4.899938547e-16 | AC101: -4.899938547e-16 | AD101: 1.959975419e-15 | AE101: -0.05155872879 | AF101: -0.09047697572 | AG101: -0.1257837028 | AH101: -0.1649632335
A102: =ROW() -> 102 | C102: Total | I102: =SUM(I92:I101) -> -63.56138005 | J102: =SUM(J92:J101) -> -63.90958646 | K102: -64.44455185 | L102: -65.0206265 | M102: -65.39840848 | N102: -63.01245344 | O102: -63.42034004 | P102: -66.99265409 | Q102: -77.82613578 | R102: -85.58712944 | S102: -87.61843053 | T102: -105.3883301 | U102: -110.3486183 | V102: -110.7886232 | W102: -111.0817648 | X102: -111.4461339 | Y102: -104.9553531 | Z102: -107.617802 | AA102: -108.3563162 | AB102: -102.0223909 | AC102: -92.17875315 | AD102: -228.3478876 | AE102: -125.1767734 | AF102: -124.1230697 | AG102: -122.3672431 | AH102: -122.6543014
A103: =ROW() -> 103 | B103: Closing Value | H103: Check | I103: =IF(ROUND(I102+Inputs!I133,6)=0,"OK","Wrong") -> OK | J103: =IF(ROUND(J102+Inputs!J133,6)=0,"OK","Wrong") -> OK | K103: =IF(ROUND(K102+Inputs!K133,6)=0,"OK","Wrong") -> OK | L103: =IF(ROUND(L102+Inputs!L133,6)=0,"OK","Wrong") -> OK | M103: =IF(ROUND(M102+Inputs!M133,6)=0,"OK","Wrong") -> OK | N103: =IF(ROUND(N102+Inputs!N133,6)=0,"OK","Wrong") -> OK | O103: =IF(ROUND(O102+Inputs!O133,6)=0,"OK","Wrong") -> OK | P103: =IF(ROUND(P102+Inputs!P133,6)=0,"OK","Wrong") -> OK | Q103: =IF(ROUND(Q102+Inputs!Q133,6)=0,"OK","Wrong") -> OK | R103: =IF(ROUND(R102+Inputs!R133,6)=0,"OK","Wrong") -> OK | S103: =IF(ROUND(S102+Inputs!S133,6)=0,"OK","Wrong") -> OK | T103: =IF(ROUND(T102+Inputs!T133,6)=0,"OK","Wrong") -> OK | U103: =IF(ROUND(U102+Inputs!U133,6)=0,"OK","Wrong") -> OK | V103: =IF(ROUND(V102+Inputs!V133,6)=0,"OK","Wrong") -> OK | W103: =IF(ROUND(W102+Inputs!W133,6)=0,"OK","Wrong") -> OK | X103: =IF(ROUND(X102+Inputs!X133,6)=0,"OK","Wrong") -> OK | Y103: =IF(ROUND(Y102-Y188-Y263,6)=0,"OK","Wrong") -> OK | Z103: OK | AA103: OK | AB103: OK | AC103: OK | AD103: OK | AE103: OK | AF103: OK | AG103: OK | AH103: OK
A104: =ROW() -> 104 | C104: Pipeline | H104: =H190 -> 2126.082083 | I104: =I56+I68+I80+I92 -> 2089.27927 | J104: 2050.30468 | K104: 2011.372667 | L104: 1972.341146 | M104: 1934.186735 | N104: 1905.440156 | O104: 2175.086304 | P104: 2137.316441 | Q104: 2713.80354 | R104: 2663.780504 | S104: =S56+S68+S80+S92-S116 -> 3199.346143 | T104: =T56+T68+T80+T92 -> 3169.416546 | U104: 3119.794732 | V104: 3061.218372 | W104: 3000.297684 | X104: 2941.060248 | Y104: =MAX(Y56+Y68+Y80+Y92,0) -> 2879.344022 | Z104: =Z56+Z68+Z80+Z92 -> 2817.627797 | AA104: 2755.998373 | AB104: 2694.290607 | AC104: 2632.804491 | AD104: =MAX(AD56+AD68+AD80+AD92,0) -> 2562.223651 | AE104: =AE56+AE68+AE80+AE92 -> 2491.642811 | AF104: 2421.061971 | AG104: 2350.481131 | AH104: 2279.900291
A105: =ROW() -> 105 | C105: Compression | H105: =H191 -> 356.1635421 | I105: =I57+I69+I81+I93 -> 333.9666307 | J105: 316.9383756 | K105: 297.7436692 | L105: 278.006621 | M105: 258.5964098 | N105: 291.7992084 | O105: 478.8509667 | P105: 457.8097811 | Q105: 560.8295166 | R105: 532.4737578 | S105: 655.2153296 | T105: 645.1791294 | U105: 614.7098539 | V105: 582.5351801 | W105: 547.014264 | X105: 511.3466413 | Y105: 476.5806026 | Z105: 443.8404106 | AA105: 408.9474634 | AB105: 379.6819915 | AC105: 361.2068968 | AD105: 345.9451272 | AE105: 327.8945869 | AF105: 310.3238906 | AG105: 292.4531913 | AH105: 274.8988796
A106: =ROW() -> 106 | C106: Metering | H106: =H192 -> 29.20819445 | I106: =I58+I70+I82+I94 -> 29.34914886 | J106: 29.41310633 | K106: 29.17889171 | L106: 28.36052572 | M106: 29.96879019 | N106: 29.11939387 | O106: 28.23782832 | P106: 27.32116818 | Q106: 26.40012111 | R106: 25.47907404 | S106: 30.52829442 | T106: 29.60266596 | U106: 28.59691838 | V106: 27.84263704 | W106: 25.55772639 | X106: 25.88153659 | Y106: 29.78352431 | Z106: 32.37929194 | AA106: 38.17602531 | AB106: 42.43423416 | AC106: 49.5430741 | AD106: 36.61443191 | AE106: 36.26751694 | AF106: 36.08454755 | AG106: 35.65263818 | AH106: 35.35948023
A107: =ROW() -> 107 | C107: Other Depreciable | H107: =H193 -> 80.21659485 | I107: =I59+I71+I83+I95 -> 83.56296348 | J107: 80.63287668 | K107: 76.42881298 | L107: 72.12721837 | M107: 67.49969376 | N107: 62.50014065 | O107: 57.652003 | P107: 52.74856031 | Q107: 49.68726457 | R107: 44.69789975 | S107: 39.81614809 | T107: 53.97119839 | U107: 48.66524515 | V107: 47.04969521 | W107: 44.0172034 | X107: 42.57336936 | Y107: 42.11021681 | Z107: 45.28273648 | AA107: 45.19384117 | AB107: 45.9770412 | AC107: 48.38923515 | AD107: 27.12706403 | AE107: 22.19469816 | AF107: 17.22273044 | AG107: 13.39034692 | AH107: 11.01781434
A108: =ROW() -> 108 | C108: Computers and Motor Vehicles | I108: =I60+I72+I84+I96 -> 0 | J108: 0 | K108: 0 | L108: 0 | M108: 0 | N108: 2.898580362 | O108: 3.449614257 | P108: 3.893704389 | Q108: 8.040675745 | R108: 7.743121109 | S108: 7.315726667 | T108: 13.74299374 | U108: 14.6313098 | V108: 15.5236185 | W108: 15.82546605 | X108: 18.06628108 | Y108: 22.36210621 | Z108: 24.18213809 | AA108: 26.44647766 | AB108: 28.16503563 | AC108: 32.34771548 | AD108: 26.51391479 | AE108: 22.60224689 | AF108: 18.80406297 | AG108: 17.84367787 | AH108: 14.57244622
A109: =ROW() -> 109 | C109: Cathodic/Corrosion Protection | I109: =I61+I73+I85+I97 -> 0 | J109: 0 | K109: 0 | L109: 0 | M109: 0 | N109: 0 | O109: 0 | P109: 0 | Q109: 0.1008810187 | R109: 0.099974578 | S109: 16.73686245 | T109: 33.80690013 | U109: 39.54519961 | V109: 41.56989544 | W109: 42.17816325 | X109: 43.26603804 | Y109: 43.45893086 | Z109: 44.29760851 | AA109: 48.43488378 | AB109: 54.9436818 | AC109: 58.22243145 | AD109: 53.52640969 | AE109: 48.04688511 | AF109: 42.59771849 | AG109: 36.76985989 | AH109: 29.53168355
A110: =ROW() -> 110 | C110: SCADA , ECI And Comms | I110: =I62+I74+I86+I98 -> 0 | J110: 0 | K110: 0 | L110: 0 | M110: 0 | N110: 2.385593906 | O110: 3.761064815 | P110: 5.390585098 | Q110: 35.46906781 | R110: 35.13279044 | S110: 51.65471285 | T110: 88.51766325 | U110: 90.96083584 | V110: 91.3572925 | W110: 92.38327151 | X110: 96.97906873 | Y110: 99.0489038 | Z110: 101.7039899 | AA110: 100.5531825 | AB110: 102.8746075 | AC110: 104.8381891 | AD110: 51.79151057 | AE110: 60.36465087 | AF110: 58.77533918 | AG110: 60.23068319 | AH110: 56.66460175
A111: =ROW() -> 111 | C111: Building | I111: 0 | J111: 0 | K111: 0 | L111: 0 | M111: 0 | N111: 0 | O111: 0 | P111: 0 | Q111: 0 | R111: 0 | S111: 0 | T111: 3.540654415 | U111: 5.198912544 | V111: 6.199947543 | W111: 5.987646643 | X111: 5.887015139 | Y111: 5.688166728 | Z111: 5.467883045 | AA111: 5.247599361 | AB111: 5.027315677 | AC111: 4.807031993 | AD111: 7.6570241 | AE111: 10.83319469 | AF111: 11.37526844 | AG111: 17.73318363 | AH111: 19.46147958
A112: =ROW() -> 112 | C112: Non-Depreciable | H112: =H198 -> 17.23264518 | I112: =I64+I76+I88+I100 -> 17.23264518 | J112: 17.23264518 | K112: 17.23264518 | L112: 17.23264518 | M112: 17.23264518 | N112: 14.32805182 | O112: 14.16706645 | P112: 16.50813532 | Q112: 18.28922253 | R112: 19.10415644 | S112: =S64+S76+S88+S100-S124 -> 20.06472478 | T112: =T64+T76+T88+T100 -> 20.04573592 | U112: 20.00129952 | V112: 20.21044364 | W112: 20.21109552 | X112: 20.20791062 | Y112: =MAX(Y64+Y76+Y88+Y100,0) -> 20.27452078 | Z112: =Z64+Z76+Z88+Z100 -> 20.27452078 | AA112: 20.27452078 | AB112: 20.27452078 | AC112: 20.27452078 | AD112: =MAX(AD64+AD76+AD88+AD100,0) -> 20.27452078 | AE112: =AE64+AE76+AE88+AE100 -> 20.27452078 | AF112: 20.27452078 | AG112: 20.27452078 | AH112: 20.27452078
A113: =ROW() -> 113 | C113: Cost of Raising Equity | H113: 0 | I113: =I65+I77+I89+I101 -> 0 | J113: 0 | K113: 0 | L113: 0 | M113: 0 | N113: 0 | O113: 0 | P113: 0 | Q113: 0 | R113: 0 | S113: =S65+S77+S89+S101-S125 -> 0 | T113: 0 | U113: 0 | V113: 0 | W113: 0 | X113: 0 | Y113: =MAX(Y65+Y77+Y89+Y101,0) -> 0 | Z113: -4.899938547e-16 | AA113: -9.799877094e-16 | AB113: -1.469981564e-15 | AC113: -1.959975419e-15 | AD113: =MAX(AD65+AD77+AD89+AD101,0) -> 1.968721427 | AE113: 3.403219249 | AF113: 4.660896344 | AG113: 6.031146066 | AH113: 7.242729232
A114: =ROW() -> 114 | C114: Total | H114: =SUM(H104:H113) -> 2608.90306 | I114: =SUM(I104:I113) -> 2553.390658 | J114: 2494.521683 | K114: 2431.956686 | L114: 2368.068156 | M114: 2307.484274 | N114: 2308.471125 | O114: 2761.204847 | P114: 2700.988376 | Q114: 3412.62029 | R114: 3328.511278 | S114: 4020.677942 | T114: 4057.823487 | U114: 3982.104307 | V114: 3893.507082 | W114: 3793.47252 | X114: 3705.268109 | Y114: 3618.650995 | Z114: 3535.056376 | AA114: 3449.272367 | AB114: 3373.669035 | AC114: 3312.433586 | AD114: 3133.642375 | AE114: 3043.524331 | AF114: 2941.180946 | AG114: 2850.860379 | AH114: 2748.923927
